Workbook

Sheet 2016Block Grant-legalmax.xlsm
D1: Col 1 | E1: Col 2 | F1: Col 3 | G1: Col 4 | H1: Col 5 | I1: Col 6 | J1: Col 6(a) | K1: Col 7 | L1: Col 8 | M1: Col 9 | N1: Col 10 | O1: Col 11 | P1: Col 12 | Q1: Col 12 (a) | R1: Col 13 | S1: Col 14 | T1: Col 14 (a) | U1: Col 15 | V1: Col 16 | W1: Col 17 | X1: Col 18 | Y1: Col 18 (a) | Z1: Col 19 | AA1: Sequence Number | AB1: Audit | AC1: Republished | AE1: Col 20 | AF1: Col 21 | AH1: Col 22 | AI1: Col 23 | AJ1: Col 24 | AK1: Col 25 | AL1: Col 26 | AM1: Col 27 | AO1: Line 1 | AQ1: Line 2 | AX1: Line 3 | AY1: Line 4 | BA1: Line 5 | BB1: Line 6
B2: 2016-06-21 | M2: Block Grant | N2: Block Grant | P2: Block Grant | Q2: Cost of Living | R2: Block Grant | U2: Local Effort | V2: Local Effort | W2: Local Effort | X2: Local Effort | Y2: Local Effort | Z2: Local Effort | AD2: (info only) | AG2: (info only) | AO2: Table I - Adjusted General State Aid Calculation | BC2: Table II - General State Aid Over-Proration FTE Calculation | BI2: Virtual State Aid | BP2: New Fac State Aid | BR2: Special Levies - Lookup on Form 151 | CE2: Federal Impact Aid | CG2: C06 Ln 30 | CH2: C06 Ln 40 | CI2: C06 Ln 45 | CJ2: Sequence Number | CK2: Audit | CL2: Republished
D3: 2014-15 | E3: 2015-16 | F3: 2015-16 | G3: 2015-16 | H3: Federal | I3: 2015-16 | J3: 2015-16 | K3: 2015-06-30 | L3: 2014-15 | M3: 2015-16 | N3: 2015-16 | O3: 2015-16 | P3: 2015-16 | Q3: 2015-16 | R3: 2015-16 | S3: 2015-16 | T3: 2015-16 | U3: 2015-16 | V3: 2015-16 | W3: 2015-16 | X3: 2015-16 | Y3: 2015-16 | Z3: 2015-16 | AD3: 2015-16 | AE3: 2015-16 | AF3: 2015-16 | AH3: 2015-16 | AI3: 2014-15 | AJ3: 2015-16 | AK3: 2015-16 | AL3: 2015-16 | AM3: 2015-16 | AP3: Virtual | AR3: Special Levies | AY3: To Fund | AZ3: New Facilities | BR3: (info only)
D4: Adjusted | G4: Special | H4: Impact | I4: Total | J4: Gen State Aid | K4: Unencumbered | L4: Total | S4: State Aid | T4: Extraordinary | U4: Mineral | V4: Federal | Z4: Interest | AD4: Computed | AE4: Computed | AF4: Adopted | AG4: Legal General | AH4: Legal | AI4: LOB Base | AJ4: LOB | AK4: Computed | AL4: Adopted | AM4: Legal | AO4: 2014-15 | AP4: 2014-15 | AQ4: 2014-15 | AR4: 2014-15 | AS4: 2014-15 | AT4: 2014-15 | AU4: 2014-15 | AV4: 2014-15 | AW4: 2014-15 | AX4: 2014-15 | AY4: Extraordinary | AZ4: 2014-15 | BA4: 2014-15 | BB4: 2014-15 | BC4: 2013-14 | BD4: 2014-15 | BE4: 2015-16 | BF4: Declining | BG4: 2015-16 | BH4: 2015-16 | BI4: 2015-16 | BJ4: 2015-16 | BK4: 2015-16 | BL4: 2015-16 | BM4: 2015-16 | BN4: 2015-16 | BO4: 2015-16 | BP4: 2015-16 | BQ4: 2015-16 | BR4: 2014-15 | BS4: 2015-16 | BT4: 2015-16 | BU4: 2015-16 | BV4: 2015-16 | BW4: 2014-15 | BX4: 2015-16 | BY4: 2015-16 | BZ4: 2015-16 | CA4: 2014-15 | CB4: 2015-16 | CC4: 2015-16 | CD4: 2015-16 | CE4: 2015-16 | CF4: 2014-15 | CG4: 2015-16 | CH4: 2015-16 | CI4: 2015-16
D5: General State Aid | E5: Virtual | F5: New Facilities | G5: Levies | H5: Aid | I5: Adjusted | J5: OverProration | K5: Cash | L5: Budget | M5: General | N5: LOB | O5: Special Ed | P5: KPERS | Q5: KPERS | R5: Capital Outlay | S5: Flow-Thru | T5: Needs State | U5: Production | V5: Impact | W5: Pupil | X5: Authorized | Y5: Misc | Z5: on Idle | AD5: Gen Fund | AE5: Gen Fund | AF5: General | AG5: Fund | AH5: General | AI5: General | AJ5: Percent | AK5: LOB | AL5: LOB | AM5: LOB | AO5: General | AP5: Virtual | AQ5: Virtual Aid | AR5: COL | AS5: COL Aid | AT5: Decl Enrol | AU5: Decl Enrol Aid | AV5: Ancillary | AW5: Ancillary Aid | AX5: Total Special | AY5: Need State Aid | AZ5: New Fac | BA5: New Fac Aid | BB5: Adj General | BC5: FTE Enroll. | BD5: FTE Enroll. | BE5: FTE Enroll. | BF5: Enrollment | BG5: 4yr At Risk | BH5: Adjusted | BI5: Virtual FTE | BJ5: Virtual FT Aid | BK5: Virtual FTE | BL5: Virtual PT Aid | BM5: Virtual Credits | BN5: Virtual Credits Aid | BO5: Total Virtual | BP5: New Fac | BQ5: New Fac Aid | BR5: Cost of Living | BS5: Cost of Living | BT5: Cost of Living | BU5: Cost of Living | BV5: Cost of Living | BW5: Decl Enroll | BX5: Decl Enroll | BY5: Decl Enroll | BZ5: Decl Enroll | CA5: Ancillary | CB5: Ancillary | CC5: Ancillary | CD5: Ancillary | CE5: Federal | CF5: Federal | CG5: Tuition | CH5: Tuition | CI5: Tuition
A6: USD # | B6: County | C6: District Name | D6: (Table I) | E6: State Aid | F6: State Aid | G6: State Aid | H6: Difference | I6: Enrollment | J6: 0 | K6: Balance | L6: Reduction | M6: State Aid | N6: State Aid | O6: State Aid | P6: State Aid | Q6: State Aid | R6: State Aid | S6: General Fund | T6: Aid | U6: Tax | V6: Aid | W6: Tuition | X6: Transfers | Y6: Revenue | Z6: Funds | AD6: (excl COL) | AE6: (incl COL) | AF6: Fund | AG6: (before red) | AH6: Fund | AI6: Fund | AJ6: Authorized | AK6: Budget | AL6: Budget | AM6: Budget | AO6: State Aid | AP6: WTD FTE | AQ6: 3852 | AR6: WTD FTE | AS6: 3852 | AT6: WTD FTE | AU6: 3852 | AV6: WTD FTE | AW6: 3852 | AX6: Levy Aid | AY6: 0.004 | AZ6: WTD FTE | BA6: 3852 | BB6: State Aid | BC6: (excl 4yr AR) | BD6: (excl 4yr AR) | BE6: (excl 4yr AR) | BF6: Provision | BG6: FTE Enroll. | BH6: Enrollment | BI6: (Full-Time) | BJ6: 5000 | BK6: (Part-Time) | BL6: 4045 | BM6: (19yrs +) | BN6: 933 | BO6: State Aid | BP6: WTD FTE | BQ6: 3852 | BR6: Tax Appeal | BS6: Percent | BT6: Computed | BU6: USD Amt Used | BV6: Max Authority | BW6: Tax Appeal | BX6: Tax Appeal | BY6: USD Amt Used | BZ6: Max Authority | CA6: Tax Appeal | CB6: Tax Appeal | CC6: USD Amt Used | CD6: Max Authority | CE6: Impact Aid | CF6: Impact Aid | CG6: Individual | CH6: In State | CI6: Out of State | CM6: USD #
A7: Total | C7: STATE TOTALS | D7: =SUM(D8:D293) -> 2511591254 | E7: =SUM(E8:E293) -> 30641401 | F7: 11440827 | G7: 52968844 | H7: 876208 | I7: =SUM(I8:I293) -> 459899.8 | J7: 0 | K7: =SUM(K8:K293) -> 525721 | L7: =SUM(L8:L293) -> -9819 | M7: =SUM(M8:M293) -> 2606982994 | N7: =SUM(N8:N293) -> 446176576 | O7: =SUM(O8:O293) -> 425394929 | P7: =SUM(P8:P293) -> 257620695 | Q7: 337816795 | R7: =SUM(R8:R293) -> 27047902 | S7: =SUM(S8:S293) -> 3763223096 | T7: =SUM(T8:T293) -> 1831490 | U7: =SUM(U8:U293) -> 1846832 | V7: =SUM(V8:V293) -> 16569272 | W7: =SUM(W8:W293) -> 263220 | X7: =SUM(X8:X293) -> 9857748 | Y7: =SUM(Y8:Y293) -> 2617427 | Z7: =SUM(Z8:Z293) -> 2065122 | AD7: 3844016868 | AE7: =SUM(AE8:AE293) -> 3798799928 | AF7: =SUM(AF8:AF293) -> 3960521772 | AG7: 3798745517 | AH7: =SUM(AH8:AH293) -> 3798745517 | AI7: =SUM(AI8:AI293) -> 3473306047 | AJ7: =SUM(AJ8:AJ293) -> 86.76 | AK7: =SUM(AK8:AK293) -> 1071117716 | AL7: =SUM(AL8:AL293) -> 1061277923 | AM7: =SUM(AM8:AM293) -> 1061277923 | AO7: =SUM(AO8:AO293) -> 2599803072 | AP7: 6608.4 | AQ7: 25455559 | AR7: 5213.6 | AS7: 20082788 | AT7: 952.9 | AU7: 3670571 | AV7: 5657.1 | AW7: 21791149 | AX7: 45544508 | AY7: 10115209 | AZ7: 1842.3 | BA7: 7096542 | BB7: 2511591254 | BC7: =SUM(BC8:BC293) -> 451168.4 | BD7: 453447.1 | BE7: 450671.4 | BF7: 456483.3 | BG7: 3416.5 | BH7: 459899.8 | BI7: 4578 | BJ7: =SUM(BJ8:BJ293) -> 22890000 | BK7: 844.4 | BL7: =SUM(BL8:BL293) -> 3415615 | BM7: 4647.13 | BN7: =SUM(BN8:BN293) -> 4335786 | BO7: 30641401 | BP7: 2970.1 | BQ7: 11440827 | BR7: =SUM(BR8:BR293) -> 20405207 | BS7: =SUM(BS8:BS293) -> 0 | BT7: =SUM(BT8:BT293) -> 32288635 | BU7: =SUM(BU8:BU293) -> 25503370 | BV7: =SUM(BV8:BV293) -> 25121412 | BW7: =SUM(BW8:BW293) -> 3670673 | BX7: =SUM(BX8:BX293) -> 3670673 | BY7: =SUM(BY8:BY293) -> 3670673 | BZ7: 3670673 | CA7: =SUM(CA8:CA293) -> 21791313 | CB7: =SUM(CB8:CB293) -> 24176759 | CC7: =SUM(CC8:CC293) -> 24176759 | CD7: 24176759 | CE7: 16294790 | CF7: 17040514 | CG7: =SUM(CG8:CG293) -> 134432 | CH7: 0 | CI7: 0
A8: 101 | B8: Neosho | C8: Erie-Galesburg | D8: =BB8 -> 3725709 | E8: =BO8 -> 15861 | F8: =BQ8 -> 0 | G8: =BV8+BZ8+CD8 -> 0 | H8: =IF((CF8-CE8)<0,0,CF8-CE8) -> 0 | I8: =BH8 -> 528 | J8: =I8*$J$6 -> 0 | K8: 0 | L8: ='2016legmax.xls'!BJ5 -> 0 | M8: =SUM(D8+E8+F8+G8+H8+J8)-K8+L8 -> 3741570 | N8: ='2016legmax.xls'!BB5 -> 637074 | O8: 631920 | P8: ='2016legmax.xls'!BC5 -> 252169 | Q8: 328099 | R8: ='2016legmax.xls'!BD5 -> 0 | S8: =M8+N8+O8+P8+R8 -> 5262733 | T8: ='2016legmax.xls'!DD5 -> 0 | U8: 8092 | V8: 0 | W8: 0 | X8: 0 | Y8: 0 | Z8: 0 | AA8: ='2016legmax.xls'!AV5 -> 2 | AB8: ='2016legmax.xls'!AW5 -> A | AC8: ='2016legmax.xls'!AX5 ->  | AD8: =D8+E8+F8+BZ8+CD8+H8+J8+L8+N8+O8+Q8+R8+T8+U8+V8+W8+Y8+Z8 -> 5346755 | AE8: =AD8+BV8-Q8+P8+X8 -> 5270825 | AF8: =IF(Weightings!G5>0,Weightings!G5,'Preliminary SO66'!AB2) -> 5586703 | AG8: =MIN(AE8,AF8) -> 5270825 | AH8: =MIN(AE8,AF8) -> 5270825 | AI8: 5131367 | AJ8: ='2016legmax.xls'!BM5 -> 0.3 | AK8: =AI8*AJ8 -> 1539410 | AL8: 1539410 | AM8: =MIN(AK8,AL8) -> 1539410 | AO8: 3769177 | AP8: 7.4 | AQ8: =AP8*$AQ$6 -> 28505 | AR8: 0 | AS8: =AR8*$AS$6 -> 0 | AT8: 0 | AU8: =AT8*$AU$6 -> 0 | AV8: 0 | AW8: =AV8*$AW$6 -> 0 | AX8: =AS8+AU8+AW8 -> 0 | AY8: =SUM(AO8-AQ8-AX8)*$AY$6 -> 14963 | AZ8: 0 | BA8: =AZ8*$BA$6 -> 0 | BB8: =AO8-AQ8-AX8-AY8-BA8 -> 3725709 | BC8: ='2016legmax.xls'!F5 -> 509 | BD8: ='2016legmax.xls'!I5 -> 522.5 | BE8: ='2016legmax.xls'!K5 -> 503 | BF8: =MAX(BE8,BD8, AVERAGE(BC8,BD8,BE8)) -> 522.5 | BG8: ='2016legmax.xls'!O5 -> 5.5 | BH8: =BF8+BG8 -> 528 | BI8: =IF(ISNA(VLOOKUP($CM8,'Audit Values'!$A$2:$AE$252,2,FALSE)),'Preliminary SO66'!T2,VLOOKUP($CM8,'Audit Values'!$A$2:$AE$252,20,FALSE)) -> 0 | BJ8: =BI8*$BJ$6 -> 0 | BK8: =IF(ISNA(VLOOKUP($CM8,'Audit Values'!$A$2:$AE$252,2,FALSE)),'Preliminary SO66'!U2,VLOOKUP($CM8,'Audit Values'!$A$2:$AE$252,21,FALSE)) -> 0 | BL8: =BK8*$BL$6 -> 0 | BM8: 17 | BN8: =BM8*$BN$6 -> 15861 | BO8: =BJ8+BL8+BN8 -> 15861 | BP8: ='2016legmax.xls'!AH5 -> 0 | BQ8: =BP8*$BQ$6 -> 0 | BR8: 0 | BS8: ='2016legmax.xls'!CJ5 -> 0 | BT8: =AD8*BS8 -> 0 | BU8: ='2016legmax.xls'!CI5 -> 0 | BV8: =MIN(BT8,BU8) -> 0 | BW8: 0 | BX8: 0 | BY8: 0 | BZ8: =IF(BY8>MAX(BW8,BX8), MAX(BW8,BX8),BY8) -> 0 | CA8: 0 | CB8: 0 | CC8: 0 | CD8: =IF(CC8>MAX(CA8,CB8),MAX(CA8,CB8),CC8) -> 0 | CE8: 0 | CF8: 0 | CG8: 0 | CH8: 0 | CI8: 0 | CM8: D0101
A9: 102 | B9: Gray | C9: Cimmaron-Ensign | D9: =BB9 -> 4170170 | E9: =BO9 -> 0 | F9: =BQ9 -> 114019 | G9: 0 | H9: =IF((CF9-CE9)<0,0,CF9-CE9) -> 0 | I9: =BH9 -> 632.7 | J9: =I9*$J$6 -> 0 | K9: 22 | L9: ='2016legmax.xls'!BJ6 -> 0 | M9: =SUM(D9+E9+F9+G9+H9+J9)-K9+L9 -> 4284167 | N9: ='2016legmax.xls'!BB6 -> 607345 | O9: 463142 | P9: ='2016legmax.xls'!BC6 -> 335027 | Q9: 441283 | R9: ='2016legmax.xls'!BD6 -> 24833 | S9: =M9+N9+O9+P9+R9 -> 5714514 | T9: ='2016legmax.xls'!DD6 -> 0 | U9: 0 | V9: 0 | W9: 0 | X9: 0 | Y9: 0 | Z9: 0 | AA9: ='2016legmax.xls'!AV6 -> 14 | AB9: ='2016legmax.xls'!AW6 -> A | AC9: ='2016legmax.xls'!AX6 ->  | AD9: =D9+E9+F9+BZ9+CD9+H9+J9+L9+N9+O9+Q9+R9+T9+U9+V9+W9+Y9+Z9 -> 5820792 | AE9: =AD9+BV9-Q9+P9+X9 -> 5714536 | AF9: =IF(Weightings!G6>0,Weightings!G6,'Preliminary SO66'!AB3) -> 5966187 | AG9: 5714536 | AH9: =MIN(AE9,AF9) -> 5714536 | AI9: 5571673 | AJ9: ='2016legmax.xls'!BM6 -> 0.3 | AK9: =AI9*AJ9 -> 1671502 | AL9: 1425000 | AM9: =MIN(AK9,AL9) -> 1425000 | AO9: 4356561 | AP9: 9 | AQ9: =AP9*$AQ$6 -> 34668 | AR9: 0 | AS9: =AR9*$AS$6 -> 0 | AT9: 0 | AU9: =AT9*$AU$6 -> 0 | AV9: 0 | AW9: =AV9*$AW$6 -> 0 | AX9: =AS9+AU9+AW9 -> 0 | AY9: =SUM(AO9-AQ9-AX9)*$AY$6 -> 17288 | AZ9: 34.9 | BA9: =AZ9*$BA$6 -> 134435 | BB9: =AO9-AQ9-AX9-AY9-BA9 -> 4170170 | BC9: ='2016legmax.xls'!F6 -> 633.4 | BD9: ='2016legmax.xls'!I6 -> 626.7 | BE9: ='2016legmax.xls'!K6 -> 619 | BF9: =MAX(BE9,BD9, AVERAGE(BC9,BD9,BE9)) -> 626.7 | BG9: ='2016legmax.xls'!O6 -> 6 | BH9: =BF9+BG9 -> 632.7 | BI9: =IF(ISNA(VLOOKUP($CM9,'Audit Values'!$A$2:$AE$252,2,FALSE)),'Preliminary SO66'!T3,VLOOKUP($CM9,'Audit Values'!$A$2:$AE$252,20,FALSE)) -> 0 | BJ9: =BI9*$BJ$6 -> 0 | BK9: =IF(ISNA(VLOOKUP($CM9,'Audit Values'!$A$2:$AE$252,2,FALSE)),'Preliminary SO66'!U3,VLOOKUP($CM9,'Audit Values'!$A$2:$AE$252,21,FALSE)) -> 0 | BL9: =BK9*$BL$6 -> 0 | BM9: 0 | BN9: =BM9*$BN$6 -> 0 | BO9: =BJ9+BL9+BN9 -> 0 | BP9: ='2016legmax.xls'!AH6 -> 29.6 | BQ9: =BP9*$BQ$6 -> 114019 | BR9: 0 | BS9: ='2016legmax.xls'!CJ6 -> 0 | BT9: 0 | BU9: ='2016legmax.xls'!CI6 -> 0 | BV9: =MIN(BT9,BU9) -> 0 | BW9: 0 | BX9: 0 | BY9: 0 | BZ9: =IF(BY9>MAX(BW9,BX9), MAX(BW9,BX9),BY9) -> 0 | CA9: 0 | CB9: 0 | CC9: 0 | CD9: =IF(CC9>MAX(CA9,CB9),MAX(CA9,CB9),CC9) -> 0 | CE9: 0 | CF9: 0 | CG9: 0 | CH9: 0 | CI9: 0 | CM9: D0102
A10: 103 | B10: Cheyenne | C10: Cheylin | D10: 1230408 | E10: 0 | F10: 0 | G10: 0 | H10: 0 | I10: 137 | J10: 0 | K10: 0 | L10: ='2016legmax.xls'!BJ7 -> 0 | M10: 1230408 | N10: ='2016legmax.xls'!BB7 -> 0 | O10: 125987 | P10: ='2016legmax.xls'!BC7 -> 80184 | Q10: 104513 | R10: ='2016legmax.xls'!BD7 -> 0 | S10: 1436579 | T10: ='2016legmax.xls'!DD7 -> 0 | U10: 23117 | V10: 0 | W10: 0 | X10: 0 | Y10: 0 | Z10: 0 | AA10: ='2016legmax.xls'!AV7 -> 15 | AB10: ='2016legmax.xls'!AW7 -> A | AC10: ='2016legmax.xls'!AX7 ->  | AD10: 1484025 | AE10: 1459696 | AF10: =IF(Weightings!G7>0,Weightings!G7,'Preliminary SO66'!AB4) -> 1530420 | AG10: 1459696 | AH10: 1459696 | AI10: 1733468 | AJ10: ='2016legmax.xls'!BM7 -> 0.3 | AK10: 520040 | AL10: 520040 | AM10: 520040 | AO10: 1235349 | AP10: 0 | AQ10: 0 | AR10: 0 | AS10: 0 | AT10: 0 | AU10: 0 | AV10: 0 | AW10: 0 | AX10: 0 | AY10: 4941 | AZ10: 0 | BA10: 0 | BB10: 1230408 | BC10: ='2016legmax.xls'!F7 -> 127 | BD10: ='2016legmax.xls'!I7 -> 137 | BE10: ='2016legmax.xls'!K7 -> 133.5 | BF10: 137 | BG10: ='2016legmax.xls'!O7 -> 0 | BH10: 137 | BI10: =IF(ISNA(VLOOKUP($CM10,'Audit Values'!$A$2:$AE$252,2,FALSE)),'Preliminary SO66'!T4,VLOOKUP($CM10,'Audit Values'!$A$2:$AE$252,20,FALSE)) -> 0 | BJ10: 0 | BK10: =IF(ISNA(VLOOKUP($CM10,'Audit Values'!$A$2:$AE$252,2,FALSE)),'Preliminary SO66'!U4,VLOOKUP($CM10,'Audit Values'!$A$2:$AE$252,21,FALSE)) -> 0 | BL10: 0 | BM10: 0 | BN10: 0 | BO10: 0 | BP10: ='2016legmax.xls'!AH7 -> 0 | BQ10: 0 | BR10: 0 | BS10: ='2016legmax.xls'!CJ7 -> 0 | BT10: 0 | BU10: ='2016legmax.xls'!CI7 -> 0 | BV10: 0 | BW10: 0 | BX10: 0 | BY10: 0 | BZ10: 0 | CA10: 0 | CB10: 0 | CC10: 0 | CD10: 0 | CE10: 0 | CF10: 0 | CG10: 0 | CH10: 0 | CI10: 0 | CM10: D0103
A11: 105 | B11: Rawlins | C11: Rawlins County | D11: 2259170 | E11: 0 | F11: 0 | G11: 0 | H11: 0 | I11: 333.4 | J11: 0 | K11: 0 | L11: ='2016legmax.xls'!BJ8 -> 0 | M11: 2259170 | N11: ='2016legmax.xls'!BB8 -> 235295 | O11: 296419 | P11: ='2016legmax.xls'!BC8 -> 193020 | Q11: 252133 | R11: ='2016legmax.xls'!BD8 -> 0 | S11: 2983904 | T11: ='2016legmax.xls'!DD8 -> 0 | U11: 16451 | V11: 0 | W11: 0 | X11: 0 | Y11: 0 | Z11: 2543 | AA11: ='2016legmax.xls'!AV8 -> 15 | AB11: ='2016legmax.xls'!AW8 -> A | AC11: ='2016legmax.xls'!AX8 ->  | AD11: 3062011 | AE11: 3002898 | AF11: =IF(Weightings!G8>0,Weightings!G8,'Preliminary SO66'!AB5) -> 3185830 | AG11: 3002898 | AH11: 3002898 | AI11: 3077442 | AJ11: ='2016legmax.xls'!BM8 -> 0.3 | AK11: 923233 | AL11: 923233 | AM11: 923233 | AO11: =2233071+35172 -> 2268243 | AP11: 0 | AQ11: 0 | AR11: 0 | AS11: 0 | AT11: 0 | AU11: 0 | AV11: 0 | AW11: 0 | AX11: 0 | AY11: 9073 | AZ11: 0 | BA11: 0 | BB11: 2259170 | BC11: ='2016legmax.xls'!F8 -> 310.5 | BD11: ='2016legmax.xls'!I8 -> 323.5 | BE11: ='2016legmax.xls'!K8 -> 333.4 | BF11: 333.4 | BG11: ='2016legmax.xls'!O8 -> 0 | BH11: 333.4 | BI11: =IF(ISNA(VLOOKUP($CM11,'Audit Values'!$A$2:$AE$252,2,FALSE)),'Preliminary SO66'!T5,VLOOKUP($CM11,'Audit Values'!$A$2:$AE$252,20,FALSE)) -> 0 | BJ11: 0 | BK11: =IF(ISNA(VLOOKUP($CM11,'Audit Values'!$A$2:$AE$252,2,FALSE)),'Preliminary SO66'!U5,VLOOKUP($CM11,'Audit Values'!$A$2:$AE$252,21,FALSE)) -> 0 | BL11: 0 | BM11: 0 | BN11: 0 | BO11: 0 | BP11: ='2016legmax.xls'!AH8 -> 0 | BQ11: 0 | BR11: 0 | BS11: ='2016legmax.xls'!CJ8 -> 0 | BT11: 0 | BU11: ='2016legmax.xls'!CI8 -> 0 | BV11: 0 | BW11: 0 | BX11: 0 | BY11: 0 | BZ11: 0 | CA11: 0 | CB11: 0 | CC11: 0 | CD11: 0 | CE11: 0 | CF11: 0 | CG11: 0 | CH11: 0 | CI11: 0 | CM11: D0105
A12: 106 | B12: Ness | C12: Western Plains | D12: 1176530 | E12: 0 | F12: 0 | G12: 0 | H12: 0 | I12: 118 | J12: 0 | K12: 8209 | L12: ='2016legmax.xls'!BJ9 -> 0 | M12: 1168321 | N12: ='2016legmax.xls'!BB9 -> 0 | O12: 84804 | P12: ='2016legmax.xls'!BC9 -> 83902 | Q12: 111185 | R12: ='2016legmax.xls'!BD9 -> 0 | S12: 1337027 | T12: ='2016legmax.xls'!DD9 -> 0 | U12: 26941 | V12: 0 | W12: 0 | X12: 0 | Y12: 33416 | Z12: 2700 | AA12: ='2016legmax.xls'!AV9 -> 6 | AB12: ='2016legmax.xls'!AW9 -> A | AC12: ='2016legmax.xls'!AX9 ->  | AD12: 1435576 | AE12: 1408293 | AF12: =IF(Weightings!G9>0,Weightings!G9,'Preliminary SO66'!AB6) -> 1494664 | AG12: 1408293 | AH12: 1408293 | AI12: 1613735 | AJ12: ='2016legmax.xls'!BM9 -> 0.3 | AK12: 484121 | AL12: 484121 | AM12: 484121 | AO12: 1181255 | AP12: 0 | AQ12: 0 | AR12: 0 | AS12: 0 | AT12: 0 | AU12: 0 | AV12: 0 | AW12: 0 | AX12: 0 | AY12: 4725 | AZ12: 0 | BA12: 0 | BB12: 1176530 | BC12: ='2016legmax.xls'!F9 -> 129 | BD12: ='2016legmax.xls'!I9 -> 118 | BE12: ='2016legmax.xls'!K9 -> 104 | BF12: 118 | BG12: ='2016legmax.xls'!O9 -> 0 | BH12: 118 | BI12: =IF(ISNA(VLOOKUP($CM12,'Audit Values'!$A$2:$AE$252,2,FALSE)),'Preliminary SO66'!T6,VLOOKUP($CM12,'Audit Values'!$A$2:$AE$252,20,FALSE)) -> 0 | BJ12: 0 | BK12: =IF(ISNA(VLOOKUP($CM12,'Audit Values'!$A$2:$AE$252,2,FALSE)),'Preliminary SO66'!U6,VLOOKUP($CM12,'Audit Values'!$A$2:$AE$252,21,FALSE)) -> 0 | BL12: 0 | BM12: 0 | BN12: 0 | BO12: 0 | BP12: ='2016legmax.xls'!AH9 -> 0 | BQ12: 0 | BR12: 0 | BS12: ='2016legmax.xls'!CJ9 -> 0 | BT12: 0 | BU12: ='2016legmax.xls'!CI9 -> 0 | BV12: 0 | BW12: 0 | BX12: 0 | BY12: 0 | BZ12: 0 | CA12: 0 | CB12: 0 | CC12: 0 | CD12: 0 | CE12: 0 | CF12: 0 | CG12: 0 | CH12: 0 | CI12: 0 | CM12: D0106
A13: 107 | B13: Jewell | C13: Rock Hills | D13: 2165516 | E13: 0 | F13: 0 | G13: 0 | H13: 13257 | I13: 279 | J13: 0 | K13: 0 | L13: ='2016legmax.xls'!BJ10 -> 0 | M13: 2178773 | N13: ='2016legmax.xls'!BB10 -> 21269 | O13: 354343 | P13: ='2016legmax.xls'!BC10 -> 182372 | Q13: 238280 | R13: ='2016legmax.xls'!BD10 -> 0 | S13: 2736757 | T13: ='2016legmax.xls'!DD10 -> 0 | U13: 0 | V13: 0 | W13: 0 | X13: 0 | Y13: 0 | Z13: 0 | AA13: ='2016legmax.xls'!AV10 -> 16 | AB13: ='2016legmax.xls'!AW10 -> A | AC13: ='2016legmax.xls'!AX10 ->  | AD13: 2792665 | AE13: 2736757 | AF13: =IF(Weightings!G10>0,Weightings!G10,'Preliminary SO66'!AB7) -> 2922851 | AG13: 2736757 | AH13: 2736757 | AI13: 2941701 | AJ13: ='2016legmax.xls'!BM10 -> 0.238 | AK13: 700125 | AL13: 700000 | AM13: 700000 | AO13: 2174213 | AP13: 0 | AQ13: 0 | AR13: 0 | AS13: 0 | AT13: 0 | AU13: 0 | AV13: 0 | AW13: 0 | AX13: 0 | AY13: 8697 | AZ13: 0 | BA13: 0 | BB13: 2165516 | BC13: ='2016legmax.xls'!F10 -> 277 | BD13: ='2016legmax.xls'!I10 -> 274.5 | BE13: ='2016legmax.xls'!K10 -> 269.5 | BF13: 274.5 | BG13: ='2016legmax.xls'!O10 -> 4.5 | BH13: 279 | BI13: =IF(ISNA(VLOOKUP($CM13,'Audit Values'!$A$2:$AE$252,2,FALSE)),'Preliminary SO66'!T7,VLOOKUP($CM13,'Audit Values'!$A$2:$AE$252,20,FALSE)) -> 0 | BJ13: 0 | BK13: =IF(ISNA(VLOOKUP($CM13,'Audit Values'!$A$2:$AE$252,2,FALSE)),'Preliminary SO66'!U7,VLOOKUP($CM13,'Audit Values'!$A$2:$AE$252,21,FALSE)) -> 0 | BL13: 0 | BM13: 0 | BN13: 0 | BO13: 0 | BP13: ='2016legmax.xls'!AH10 -> 0 | BQ13: 0 | BR13: 0 | BS13: ='2016legmax.xls'!CJ10 -> 0 | BT13: 0 | BU13: ='2016legmax.xls'!CI10 -> 0 | BV13: 0 | BW13: 0 | BX13: 0 | BY13: 0 | BZ13: 0 | CA13: 0 | CB13: 0 | CC13: 0 | CD13: 0 | CE13: 0 | CF13: =13256+1 -> 13257 | CG13: 0 | CH13: 0 | CI13: 0 | CM13: D0107
A14: 108 | B14: Washington | C14: Washington Co. Schools | D14: 2399315 | E14: 0 | F14: 0 | G14: 0 | H14: 0 | I14: 343 | J14: 0 | K14: 0 | L14: ='2016legmax.xls'!BJ11 -> 0 | M14: 2399315 | N14: ='2016legmax.xls'!BB11 -> 184639 | O14: 322183 | P14: ='2016legmax.xls'!BC11 -> 160355 | Q14: 209196 | R14: ='2016legmax.xls'!BD11 -> 0 | S14: 3066492 | T14: ='2016legmax.xls'!DD11 -> 0 | U14: 0 | V14: 0 | W14: 0 | X14: 0 | Y14: 0 | Z14: 3213 | AA14: ='2016legmax.xls'!AV11 -> 16 | AB14: ='2016legmax.xls'!AW11 -> A | AC14: ='2016legmax.xls'!AX11 ->  | AD14: 3118546 | AE14: 3069705 | AF14: =IF(Weightings!G11>0,Weightings!G11,'Preliminary SO66'!AB8) -> 3219173 | AG14: 3069705 | AH14: 3069705 | AI14: 3356377 | AJ14: ='2016legmax.xls'!BM11 -> 0.3 | AK14: 1006913 | AL14: 1006913 | AM14: 1006913 | AO14: 2413188 | AP14: 1.1 | AQ14: 4237 | AR14: 0 | AS14: 0 | AT14: 0 | AU14: 0 | AV14: 0 | AW14: 0 | AX14: 0 | AY14: 9636 | AZ14: 0 | BA14: 0 | BB14: 2399315 | BC14: ='2016legmax.xls'!F11 -> 346 | BD14: ='2016legmax.xls'!I11 -> 343 | BE14: ='2016legmax.xls'!K11 -> 337 | BF14: 343 | BG14: ='2016legmax.xls'!O11 -> 0 | BH14: 343 | BI14: =IF(ISNA(VLOOKUP($CM14,'Audit Values'!$A$2:$AE$252,2,FALSE)),'Preliminary SO66'!T8,VLOOKUP($CM14,'Audit Values'!$A$2:$AE$252,20,FALSE)) -> 0 | BJ14: 0 | BK14: =IF(ISNA(VLOOKUP($CM14,'Audit Values'!$A$2:$AE$252,2,FALSE)),'Preliminary SO66'!U8,VLOOKUP($CM14,'Audit Values'!$A$2:$AE$252,21,FALSE)) -> 0 | BL14: 0 | BM14: 0 | BN14: 0 | BO14: 0 | BP14: ='2016legmax.xls'!AH11 -> 0 | BQ14: 0 | BR14: 0 | BS14: ='2016legmax.xls'!CJ11 -> 0 | BT14: 0 | BU14: ='2016legmax.xls'!CI11 -> 0 | BV14: 0 | BW14: 0 | BX14: 0 | BY14: 0 | BZ14: 0 | CA14: 0 | CB14: 0 | CC14: 0 | CD14: 0 | CE14: 0 | CF14: 0 | CG14: 0 | CH14: 0 | CI14: 0 | CM14: D0108
A15: 109 | B15: Republic | C15: Republic County | D15: 3188195 | E15: 0 | F15: 0 | G15: 0 | H15: 0 | I15: 466.5 | J15: 0 | K15: 0 | L15: ='2016legmax.xls'!BJ12 -> 0 | M15: 3188195 | N15: ='2016legmax.xls'!BB12 -> 239701 | O15: 414501 | P15: ='2016legmax.xls'!BC12 -> 227641 | Q15: 299146 | R15: ='2016legmax.xls'!BD12 -> 0 | S15: 4070038 | T15: ='2016legmax.xls'!DD12 -> 0 | U15: 0 | V15: 0 | W15: 0 | X15: 27 | Y15: 0 | Z15: 3367 | AA15: ='2016legmax.xls'!AV12 -> 16 | AB15: ='2016legmax.xls'!AW12 -> A | AC15: ='2016legmax.xls'!AX12 ->  | AD15: 4144910 | AE15: 4073432 | AF15: =IF(Weightings!G12>0,Weightings!G12,'Preliminary SO66'!AB9) -> 4200601 | AG15: 4073432 | AH15: 4073432 | AI15: 4341960 | AJ15: ='2016legmax.xls'!BM12 -> 0.3 | AK15: 1302588 | AL15: 1280000 | AM15: 1280000 | AO15: 3216407 | AP15: 4 | AQ15: 15408 | AR15: 0 | AS15: 0 | AT15: 0 | AU15: 0 | AV15: 0 | AW15: 0 | AX15: 0 | AY15: 12804 | AZ15: 0 | BA15: 0 | BB15: 3188195 | BC15: ='2016legmax.xls'!F12 -> 460 | BD15: ='2016legmax.xls'!I12 -> 466.5 | BE15: ='2016legmax.xls'!K12 -> 466 | BF15: 466.5 | BG15: ='2016legmax.xls'!O12 -> 0 | BH15: 466.5 | BI15: =IF(ISNA(VLOOKUP($CM15,'Audit Values'!$A$2:$AE$252,2,FALSE)),'Preliminary SO66'!T9,VLOOKUP($CM15,'Audit Values'!$A$2:$AE$252,20,FALSE)) -> 0 | BJ15: 0 | BK15: =IF(ISNA(VLOOKUP($CM15,'Audit Values'!$A$2:$AE$252,2,FALSE)),'Preliminary SO66'!U9,VLOOKUP($CM15,'Audit Values'!$A$2:$AE$252,21,FALSE)) -> 0 | BL15: 0 | BM15: 0 | BN15: 0 | BO15: 0 | BP15: ='2016legmax.xls'!AH12 -> 0 | BQ15: 0 | BR15: 0 | BS15: ='2016legmax.xls'!CJ12 -> 0 | BT15: 0 | BU15: ='2016legmax.xls'!CI12 -> 0 | BV15: 0 | BW15: 0 | BX15: 0 | BY15: 0 | BZ15: 0 | CA15: 0 | CB15: 0 | CC15: 0 | CD15: 0 | CE15: 0 | CF15: 0 | CG15: 0 | CH15: 0 | CI15: 0 | CM15: D0109
A16: 110 | B16: Phillips | C16: Thunder Ridge Schools | D16: 1679220 | E16: 0 | F16: 0 | G16: 0 | H16: 186229 | I16: 220.5 | J16: 0 | K16: 0 | L16: ='2016legmax.xls'!BJ13 -> 0 | M16: 1865449 | N16: ='2016legmax.xls'!BB13 -> 256507 | O16: 273140 | P16: ='2016legmax.xls'!BC13 -> 116222 | Q16: 153983 | R16: ='2016legmax.xls'!BD13 -> 9677 | S16: 2520995 | T16: ='2016legmax.xls'!DD13 -> 0 | U16: 0 | V16: 37245 | W16: 0 | X16: 0 | Y16: 0 | Z16: 12179 | AA16: ='2016legmax.xls'!AV13 -> 8 | AB16: ='2016legmax.xls'!AW13 -> A | AC16: ='2016legmax.xls'!AX13 ->  | AD16: 2608180 | AE16: 2570419 | AF16: =IF(Weightings!G13>0,Weightings!G13,'Preliminary SO66'!AB10) -> 2620524 | AG16: 2570419 | AH16: 2570419 | AI16: 2559624 | AJ16: ='2016legmax.xls'!BM13 -> 0.3 | AK16: 767887 | AL16: 767887 | AM16: 767887 | AO16: 1685964 | AP16: 0 | AQ16: 0 | AR16: 0 | AS16: 0 | AT16: 0 | AU16: 0 | AV16: 0 | AW16: 0 | AX16: 0 | AY16: 6744 | AZ16: 0 | BA16: 0 | BB16: 1679220 | BC16: ='2016legmax.xls'!F13 -> 226 | BD16: ='2016legmax.xls'!I13 -> 217 | BE16: ='2016legmax.xls'!K13 -> 214 | BF16: 219 | BG16: ='2016legmax.xls'!O13 -> 1.5 | BH16: 220.5 | BI16: =IF(ISNA(VLOOKUP($CM16,'Audit Values'!$A$2:$AE$252,2,FALSE)),'Preliminary SO66'!T10,VLOOKUP($CM16,'Audit Values'!$A$2:$AE$252,20,FALSE)) -> 0 | BJ16: 0 | BK16: =IF(ISNA(VLOOKUP($CM16,'Audit Values'!$A$2:$AE$252,2,FALSE)),'Preliminary SO66'!U10,VLOOKUP($CM16,'Audit Values'!$A$2:$AE$252,21,FALSE)) -> 0 | BL16: 0 | BM16: 0 | BN16: 0 | BO16: 0 | BP16: ='2016legmax.xls'!AH13 -> 0 | BQ16: 0 | BR16: 0 | BS16: ='2016legmax.xls'!CJ13 -> 0 | BT16: 0 | BU16: ='2016legmax.xls'!CI13 -> 0 | BV16: 0 | BW16: 0 | BX16: 0 | BY16: 0 | BZ16: 0 | CA16: 0 | CB16: 0 | CC16: 0 | CD16: 0 | CE16: 37240 | CF16: 223469 | CG16: 0 | CH16: 0 | CI16: 0 | CM16: D0110
A17: 111 | B17: Doniphan | C17: Doniphan West Schools | D17: 2390377 | E17: 0 | F17: 0 | G17: 0 | H17: 0 | I17: 319.3 | J17: 0 | K17: 0 | L17: ='2016legmax.xls'!BJ14 -> 0 | M17: 2390377 | N17: ='2016legmax.xls'!BB14 -> 0 | O17: 293114 | P17: ='2016legmax.xls'!BC14 -> 207237 | Q17: 269158 | R17: ='2016legmax.xls'!BD14 -> 0 | S17: 2890728 | T17: ='2016legmax.xls'!DD14 -> 0 | U17: 0 | V17: 0 | W17: 0 | X17: 0 | Y17: 0 | Z17: 0 | AA17: ='2016legmax.xls'!AV14 -> 12 | AB17: ='2016legmax.xls'!AW14 -> A | AC17: ='2016legmax.xls'!AX14 ->  | AD17: 2952649 | AE17: 2890728 | AF17: =IF(Weightings!G14>0,Weightings!G14,'Preliminary SO66'!AB11) -> 3085147 | AG17: 2890728 | AH17: 2890728 | AI17: 3352491 | AJ17: ='2016legmax.xls'!BM14 -> 0.3 | AK17: 1005747 | AL17: 1005747 | AM17: 1005747 | AO17: 2399977 | AP17: 0 | AQ17: 0 | AR17: 0 | AS17: 0 | AT17: 0 | AU17: 0 | AV17: 0 | AW17: 0 | AX17: 0 | AY17: 9600 | AZ17: 0 | BA17: 0 | BB17: 2390377 | BC17: ='2016legmax.xls'!F14 -> 318 | BD17: ='2016legmax.xls'!I14 -> 313 | BE17: ='2016legmax.xls'!K14 -> 309 | BF17: 313.3 | BG17: ='2016legmax.xls'!O14 -> 6 | BH17: 319.3 | BI17: =IF(ISNA(VLOOKUP($CM17,'Audit Values'!$A$2:$AE$252,2,FALSE)),'Preliminary SO66'!T11,VLOOKUP($CM17,'Audit Values'!$A$2:$AE$252,20,FALSE)) -> 0 | BJ17: 0 | BK17: =IF(ISNA(VLOOKUP($CM17,'Audit Values'!$A$2:$AE$252,2,FALSE)),'Preliminary SO66'!U11,VLOOKUP($CM17,'Audit Values'!$A$2:$AE$252,21,FALSE)) -> 0 | BL17: 0 | BM17: 0 | BN17: 0 | BO17: 0 | BP17: ='2016legmax.xls'!AH14 -> 0 | BQ17: 0 | BR17: 0 | BS17: ='2016legmax.xls'!CJ14 -> 0 | BT17: 0 | BU17: ='2016legmax.xls'!CI14 -> 0 | BV17: 0 | BW17: 0 | BX17: 0 | BY17: 0 | BZ17: 0 | CA17: 0 | CB17: 0 | CC17: 0 | CD17: 0 | CE17: 0 | CF17: 0 | CG17: 0 | CH17: 0 | CI17: 0 | CM17: D0111
A18: 112 | B18: Ellsworth | C18: Central Plains | D18: 3099666 | E18: 199947 | F18: 0 | G18: 0 | H18: 0 | I18: 446.5 | J18: 0 | K18: 0 | L18: ='2016legmax.xls'!BJ15 -> 0 | M18: 3299613 | N18: ='2016legmax.xls'!BB15 -> 0 | O18: 440677 | P18: ='2016legmax.xls'!BC15 -> 312981 | Q18: 407736 | R18: ='2016legmax.xls'!BD15 -> 0 | S18: 4053271 | T18: ='2016legmax.xls'!DD15 -> 0 | U18: 15159 | V18: 0 | W18: 0 | X18: 0 | Y18: 0 | Z18: 15774 | AA18: ='2016legmax.xls'!AV15 -> 15 | AB18: ='2016legmax.xls'!AW15 -> A | AC18: ='2016legmax.xls'!AX15 ->  | AD18: 4178959 | AE18: 4084204 | AF18: =IF(Weightings!G15>0,Weightings!G15,'Preliminary SO66'!AB12) -> 4346634 | AG18: 4084204 | AH18: 4084204 | AI18: 4349367 | AJ18: ='2016legmax.xls'!BM15 -> 0.3 | AK18: 1304810 | AL18: 1304810 | AM18: 1304810 | AO18: 3341308 | AP18: 59.5 | AQ18: 229194 | AR18: 0 | AS18: 0 | AT18: 0 | AU18: 0 | AV18: 0 | AW18: 0 | AX18: 0 | AY18: 12448 | AZ18: 0 | BA18: 0 | BB18: 3099666 | BC18: ='2016legmax.xls'!F15 -> 450.9 | BD18: ='2016legmax.xls'!I15 -> 430 | BE18: ='2016legmax.xls'!K15 -> 443.5 | BF18: 443.5 | BG18: ='2016legmax.xls'!O15 -> 3 | BH18: 446.5 | BI18: =IF(ISNA(VLOOKUP($CM18,'Audit Values'!$A$2:$AE$252,2,FALSE)),'Preliminary SO66'!T12,VLOOKUP($CM18,'Audit Values'!$A$2:$AE$252,20,FALSE)) -> 31 | BJ18: 155000 | BK18: =IF(ISNA(VLOOKUP($CM18,'Audit Values'!$A$2:$AE$252,2,FALSE)),'Preliminary SO66'!U12,VLOOKUP($CM18,'Audit Values'!$A$2:$AE$252,21,FALSE)) -> 3.5 | BL18: 14158 | BM18: 33 | BN18: 30789 | BO18: 199947 | BP18: ='2016legmax.xls'!AH15 -> 0 | BQ18: 0 | BR18: 0 | BS18: ='2016legmax.xls'!CJ15 -> 0 | BT18: 0 | BU18: ='2016legmax.xls'!CI15 -> 0 | BV18: 0 | BW18: 0 | BX18: 0 | BY18: 0 | BZ18: 0 | CA18: 0 | CB18: 0 | CC18: 0 | CD18: 0 | CE18: 0 | CF18: 0 | CG18: 0 | CH18: 0 | CI18: 0 | CM18: D0112
A19: 113 | B19: Nemaha | C19: Prairie Hills | D19: 6146381 | E19: 0 | F19: 0 | G19: 0 | H19: 0 | I19: 1104.7 | J19: 0 | K19: 0 | L19: ='2016legmax.xls'!BJ16 -> 0 | M19: 6146381 | N19: ='2016legmax.xls'!BB16 -> 700410 | O19: 870709 | P19: ='2016legmax.xls'!BC16 -> 561085 | Q19: 737187 | R19: ='2016legmax.xls'!BD16 -> 0 | S19: 8278585 | T19: ='2016legmax.xls'!DD16 -> 0 | U19: 1477 | V19: 0 | W19: 0 | X19: 0 | Y19: 0 | Z19: 19892 | AA19: ='2016legmax.xls'!AV16 -> 2 | AB19: ='2016legmax.xls'!AW16 -> A | AC19: ='2016legmax.xls'!AX16 ->  | AD19: 8476056 | AE19: 8299954 | AF19: =IF(Weightings!G16>0,Weightings!G16,'Preliminary SO66'!AB13) -> 8807800 | AG19: 8299954 | AH19: 8299954 | AI19: 8296018 | AJ19: ='2016legmax.xls'!BM16 -> 0.3 | AK19: 2488805 | AL19: 2488805 | AM19: 2488805 | AO19: 6171065 | AP19: 0 | AQ19: 0 | AR19: 0 | AS19: 0 | AT19: 0 | AU19: 0 | AV19: 0 | AW19: 0 | AX19: 0 | AY19: 24684 | AZ19: 0 | BA19: 0 | BB19: 6146381 | BC19: ='2016legmax.xls'!F16 -> 1071.7 | BD19: ='2016legmax.xls'!I16 -> 1078.9 | BE19: ='2016legmax.xls'!K16 -> 1099.2 | BF19: 1099.2 | BG19: ='2016legmax.xls'!O16 -> 5.5 | BH19: 1104.7 | BI19: =IF(ISNA(VLOOKUP($CM19,'Audit Values'!$A$2:$AE$252,2,FALSE)),'Preliminary SO66'!T13,VLOOKUP($CM19,'Audit Values'!$A$2:$AE$252,20,FALSE)) -> 0 | BJ19: 0 | BK19: =IF(ISNA(VLOOKUP($CM19,'Audit Values'!$A$2:$AE$252,2,FALSE)),'Preliminary SO66'!U13,VLOOKUP($CM19,'Audit Values'!$A$2:$AE$252,21,FALSE)) -> 0 | BL19: 0 | BM19: 0 | BN19: 0 | BO19: 0 | BP19: ='2016legmax.xls'!AH16 -> 0 | BQ19: 0 | BR19: 0 | BS19: ='2016legmax.xls'!CJ16 -> 0 | BT19: 0 | BU19: ='2016legmax.xls'!CI16 -> 0 | BV19: 0 | BW19: 0 | BX19: 0 | BY19: 0 | BZ19: 0 | CA19: 0 | CB19: 0 | CC19: 0 | CD19: 0 | CE19: 0 | CF19: 0 | CG19: 0 | CH19: 0 | CI19: 0 | CM19: D0113
A20: 114 | B20: Doniphan | C20: Riverside | D20: 4423510 | E20: 104125 | F20: 0 | G20: 0 | H20: 0 | I20: 646.1 | J20: 0 | K20: 80 | L20: ='2016legmax.xls'!BJ17 -> 0 | M20: 4527555 | N20: ='2016legmax.xls'!BB17 -> 784251 | O20: 587704 | P20: ='2016legmax.xls'!BC17 -> 329095 | Q20: 433902 | R20: ='2016legmax.xls'!BD17 -> 0 | S20: 6228605 | T20: ='2016legmax.xls'!DD17 -> 0 | U20: 0 | V20: 0 | W20: 0 | X20: 0 | Y20: 0 | Z20: 0 | AA20: ='2016legmax.xls'!AV17 -> 13 | AB20: ='2016legmax.xls'!AW17 -> A | AC20: ='2016legmax.xls'!AX17 ->  | AD20: 6333492 | AE20: 6228685 | AF20: =IF(Weightings!G17>0,Weightings!G17,'Preliminary SO66'!AB14) -> 6683697 | AG20: 6228685 | AH20: 6228685 | AI20: 5823772 | AJ20: ='2016legmax.xls'!BM17 -> 0.3 | AK20: 1747132 | AL20: 1747132 | AM20: 1747132 | AO20: 4441275 | AP20: 0 | AQ20: 0 | AR20: 0 | AS20: 0 | AT20: 0 | AU20: 0 | AV20: 0 | AW20: 0 | AX20: 0 | AY20: 17765 | AZ20: 0 | BA20: 0 | BB20: 4423510 | BC20: ='2016legmax.xls'!F17 -> 640.5 | BD20: ='2016legmax.xls'!I17 -> 635.6 | BE20: ='2016legmax.xls'!K17 -> 594.8 | BF20: 635.6 | BG20: ='2016legmax.xls'!O17 -> 10.5 | BH20: 646.1 | BI20: =IF(ISNA(VLOOKUP($CM20,'Audit Values'!$A$2:$AE$252,2,FALSE)),'Preliminary SO66'!T14,VLOOKUP($CM20,'Audit Values'!$A$2:$AE$252,20,FALSE)) -> 18 | BJ20: 90000 | BK20: =IF(ISNA(VLOOKUP($CM20,'Audit Values'!$A$2:$AE$252,2,FALSE)),'Preliminary SO66'!U14,VLOOKUP($CM20,'Audit Values'!$A$2:$AE$252,21,FALSE)) -> 2.8 | BL20: 11326 | BM20: 3 | BN20: 2799 | BO20: 104125 | BP20: ='2016legmax.xls'!AH17 -> 0 | BQ20: 0 | BR20: 0 | BS20: ='2016legmax.xls'!CJ17 -> 0 | BT20: 0 | BU20: ='2016legmax.xls'!CI17 -> 0 | BV20: 0 | BW20: 0 | BX20: 0 | BY20: 0 | BZ20: 0 | CA20: 0 | CB20: 0 | CC20: 0 | CD20: 0 | CE20: 0 | CF20: 0 | CG20: 0 | CH20: 0 | CI20: 0 | CM20: D0114
A21: 115 | B21: Nemaha | C21: Nemaha Central | D21: 3521209 | E21: 0 | F21: 0 | G21: 0 | H21: 0 | I21: 574.3 | J21: 0 | K21: 0 | L21: ='2016legmax.xls'!BJ18 -> 0 | M21: 3521209 | N21: ='2016legmax.xls'!BB18 -> 15480 | O21: 420346 | P21: ='2016legmax.xls'!BC18 -> 376911 | Q21: 497193 | R21: ='2016legmax.xls'!BD18 -> 0 | S21: 4333946 | T21: ='2016legmax.xls'!DD18 -> 0 | U21: 0 | V21: 0 | W21: 0 | X21: 35000 | Y21: 0 | Z21: 29968 | AA21: ='2016legmax.xls'!AV18 -> 14 | AB21: ='2016legmax.xls'!AW18 -> A | AC21: ='2016legmax.xls'!AX18 ->  | AD21: 4484196 | AE21: 4398914 | AF21: =IF(Weightings!G18>0,Weightings!G18,'Preliminary SO66'!AB15) -> 4724260 | AG21: 4398914 | AH21: 4398914 | AI21: 4693665 | AJ21: ='2016legmax.xls'!BM18 -> 0.3 | AK21: 1408100 | AL21: 1115000 | AM21: 1115000 | AO21: 3535350 | AP21: 0 | AQ21: 0 | AR21: 0 | AS21: 0 | AT21: 0 | AU21: 0 | AV21: 0 | AW21: 0 | AX21: 0 | AY21: 14141 | AZ21: 0 | BA21: 0 | BB21: 3521209 | BC21: ='2016legmax.xls'!F18 -> 548 | BD21: ='2016legmax.xls'!I18 -> 537.9 | BE21: ='2016legmax.xls'!K18 -> 565.3 | BF21: 565.3 | BG21: ='2016legmax.xls'!O18 -> 9 | BH21: 574.3 | BI21: =IF(ISNA(VLOOKUP($CM21,'Audit Values'!$A$2:$AE$252,2,FALSE)),'Preliminary SO66'!T15,VLOOKUP($CM21,'Audit Values'!$A$2:$AE$252,20,FALSE)) -> 0 | BJ21: 0 | BK21: =IF(ISNA(VLOOKUP($CM21,'Audit Values'!$A$2:$AE$252,2,FALSE)),'Preliminary SO66'!U15,VLOOKUP($CM21,'Audit Values'!$A$2:$AE$252,21,FALSE)) -> 0 | BL21: 0 | BM21: 0 | BN21: 0 | BO21: 0 | BP21: ='2016legmax.xls'!AH18 -> 0 | BQ21: 0 | BR21: 0 | BS21: ='2016legmax.xls'!CJ18 -> 0 | BT21: 0 | BU21: ='2016legmax.xls'!CI18 -> 0 | BV21: 0 | BW21: 0 | BX21: 0 | BY21: 0 | BZ21: 0 | CA21: 0 | CB21: 0 | CC21: 0 | CD21: 0 | CE21: 0 | CF21: 0 | CG21: 0 | CH21: 0 | CI21: 0 | CM21: D0115
A22: 200 | B22: Greeley | C22: Greeley County Schools | D22: 1942101 | E22: 0 | F22: 0 | G22: 0 | H22: 0 | I22: 245 | J22: 0 | K22: 9 | L22: ='2016legmax.xls'!BJ19 -> 0 | M22: 1942092 | N22: ='2016legmax.xls'!BB19 -> 0 | O22: 140142 | P22: ='2016legmax.xls'!BC19 -> 150492 | Q22: 194322 | R22: ='2016legmax.xls'!BD19 -> 0 | S22: 2232726 | T22: ='2016legmax.xls'!DD19 -> 0 | U22: 8950 | V22: 0 | W22: 0 | X22: 0 | Y22: 1582 | Z22: 0 | AA22: ='2016legmax.xls'!AV19 -> 9 | AB22: ='2016legmax.xls'!AW19 -> A | AC22: ='2016legmax.xls'!AX19 ->  | AD22: 2287097 | AE22: 2243267 | AF22: =IF(Weightings!G19>0,Weightings!G19,'Preliminary SO66'!AB16) -> 2273470 | AG22: 2243267 | AH22: 2243267 | AI22: 2457547 | AJ22: ='2016legmax.xls'!BM19 -> 0.3 | AK22: 737264 | AL22: 737264 | AM22: 737264 | AO22: 1949901 | AP22: 0 | AQ22: 0 | AR22: 0 | AS22: 0 | AT22: 0 | AU22: 0 | AV22: 0 | AW22: 0 | AX22: 0 | AY22: 7800 | AZ22: 0 | BA22: 0 | BB22: 1942101 | BC22: ='2016legmax.xls'!F19 -> 205.3 | BD22: ='2016legmax.xls'!I19 -> 241.4 | BE22: ='2016legmax.xls'!K19 -> 241.5 | BF22: 241.5 | BG22: ='2016legmax.xls'!O19 -> 3.5 | BH22: 245 | BI22: =IF(ISNA(VLOOKUP($CM22,'Audit Values'!$A$2:$AE$252,2,FALSE)),'Preliminary SO66'!T16,VLOOKUP($CM22,'Audit Values'!$A$2:$AE$252,20,FALSE)) -> 0 | BJ22: 0 | BK22: =IF(ISNA(VLOOKUP($CM22,'Audit Values'!$A$2:$AE$252,2,FALSE)),'Preliminary SO66'!U16,VLOOKUP($CM22,'Audit Values'!$A$2:$AE$252,21,FALSE)) -> 0 | BL22: 0 | BM22: 0 | BN22: 0 | BO22: 0 | BP22: ='2016legmax.xls'!AH19 -> 0 | BQ22: 0 | BR22: 0 | BS22: ='2016legmax.xls'!CJ19 -> 0 | BT22: 0 | BU22: ='2016legmax.xls'!CI19 -> 0 | BV22: 0 | BW22: 0 | BX22: 0 | BY22: 0 | BZ22: 0 | CA22: 0 | CB22: 0 | CC22: 0 | CD22: 0 | CE22: 0 | CF22: 0 | CG22: 0 | CH22: 0 | CI22: 0 | CM22: D0200
A23: 202 | B23: Wyandotte | C23: Turner-Kansas City | D23: 22966575 | E23: 166074 | F23: 474181 | G23: 0 | H23: 0 | I23: 3970.1 | J23: 0 | K23: 0 | L23: ='2016legmax.xls'!BJ20 -> 0 | M23: 23606830 | N23: ='2016legmax.xls'!BB20 -> 6492393 | O23: 2921099 | P23: ='2016legmax.xls'!BC20 -> 2110624 | Q23: 2744630 | R23: ='2016legmax.xls'!BD20 -> 431917 | S23: 35562863 | T23: ='2016legmax.xls'!DD20 -> 0 | U23: 0 | V23: 0 | W23: 0 | X23: 0 | Y23: 0 | Z23: 90615 | AA23: ='2016legmax.xls'!AV20 -> 9 | AB23: ='2016legmax.xls'!AW20 -> A | AC23: ='2016legmax.xls'!AX20 ->  | AD23: 36287484 | AE23: 35653478 | AF23: =IF(Weightings!G20>0,Weightings!G20,'Preliminary SO66'!AB17) -> 37111565 | AG23: 35653478 | AH23: 35653478 | AI23: 30178043 | AJ23: ='2016legmax.xls'!BM20 -> 0.3 | AK23: 9053413 | AL23: 9053413 | AM23: 9053413 | AO23: 23058810 | AP23: 0 | AQ23: 0 | AR23: 0 | AS23: 0 | AT23: 0 | AU23: 0 | AV23: 0 | AW23: 0 | AX23: 0 | AY23: 92235 | AZ23: 0 | BA23: 0 | BB23: 22966575 | BC23: ='2016legmax.xls'!F20 -> 3854 | BD23: ='2016legmax.xls'!I20 -> 3888.6 | BE23: ='2016legmax.xls'!K20 -> 3871.2 | BF23: 3888.6 | BG23: ='2016legmax.xls'!O20 -> 81.5 | BH23: 3970.1 | BI23: =IF(ISNA(VLOOKUP($CM23,'Audit Values'!$A$2:$AE$252,2,FALSE)),'Preliminary SO66'!T17,VLOOKUP($CM23,'Audit Values'!$A$2:$AE$252,20,FALSE)) -> 0 | BJ23: 0 | BK23: =IF(ISNA(VLOOKUP($CM23,'Audit Values'!$A$2:$AE$252,2,FALSE)),'Preliminary SO66'!U17,VLOOKUP($CM23,'Audit Values'!$A$2:$AE$252,21,FALSE)) -> 0 | BL23: 0 | BM23: 178 | BN23: 166074 | BO23: 166074 | BP23: ='2016legmax.xls'!AH20 -> 123.1 | BQ23: 474181 | BR23: 0 | BS23: ='2016legmax.xls'!CJ20 -> 0 | BT23: 0 | BU23: ='2016legmax.xls'!CI20 -> 0 | BV23: 0 | BW23: 0 | BX23: 0 | BY23: 0 | BZ23: 0 | CA23: 0 | CB23: 0 | CC23: 0 | CD23: 0 | CE23: 0 | CF23: 0 | CG23: 0 | CH23: 0 | CI23: 0 | CM23: D0202
A24: 203 | B24: Wyandotte | C24: Piper-Kansas City | D24: 8735772 | E24: 4665 | F24: 0 | G24: 0 | H24: 0 | I24: 1959 | J24: 0 | K24: 0 | L24: ='2016legmax.xls'!BJ21 -> 0 | M24: 8740437 | N24: ='2016legmax.xls'!BB21 -> 709919 | O24: 2026925 | P24: ='2016legmax.xls'!BC21 -> 758267 | Q24: 994080 | R24: ='2016legmax.xls'!BD21 -> 0 | S24: 12235548 | T24: ='2016legmax.xls'!DD21 -> 120167 | U24: 0 | V24: 0 | W24: 0 | X24: 0 | Y24: 0 | Z24: 0 | AA24: ='2016legmax.xls'!AV21 -> 13 | AB24: ='2016legmax.xls'!AW21 -> A | AC24: ='2016legmax.xls'!AX21 ->  | AD24: 12591528 | AE24: 12355715 | AF24: =IF(Weightings!G21>0,Weightings!G21,'Preliminary SO66'!AB18) -> 12804073 | AG24: 12355715 | AH24: 12355715 | AI24: 12019524 | AJ24: ='2016legmax.xls'!BM21 -> 0.31 | AK24: 3726052 | AL24: 3726052 | AM24: 3726052 | AO24: 8787033 | AP24: 4.2 | AQ24: 16178 | AR24: 0 | AS24: 0 | AT24: 0 | AU24: 0 | AV24: 0 | AW24: 0 | AX24: 0 | AY24: 35083 | AZ24: 0 | BA24: 0 | BB24: 8735772 | BC24: ='2016legmax.xls'!F21 -> 1799.6 | BD24: ='2016legmax.xls'!I21 -> 1889.5 | BE24: ='2016legmax.xls'!K21 -> 1955 | BF24: 1955 | BG24: ='2016legmax.xls'!O21 -> 4 | BH24: 1959 | BI24: =IF(ISNA(VLOOKUP($CM24,'Audit Values'!$A$2:$AE$252,2,FALSE)),'Preliminary SO66'!T18,VLOOKUP($CM24,'Audit Values'!$A$2:$AE$252,20,FALSE)) -> 0 | BJ24: 0 | BK24: =IF(ISNA(VLOOKUP($CM24,'Audit Values'!$A$2:$AE$252,2,FALSE)),'Preliminary SO66'!U18,VLOOKUP($CM24,'Audit Values'!$A$2:$AE$252,21,FALSE)) -> 0 | BL24: 0 | BM24: 5 | BN24: 4665 | BO24: 4665 | BP24: ='2016legmax.xls'!AH21 -> 0 | BQ24: 0 | BR24: 0 | BS24: ='2016legmax.xls'!CJ21 -> 0.0288 | BT24: 362636 | BU24: ='2016legmax.xls'!CI21 -> 0 | BV24: 0 | BW24: 0 | BX24: 0 | BY24: 0 | BZ24: 0 | CA24: 0 | CB24: 0 | CC24: 0 | CD24: 0 | CE24: 0 | CF24: 0 | CG24: 0 | CH24: 0 | CI24: 0 | CM24: D0203
A25: 204 | B25: Wyandotte | C25: Bonner Springs | D25: 13151164 | E25: 104751 | F25: 0 | G25: 0 | H25: 0 | I25: 2593.5 | J25: 0 | K25: 0 | L25: ='2016legmax.xls'!BJ22 -> 0 | M25: 13255915 | N25: ='2016legmax.xls'!BB22-14 -> 2252681 | O25: 3079088 | P25: ='2016legmax.xls'!BC22 -> 1414362 | Q25: 1830368 | R25: ='2016legmax.xls'!BD22 -> 175701 | S25: 20177747 | T25: ='2016legmax.xls'!DD22 -> 164495 | U25: 0 | V25: 0 | W25: 0 | X25: 0 | Y25: 0 | Z25: 0 | AA25: ='2016legmax.xls'!AV22 -> 12 | AB25: ='2016legmax.xls'!AW22 -> A | AC25: ='2016legmax.xls'!AX22 ->  | AD25: 20758248 | AE25: 20342242 | AF25: =IF(Weightings!G22>0,Weightings!G22,'Preliminary SO66'!AB19) -> 21605473 | AG25: 20342242 | AH25: 20342242 | AI25: 18087128 | AJ25: ='2016legmax.xls'!BM22 -> 0.3 | AK25: 5426138 | AL25: 5426138 | AM25: 5426138 | AO25: 13203980 | AP25: 0 | AQ25: 0 | AR25: 0 | AS25: 0 | AT25: 0 | AU25: 0 | AV25: 0 | AW25: 0 | AX25: 0 | AY25: 52816 | AZ25: 0 | BA25: 0 | BB25: 13151164 | BC25: ='2016legmax.xls'!F22 -> 2421.8 | BD25: ='2016legmax.xls'!I22 -> 2507.1 | BE25: ='2016legmax.xls'!K22 -> 2570.5 | BF25: 2570.5 | BG25: ='2016legmax.xls'!O22 -> 23 | BH25: 2593.5 | BI25: =IF(ISNA(VLOOKUP($CM25,'Audit Values'!$A$2:$AE$252,2,FALSE)),'Preliminary SO66'!T19,VLOOKUP($CM25,'Audit Values'!$A$2:$AE$252,20,FALSE)) -> 13 | BJ25: 65000 | BK25: =IF(ISNA(VLOOKUP($CM25,'Audit Values'!$A$2:$AE$252,2,FALSE)),'Preliminary SO66'!U19,VLOOKUP($CM25,'Audit Values'!$A$2:$AE$252,21,FALSE)) -> 2.1 | BL25: 8495 | BM25: 33.5 | BN25: 31256 | BO25: 104751 | BP25: ='2016legmax.xls'!AH22 -> 0 | BQ25: 0 | BR25: 0 | BS25: ='2016legmax.xls'!CJ22 -> 0 | BT25: 0 | BU25: ='2016legmax.xls'!CI22 -> 0 | BV25: 0 | BW25: 0 | BX25: 0 | BY25: 0 | BZ25: 0 | CA25: 0 | CB25: 0 | CC25: 0 | CD25: 0 | CE25: 0 | CF25: 0 | CG25: 0 | CH25: 0 | CI25: 0 | CM25: D0204
A26: 205 | B26: Butler | C26: Bluestem | D26: 3591043 | E26: 1400 | F26: 0 | G26: 0 | H26: 0 | I26: 507.8 | J26: 0 | K26: 4 | L26: ='2016legmax.xls'!BJ23 -> 0 | M26: 3592439 | N26: ='2016legmax.xls'!BB23 -> 485918 | O26: 525258 | P26: ='2016legmax.xls'!BC23 -> 268614 | Q26: 354772 | R26: ='2016legmax.xls'!BD23 -> 22089 | S26: 4894318 | T26: ='2016legmax.xls'!DD23 -> 0 | U26: 1142 | V26: 0 | W26: 0 | X26: 0 | Y26: 0 | Z26: 0 | AA26: ='2016legmax.xls'!AV23 -> 15 | AB26: ='2016legmax.xls'!AW23 -> A | AC26: ='2016legmax.xls'!AX23 ->  | AD26: 4981622 | AE26: 4895464 | AF26: =IF(Weightings!G23>0,Weightings!G23,'Preliminary SO66'!AB20) -> 5247052 | AG26: 4895464 | AH26: 4895464 | AI26: 4815400 | AJ26: ='2016legmax.xls'!BM23 -> 0.3 | AK26: 1444620 | AL26: 1444620 | AM26: 1444620 | AO26: 3605465 | AP26: 0 | AQ26: 0 | AR26: 0 | AS26: 0 | AT26: 0 | AU26: 0 | AV26: 0 | AW26: 0 | AX26: 0 | AY26: 14422 | AZ26: 0 | BA26: 0 | BB26: 3591043 | BC26: ='2016legmax.xls'!F23 -> 502.2 | BD26: ='2016legmax.xls'!I23 -> 507.8 | BE26: ='2016legmax.xls'!K23 -> 486.3 | BF26: 507.8 | BG26: ='2016legmax.xls'!O23 -> 0 | BH26: 507.8 | BI26: =IF(ISNA(VLOOKUP($CM26,'Audit Values'!$A$2:$AE$252,2,FALSE)),'Preliminary SO66'!T20,VLOOKUP($CM26,'Audit Values'!$A$2:$AE$252,20,FALSE)) -> 0 | BJ26: 0 | BK26: =IF(ISNA(VLOOKUP($CM26,'Audit Values'!$A$2:$AE$252,2,FALSE)),'Preliminary SO66'!U20,VLOOKUP($CM26,'Audit Values'!$A$2:$AE$252,21,FALSE)) -> 0 | BL26: 0 | BM26: 1.5 | BN26: 1400 | BO26: 1400 | BP26: ='2016legmax.xls'!AH23 -> 0 | BQ26: 0 | BR26: 0 | BS26: ='2016legmax.xls'!CJ23 -> 0 | BT26: 0 | BU26: ='2016legmax.xls'!CI23 -> 0 | BV26: 0 | BW26: 0 | BX26: 0 | BY26: 0 | BZ26: 0 | CA26: 0 | CB26: 0 | CC26: 0 | CD26: 0 | CE26: 0 | CF26: 0 | CG26: 0 | CH26: 0 | CI26: 0 | CM26: D0205
A27: 206 | B27: Butler | C27: Remington-Whitewater | D27: 3315045 | E27: 21794 | F27: 0 | G27: 0 | H27: 0 | I27: 497.2 | J27: 0 | K27: 0 | L27: ='2016legmax.xls'!BJ24 -> 0 | M27: 3336839 | N27: ='2016legmax.xls'!BB24 -> 319509 | O27: 545634 | P27: ='2016legmax.xls'!BC24 -> 271628 | Q27: 358887 | R27: ='2016legmax.xls'!BD24 -> 0 | S27: 4473610 | T27: ='2016legmax.xls'!DD24 -> 7076 | U27: 1420 | V27: 0 | W27: 0 | X27: 300000 | Y27: 0 | Z27: 0 | AA27: ='2016legmax.xls'!AV24 -> 2 | AB27: ='2016legmax.xls'!AW24 -> A | AC27: ='2016legmax.xls'!AX24 ->  | AD27: 4569365 | AE27: 4782106 | AF27: =IF(Weightings!G24>0,Weightings!G24,'Preliminary SO66'!AB21) -> 4838622 | AG27: 4782106 | AH27: 4782106 | AI27: 4463293 | AJ27: ='2016legmax.xls'!BM24 -> 0.3 | AK27: 1338988 | AL27: 1338988 | AM27: 1338988 | AO27: 3389220 | AP27: 15.8 | AQ27: 60862 | AR27: 0 | AS27: 0 | AT27: 0 | AU27: 0 | AV27: 0 | AW27: 0 | AX27: 0 | AY27: 13313 | AZ27: 0 | BA27: 0 | BB27: 3315045 | BC27: ='2016legmax.xls'!F24 -> 490.1 | BD27: ='2016legmax.xls'!I24 -> 473.4 | BE27: ='2016legmax.xls'!K24 -> 491.7 | BF27: 491.7 | BG27: ='2016legmax.xls'!O24 -> 5.5 | BH27: 497.2 | BI27: =IF(ISNA(VLOOKUP($CM27,'Audit Values'!$A$2:$AE$252,2,FALSE)),'Preliminary SO66'!T21,VLOOKUP($CM27,'Audit Values'!$A$2:$AE$252,20,FALSE)) -> 1 | BJ27: 5000 | BK27: =IF(ISNA(VLOOKUP($CM27,'Audit Values'!$A$2:$AE$252,2,FALSE)),'Preliminary SO66'!U21,VLOOKUP($CM27,'Audit Values'!$A$2:$AE$252,21,FALSE)) -> 0 | BL27: 0 | BM27: 18 | BN27: 16794 | BO27: 21794 | BP27: ='2016legmax.xls'!AH24 -> 0 | BQ27: 0 | BR27: 0 | BS27: ='2016legmax.xls'!CJ24 -> 0 | BT27: 0 | BU27: ='2016legmax.xls'!CI24 -> 0 | BV27: 0 | BW27: 0 | BX27: 0 | BY27: 0 | BZ27: 0 | CA27: 0 | CB27: 0 | CC27: 0 | CD27: 0 | CE27: 0 | CF27: 0 | CG27: 0 | CH27: 0 | CI27: 0 | CM27: D0206
A28: 207 | B28: Leavenworth | C28: Ft Leavenworth | D28: 2714380 | E28: 0 | F28: 0 | G28: 0 | H28: 476954 | I28: 1741.2 | J28: 0 | K28: 319 | L28: ='2016legmax.xls'!BJ25 -> 0 | M28: 3191015 | N28: ='2016legmax.xls'!BB25 -> 3393751 | O28: 1407932 | P28: ='2016legmax.xls'!BC25 -> 996210 | Q28: 1303433 | R28: ='2016legmax.xls'!BD25 -> 6504 | S28: 8995412 | T28: ='2016legmax.xls'!DD25 -> 0 | U28: 0 | V28: 4769371 | W28: 0 | X28: 0 | Y28: 0 | Z28: 0 | AA28: ='2016legmax.xls'!AV25 -> 16 | AB28: ='2016legmax.xls'!AW25 -> A | AC28: ='2016legmax.xls'!AX25 ->  | AD28: 14072325 | AE28: 13765102 | AF28: =IF(Weightings!G25>0,Weightings!G25,'Preliminary SO66'!AB22) -> 14109960 | AG28: 13765102 | AH28: 13765102 | AI28: 10725503 | AJ28: ='2016legmax.xls'!BM25 -> 0.33 | AK28: 3539416 | AL28: 3539416 | AM28: 3539416 | AO28: 2725281 | AP28: 0 | AQ28: 0 | AR28: 0 | AS28: 0 | AT28: 0 | AU28: 0 | AV28: 0 | AW28: 0 | AX28: 0 | AY28: 10901 | AZ28: 0 | BA28: 0 | BB28: 2714380 | BC28: ='2016legmax.xls'!F25 -> 1887.6 | BD28: ='2016legmax.xls'!I25 -> 1738.9 | BE28: ='2016legmax.xls'!K25 -> 1597.1 | BF28: 1741.2 | BG28: ='2016legmax.xls'!O25 -> 0 | BH28: 1741.2 | BI28: =IF(ISNA(VLOOKUP($CM28,'Audit Values'!$A$2:$AE$252,2,FALSE)),'Preliminary SO66'!T22,VLOOKUP($CM28,'Audit Values'!$A$2:$AE$252,20,FALSE)) -> 0 | BJ28: 0 | BK28: =IF(ISNA(VLOOKUP($CM28,'Audit Values'!$A$2:$AE$252,2,FALSE)),'Preliminary SO66'!U22,VLOOKUP($CM28,'Audit Values'!$A$2:$AE$252,21,FALSE)) -> 0 | BL28: 0 | BM28: 0 | BN28: 0 | BO28: 0 | BP28: ='2016legmax.xls'!AH25 -> 0 | BQ28: 0 | BR28: 0 | BS28: ='2016legmax.xls'!CJ25 -> 0 | BT28: 0 | BU28: ='2016legmax.xls'!CI25 -> 0 | BV28: 0 | BW28: 0 | BX28: 0 | BY28: 0 | BZ28: 0 | CA28: 0 | CB28: 0 | CC28: 0 | CD28: 0 | CE28: 4900000 | CF28: 5376954 | CG28: 0 | CH28: 0 | CI28: 0 | CM28: D0207
A29: 208 | B29: Trego | C29: Wakeeney | D29: 2361202 | E29: 0 | F29: 0 | G29: 0 | H29: 0 | I29: 370.8 | J29: 0 | K29: 0 | L29: ='2016legmax.xls'!BJ26 -> 0 | M29: 2361202 | N29: ='2016legmax.xls'!BB26 -> 0 | O29: 457673 | P29: ='2016legmax.xls'!BC26 -> 212213 | Q29: 282291 | R29: ='2016legmax.xls'!BD26 -> 0 | S29: 3031088 | T29: ='2016legmax.xls'!DD26 -> 0 | U29: 16825 | V29: 0 | W29: 0 | X29: 0 | Y29: 0 | Z29: 1090 | AA29: ='2016legmax.xls'!AV26 -> 15 | AB29: ='2016legmax.xls'!AW26 -> A | AC29: ='2016legmax.xls'!AX26 ->  | AD29: 3119081 | AE29: 3049003 | AF29: =IF(Weightings!G26>0,Weightings!G26,'Preliminary SO66'!AB23) -> 3113304 | AG29: 3049003 | AH29: 3049003 | AI29: 3340494 | AJ29: ='2016legmax.xls'!BM26 -> 0.3 | AK29: 1002148 | AL29: 1002148 | AM29: 1002148 | AO29: 2370685 | AP29: 0 | AQ29: 0 | AR29: 0 | AS29: 0 | AT29: 0 | AU29: 0 | AV29: 0 | AW29: 0 | AX29: 0 | AY29: 9483 | AZ29: 0 | BA29: 0 | BB29: 2361202 | BC29: ='2016legmax.xls'!F26 -> 375 | BD29: ='2016legmax.xls'!I26 -> 370.3 | BE29: ='2016legmax.xls'!K26 -> 367 | BF29: 370.8 | BG29: ='2016legmax.xls'!O26 -> 0 | BH29: 370.8 | BI29: =IF(ISNA(VLOOKUP($CM29,'Audit Values'!$A$2:$AE$252,2,FALSE)),'Preliminary SO66'!T23,VLOOKUP($CM29,'Audit Values'!$A$2:$AE$252,20,FALSE)) -> 0 | BJ29: 0 | BK29: =IF(ISNA(VLOOKUP($CM29,'Audit Values'!$A$2:$AE$252,2,FALSE)),'Preliminary SO66'!U23,VLOOKUP($CM29,'Audit Values'!$A$2:$AE$252,21,FALSE)) -> 0 | BL29: 0 | BM29: 0 | BN29: 0 | BO29: 0 | BP29: ='2016legmax.xls'!AH26 -> 0 | BQ29: 0 | BR29: 0 | BS29: ='2016legmax.xls'!CJ26 -> 0 | BT29: 0 | BU29: ='2016legmax.xls'!CI26 -> 0 | BV29: 0 | BW29: 0 | BX29: 0 | BY29: 0 | BZ29: 0 | CA29: 0 | CB29: 0 | CC29: 0 | CD29: 0 | CE29: 0 | CF29: 0 | CG29: 0 | CH29: 0 | CI29: 0 | CM29: D0208
A30: 209 | B30: Stevens | C30: Moscow Public Schools | D30: 1552491 | E30: 0 | F30: 0 | G30: 0 | H30: 0 | I30: 189.7 | J30: 0 | K30: 0 | L30: ='2016legmax.xls'!BJ27 -> 0 | M30: 1552491 | N30: ='2016legmax.xls'!BB27 -> 0 | O30: 114047 | P30: ='2016legmax.xls'!BC27 -> 141908 | Q30: 180594 | R30: ='2016legmax.xls'!BD27 -> 0 | S30: 1808446 | T30: ='2016legmax.xls'!DD27 -> 0 | U30: 21622 | V30: 0 | W30: 0 | X30: 0 | Y30: 0 | Z30: 0 | AA30: ='2016legmax.xls'!AV27 -> 9 | AB30: ='2016legmax.xls'!AW27 -> A | AC30: ='2016legmax.xls'!AX27 ->  | AD30: 1868754 | AE30: 1830068 | AF30: =IF(Weightings!G27>0,Weightings!G27,'Preliminary SO66'!AB24) -> 1923644 | AG30: 1830068 | AH30: 1830068 | AI30: 2042819 | AJ30: ='2016legmax.xls'!BM27 -> 0.33 | AK30: 674130 | AL30: 674130 | AM30: 674130 | AO30: 1558726 | AP30: 0 | AQ30: 0 | AR30: 0 | AS30: 0 | AT30: 0 | AU30: 0 | AV30: 0 | AW30: 0 | AX30: 0 | AY30: 6235 | AZ30: 0 | BA30: 0 | BB30: 1552491 | BC30: ='2016legmax.xls'!F27 -> 184.9 | BD30: ='2016legmax.xls'!I27 -> 185.7 | BE30: ='2016legmax.xls'!K27 -> 163.2 | BF30: 185.7 | BG30: ='2016legmax.xls'!O27 -> 4 | BH30: 189.7 | BI30: =IF(ISNA(VLOOKUP($CM30,'Audit Values'!$A$2:$AE$252,2,FALSE)),'Preliminary SO66'!T24,VLOOKUP($CM30,'Audit Values'!$A$2:$AE$252,20,FALSE)) -> 0 | BJ30: 0 | BK30: =IF(ISNA(VLOOKUP($CM30,'Audit Values'!$A$2:$AE$252,2,FALSE)),'Preliminary SO66'!U24,VLOOKUP($CM30,'Audit Values'!$A$2:$AE$252,21,FALSE)) -> 0 | BL30: 0 | BM30: 0 | BN30: 0 | BO30: 0 | BP30: ='2016legmax.xls'!AH27 -> 0 | BQ30: 0 | BR30: 0 | BS30: ='2016legmax.xls'!CJ27 -> 0 | BT30: 0 | BU30: ='2016legmax.xls'!CI27 -> 0 | BV30: 0 | BW30: 0 | BX30: 0 | BY30: 0 | BZ30: 0 | CA30: 0 | CB30: 0 | CC30: 0 | CD30: 0 | CE30: 0 | CF30: 0 | CG30: 0 | CH30: 0 | CI30: 0 | CM30: D0209
A31: 210 | B31: Stevens | C31: Hugoton Public Schools | D31: 6545164 | E31: 10000 | F31: 0 | G31: 0 | H31: 0 | I31: 1066.8 | J31: 0 | K31: 0 | L31: ='2016legmax.xls'!BJ28 -> 0 | M31: 6555164 | N31: ='2016legmax.xls'!BB28 -> 0 | O31: 567982 | P31: ='2016legmax.xls'!BC28 -> 567591 | Q31: 739998 | R31: ='2016legmax.xls'!BD28 -> 0 | S31: 7690737 | T31: ='2016legmax.xls'!DD28 -> 0 | U31: 48570 | V31: 0 | W31: 0 | X31: 0 | Y31: 0 | Z31: 0 | AA31: ='2016legmax.xls'!AV28 -> 9 | AB31: ='2016legmax.xls'!AW28 -> A | AC31: ='2016legmax.xls'!AX28 ->  | AD31: 7911714 | AE31: 7739307 | AF31: =IF(Weightings!G28>0,Weightings!G28,'Preliminary SO66'!AB25) -> 8266363 | AG31: 7739307 | AH31: 7739307 | AI31: 8515750 | AJ31: ='2016legmax.xls'!BM28 -> 0.3 | AK31: 2554725 | AL31: 2554725 | AM31: 2554725 | AO31: 6593792 | AP31: 5.8 | AQ31: 22342 | AR31: 0 | AS31: 0 | AT31: 0 | AU31: 0 | AV31: 0 | AW31: 0 | AX31: 0 | AY31: 26286 | AZ31: 0 | BA31: 0 | BB31: 6545164 | BC31: ='2016legmax.xls'!F28 -> 1020.8 | BD31: ='2016legmax.xls'!I28 -> 1036.8 | BE31: ='2016legmax.xls'!K28 -> 1010.4 | BF31: 1036.8 | BG31: ='2016legmax.xls'!O28 -> 30 | BH31: 1066.8 | BI31: =IF(ISNA(VLOOKUP($CM31,'Audit Values'!$A$2:$AE$252,2,FALSE)),'Preliminary SO66'!T25,VLOOKUP($CM31,'Audit Values'!$A$2:$AE$252,20,FALSE)) -> 2 | BJ31: 10000 | BK31: =IF(ISNA(VLOOKUP($CM31,'Audit Values'!$A$2:$AE$252,2,FALSE)),'Preliminary SO66'!U25,VLOOKUP($CM31,'Audit Values'!$A$2:$AE$252,21,FALSE)) -> 0 | BL31: 0 | BM31: 0 | BN31: 0 | BO31: 10000 | BP31: ='2016legmax.xls'!AH28 -> 0 | BQ31: 0 | BR31: 0 | BS31: ='2016legmax.xls'!CJ28 -> 0 | BT31: 0 | BU31: ='2016legmax.xls'!CI28 -> 0 | BV31: 0 | BW31: 0 | BX31: 0 | BY31: 0 | BZ31: 0 | CA31: 0 | CB31: 0 | CC31: 0 | CD31: 0 | CE31: 0 | CF31: 0 | CG31: 0 | CH31: 0 | CI31: 0 | CM31: D0210
A32: 211 | B32: Norton | C32: Norton Community Schools | D32: 4238294 | E32: 0 | F32: 0 | G32: 0 | H32: 8072 | I32: 689.1 | J32: 0 | K32: 0 | L32: ='2016legmax.xls'!BJ29 -> 0 | M32: 4246366 | N32: ='2016legmax.xls'!BB29 -> 792076 | O32: 821694 | P32: ='2016legmax.xls'!BC29 -> 344895 | Q32: 454133 | R32: ='2016legmax.xls'!BD29 -> 41196 | S32: 6246227 | T32: ='2016legmax.xls'!DD29 -> 0 | U32: 6958 | V32: 7326 | W32: 0 | X32: 133634 | Y32: 0 | Z32: 0 | AA32: ='2016legmax.xls'!AV29 -> 16 | AB32: ='2016legmax.xls'!AW29 -> A | AC32: ='2016legmax.xls'!AX29 ->  | AD32: 6369749 | AE32: 6394145 | AF32: =IF(Weightings!G29>0,Weightings!G29,'Preliminary SO66'!AB26) -> 6657807 | AG32: 6394145 | AH32: 6394145 | AI32: 5863455 | AJ32: ='2016legmax.xls'!BM29 -> 0.3 | AK32: 1759037 | AL32: 1759037 | AM32: 1759037 | AO32: 4255315 | AP32: 0 | AQ32: 0 | AR32: 0 | AS32: 0 | AT32: 0 | AU32: 0 | AV32: 0 | AW32: 0 | AX32: 0 | AY32: 17021 | AZ32: 0 | BA32: 0 | BB32: 4238294 | BC32: ='2016legmax.xls'!F29 -> 695 | BD32: ='2016legmax.xls'!I29 -> 689.1 | BE32: ='2016legmax.xls'!K29 -> 677.7 | BF32: 689.1 | BG32: ='2016legmax.xls'!O29 -> 0 | BH32: 689.1 | BI32: =IF(ISNA(VLOOKUP($CM32,'Audit Values'!$A$2:$AE$252,2,FALSE)),'Preliminary SO66'!T26,VLOOKUP($CM32,'Audit Values'!$A$2:$AE$252,20,FALSE)) -> 0 | BJ32: 0 | BK32: =IF(ISNA(VLOOKUP($CM32,'Audit Values'!$A$2:$AE$252,2,FALSE)),'Preliminary SO66'!U26,VLOOKUP($CM32,'Audit Values'!$A$2:$AE$252,21,FALSE)) -> 0 | BL32: 0 | BM32: 0 | BN32: 0 | BO32: 0 | BP32: ='2016legmax.xls'!AH29 -> 0 | BQ32: 0 | BR32: 0 | BS32: ='2016legmax.xls'!CJ29 -> 0 | BT32: 0 | BU32: ='2016legmax.xls'!CI29 -> 0 | BV32: 0 | BW32: 0 | BX32: 0 | BY32: 0 | BZ32: 0 | CA32: 0 | CB32: 0 | CC32: 0 | CD32: 0 | CE32: 0 | CF32: 8072 | CG32: 0 | CH32: 0 | CI32: 0 | CM32: D0211
A33: 212 | B33: Norton | C33: Northern Valley | D33: 1450240 | E33: 0 | F33: 0 | G33: 0 | H33: 0 | I33: 171 | J33: 0 | K33: 0 | L33: ='2016legmax.xls'!BJ30 -> 0 | M33: 1450240 | N33: ='2016legmax.xls'!BB30 -> 164239 | O33: 215616 | P33: ='2016legmax.xls'!BC30 -> 113780 | Q33: 148862 | R33: ='2016legmax.xls'!BD30 -> 0 | S33: 1943875 | T33: ='2016legmax.xls'!DD30 -> 0 | U33: 959 | V33: 0 | W33: 0 | X33: 0 | Y33: 0 | Z33: 0 | AA33: ='2016legmax.xls'!AV30 -> 12 | AB33: ='2016legmax.xls'!AW30 -> A | AC33: ='2016legmax.xls'!AX30 ->  | AD33: 1979916 | AE33: 1944834 | AF33: =IF(Weightings!G30>0,Weightings!G30,'Preliminary SO66'!AB27) -> 1991322 | AG33: 1944834 | AH33: 1944834 | AI33: 1953300 | AJ33: ='2016legmax.xls'!BM30 -> 0.3 | AK33: 585990 | AL33: 585990 | AM33: 585990 | AO33: 1456064 | AP33: 0 | AQ33: 0 | AR33: 0 | AS33: 0 | AT33: 0 | AU33: 0 | AV33: 0 | AW33: 0 | AX33: 0 | AY33: 5824 | AZ33: 0 | BA33: 0 | BB33: 1450240 | BC33: ='2016legmax.xls'!F30 -> 170 | BD33: ='2016legmax.xls'!I30 -> 169.5 | BE33: ='2016legmax.xls'!K30 -> 163 | BF33: 169.5 | BG33: ='2016legmax.xls'!O30 -> 1.5 | BH33: 171 | BI33: =IF(ISNA(VLOOKUP($CM33,'Audit Values'!$A$2:$AE$252,2,FALSE)),'Preliminary SO66'!T27,VLOOKUP($CM33,'Audit Values'!$A$2:$AE$252,20,FALSE)) -> 0 | BJ33: 0 | BK33: =IF(ISNA(VLOOKUP($CM33,'Audit Values'!$A$2:$AE$252,2,FALSE)),'Preliminary SO66'!U27,VLOOKUP($CM33,'Audit Values'!$A$2:$AE$252,21,FALSE)) -> 0 | BL33: 0 | BM33: 0 | BN33: 0 | BO33: 0 | BP33: ='2016legmax.xls'!AH30 -> 0 | BQ33: 0 | BR33: 0 | BS33: ='2016legmax.xls'!CJ30 -> 0 | BT33: 0 | BU33: ='2016legmax.xls'!CI30 -> 0 | BV33: 0 | BW33: 0 | BX33: 0 | BY33: 0 | BZ33: 0 | CA33: 0 | CB33: 0 | CC33: 0 | CD33: 0 | CE33: 0 | CF33: 0 | CG33: 0 | CH33: 0 | CI33: 0 | CM33: D0212
A34: 214 | B34: Grant | C34: Ulysses | D34: 9364071 | E34: 156966 | F34: 0 | G34: 0 | H34: 0 | I34: 1693.8 | J34: 0 | K34: 0 | L34: ='2016legmax.xls'!BJ31 -> 0 | M34: 9521037 | N34: ='2016legmax.xls'!BB31 -> 0 | O34: 875211 | P34: ='2016legmax.xls'!BC31 -> 775752 | Q34: 1010671 | R34: ='2016legmax.xls'!BD31 -> 0 | S34: 11172000 | T34: ='2016legmax.xls'!DD31 -> 0 | U34: 71674 | V34: 0 | W34: 0 | X34: 0 | Y34: 0 | Z34: 15724 | AA34: ='2016legmax.xls'!AV31 -> 9 | AB34: ='2016legmax.xls'!AW31 -> A | AC34: ='2016legmax.xls'!AX31 ->  | AD34: 11494317 | AE34: 11259398 | AF34: =IF(Weightings!G31>0,Weightings!G31,'Preliminary SO66'!AB28) -> 11968945 | AG34: 11259398 | AH34: 11259398 | AI34: 12163554 | AJ34: ='2016legmax.xls'!BM31 -> 0.3 | AK34: 3649066 | AL34: 3649066 | AM34: 3649066 | AO34: 9465621 | AP34: 16.6 | AQ34: 63943 | AR34: 0 | AS34: 0 | AT34: 0 | AU34: 0 | AV34: 0 | AW34: 0 | AX34: 0 | AY34: 37607 | AZ34: 0 | BA34: 0 | BB34: 9364071 | BC34: ='2016legmax.xls'!F31 -> 1640.5 | BD34: ='2016legmax.xls'!I31 -> 1670.3 | BE34: ='2016legmax.xls'!K31 -> 1626 | BF34: 1670.3 | BG34: ='2016legmax.xls'!O31 -> 23.5 | BH34: 1693.8 | BI34: =IF(ISNA(VLOOKUP($CM34,'Audit Values'!$A$2:$AE$252,2,FALSE)),'Preliminary SO66'!T28,VLOOKUP($CM34,'Audit Values'!$A$2:$AE$252,20,FALSE)) -> 0 | BJ34: 0 | BK34: =IF(ISNA(VLOOKUP($CM34,'Audit Values'!$A$2:$AE$252,2,FALSE)),'Preliminary SO66'!U28,VLOOKUP($CM34,'Audit Values'!$A$2:$AE$252,21,FALSE)) -> 1.9 | BL34: 7686 | BM34: 160 | BN34: 149280 | BO34: 156966 | BP34: ='2016legmax.xls'!AH31 -> 0 | BQ34: 0 | BR34: 0 | BS34: ='2016legmax.xls'!CJ31 -> 0 | BT34: 0 | BU34: ='2016legmax.xls'!CI31 -> 0 | BV34: 0 | BW34: 0 | BX34: 0 | BY34: 0 | BZ34: 0 | CA34: 0 | CB34: 0 | CC34: 0 | CD34: 0 | CE34: 0 | CF34: 0 | CG34: 0 | CH34: 0 | CI34: 0 | CM34: D0214
A35: 215 | B35: Kearny | C35: Lakin | D35: 4150214 | E35: 97965 | F35: 0 | G35: 0 | H35: 0 | I35: 641.6 | J35: 0 | K35: 0 | L35: ='2016legmax.xls'!BJ32 -> 0 | M35: 4248179 | N35: ='2016legmax.xls'!BB32 -> 0 | O35: 343590 | P35: ='2016legmax.xls'!BC32 -> 340816 | Q35: 450045 | R35: ='2016legmax.xls'!BD32 -> 0 | S35: 4932585 | T35: ='2016legmax.xls'!DD32 -> 0 | U35: 42556 | V35: 0 | W35: 0 | X35: 0 | Y35: 0 | Z35: 0 | AA35: ='2016legmax.xls'!AV32 -> 12 | AB35: ='2016legmax.xls'!AW32 -> A | AC35: ='2016legmax.xls'!AX32 ->  | AD35: 5084370 | AE35: 4975141 | AF35: =IF(Weightings!G32>0,Weightings!G32,'Preliminary SO66'!AB29) -> 5223169 | AG35: 4975141 | AH35: 4975141 | AI35: 5406942 | AJ35: ='2016legmax.xls'!BM32 -> 0.3 | AK35: 1622083 | AL35: 1622083 | AM35: 1622083 | AO35: 4166882 | AP35: 0 | AQ35: 0 | AR35: 0 | AS35: 0 | AT35: 0 | AU35: 0 | AV35: 0 | AW35: 0 | AX35: 0 | AY35: 16668 | AZ35: 0 | BA35: 0 | BB35: 4150214 | BC35: ='2016legmax.xls'!F32 -> 631.4 | BD35: ='2016legmax.xls'!I32 -> 635.6 | BE35: ='2016legmax.xls'!K32 -> 586 | BF35: 635.6 | BG35: ='2016legmax.xls'!O32 -> 6 | BH35: 641.6 | BI35: =IF(ISNA(VLOOKUP($CM35,'Audit Values'!$A$2:$AE$252,2,FALSE)),'Preliminary SO66'!T29,VLOOKUP($CM35,'Audit Values'!$A$2:$AE$252,20,FALSE)) -> 0 | BJ35: 0 | BK35: =IF(ISNA(VLOOKUP($CM35,'Audit Values'!$A$2:$AE$252,2,FALSE)),'Preliminary SO66'!U29,VLOOKUP($CM35,'Audit Values'!$A$2:$AE$252,21,FALSE)) -> 0 | BL35: 0 | BM35: 105 | BN35: 97965 | BO35: 97965 | BP35: ='2016legmax.xls'!AH32 -> 0 | BQ35: 0 | BR35: 0 | BS35: ='2016legmax.xls'!CJ32 -> 0 | BT35: 0 | BU35: ='2016legmax.xls'!CI32 -> 0 | BV35: 0 | BW35: 0 | BX35: 0 | BY35: 0 | BZ35: 0 | CA35: 0 | CB35: 0 | CC35: 0 | CD35: 0 | CE35: 0 | CF35: 0 | CG35: 0 | CH35: 0 | CI35: 0 | CM35: D0215
A36: 216 | B36: Kearny | C36: Deerfield | D36: 1886552 | E36: 0 | F36: 0 | G36: 0 | H36: 0 | I36: 206.7 | J36: 0 | K36: 0 | L36: ='2016legmax.xls'!BJ33 -> 0 | M36: 1886552 | N36: ='2016legmax.xls'!BB33 -> 0 | O36: 124298 | P36: ='2016legmax.xls'!BC33 -> 173298 | Q36: 226014 | R36: ='2016legmax.xls'!BD33 -> 0 | S36: 2184148 | T36: ='2016legmax.xls'!DD33 -> 0 | U36: 14880 | V36: 0 | W36: 0 | X36: 0 | Y36: 0 | Z36: 0 | AA36: ='2016legmax.xls'!AV33 -> 13 | AB36: ='2016legmax.xls'!AW33 -> A | AC36: ='2016legmax.xls'!AX33 ->  | AD36: 2251744 | AE36: 2199028 | AF36: =IF(Weightings!G33>0,Weightings!G33,'Preliminary SO66'!AB30) -> 2318902 | AG36: 2199028 | AH36: 2199028 | AI36: 2471992 | AJ36: ='2016legmax.xls'!BM33 -> 0.3 | AK36: 741598 | AL36: 741598 | AM36: 741598 | AO36: 1894129 | AP36: 0 | AQ36: 0 | AR36: 0 | AS36: 0 | AT36: 0 | AU36: 0 | AV36: 0 | AW36: 0 | AX36: 0 | AY36: 7577 | AZ36: 0 | BA36: 0 | BB36: 1886552 | BC36: ='2016legmax.xls'!F33 -> 231.5 | BD36: ='2016legmax.xls'!I33 -> 192 | BE36: ='2016legmax.xls'!K33 -> 184.5 | BF36: 202.7 | BG36: ='2016legmax.xls'!O33 -> 4 | BH36: 206.7 | BI36: =IF(ISNA(VLOOKUP($CM36,'Audit Values'!$A$2:$AE$252,2,FALSE)),'Preliminary SO66'!T30,VLOOKUP($CM36,'Audit Values'!$A$2:$AE$252,20,FALSE)) -> 0 | BJ36: 0 | BK36: =IF(ISNA(VLOOKUP($CM36,'Audit Values'!$A$2:$AE$252,2,FALSE)),'Preliminary SO66'!U30,VLOOKUP($CM36,'Audit Values'!$A$2:$AE$252,21,FALSE)) -> 0 | BL36: 0 | BM36: 0 | BN36: 0 | BO36: 0 | BP36: ='2016legmax.xls'!AH33 -> 0 | BQ36: 0 | BR36: 0 | BS36: ='2016legmax.xls'!CJ33 -> 0 | BT36: 0 | BU36: ='2016legmax.xls'!CI33 -> 0 | BV36: 0 | BW36: 0 | BX36: 0 | BY36: 0 | BZ36: 0 | CA36: 0 | CB36: 0 | CC36: 0 | CD36: 0 | CE36: 0 | CF36: 0 | CG36: 0 | CH36: 0 | CI36: 0 | CM36: D0216
A37: 217 | B37: Morton | C37: Rolla | D37: 1480382 | E37: 0 | F37: 0 | G37: 0 | H37: 0 | I37: 183.6 | J37: 0 | K37: 0 | L37: ='2016legmax.xls'!BJ34 -> 0 | M37: 1480382 | N37: ='2016legmax.xls'!BB34 -> 0 | O37: 114047 | P37: ='2016legmax.xls'!BC34 -> 132239 | Q37: 174144 | R37: ='2016legmax.xls'!BD34 -> 0 | S37: 1726668 | T37: ='2016legmax.xls'!DD34 -> 0 | U37: 23016 | V37: 0 | W37: 0 | X37: 0 | Y37: 0 | Z37: 391 | AA37: ='2016legmax.xls'!AV34 -> 12 | AB37: ='2016legmax.xls'!AW34 -> A | AC37: ='2016legmax.xls'!AX34 ->  | AD37: 1791980 | AE37: 1750075 | AF37: =IF(Weightings!G34>0,Weightings!G34,'Preliminary SO66'!AB31) -> 1791222 | AG37: 1750075 | AH37: 1750075 | AI37: 1961198 | AJ37: ='2016legmax.xls'!BM34 -> 0.3 | AK37: 588359 | AL37: 588359 | AM37: 588359 | AO37: 1490564 | AP37: 1.1 | AQ37: 4237 | AR37: 0 | AS37: 0 | AT37: 0 | AU37: 0 | AV37: 0 | AW37: 0 | AX37: 0 | AY37: 5945 | AZ37: 0 | BA37: 0 | BB37: 1480382 | BC37: ='2016legmax.xls'!F34 -> 176.4 | BD37: ='2016legmax.xls'!I34 -> 183.6 | BE37: ='2016legmax.xls'!K34 -> 164 | BF37: 183.6 | BG37: ='2016legmax.xls'!O34 -> 0 | BH37: 183.6 | BI37: =IF(ISNA(VLOOKUP($CM37,'Audit Values'!$A$2:$AE$252,2,FALSE)),'Preliminary SO66'!T31,VLOOKUP($CM37,'Audit Values'!$A$2:$AE$252,20,FALSE)) -> 0 | BJ37: 0 | BK37: =IF(ISNA(VLOOKUP($CM37,'Audit Values'!$A$2:$AE$252,2,FALSE)),'Preliminary SO66'!U31,VLOOKUP($CM37,'Audit Values'!$A$2:$AE$252,21,FALSE)) -> 0 | BL37: 0 | BM37: 0 | BN37: 0 | BO37: 0 | BP37: ='2016legmax.xls'!AH34 -> 0 | BQ37: 0 | BR37: 0 | BS37: ='2016legmax.xls'!CJ34 -> 0 | BT37: 0 | BU37: ='2016legmax.xls'!CI34 -> 0 | BV37: 0 | BW37: 0 | BX37: 0 | BY37: 0 | BZ37: 0 | CA37: 0 | CB37: 0 | CC37: 0 | CD37: 0 | CE37: 0 | CF37: 0 | CG37: 0 | CH37: 0 | CI37: 0 | CM37: D0217
A38: 218 | B38: Morton | C38: Elkhart | D38: 3268327 | E38: 2944610 | F38: 0 | G38: 0 | H38: 0 | I38: 478.4 | J38: 0 | K38: 0 | L38: ='2016legmax.xls'!BJ35 -> 0 | M38: 6212937 | N38: ='2016legmax.xls'!BB35 -> 604005 | O38: 261333 | P38: ='2016legmax.xls'!BC35 -> 298529 | Q38: 388513 | R38: ='2016legmax.xls'!BD35 -> 48080 | S38: 7424884 | T38: ='2016legmax.xls'!DD35 -> 0 | U38: 21647 | V38: 0 | W38: 0 | X38: 0 | Y38: 0 | Z38: 3545 | AA38: ='2016legmax.xls'!AV35 -> 19 | AB38: ='2016legmax.xls'!AW35 -> A | AC38: ='2016legmax.xls'!AX35 ->  | AD38: 7540060 | AE38: 7450076 | AF38: =IF(Weightings!G35>0,Weightings!G35,'Preliminary SO66'!AB32) -> 7878356 | AG38: 7450076 | AH38: 7450076 | AI38: 4294395 | AJ38: ='2016legmax.xls'!BM35 -> 0.3 | AK38: 1288319 | AL38: 1288319 | AM38: 1288319 | AO38: 5341503 | AP38: 534.8 | AQ38: 2060050 | AR38: 0 | AS38: 0 | AT38: 0 | AU38: 0 | AV38: 0 | AW38: 0 | AX38: 0 | AY38: 13126 | AZ38: 0 | BA38: 0 | BB38: 3268327 | BC38: ='2016legmax.xls'!F35 -> 494.1 | BD38: ='2016legmax.xls'!I35 -> 469.8 | BE38: ='2016legmax.xls'!K35 -> 450.4 | BF38: 471.4 | BG38: ='2016legmax.xls'!O35 -> 7 | BH38: 478.4 | BI38: =IF(ISNA(VLOOKUP($CM38,'Audit Values'!$A$2:$AE$299,2,FALSE)),'Preliminary SO66'!T32,VLOOKUP($CM38,'Audit Values'!$A$2:$AE$299,20,FALSE)) -> 571 | BJ38: 2855000 | BK38: =IF(ISNA(VLOOKUP($CM38,'Audit Values'!$A$2:$AE$299,2,FALSE)),'Preliminary SO66'!U32,VLOOKUP($CM38,'Audit Values'!$A$2:$AE$299,21,FALSE)) -> 21 | BL38: 84945 | BM38: 5 | BN38: 4665 | BO38: 2944610 | BP38: ='2016legmax.xls'!AH35 -> 0 | BQ38: 0 | BR38: 0 | BS38: ='2016legmax.xls'!CJ35 -> 0 | BT38: 0 | BU38: ='2016legmax.xls'!CI35 -> 0 | BV38: 0 | BW38: 0 | BX38: 0 | BY38: 0 | BZ38: 0 | CA38: 0 | CB38: 0 | CC38: 0 | CD38: 0 | CE38: 0 | CF38: 0 | CG38: 0 | CH38: 0 | CI38: 0 | CM38: D0218
A39: 219 | B39: Clark | C39: Minneola | D39: 1835081 | E39: 0 | F39: 0 | G39: 0 | H39: 0 | I39: 248.5 | J39: 0 | K39: 47 | L39: ='2016legmax.xls'!BJ36 -> 0 | M39: 1835034 | N39: ='2016legmax.xls'!BB36 -> 83938 | O39: 178007 | P39: ='2016legmax.xls'!BC36 -> 151154 | Q39: 198537 | R39: ='2016legmax.xls'!BD36 -> 0 | S39: 2248133 | T39: ='2016legmax.xls'!DD36 -> 0 | U39: 2483 | V39: 0 | W39: 0 | X39: 0 | Y39: 0 | Z39: 0 | AA39: ='2016legmax.xls'!AV36 -> 13 | AB39: ='2016legmax.xls'!AW36 -> A | AC39: ='2016legmax.xls'!AX36 ->  | AD39: 2298046 | AE39: 2250663 | AF39: =IF(Weightings!G36>0,Weightings!G36,'Preliminary SO66'!AB33) -> 2356069 | AG39: 2250663 | AH39: 2250663 | AI39: 2407064 | AJ39: ='2016legmax.xls'!BM36 -> 0.3 | AK39: 722119 | AL39: 722119 | AM39: 722119 | AO39: 1842451 | AP39: 0 | AQ39: 0 | AR39: 0 | AS39: 0 | AT39: 0 | AU39: 0 | AV39: 0 | AW39: 0 | AX39: 0 | AY39: 7370 | AZ39: 0 | BA39: 0 | BB39: 1835081 | BC39: ='2016legmax.xls'!F36 -> 249 | BD39: ='2016legmax.xls'!I36 -> 248.5 | BE39: ='2016legmax.xls'!K36 -> 233.7 | BF39: 248.5 | BG39: ='2016legmax.xls'!O36 -> 0 | BH39: 248.5 | BI39: =IF(ISNA(VLOOKUP($CM39,'Audit Values'!$A$2:$AE$252,2,FALSE)),'Preliminary SO66'!T33,VLOOKUP($CM39,'Audit Values'!$A$2:$AE$252,20,FALSE)) -> 0 | BJ39: 0 | BK39: =IF(ISNA(VLOOKUP($CM39,'Audit Values'!$A$2:$AE$252,2,FALSE)),'Preliminary SO66'!U33,VLOOKUP($CM39,'Audit Values'!$A$2:$AE$252,21,FALSE)) -> 0 | BL39: 0 | BM39: 0 | BN39: 0 | BO39: 0 | BP39: ='2016legmax.xls'!AH36 -> 0 | BQ39: 0 | BR39: 0 | BS39: ='2016legmax.xls'!CJ36 -> 0 | BT39: 0 | BU39: ='2016legmax.xls'!CI36 -> 0 | BV39: 0 | BW39: 0 | BX39: 0 | BY39: 0 | BZ39: 0 | CA39: 0 | CB39: 0 | CC39: 0 | CD39: 0 | CE39: 0 | CF39: 0 | CG39: 0 | CH39: 0 | CI39: 0 | CM39: D0219
A40: 220 | B40: Clark | C40: Ashland | D40: 1529574 | E40: 0 | F40: 0 | G40: 0 | H40: 0 | I40: 192.6 | J40: 0 | K40: 12 | L40: ='2016legmax.xls'!BJ37 -> 0 | M40: 1529562 | N40: ='2016legmax.xls'!BB37 -> 0 | O40: 156161 | P40: ='2016legmax.xls'!BC37 -> 138234 | Q40: 182551 | R40: ='2016legmax.xls'!BD37 -> 0 | S40: 1823957 | T40: ='2016legmax.xls'!DD37 -> 0 | U40: 9761 | V40: 0 | W40: 0 | X40: 0 | Y40: 0 | Z40: 0 | AA40: ='2016legmax.xls'!AV37 -> 16 | AB40: ='2016legmax.xls'!AW37 -> A | AC40: ='2016legmax.xls'!AX37 ->  | AD40: 1878047 | AE40: 1833730 | AF40: =IF(Weightings!G37>0,Weightings!G37,'Preliminary SO66'!AB34) -> 1916908 | AG40: 1833730 | AH40: 1833730 | AI40: 2020274 | AJ40: ='2016legmax.xls'!BM37 -> 0.3 | AK40: 606082 | AL40: 606082 | AM40: 606082 | AO40: 1535717 | AP40: 0 | AQ40: 0 | AR40: 0 | AS40: 0 | AT40: 0 | AU40: 0 | AV40: 0 | AW40: 0 | AX40: 0 | AY40: 6143 | AZ40: 0 | BA40: 0 | BB40: 1529574 | BC40: ='2016legmax.xls'!F37 -> 194.4 | BD40: ='2016legmax.xls'!I37 -> 192.6 | BE40: ='2016legmax.xls'!K37 -> 189.9 | BF40: 192.6 | BG40: ='2016legmax.xls'!O37 -> 0 | BH40: 192.6 | BI40: =IF(ISNA(VLOOKUP($CM40,'Audit Values'!$A$2:$AE$252,2,FALSE)),'Preliminary SO66'!T34,VLOOKUP($CM40,'Audit Values'!$A$2:$AE$252,20,FALSE)) -> 0 | BJ40: 0 | BK40: =IF(ISNA(VLOOKUP($CM40,'Audit Values'!$A$2:$AE$252,2,FALSE)),'Preliminary SO66'!U34,VLOOKUP($CM40,'Audit Values'!$A$2:$AE$252,21,FALSE)) -> 0 | BL40: 0 | BM40: 0 | BN40: 0 | BO40: 0 | BP40: ='2016legmax.xls'!AH37 -> 0 | BQ40: 0 | BR40: 0 | BS40: ='2016legmax.xls'!CJ37 -> 0 | BT40: 0 | BU40: ='2016legmax.xls'!CI37 -> 0 | BV40: 0 | BW40: 0 | BX40: 0 | BY40: 0 | BZ40: 0 | CA40: 0 | CB40: 0 | CC40: 0 | CD40: 0 | CE40: 0 | CF40: 0 | CG40: 0 | CH40: 0 | CI40: 0 | CM40: D0220
A41: 223 | B41: Washington | C41: Barnes | D41: 2506786 | E41: 0 | F41: 0 | G41: 0 | H41: 0 | I41: 354.1 | J41: 0 | K41: 72 | L41: ='2016legmax.xls'!BJ38 -> 0 | M41: 2506714 | N41: ='2016legmax.xls'!BB38 -> 174277 | O41: 428619 | P41: ='2016legmax.xls'!BC38 -> 203311 | Q41: 264517 | R41: ='2016legmax.xls'!BD38 -> 0 | S41: 3312921 | T41: ='2016legmax.xls'!DD38 -> 0 | U41: 0 | V41: 0 | W41: 0 | X41: 0 | Y41: 0 | Z41: 190000 | AA41: ='2016legmax.xls'!AV38 -> 1 | AB41: ='2016legmax.xls'!AW38 -> A | AC41: ='2016legmax.xls'!AX38 ->  | AD41: 3564199 | AE41: 3502993 | AF41: =IF(Weightings!G38>0,Weightings!G38,'Preliminary SO66'!AB35) -> 3643356 | AG41: 3502993 | AH41: 3502993 | AI41: 3373070 | AJ41: ='2016legmax.xls'!BM38 -> 0.3 | AK41: 1011921 | AL41: 1011921 | AM41: 1011921 | AO41: 2521090 | AP41: 1.1 | AQ41: 4237 | AR41: 0 | AS41: 0 | AT41: 0 | AU41: 0 | AV41: 0 | AW41: 0 | AX41: 0 | AY41: 10067 | AZ41: 0 | BA41: 0 | BB41: 2506786 | BC41: ='2016legmax.xls'!F38 -> 374.8 | BD41: ='2016legmax.xls'!I38 -> 340 | BE41: ='2016legmax.xls'!K38 -> 347.4 | BF41: 354.1 | BG41: ='2016legmax.xls'!O38 -> 0 | BH41: 354.1 | BI41: =IF(ISNA(VLOOKUP($CM41,'Audit Values'!$A$2:$AE$252,2,FALSE)),'Preliminary SO66'!T35,VLOOKUP($CM41,'Audit Values'!$A$2:$AE$252,20,FALSE)) -> 0 | BJ41: 0 | BK41: =IF(ISNA(VLOOKUP($CM41,'Audit Values'!$A$2:$AE$252,2,FALSE)),'Preliminary SO66'!U35,VLOOKUP($CM41,'Audit Values'!$A$2:$AE$252,21,FALSE)) -> 0 | BL41: 0 | BM41: 0 | BN41: 0 | BO41: 0 | BP41: ='2016legmax.xls'!AH38 -> 0 | BQ41: 0 | BR41: 0 | BS41: ='2016legmax.xls'!CJ38 -> 0 | BT41: 0 | BU41: ='2016legmax.xls'!CI38 -> 0 | BV41: 0 | BW41: 0 | BX41: 0 | BY41: 0 | BZ41: 0 | CA41: 0 | CB41: 0 | CC41: 0 | CD41: 0 | CE41: 0 | CF41: 0 | CG41: 0 | CH41: 0 | CI41: 0 | CM41: D0223
A42: 224 | B42: Washington | C42: Clifton-Clyde | D42: 2140873 | E42: 0 | F42: 0 | G42: 0 | H42: 0 | I42: 313.5 | J42: 0 | K42: 0 | L42: ='2016legmax.xls'!BJ39 -> 0 | M42: 2140873 | N42: ='2016legmax.xls'!BB39 -> 165002 | O42: 274807 | P42: ='2016legmax.xls'!BC39 -> 169343 | Q42: 222679 | R42: ='2016legmax.xls'!BD39 -> 0 | S42: 2750025 | T42: ='2016legmax.xls'!DD39 -> 0 | U42: 0 | V42: 0 | W42: 0 | X42: 0 | Y42: 0 | Z42: 0 | AA42: ='2016legmax.xls'!AV39 -> 1 | AB42: ='2016legmax.xls'!AW39 -> A | AC42: ='2016legmax.xls'!AX39 ->  | AD42: 2803361 | AE42: 2750025 | AF42: =IF(Weightings!G39>0,Weightings!G39,'Preliminary SO66'!AB36) -> 2866513 | AG42: 2750025 | AH42: 2750025 | AI42: 2854625 | AJ42: ='2016legmax.xls'!BM39 -> 0.3 | AK42: 856388 | AL42: 786388 | AM42: 786388 | AO42: 2149471 | AP42: 0 | AQ42: 0 | AR42: 0 | AS42: 0 | AT42: 0 | AU42: 0 | AV42: 0 | AW42: 0 | AX42: 0 | AY42: 8598 | AZ42: 0 | BA42: 0 | BB42: 2140873 | BC42: ='2016legmax.xls'!F39 -> 305.5 | BD42: ='2016legmax.xls'!I39 -> 311.5 | BE42: ='2016legmax.xls'!K39 -> 309 | BF42: 311.5 | BG42: ='2016legmax.xls'!O39 -> 2 | BH42: 313.5 | BI42: =IF(ISNA(VLOOKUP($CM42,'Audit Values'!$A$2:$AE$252,2,FALSE)),'Preliminary SO66'!T36,VLOOKUP($CM42,'Audit Values'!$A$2:$AE$252,20,FALSE)) -> 0 | BJ42: 0 | BK42: =IF(ISNA(VLOOKUP($CM42,'Audit Values'!$A$2:$AE$252,2,FALSE)),'Preliminary SO66'!U36,VLOOKUP($CM42,'Audit Values'!$A$2:$AE$252,21,FALSE)) -> 0 | BL42: 0 | BM42: 0 | BN42: 0 | BO42: 0 | BP42: ='2016legmax.xls'!AH39 -> 0 | BQ42: 0 | BR42: 0 | BS42: ='2016legmax.xls'!CJ39 -> 0 | BT42: 0 | BU42: ='2016legmax.xls'!CI39 -> 0 | BV42: 0 | BW42: 0 | BX42: 0 | BY42: 0 | BZ42: 0 | CA42: 0 | CB42: 0 | CC42: 0 | CD42: 0 | CE42: 0 | CF42: 0 | CG42: 0 | CH42: 0 | CI42: 0 | CM42: D0224
A43: 225 | B43: Meade | C43: Fowler | D43: 1363538 | E43: 0 | F43: 0 | G43: 0 | H43: 0 | I43: 151.5 | J43: 0 | K43: 0 | L43: ='2016legmax.xls'!BJ40 -> 0 | M43: 1363538 | N43: ='2016legmax.xls'!BB40 -> 88211 | O43: 109125 | P43: ='2016legmax.xls'!BC40 -> 99283 | Q43: 129612 | R43: ='2016legmax.xls'!BD40 -> 0 | S43: 1660157 | T43: ='2016legmax.xls'!DD40 -> 0 | U43: 1135 | V43: 0 | W43: 0 | X43: 0 | Y43: 0 | Z43: 2844 | AA43: ='2016legmax.xls'!AV40 -> 13 | AB43: ='2016legmax.xls'!AW40 -> A | AC43: ='2016legmax.xls'!AX40 ->  | AD43: 1694465 | AE43: 1664136 | AF43: =IF(Weightings!G40>0,Weightings!G40,'Preliminary SO66'!AB37) -> 1741260 | AG43: 1664136 | AH43: 1664136 | AI43: 1751227 | AJ43: ='2016legmax.xls'!BM40 -> 0.33 | AK43: 577905 | AL43: 577905 | AM43: 577905 | AO43: 1369014 | AP43: 0 | AQ43: 0 | AR43: 0 | AS43: 0 | AT43: 0 | AU43: 0 | AV43: 0 | AW43: 0 | AX43: 0 | AY43: 5476 | AZ43: 0 | BA43: 0 | BB43: 1363538 | BC43: ='2016legmax.xls'!F40 -> 154 | BD43: ='2016legmax.xls'!I40 -> 151 | BE43: ='2016legmax.xls'!K40 -> 133 | BF43: 151 | BG43: ='2016legmax.xls'!O40 -> 0.5 | BH43: 151.5 | BI43: =IF(ISNA(VLOOKUP($CM43,'Audit Values'!$A$2:$AE$252,2,FALSE)),'Preliminary SO66'!T37,VLOOKUP($CM43,'Audit Values'!$A$2:$AE$252,20,FALSE)) -> 0 | BJ43: 0 | BK43: =IF(ISNA(VLOOKUP($CM43,'Audit Values'!$A$2:$AE$252,2,FALSE)),'Preliminary SO66'!U37,VLOOKUP($CM43,'Audit Values'!$A$2:$AE$252,21,FALSE)) -> 0 | BL43: 0 | BM43: 0 | BN43: 0 | BO43: 0 | BP43: ='2016legmax.xls'!AH40 -> 0 | BQ43: 0 | BR43: 0 | BS43: ='2016legmax.xls'!CJ40 -> 0 | BT43: 0 | BU43: ='2016legmax.xls'!CI40 -> 0 | BV43: 0 | BW43: 0 | BX43: 0 | BY43: 0 | BZ43: 0 | CA43: 0 | CB43: 0 | CC43: 0 | CD43: 0 | CE43: 0 | CF43: 0 | CG43: 0 | CH43: 0 | CI43: 0 | CM43: D0225
A44: 226 | B44: Meade | C44: Meade | D44: 2585385 | E44: 0 | F44: 0 | G44: 0 | H44: 0 | I44: 396.2 | J44: 0 | K44: 0 | L44: ='2016legmax.xls'!BJ41 -> 0 | M44: 2585385 | N44: ='2016legmax.xls'!BB41 -> 0 | O44: 284651 | P44: ='2016legmax.xls'!BC41 -> 217676 | Q44: 287450 | R44: ='2016legmax.xls'!BD41 -> 0 | S44: 3087712 | T44: ='2016legmax.xls'!DD41 -> 0 | U44: 10321 | V44: 0 | W44: 0 | X44: 5000 | Y44: 0 | Z44: 5439 | AA44: ='2016legmax.xls'!AV41 -> 12 | AB44: ='2016legmax.xls'!AW41 -> A | AC44: ='2016legmax.xls'!AX41 ->  | AD44: 3173246 | AE44: 3108472 | AF44: =IF(Weightings!G41>0,Weightings!G41,'Preliminary SO66'!AB38) -> 3295496 | AG44: 3108472 | AH44: 3108472 | AI44: 3449937 | AJ44: ='2016legmax.xls'!BM41 -> 0.33 | AK44: 1138479 | AL44: 1138479 | AM44: 1138479 | AO44: 2595768 | AP44: 0 | AQ44: 0 | AR44: 0 | AS44: 0 | AT44: 0 | AU44: 0 | AV44: 0 | AW44: 0 | AX44: 0 | AY44: 10383 | AZ44: 0 | BA44: 0 | BB44: 2585385 | BC44: ='2016legmax.xls'!F41 -> 406.1 | BD44: ='2016legmax.xls'!I41 -> 392.7 | BE44: ='2016legmax.xls'!K41 -> 372.5 | BF44: 392.7 | BG44: ='2016legmax.xls'!O41 -> 3.5 | BH44: 396.2 | BI44: =IF(ISNA(VLOOKUP($CM44,'Audit Values'!$A$2:$AE$252,2,FALSE)),'Preliminary SO66'!T38,VLOOKUP($CM44,'Audit Values'!$A$2:$AE$252,20,FALSE)) -> 0 | BJ44: 0 | BK44: =IF(ISNA(VLOOKUP($CM44,'Audit Values'!$A$2:$AE$252,2,FALSE)),'Preliminary SO66'!U38,VLOOKUP($CM44,'Audit Values'!$A$2:$AE$252,21,FALSE)) -> 0 | BL44: 0 | BM44: 0 | BN44: 0 | BO44: 0 | BP44: ='2016legmax.xls'!AH41 -> 0 | BQ44: 0 | BR44: 0 | BS44: ='2016legmax.xls'!CJ41 -> 0 | BT44: 0 | BU44: ='2016legmax.xls'!CI41 -> 0 | BV44: 0 | BW44: 0 | BX44: 0 | BY44: 0 | BZ44: 0 | CA44: 0 | CB44: 0 | CC44: 0 | CD44: 0 | CE44: 0 | CF44: 0 | CG44: 0 | CH44: 0 | CI44: 0 | CM44: D0226
A45: 227 | B45: Hodgeman | C45: Hodgeman County Schools | D45: 2062093 | E45: 0 | F45: 0 | G45: 0 | H45: 0 | I45: 288.3 | J45: 0 | K45: 838 | L45: ='2016legmax.xls'!BJ42 -> 0 | M45: 2061255 | N45: ='2016legmax.xls'!BB42 -> 0 | O45: 204176 | P45: ='2016legmax.xls'!BC42 -> 154729 | Q45: 202955 | R45: ='2016legmax.xls'!BD42 -> 0 | S45: 2420160 | T45: ='2016legmax.xls'!DD42 -> 0 | U45: 30000 | V45: 0 | W45: 0 | X45: 0 | Y45: 0 | Z45: 0 | AA45: ='2016legmax.xls'!AV42 -> 9 | AB45: ='2016legmax.xls'!AW42 -> A | AC45: ='2016legmax.xls'!AX42 ->  | AD45: 2499224 | AE45: 2450998 | AF45: =IF(Weightings!G42>0,Weightings!G42,'Preliminary SO66'!AB39) -> 2552552 | AG45: 2450998 | AH45: 2450998 | AI45: 2734027 | AJ45: ='2016legmax.xls'!BM42 -> 0.3 | AK45: 820208 | AL45: 820208 | AM45: 820208 | AO45: 2070375 | AP45: 0 | AQ45: 0 | AR45: 0 | AS45: 0 | AT45: 0 | AU45: 0 | AV45: 0 | AW45: 0 | AX45: 0 | AY45: 8282 | AZ45: 0 | BA45: 0 | BB45: 2062093 | BC45: ='2016legmax.xls'!F42 -> 291.5 | BD45: ='2016legmax.xls'!I42 -> 287 | BE45: ='2016legmax.xls'!K42 -> 286.5 | BF45: 288.3 | BG45: ='2016legmax.xls'!O42 -> 0 | BH45: 288.3 | BI45: =IF(ISNA(VLOOKUP($CM45,'Audit Values'!$A$2:$AE$252,2,FALSE)),'Preliminary SO66'!T39,VLOOKUP($CM45,'Audit Values'!$A$2:$AE$252,20,FALSE)) -> 0 | BJ45: 0 | BK45: =IF(ISNA(VLOOKUP($CM45,'Audit Values'!$A$2:$AE$252,2,FALSE)),'Preliminary SO66'!U39,VLOOKUP($CM45,'Audit Values'!$A$2:$AE$252,21,FALSE)) -> 0 | BL45: 0 | BM45: 0 | BN45: 0 | BO45: 0 | BP45: ='2016legmax.xls'!AH42 -> 0 | BQ45: 0 | BR45: 0 | BS45: ='2016legmax.xls'!CJ42 -> 0 | BT45: 0 | BU45: ='2016legmax.xls'!CI42 -> 0 | BV45: 0 | BW45: 0 | BX45: 0 | BY45: 0 | BZ45: 0 | CA45: 0 | CB45: 0 | CC45: 0 | CD45: 0 | CE45: 0 | CF45: 0 | CG45: 0 | CH45: 0 | CI45: 0 | CM45: D0227
A46: 229 | B46: Johnson | C46: Blue Valley | D46: =BB46 -> 91207140 | E46: 68361 | F46: 69721 | G46: =BV46+BZ46+CD46 -> 17709031 | H46: 0 | I46: 21563.7 | J46: 0 | K46: 0 | L46: ='2016legmax.xls'!BJ43 -> 0 | M46: 109054253 | N46: ='2016legmax.xls'!BB43 -> 2386017 | O46: 21069541 | P46: ='2016legmax.xls'!BC43 -> 11998794 | Q46: 15684403 | R46: ='2016legmax.xls'!BD43 -> 0 | S46: 144508605 | T46: ='2016legmax.xls'!DD43 -> 0 | U46: 0 | V46: 0 | W46: 108612 | X46: 0 | Y46: 1435044 | Z46: 230715 | AA46: ='2016legmax.xls'!AV43 -> 18 | AB46: ='2016legmax.xls'!AW43 -> A | AC46: ='2016legmax.xls'!AX43 ->  | AD46: 142827224 | AE46: 146282976 | AF46: =IF(Weightings!G43>0,Weightings!G43,'Preliminary SO66'!AB40) -> 150793376 | AG46: 146282976 | AH46: 146282976 | AI46: 147030173 | AJ46: ='2016legmax.xls'!BM43 -> 0.33 | AK46: 48519957 | AL46: 48519957 | AM46: 48519957 | AO46: 108317039 | AP46: 0 | AQ46: 0 | AR46: 1595.8 | AS46: 6147022 | AT46: 0 | AU46: 0 | AV46: 2743.4 | AW46: 10567577 | AX46: 16714599 | AY46: 366410 | AZ46: 7.5 | BA46: 28890 | BB46: 91207140 | BC46: ='2016legmax.xls'!F43 -> 21371 | BD46: ='2016legmax.xls'!I43 -> 21375.1 | BE46: ='2016legmax.xls'!K43 -> 21563.7 | BF46: 21563.7 | BG46: ='2016legmax.xls'!O43 -> 0 | BH46: 21563.7 | BI46: =IF(ISNA(VLOOKUP($CM46,'Audit Values'!$A$2:$AE$299,2,FALSE)),'Preliminary SO66'!T40,VLOOKUP($CM46,'Audit Values'!$A$2:$AE$299,20,FALSE)) -> 0 | BJ46: 0 | BK46: =IF(ISNA(VLOOKUP($CM46,'Audit Values'!$A$2:$AE$299,2,FALSE)),'Preliminary SO66'!U40,VLOOKUP($CM46,'Audit Values'!$A$2:$AE$299,21,FALSE)) -> 16.9 | BL46: 68361 | BM46: 0 | BN46: 0 | BO46: 68361 | BP46: ='2016legmax.xls'!AH43 -> 18.1 | BQ46: 69721 | BR46: 6277970 | BS46: ='2016legmax.xls'!CJ43 -> 0.05 | BT46: 7141361 | BU46: ='2016legmax.xls'!CI43 -> 7180637 | BV46: 7141361 | BW46: 0 | BX46: 0 | BY46: 0 | BZ46: 0 | CA46: 10567670 | CB46: 10567670 | CC46: 10567670 | CD46: 10567670 | CE46: 0 | CF46: 0 | CG46: 104432 | CH46: 0 | CI46: 0 | CM46: D0229
A47: 230 | B47: Johnson | C47: Spring Hill | D47: 11019928 | E47: 4555793 | F47: 0 | G47: =BV47+BZ47+CD47 -> 2528640 | H47: 0 | I47: 2497.4 | J47: 0 | K47: 0 | L47: ='2016legmax.xls'!BJ44 -> 0 | M47: 18104361 | N47: ='2016legmax.xls'!BB44 -> 3003029 | O47: 2570485 | P47: ='2016legmax.xls'!BC44 -> 1456855 | Q47: 1920299 | R47: ='2016legmax.xls'!BD44 -> 0 | S47: 25134730 | T47: ='2016legmax.xls'!DD44 -> 317164 | U47: 0 | V47: 0 | W47: 0 | X47: 0 | Y47: 0 | Z47: 0 | AA47: ='2016legmax.xls'!AV44 -> 9 | AB47: ='2016legmax.xls'!AW44 -> A | AC47: ='2016legmax.xls'!AX44 -> R | AD47: 25915338 | AE47: 25451894 | AF47: =IF(Weightings!G44>0,Weightings!G44,'Preliminary SO66'!AB41) -> 26516103 | AG47: 25451894 | AH47: 25451894 | AI47: 17538189 | AJ47: ='2016legmax.xls'!BM44 -> 0.3 | AK47: 5261457 | AL47: 5261457 | AM47: 5261457 | AO47: 16235238 | AP47: 842.4 | AQ47: 3244925 | AR47: 0 | AS47: 0 | AT47: 0 | AU47: 0 | AV47: 391.7 | AW47: 1508828 | AX47: 1508828 | AY47: 45926 | AZ47: 107.9 | BA47: 415631 | BB47: 11019928 | BC47: ='2016legmax.xls'!F44 -> 2248.7 | BD47: ='2016legmax.xls'!I44 -> 2365 | BE47: ='2016legmax.xls'!K44 -> 2490.4 | BF47: 2490.4 | BG47: ='2016legmax.xls'!O44 -> 7 | BH47: 2497.4 | BI47: =IF(ISNA(VLOOKUP($CM47,'Audit Values'!$A$2:$AE$252,2,FALSE)),'Preliminary SO66'!T41,VLOOKUP($CM47,'Audit Values'!$A$2:$AE$252,20,FALSE)) -> 835 | BJ47: 4175000 | BK47: =IF(ISNA(VLOOKUP($CM47,'Audit Values'!$A$2:$AE$252,2,FALSE)),'Preliminary SO66'!U41,VLOOKUP($CM47,'Audit Values'!$A$2:$AE$252,21,FALSE)) -> 32.9 | BL47: 133081 | BM47: 265.5 | BN47: 247712 | BO47: 4555793 | BP47: ='2016legmax.xls'!AH44 -> 0 | BQ47: 0 | BR47: 0 | BS47: ='2016legmax.xls'!CJ44 -> 0.0321 | BT47: 831882 | BU47: ='2016legmax.xls'!CI44 -> 0 | BV47: 0 | BW47: 0 | BX47: 0 | BY47: 0 | BZ47: 0 | CA47: 1508640 | CB47: 2528640 | CC47: 2528640 | CD47: 2528640 | CE47: 0 | CF47: 0 | CG47: 0 | CH47: 0 | CI47: 0 | CM47: D0230
A48: 231 | B48: Johnson | C48: Gardner Edgerton | D48: 24684799 | E48: 0 | F48: 652914 | G48: 1540199 | H48: 0 | I48: 5452.7 | J48: 0 | K48: 0 | L48: ='2016legmax.xls'!BJ45 -> 0 | M48: 26877912 | N48: ='2016legmax.xls'!BB45 -> 6188368 | O48: 5498248 | P48: ='2016legmax.xls'!BC45 -> 3006801 | Q48: 3964159 | R48: ='2016legmax.xls'!BD45 -> 510729 | S48: 42082058 | T48: ='2016legmax.xls'!DD45 -> 0 | U48: 0 | V48: 0 | W48: 0 | X48: 15000 | Y48: 0 | Z48: 11078 | AA48: ='2016legmax.xls'!AV45 -> 6 | AB48: ='2016legmax.xls'!AW45 -> A | AC48: ='2016legmax.xls'!AX45 ->  | AD48: 43050494 | AE48: 42108136 | AF48: =IF(Weightings!G45>0,Weightings!G45,'Preliminary SO66'!AB42) -> 43922033 | AG48: 42108136 | AH48: 42108136 | AI48: 35123860 | AJ48: ='2016legmax.xls'!BM45 -> 0.33 | AK48: 11590874 | AL48: 11075000 | AM48: 11075000 | AO48: 25741134 | AP48: 0 | AQ48: 0 | AR48: 0 | AS48: 0 | AT48: 0 | AU48: 0 | AV48: 0 | AW48: 0 | AX48: 0 | AY48: 102965 | AZ48: 247.5 | BA48: 953370 | BB48: 24684799 | BC48: ='2016legmax.xls'!F45 -> 5141.9 | BD48: ='2016legmax.xls'!I45 -> 5350.5 | BE48: ='2016legmax.xls'!K45 -> 5443.7 | BF48: 5443.7 | BG48: ='2016legmax.xls'!O45 -> 9 | BH48: 5452.7 | BI48: =IF(ISNA(VLOOKUP($CM48,'Audit Values'!$A$2:$AE$252,2,FALSE)),'Preliminary SO66'!T42,VLOOKUP($CM48,'Audit Values'!$A$2:$AE$252,20,FALSE)) -> 0 | BJ48: 0 | BK48: =IF(ISNA(VLOOKUP($CM48,'Audit Values'!$A$2:$AE$252,2,FALSE)),'Preliminary SO66'!U42,VLOOKUP($CM48,'Audit Values'!$A$2:$AE$252,21,FALSE)) -> 0 | BL48: 0 | BM48: 0 | BN48: 0 | BO48: 0 | BP48: ='2016legmax.xls'!AH45 -> 169.5 | BQ48: 652914 | BR48: 0 | BS48: ='2016legmax.xls'!CJ45 -> 0.001 | BT48: 43050 | BU48: ='2016legmax.xls'!CI45 -> 0 | BV48: 0 | BW48: 0 | BX48: 0 | BY48: 0 | BZ48: 0 | CA48: 0 | CB48: 1540199 | CC48: 1540199 | CD48: 1540199 | CE48: 0 | CF48: 0 | CG48: 0 | CH48: 0 | CI48: 0 | CM48: D0231
A49: 232 | B49: Johnson | C49: De Soto | D49: 29899687 | E49: 0 | F49: 0 | G49: 2319294 | H49: 0 | I49: 6752.1 | J49: 0 | K49: 0 | L49: ='2016legmax.xls'!BJ46 -> 0 | M49: 32218981 | N49: ='2016legmax.xls'!BB46 -> 6522605 | O49: 4408489 | P49: ='2016legmax.xls'!BC46 -> 3226660 | Q49: 4206600 | R49: ='2016legmax.xls'!BD46 -> 659150 | S49: 47035885 | T49: ='2016legmax.xls'!DD46 -> 0 | U49: 0 | V49: 0 | W49: 0 | X49: 0 | Y49: 0 | Z49: 12215 | AA49: ='2016legmax.xls'!AV46 -> 8 | AB49: ='2016legmax.xls'!AW46 -> A | AC49: ='2016legmax.xls'!AX46 ->  | AD49: 45740990 | AE49: 47048100 | AF49: =IF(Weightings!G46>0,Weightings!G46,'Preliminary SO66'!AB43) -> 48987943 | AG49: =MIN(AE49,AF49) -> 47048100 | AH49: 47048100 | AI49: 41855069 | AJ49: ='2016legmax.xls'!BM46 -> 0.33 | AK49: 13812173 | AL49: 13812173 | AM49: 13812173 | AO49: 32100794 | AP49: 0 | AQ49: 0 | AR49: 450 | AS49: 1733400 | AT49: 0 | AU49: 0 | AV49: 53.7 | AW49: 206852 | AX49: 1940252 | AY49: 120642 | AZ49: 36.4 | BA49: 140213 | BB49: 29899687 | BC49: ='2016legmax.xls'!F46 -> 6695.3 | BD49: ='2016legmax.xls'!I46 -> 6740.1 | BE49: ='2016legmax.xls'!K46 -> 6713.1 | BF49: 6740.1 | BG49: ='2016legmax.xls'!O46 -> 12 | BH49: 6752.1 | BI49: =IF(ISNA(VLOOKUP($CM49,'Audit Values'!$A$2:$AE$252,2,FALSE)),'Preliminary SO66'!T43,VLOOKUP($CM49,'Audit Values'!$A$2:$AE$252,20,FALSE)) -> 0 | BJ49: 0 | BK49: =IF(ISNA(VLOOKUP($CM49,'Audit Values'!$A$2:$AE$252,2,FALSE)),'Preliminary SO66'!U43,VLOOKUP($CM49,'Audit Values'!$A$2:$AE$252,21,FALSE)) -> 0 | BL49: 0 | BM49: 0 | BN49: 0 | BO49: 0 | BP49: ='2016legmax.xls'!AH46 -> 0 | BQ49: 0 | BR49: 1764255 | BS49: ='2016legmax.xls'!CJ46 -> 0.05 | BT49: 2287050 | BU49: ='2016legmax.xls'!CI46 -> 2332759 | BV49: 2287050 | BW49: 0 | BX49: 0 | BY49: 0 | BZ49: 0 | CA49: 206997 | CB49: 32244 | CC49: 32244 | CD49: 32244 | CE49: 0 | CF49: 0 | CG49: 0 | CH49: 0 | CI49: 0 | CM49: D0232
A50: 233 | B50: Johnson | C50: Olathe | D50: 126879122 | E50: 0 | F50: 584734 | G50: 17631279 | H50: 0 | I50: 27829.1 | J50: 0 | K50: 0 | L50: ='2016legmax.xls'!BJ47 -> 0 | M50: 145095135 | N50: ='2016legmax.xls'!BB47 -> 27920506 | O50: 26369816 | P50: ='2016legmax.xls'!BC47 -> 15910354 | Q50: 20831295 | R50: ='2016legmax.xls'!BD47 -> 2144759 | S50: 217440570 | T50: ='2016legmax.xls'!DD47 -> 0 | U50: 0 | V50: 0 | W50: 0 | X50: 0 | Y50: 0 | Z50: 96141 | AA50: ='2016legmax.xls'!AV47 -> 15 | AB50: ='2016legmax.xls'!AW47 -> A | AC50: ='2016legmax.xls'!AX47 ->  | AD50: 214334379 | AE50: 217536711 | AF50: =IF(Weightings!G47>0,Weightings!G47,'Preliminary SO66'!AB44) -> 225851799 | AG50: =MIN(AE50,AF50) -> 217536711 | AH50: 217536711 | AI50: 194305467 | AJ50: ='2016legmax.xls'!BM47 -> 0.33 | AK50: 64120804 | AL50: 64120804 | AM50: 64120804 | AO50: 143083741 | AP50: 0 | AQ50: 0 | AR50: 1500.4 | AS50: 5779541 | AT50: 0 | AU50: 0 | AV50: 2468.3 | AW50: 9507892 | AX50: 15287433 | AY50: 511185 | AZ50: 105.4 | BA50: 406001 | BB50: 126879122 | BC50: ='2016legmax.xls'!F47 -> 27383.1 | BD50: ='2016legmax.xls'!I47 -> 27571.4 | BE50: ='2016legmax.xls'!K47 -> 27799.1 | BF50: 27799.1 | BG50: ='2016legmax.xls'!O47 -> 30 | BH50: 27829.1 | BI50: =IF(ISNA(VLOOKUP($CM50,'Audit Values'!$A$2:$AE$252,2,FALSE)),'Preliminary SO66'!T44,VLOOKUP($CM50,'Audit Values'!$A$2:$AE$252,20,FALSE)) -> 0 | BJ50: 0 | BK50: =IF(ISNA(VLOOKUP($CM50,'Audit Values'!$A$2:$AE$252,2,FALSE)),'Preliminary SO66'!U44,VLOOKUP($CM50,'Audit Values'!$A$2:$AE$252,21,FALSE)) -> 0 | BL50: 0 | BM50: 0 | BN50: 0 | BO50: 0 | BP50: ='2016legmax.xls'!AH47 -> 151.8 | BQ50: 584734 | BR50: 5805141 | BS50: ='2016legmax.xls'!CJ47 -> 0.0379 | BT50: 8123273 | BU50: ='2016legmax.xls'!CI47 -> 8247214 | BV50: 8123273 | BW50: 0 | BX50: 0 | BY50: 0 | BZ50: 0 | CA50: 9508006 | CB50: 9508006 | CC50: 9508006 | CD50: 9508006 | CE50: 0 | CF50: 0 | CG50: 0 | CH50: 0 | CI50: 0 | CM50: D0233
A51: 234 | B51: Bourbon | C51: Fort Scott | D51: 9974449 | E51: 0 | F51: 0 | G51: 0 | H51: 0 | I51: 1822.8 | J51: 0 | K51: 0 | L51: ='2016legmax.xls'!BJ48 -> 0 | M51: 9974449 | N51: ='2016legmax.xls'!BB48 -> 2428259 | O51: 1151863 | P51: ='2016legmax.xls'!BC48 -> 1043291 | Q51: 1353842 | R51: ='2016legmax.xls'!BD48 -> 178957 | S51: 14776819 | T51: ='2016legmax.xls'!DD48 -> 0 | U51: 0 | V51: 0 | W51: 0 | X51: 0 | Y51: 0 | Z51: 0 | AA51: ='2016legmax.xls'!AV48 -> 4 | AB51: ='2016legmax.xls'!AW48 -> A | AC51: ='2016legmax.xls'!AX48 ->  | AD51: 15087370 | AE51: 14776819 | AF51: =IF(Weightings!G48>0,Weightings!G48,'Preliminary SO66'!AB45) -> 15359299 | AG51: 14776819 | AH51: 14776819 | AI51: 12823929 | AJ51: ='2016legmax.xls'!BM48 -> 0.3 | AK51: 3847179 | AL51: 3607179 | AM51: 3607179 | AO51: 10014507 | AP51: 0 | AQ51: 0 | AR51: 0 | AS51: 0 | AT51: 0 | AU51: 0 | AV51: 0 | AW51: 0 | AX51: 0 | AY51: 40058 | AZ51: 0 | BA51: 0 | BB51: 9974449 | BC51: ='2016legmax.xls'!F48 -> 1816.2 | BD51: ='2016legmax.xls'!I48 -> 1801.1 | BE51: ='2016legmax.xls'!K48 -> 1797.1 | BF51: 1804.8 | BG51: ='2016legmax.xls'!O48 -> 18 | BH51: 1822.8 | BI51: =IF(ISNA(VLOOKUP($CM51,'Audit Values'!$A$2:$AE$252,2,FALSE)),'Preliminary SO66'!T45,VLOOKUP($CM51,'Audit Values'!$A$2:$AE$252,20,FALSE)) -> 0 | BJ51: 0 | BK51: =IF(ISNA(VLOOKUP($CM51,'Audit Values'!$A$2:$AE$252,2,FALSE)),'Preliminary SO66'!U45,VLOOKUP($CM51,'Audit Values'!$A$2:$AE$252,21,FALSE)) -> 0 | BL51: 0 | BM51: 0 | BN51: 0 | BO51: 0 | BP51: ='2016legmax.xls'!AH48 -> 0 | BQ51: 0 | BR51: 0 | BS51: ='2016legmax.xls'!CJ48 -> 0 | BT51: 0 | BU51: ='2016legmax.xls'!CI48 -> 0 | BV51: 0 | BW51: 0 | BX51: 0 | BY51: 0 | BZ51: 0 | CA51: 0 | CB51: 0 | CC51: 0 | CD51: 0 | CE51: 0 | CF51: 0 | CG51: 0 | CH51: 0 | CI51: 0 | CM51: D0234
A52: 235 | B52: Bourbon | C52: Uniontown | D52: 3219026 | E52: 0 | F52: 0 | G52: 0 | H52: 0 | I52: 436.5 | J52: 0 | K52: 0 | L52: ='2016legmax.xls'!BJ49 -> 0 | M52: 3219026 | N52: ='2016legmax.xls'!BB49 -> 871172 | O52: 385265 | P52: ='2016legmax.xls'!BC49 -> 255271 | Q52: 330909 | R52: ='2016legmax.xls'!BD49 -> 0 | S52: 4730734 | T52: ='2016legmax.xls'!DD49 -> 0 | U52: 525 | V52: 0 | W52: 0 | X52: 0 | Y52: 0 | Z52: 0 | AA52: ='2016legmax.xls'!AV49 -> 16 | AB52: ='2016legmax.xls'!AW49 -> A | AC52: ='2016legmax.xls'!AX49 ->  | AD52: 4806897 | AE52: 4731259 | AF52: =IF(Weightings!G49>0,Weightings!G49,'Preliminary SO66'!AB46) -> 4923025 | AG52: 4731259 | AH52: 4731259 | AI52: 4155633 | AJ52: ='2016legmax.xls'!BM49 -> 0.3 | AK52: 1246690 | AL52: 1246690 | AM52: 1246690 | AO52: 3231954 | AP52: 0 | AQ52: 0 | AR52: 0 | AS52: 0 | AT52: 0 | AU52: 0 | AV52: 0 | AW52: 0 | AX52: 0 | AY52: 12928 | AZ52: 0 | BA52: 0 | BB52: 3219026 | BC52: ='2016legmax.xls'!F49 -> 429 | BD52: ='2016legmax.xls'!I49 -> 430 | BE52: ='2016legmax.xls'!K49 -> 420 | BF52: 430 | BG52: ='2016legmax.xls'!O49 -> 6.5 | BH52: 436.5 | BI52: =IF(ISNA(VLOOKUP($CM52,'Audit Values'!$A$2:$AE$252,2,FALSE)),'Preliminary SO66'!T46,VLOOKUP($CM52,'Audit Values'!$A$2:$AE$252,20,FALSE)) -> 0 | BJ52: 0 | BK52: =IF(ISNA(VLOOKUP($CM52,'Audit Values'!$A$2:$AE$252,2,FALSE)),'Preliminary SO66'!U46,VLOOKUP($CM52,'Audit Values'!$A$2:$AE$252,21,FALSE)) -> 0 | BL52: 0 | BM52: 0 | BN52: 0 | BO52: 0 | BP52: ='2016legmax.xls'!AH49 -> 0 | BQ52: 0 | BR52: 0 | BS52: ='2016legmax.xls'!CJ49 -> 0 | BT52: 0 | BU52: ='2016legmax.xls'!CI49 -> 0 | BV52: 0 | BW52: 0 | BX52: 0 | BY52: 0 | BZ52: 0 | CA52: 0 | CB52: 0 | CC52: 0 | CD52: 0 | CE52: 0 | CF52: 0 | CG52: 0 | CH52: 0 | CI52: 0 | CM52: D0235
A53: 237 | B53: Smith | C53: Smith Center | D53: 2635441 | E53: 0 | F53: 0 | G53: 0 | H53: 0 | I53: 380.8 | J53: 0 | K53: 0 | L53: ='2016legmax.xls'!BJ50 -> 0 | M53: 2635441 | N53: ='2016legmax.xls'!BB50 -> 392233 | O53: 488311 | P53: ='2016legmax.xls'!BC50 -> 205157 | Q53: 266765 | R53: ='2016legmax.xls'!BD50 -> 13723 | S53: 3734865 | T53: ='2016legmax.xls'!DD50 -> 0 | U53: 0 | V53: 0 | W53: 0 | X53: 0 | Y53: 0 | Z53: 2550 | AA53: ='2016legmax.xls'!AV50 -> 2 | AB53: ='2016legmax.xls'!AW50 -> A | AC53: ='2016legmax.xls'!AX50 ->  | AD53: 3799023 | AE53: 3737415 | AF53: =IF(Weightings!G50>0,Weightings!G50,'Preliminary SO66'!AB47) -> 3886344 | AG53: 3737415 | AH53: 3737415 | AI53: 3670216 | AJ53: ='2016legmax.xls'!BM50 -> 0.33 | AK53: 1211171 | AL53: 1211171 | AM53: 1211171 | AO53: 2686086 | AP53: 10.4 | AQ53: 40061 | AR53: 0 | AS53: 0 | AT53: 0 | AU53: 0 | AV53: 0 | AW53: 0 | AX53: 0 | AY53: 10584 | AZ53: 0 | BA53: 0 | BB53: 2635441 | BC53: ='2016legmax.xls'!F50 -> 376.8 | BD53: ='2016legmax.xls'!I50 -> 380.8 | BE53: ='2016legmax.xls'!K50 -> 369.5 | BF53: 380.8 | BG53: ='2016legmax.xls'!O50 -> 0 | BH53: 380.8 | BI53: =IF(ISNA(VLOOKUP($CM53,'Audit Values'!$A$2:$AE$252,2,FALSE)),'Preliminary SO66'!T47,VLOOKUP($CM53,'Audit Values'!$A$2:$AE$252,20,FALSE)) -> 0 | BJ53: 0 | BK53: =IF(ISNA(VLOOKUP($CM53,'Audit Values'!$A$2:$AE$252,2,FALSE)),'Preliminary SO66'!U47,VLOOKUP($CM53,'Audit Values'!$A$2:$AE$252,21,FALSE)) -> 0 | BL53: 0 | BM53: 0 | BN53: 0 | BO53: 0 | BP53: ='2016legmax.xls'!AH50 -> 0 | BQ53: 0 | BR53: 0 | BS53: ='2016legmax.xls'!CJ50 -> 0 | BT53: 0 | BU53: ='2016legmax.xls'!CI50 -> 0 | BV53: 0 | BW53: 0 | BX53: 0 | BY53: 0 | BZ53: 0 | CA53: 0 | CB53: 0 | CC53: 0 | CD53: 0 | CE53: 0 | CF53: 0 | CG53: 0 | CH53: 0 | CI53: 0 | CM53: D0237
A54: 239 | B54: Ottawa | C54: North Ottawa County | D54: 3853818 | E54: 0 | F54: 0 | G54: 0 | H54: 0 | I54: 607.3 | J54: 0 | K54: 0 | L54: ='2016legmax.xls'!BJ51 -> 0 | M54: 3853818 | N54: ='2016legmax.xls'!BB51 -> 826784 | O54: 601029 | P54: ='2016legmax.xls'!BC51 -> 315255 | Q54: 410757 | R54: ='2016legmax.xls'!BD51 -> 29532 | S54: 5626418 | T54: ='2016legmax.xls'!DD51 -> 0 | U54: 0 | V54: 0 | W54: 0 | X54: 0 | Y54: 0 | Z54: 2500 | AA54: ='2016legmax.xls'!AV51 -> 10 | AB54: ='2016legmax.xls'!AW51 -> A | AC54: ='2016legmax.xls'!AX51 ->  | AD54: 5724420 | AE54: 5628918 | AF54: =IF(Weightings!G51>0,Weightings!G51,'Preliminary SO66'!AB48) -> 5908662 | AG54: 5628918 | AH54: 5628918 | AI54: 5146980 | AJ54: ='2016legmax.xls'!BM51 -> 0.33 | AK54: 1698503 | AL54: 1698503 | AM54: 1698503 | AO54: 3877384 | AP54: 2.1 | AQ54: 8089 | AR54: 0 | AS54: 0 | AT54: 0 | AU54: 0 | AV54: 0 | AW54: 0 | AX54: 0 | AY54: 15477 | AZ54: 0 | BA54: 0 | BB54: 3853818 | BC54: ='2016legmax.xls'!F51 -> 618.3 | BD54: ='2016legmax.xls'!I51 -> 603.8 | BE54: ='2016legmax.xls'!K51 -> 599.9 | BF54: 607.3 | BG54: ='2016legmax.xls'!O51 -> 0 | BH54: 607.3 | BI54: =IF(ISNA(VLOOKUP($CM54,'Audit Values'!$A$2:$AE$252,2,FALSE)),'Preliminary SO66'!T48,VLOOKUP($CM54,'Audit Values'!$A$2:$AE$252,20,FALSE)) -> 0 | BJ54: 0 | BK54: =IF(ISNA(VLOOKUP($CM54,'Audit Values'!$A$2:$AE$252,2,FALSE)),'Preliminary SO66'!U48,VLOOKUP($CM54,'Audit Values'!$A$2:$AE$252,21,FALSE)) -> 0 | BL54: 0 | BM54: 0 | BN54: 0 | BO54: 0 | BP54: ='2016legmax.xls'!AH51 -> 0 | BQ54: 0 | BR54: 0 | BS54: ='2016legmax.xls'!CJ51 -> 0 | BT54: 0 | BU54: ='2016legmax.xls'!CI51 -> 0 | BV54: 0 | BW54: 0 | BX54: 0 | BY54: 0 | BZ54: 0 | CA54: 0 | CB54: 0 | CC54: 0 | CD54: 0 | CE54: 0 | CF54: 0 | CG54: 0 | CH54: 0 | CI54: 0 | CM54: D0239
A55: 240 | B55: Ottawa | C55: Twin Valley | D55: 3718935 | E55: 0 | F55: 0 | G55: 0 | H55: 0 | I55: 588 | J55: 0 | K55: 0 | L55: ='2016legmax.xls'!BJ52 -> 0 | M55: 3718935 | N55: ='2016legmax.xls'!BB52 -> 903097 | O55: 521230 | P55: ='2016legmax.xls'!BC52 -> 275742 | Q55: 358060 | R55: ='2016legmax.xls'!BD52 -> 50329 | S55: 5469333 | T55: ='2016legmax.xls'!DD52 -> 0 | U55: 0 | V55: 0 | W55: 0 | X55: 0 | Y55: 0 | Z55: 0 | AA55: ='2016legmax.xls'!AV52 -> 10 | AB55: ='2016legmax.xls'!AW52 -> A | AC55: ='2016legmax.xls'!AX52 ->  | AD55: 5551651 | AE55: 5469333 | AF55: =IF(Weightings!G52>0,Weightings!G52,'Preliminary SO66'!AB49) -> 5666490 | AG55: 5469333 | AH55: 5469333 | AI55: 4946241 | AJ55: ='2016legmax.xls'!BM52 -> 0.33 | AK55: 1632260 | AL55: 1632260 | AM55: 1632260 | AO55: 3796272 | AP55: 16.2 | AQ55: 62402 | AR55: 0 | AS55: 0 | AT55: 0 | AU55: 0 | AV55: 0 | AW55: 0 | AX55: 0 | AY55: 14935 | AZ55: 0 | BA55: 0 | BB55: 3718935 | BC55: ='2016legmax.xls'!F52 -> 578.5 | BD55: ='2016legmax.xls'!I52 -> 577 | BE55: ='2016legmax.xls'!K52 -> 562.7 | BF55: 577 | BG55: ='2016legmax.xls'!O52 -> 11 | BH55: 588 | BI55: =IF(ISNA(VLOOKUP($CM55,'Audit Values'!$A$2:$AE$252,2,FALSE)),'Preliminary SO66'!T49,VLOOKUP($CM55,'Audit Values'!$A$2:$AE$252,20,FALSE)) -> 0 | BJ55: 0 | BK55: =IF(ISNA(VLOOKUP($CM55,'Audit Values'!$A$2:$AE$252,2,FALSE)),'Preliminary SO66'!U49,VLOOKUP($CM55,'Audit Values'!$A$2:$AE$252,21,FALSE)) -> 0 | BL55: 0 | BM55: 0 | BN55: 0 | BO55: 0 | BP55: ='2016legmax.xls'!AH52 -> 0 | BQ55: 0 | BR55: 0 | BS55: ='2016legmax.xls'!CJ52 -> 0 | BT55: 0 | BU55: ='2016legmax.xls'!CI52 -> 0 | BV55: 0 | BW55: 0 | BX55: 0 | BY55: 0 | BZ55: 0 | CA55: 0 | CB55: 0 | CC55: 0 | CD55: 0 | CE55: 0 | CF55: 0 | CG55: 0 | CH55: 0 | CI55: 0 | CM55: D0240
A56: 241 | B56: Wallace | C56: Wallace County Schools | D56: 1470254 | E56: 0 | F56: 0 | G56: 0 | H56: 0 | I56: 185.5 | J56: 0 | K56: 0 | L56: ='2016legmax.xls'!BJ53 -> 0 | M56: 1470254 | N56: ='2016legmax.xls'!BB53 -> 0 | O56: 154058 | P56: ='2016legmax.xls'!BC53 -> 133263 | Q56: 170534 | R56: ='2016legmax.xls'!BD53 -> 0 | S56: 1757575 | T56: ='2016legmax.xls'!DD53 -> 0 | U56: 2548 | V56: 0 | W56: 0 | X56: 0 | Y56: 0 | Z56: 0 | AA56: ='2016legmax.xls'!AV53 -> 10 | AB56: ='2016legmax.xls'!AW53 -> A | AC56: ='2016legmax.xls'!AX53 ->  | AD56: 1797394 | AE56: 1760123 | AF56: =IF(Weightings!G53>0,Weightings!G53,'Preliminary SO66'!AB50) -> 1837012 | AG56: 1760123 | AH56: 1760123 | AI56: 1887220 | AJ56: ='2016legmax.xls'!BM53 -> 0.3 | AK56: 566166 | AL56: 566166 | AM56: 566166 | AO56: 1476159 | AP56: 0 | AQ56: 0 | AR56: 0 | AS56: 0 | AT56: 0 | AU56: 0 | AV56: 0 | AW56: 0 | AX56: 0 | AY56: 5905 | AZ56: 0 | BA56: 0 | BB56: 1470254 | BC56: ='2016legmax.xls'!F53 -> 190 | BD56: ='2016legmax.xls'!I53 -> 185.5 | BE56: ='2016legmax.xls'!K53 -> 172.5 | BF56: 185.5 | BG56: ='2016legmax.xls'!O53 -> 0 | BH56: 185.5 | BI56: =IF(ISNA(VLOOKUP($CM56,'Audit Values'!$A$2:$AE$252,2,FALSE)),'Preliminary SO66'!T50,VLOOKUP($CM56,'Audit Values'!$A$2:$AE$252,20,FALSE)) -> 0 | BJ56: 0 | BK56: =IF(ISNA(VLOOKUP($CM56,'Audit Values'!$A$2:$AE$252,2,FALSE)),'Preliminary SO66'!U50,VLOOKUP($CM56,'Audit Values'!$A$2:$AE$252,21,FALSE)) -> 0 | BL56: 0 | BM56: 0 | BN56: 0 | BO56: 0 | BP56: ='2016legmax.xls'!AH53 -> 0 | BQ56: 0 | BR56: 0 | BS56: ='2016legmax.xls'!CJ53 -> 0 | BT56: 0 | BU56: ='2016legmax.xls'!CI53 -> 0 | BV56: 0 | BW56: 0 | BX56: 0 | BY56: 0 | BZ56: 0 | CA56: 0 | CB56: 0 | CC56: 0 | CD56: 0 | CE56: 0 | CF56: 0 | CG56: 0 | CH56: 0 | CI56: 0 | CM56: D0241
A57: 242 | B57: Wallace | C57: Weskan | D57: 823991 | E57: 0 | F57: 0 | G57: 0 | H57: 0 | I57: 95.7 | J57: 0 | K57: 0 | L57: ='2016legmax.xls'!BJ54 -> 0 | M57: 823991 | N57: ='2016legmax.xls'!BB54 -> 16955 | O57: 125616 | P57: ='2016legmax.xls'!BC54 -> 60143 | Q57: 76073 | R57: ='2016legmax.xls'!BD54 -> 0 | S57: 1026705 | T57: ='2016legmax.xls'!DD54 -> 0 | U57: 4060 | V57: 0 | W57: 0 | X57: 0 | Y57: 0 | Z57: 0 | AA57: ='2016legmax.xls'!AV54 -> 10 | AB57: ='2016legmax.xls'!AW54 -> A | AC57: ='2016legmax.xls'!AX54 ->  | AD57: 1046695 | AE57: 1030765 | AF57: =IF(Weightings!G54>0,Weightings!G54,'Preliminary SO66'!AB51) -> 1043663 | AG57: 1030765 | AH57: 1030765 | AI57: 1084168 | AJ57: ='2016legmax.xls'!BM54 -> 0.33 | AK57: 357775 | AL57: 357775 | AM57: 357775 | AO57: 827300 | AP57: 0 | AQ57: 0 | AR57: 0 | AS57: 0 | AT57: 0 | AU57: 0 | AV57: 0 | AW57: 0 | AX57: 0 | AY57: 3309 | AZ57: 0 | BA57: 0 | BB57: 823991 | BC57: ='2016legmax.xls'!F54 -> 90.8 | BD57: ='2016legmax.xls'!I54 -> 95.7 | BE57: ='2016legmax.xls'!K54 -> 92.5 | BF57: 95.7 | BG57: ='2016legmax.xls'!O54 -> 0 | BH57: 95.7 | BI57: =IF(ISNA(VLOOKUP($CM57,'Audit Values'!$A$2:$AE$252,2,FALSE)),'Preliminary SO66'!T51,VLOOKUP($CM57,'Audit Values'!$A$2:$AE$252,20,FALSE)) -> 0 | BJ57: 0 | BK57: =IF(ISNA(VLOOKUP($CM57,'Audit Values'!$A$2:$AE$252,2,FALSE)),'Preliminary SO66'!U51,VLOOKUP($CM57,'Audit Values'!$A$2:$AE$252,21,FALSE)) -> 0 | BL57: 0 | BM57: 0 | BN57: 0 | BO57: 0 | BP57: ='2016legmax.xls'!AH54 -> 0 | BQ57: 0 | BR57: 0 | BS57: ='2016legmax.xls'!CJ54 -> 0 | BT57: 0 | BU57: ='2016legmax.xls'!CI54 -> 0 | BV57: 0 | BW57: 0 | BX57: 0 | BY57: 0 | BZ57: 0 | CA57: 0 | CB57: 0 | CC57: 0 | CD57: 0 | CE57: 0 | CF57: 0 | CG57: 0 | CH57: 0 | CI57: 0 | CM57: D0242
A58: 243 | B58: Coffey | C58: Lebo-Waverly | D58: 3092710 | E58: 0 | F58: 0 | G58: 0 | H58: 0 | I58: 452.7 | J58: 0 | K58: 0 | L58: ='2016legmax.xls'!BJ55 -> 0 | M58: 3092710 | N58: ='2016legmax.xls'!BB55 -> 635800 | O58: 603302 | P58: ='2016legmax.xls'!BC55 -> 232251 | Q58: 295631 | R58: ='2016legmax.xls'!BD55 -> 24406 | S58: 4588469 | T58: ='2016legmax.xls'!DD55 -> 0 | U58: 84 | V58: 0 | W58: 0 | X58: 0 | Y58: 0 | Z58: 0 | AA58: ='2016legmax.xls'!AV55 -> 9 | AB58: ='2016legmax.xls'!AW55 -> A | AC58: ='2016legmax.xls'!AX55 ->  | AD58: 4651933 | AE58: 4588553 | AF58: =IF(Weightings!G55>0,Weightings!G55,'Preliminary SO66'!AB52) -> 4632239 | AG58: 4588553 | AH58: 4588553 | AI58: 4269129 | AJ58: ='2016legmax.xls'!BM55 -> 0.3 | AK58: 1280739 | AL58: 1280739 | AM58: 1280739 | AO58: 3105131 | AP58: 0 | AQ58: 0 | AR58: 0 | AS58: 0 | AT58: 0 | AU58: 0 | AV58: 0 | AW58: 0 | AX58: 0 | AY58: 12421 | AZ58: 0 | BA58: 0 | BB58: 3092710 | BC58: ='2016legmax.xls'!F55 -> 491 | BD58: ='2016legmax.xls'!I55 -> 452.5 | BE58: ='2016legmax.xls'!K55 -> 414.7 | BF58: 452.7 | BG58: ='2016legmax.xls'!O55 -> 0 | BH58: 452.7 | BI58: =IF(ISNA(VLOOKUP($CM58,'Audit Values'!$A$2:$AE$252,2,FALSE)),'Preliminary SO66'!T52,VLOOKUP($CM58,'Audit Values'!$A$2:$AE$252,20,FALSE)) -> 0 | BJ58: 0 | BK58: =IF(ISNA(VLOOKUP($CM58,'Audit Values'!$A$2:$AE$252,2,FALSE)),'Preliminary SO66'!U52,VLOOKUP($CM58,'Audit Values'!$A$2:$AE$252,21,FALSE)) -> 0 | BL58: 0 | BM58: 0 | BN58: 0 | BO58: 0 | BP58: ='2016legmax.xls'!AH55 -> 0 | BQ58: 0 | BR58: 0 | BS58: ='2016legmax.xls'!CJ55 -> 0 | BT58: 0 | BU58: ='2016legmax.xls'!CI55 -> 0 | BV58: 0 | BW58: 0 | BX58: 0 | BY58: 0 | BZ58: 0 | CA58: 0 | CB58: 0 | CC58: 0 | CD58: 0 | CE58: 0 | CF58: 0 | CG58: 0 | CH58: 0 | CI58: 0 | CM58: D0243
A59: 244 | B59: Coffey | C59: Burlington | D59: 4796683 | E59: 0 | F59: 0 | G59: 0 | H59: 0 | I59: 821 | J59: 0 | K59: 0 | L59: ='2016legmax.xls'!BJ56 -> 0 | M59: 4796683 | N59: ='2016legmax.xls'!BB56 -> 0 | O59: 1152815 | P59: ='2016legmax.xls'!BC56 -> 606927 | Q59: 809760 | R59: ='2016legmax.xls'!BD56 -> 0 | S59: 6556425 | T59: ='2016legmax.xls'!DD56 -> 0 | U59: 75 | V59: 20042 | W59: 0 | X59: 0 | Y59: 395 | Z59: 7582 | AA59: ='2016legmax.xls'!AV56 -> 9 | AB59: ='2016legmax.xls'!AW56 -> A | AC59: ='2016legmax.xls'!AX56 ->  | AD59: 6787352 | AE59: 6584519 | AF59: =IF(Weightings!G56>0,Weightings!G56,'Preliminary SO66'!AB53) -> 8001786 | AG59: 6584519 | AH59: 6584519 | AI59: 6937545 | AJ59: ='2016legmax.xls'!BM56 -> 0.3 | AK59: 2081264 | AL59: 2081264 | AM59: 2081264 | AO59: 4815947 | AP59: 0 | AQ59: 0 | AR59: 0 | AS59: 0 | AT59: 0 | AU59: 0 | AV59: 0 | AW59: 0 | AX59: 0 | AY59: 19264 | AZ59: 0 | BA59: 0 | BB59: 4796683 | BC59: ='2016legmax.xls'!F56 -> 810.7 | BD59: ='2016legmax.xls'!I56 -> 815 | BE59: ='2016legmax.xls'!K56 -> 815.5 | BF59: 815.5 | BG59: ='2016legmax.xls'!O56 -> 5.5 | BH59: 821 | BI59: =IF(ISNA(VLOOKUP($CM59,'Audit Values'!$A$2:$AE$252,2,FALSE)),'Preliminary SO66'!T53,VLOOKUP($CM59,'Audit Values'!$A$2:$AE$252,20,FALSE)) -> 0 | BJ59: 0 | BK59: =IF(ISNA(VLOOKUP($CM59,'Audit Values'!$A$2:$AE$252,2,FALSE)),'Preliminary SO66'!U53,VLOOKUP($CM59,'Audit Values'!$A$2:$AE$252,21,FALSE)) -> 0 | BL59: 0 | BM59: 0 | BN59: 0 | BO59: 0 | BP59: ='2016legmax.xls'!AH56 -> 0 | BQ59: 0 | BR59: 0 | BS59: ='2016legmax.xls'!CJ56 -> 0 | BT59: 0 | BU59: ='2016legmax.xls'!CI56 -> 0 | BV59: 0 | BW59: 0 | BX59: 0 | BY59: 0 | BZ59: 0 | CA59: 0 | CB59: 0 | CC59: 0 | CD59: 0 | CE59: 20300 | CF59: 20036 | CG59: 0 | CH59: 0 | CI59: 0 | CM59: D0244
A60: 245 | B60: Coffey | C60: LeRoy-Gridley | D60: 1721685 | E60: 0 | F60: 0 | G60: 0 | H60: 0 | I60: 214.1 | J60: 0 | K60: 0 | L60: ='2016legmax.xls'!BJ57 -> 0 | M60: 1721685 | N60: ='2016legmax.xls'!BB57 -> 0 | O60: 289474 | P60: ='2016legmax.xls'!BC57 -> 120215 | Q60: 156180 | R60: ='2016legmax.xls'!BD57 -> 0 | S60: 2131374 | T60: ='2016legmax.xls'!DD57 -> 0 | U60: 744 | V60: 0 | W60: 0 | X60: 0 | Y60: 0 | Z60: 14000 | AA60: ='2016legmax.xls'!AV57 -> 9 | AB60: ='2016legmax.xls'!AW57 -> A | AC60: ='2016legmax.xls'!AX57 ->  | AD60: 2182083 | AE60: 2146118 | AF60: =IF(Weightings!G57>0,Weightings!G57,'Preliminary SO66'!AB54) -> 2140352 | AG60: 2140352 | AH60: 2140352 | AI60: 2317010 | AJ60: ='2016legmax.xls'!BM57 -> 0.3 | AK60: 695103 | AL60: 695103 | AM60: 695103 | AO60: 1728599 | AP60: 0 | AQ60: 0 | AR60: 0 | AS60: 0 | AT60: 0 | AU60: 0 | AV60: 0 | AW60: 0 | AX60: 0 | AY60: 6914 | AZ60: 0 | BA60: 0 | BB60: 1721685 | BC60: ='2016legmax.xls'!F57 -> 198 | BD60: ='2016legmax.xls'!I57 -> 214.1 | BE60: ='2016legmax.xls'!K57 -> 206.5 | BF60: 214.1 | BG60: ='2016legmax.xls'!O57 -> 0 | BH60: 214.1 | BI60: =IF(ISNA(VLOOKUP($CM60,'Audit Values'!$A$2:$AE$252,2,FALSE)),'Preliminary SO66'!T54,VLOOKUP($CM60,'Audit Values'!$A$2:$AE$252,20,FALSE)) -> 0 | BJ60: 0 | BK60: =IF(ISNA(VLOOKUP($CM60,'Audit Values'!$A$2:$AE$252,2,FALSE)),'Preliminary SO66'!U54,VLOOKUP($CM60,'Audit Values'!$A$2:$AE$252,21,FALSE)) -> 0 | BL60: 0 | BM60: 0 | BN60: 0 | BO60: 0 | BP60: ='2016legmax.xls'!AH57 -> 0 | BQ60: 0 | BR60: 0 | BS60: ='2016legmax.xls'!CJ57 -> 0 | BT60: 0 | BU60: ='2016legmax.xls'!CI57 -> 0 | BV60: 0 | BW60: 0 | BX60: 0 | BY60: 0 | BZ60: 0 | CA60: 0 | CB60: 0 | CC60: 0 | CD60: 0 | CE60: 0 | CF60: 0 | CG60: 0 | CH60: 0 | CI60: 0 | CM60: D0245
A61: 246 | B61: Crawford | C61: Northeast | D61: 3494458 | E61: 47799 | F61: 0 | G61: 0 | H61: 0 | I61: 485 | J61: 0 | K61: 0 | L61: ='2016legmax.xls'!BJ58 -> 0 | M61: 3542257 | N61: ='2016legmax.xls'!BB58 -> 938534 | O61: 499575 | P61: ='2016legmax.xls'!BC58 -> 283615 | Q61: 372799 | R61: ='2016legmax.xls'!BD58 -> 0 | S61: 5263981 | T61: ='2016legmax.xls'!DD58 -> 0 | U61: 0 | V61: 0 | W61: 0 | X61: 0 | Y61: 0 | Z61: 8775 | AA61: ='2016legmax.xls'!AV58 -> 2 | AB61: ='2016legmax.xls'!AW58 -> A | AC61: ='2016legmax.xls'!AX58 ->  | AD61: 5361940 | AE61: 5272756 | AF61: =IF(Weightings!G58>0,Weightings!G58,'Preliminary SO66'!AB55) -> 5499639 | AG61: 5272756 | AH61: 5272756 | AI61: 4611386 | AJ61: ='2016legmax.xls'!BM58 -> 0.3 | AK61: 1383416 | AL61: 1383416 | AM61: 1383416 | AO61: 3508492 | AP61: 0 | AQ61: 0 | AR61: 0 | AS61: 0 | AT61: 0 | AU61: 0 | AV61: 0 | AW61: 0 | AX61: 0 | AY61: 14034 | AZ61: 0 | BA61: 0 | BB61: 3494458 | BC61: ='2016legmax.xls'!F58 -> 477.5 | BD61: ='2016legmax.xls'!I58 -> 480.5 | BE61: ='2016legmax.xls'!K58 -> 451.1 | BF61: 480.5 | BG61: ='2016legmax.xls'!O58 -> 4.5 | BH61: 485 | BI61: =IF(ISNA(VLOOKUP($CM61,'Audit Values'!$A$2:$AE$252,2,FALSE)),'Preliminary SO66'!T55,VLOOKUP($CM61,'Audit Values'!$A$2:$AE$252,20,FALSE)) -> 9 | BJ61: 45000 | BK61: =IF(ISNA(VLOOKUP($CM61,'Audit Values'!$A$2:$AE$252,2,FALSE)),'Preliminary SO66'!U55,VLOOKUP($CM61,'Audit Values'!$A$2:$AE$252,21,FALSE)) -> 0 | BL61: 0 | BM61: 3 | BN61: 2799 | BO61: 47799 | BP61: ='2016legmax.xls'!AH58 -> 0 | BQ61: 0 | BR61: 0 | BS61: ='2016legmax.xls'!CJ58 -> 0 | BT61: 0 | BU61: ='2016legmax.xls'!CI58 -> 0 | BV61: 0 | BW61: 0 | BX61: 0 | BY61: 0 | BZ61: 0 | CA61: 0 | CB61: 0 | CC61: 0 | CD61: 0 | CE61: 0 | CF61: 0 | CG61: 0 | CH61: 0 | CI61: 0 | CM61: D0246
A62: 247 | B62: Crawford | C62: Cherokee | D62: 4237194 | E62: 0 | F62: 0 | G62: 0 | H62: 0 | I62: 565.4 | J62: 0 | K62: 212 | L62: ='2016legmax.xls'!BJ59 -> 0 | M62: 4236982 | N62: ='2016legmax.xls'!BB59 -> 967484 | O62: 608085 | P62: ='2016legmax.xls'!BC59 -> 371878 | Q62: 479405 | R62: ='2016legmax.xls'!BD59 -> 74862 | S62: 6259291 | T62: ='2016legmax.xls'!DD59 -> 0 | U62: 39 | V62: 0 | W62: 0 | X62: 0 | Y62: 0 | Z62: 0 | AA62: ='2016legmax.xls'!AV59 -> 10 | AB62: ='2016legmax.xls'!AW59 -> A | AC62: ='2016legmax.xls'!AX59 ->  | AD62: 6367069 | AE62: 6259542 | AF62: =IF(Weightings!G59>0,Weightings!G59,'Preliminary SO66'!AB56) -> 6573376 | AG62: 6259542 | AH62: 6259542 | AI62: 5615396 | AJ62: ='2016legmax.xls'!BM59 -> 0.3 | AK62: 1684619 | AL62: 1684619 | AM62: 1684619 | AO62: 4254211 | AP62: 0 | AQ62: 0 | AR62: 0 | AS62: 0 | AT62: 0 | AU62: 0 | AV62: 0 | AW62: 0 | AX62: 0 | AY62: 17017 | AZ62: 0 | BA62: 0 | BB62: 4237194 | BC62: ='2016legmax.xls'!F59 -> 615.5 | BD62: ='2016legmax.xls'!I59 -> 559.4 | BE62: ='2016legmax.xls'!K59 -> 503.1 | BF62: 559.4 | BG62: ='2016legmax.xls'!O59 -> 6 | BH62: 565.4 | BI62: =IF(ISNA(VLOOKUP($CM62,'Audit Values'!$A$2:$AE$252,2,FALSE)),'Preliminary SO66'!T56,VLOOKUP($CM62,'Audit Values'!$A$2:$AE$252,20,FALSE)) -> 0 | BJ62: 0 | BK62: =IF(ISNA(VLOOKUP($CM62,'Audit Values'!$A$2:$AE$252,2,FALSE)),'Preliminary SO66'!U56,VLOOKUP($CM62,'Audit Values'!$A$2:$AE$252,21,FALSE)) -> 0 | BL62: 0 | BM62: 0 | BN62: 0 | BO62: 0 | BP62: ='2016legmax.xls'!AH59 -> 0 | BQ62: 0 | BR62: 0 | BS62: ='2016legmax.xls'!CJ59 -> 0 | BT62: 0 | BU62: ='2016legmax.xls'!CI59 -> 0 | BV62: 0 | BW62: 0 | BX62: 0 | BY62: 0 | BZ62: 0 | CA62: 0 | CB62: 0 | CC62: 0 | CD62: 0 | CE62: 0 | CF62: 0 | CG62: 0 | CH62: 0 | CI62: 0 | CM62: D0247
A63: 248 | B63: Crawford | C63: Girard | D63: 5896008 | E63: 28495 | F63: 0 | G63: 0 | H63: 0 | I63: 984.8 | J63: 0 | K63: 0 | L63: ='2016legmax.xls'!BJ60 -> 0 | M63: 5924503 | N63: ='2016legmax.xls'!BB60 -> 1580533 | O63: 924909 | P63: ='2016legmax.xls'!BC60 -> 457021 | Q63: 597833 | R63: ='2016legmax.xls'!BD60 -> 58259 | S63: 8945225 | T63: ='2016legmax.xls'!DD60 -> 0 | U63: 0 | V63: 0 | W63: 0 | X63: 0 | Y63: 0 | Z63: 16128 | AA63: ='2016legmax.xls'!AV60 -> 7 | AB63: ='2016legmax.xls'!AW60 -> A | AC63: ='2016legmax.xls'!AX60 ->  | AD63: 9102165 | AE63: 8961353 | AF63: =IF(Weightings!G60>0,Weightings!G60,'Preliminary SO66'!AB57) -> 9279350 | AG63: 8961353 | AH63: 8961353 | AI63: 7783582 | AJ63: ='2016legmax.xls'!BM60 -> 0.3 | AK63: 2335075 | AL63: 2335075 | AM63: 2335075 | AO63: 5919687 | AP63: 0 | AQ63: 0 | AR63: 0 | AS63: 0 | AT63: 0 | AU63: 0 | AV63: 0 | AW63: 0 | AX63: 0 | AY63: 23679 | AZ63: 0 | BA63: 0 | BB63: 5896008 | BC63: ='2016legmax.xls'!F60 -> 973.5 | BD63: ='2016legmax.xls'!I60 -> 973.5 | BE63: ='2016legmax.xls'!K60 -> 977.8 | BF63: 977.8 | BG63: ='2016legmax.xls'!O60 -> 7 | BH63: 984.8 | BI63: =IF(ISNA(VLOOKUP($CM63,'Audit Values'!$A$2:$AE$252,2,FALSE)),'Preliminary SO66'!T57,VLOOKUP($CM63,'Audit Values'!$A$2:$AE$252,20,FALSE)) -> 4 | BJ63: 20000 | BK63: =IF(ISNA(VLOOKUP($CM63,'Audit Values'!$A$2:$AE$252,2,FALSE)),'Preliminary SO66'!U57,VLOOKUP($CM63,'Audit Values'!$A$2:$AE$252,21,FALSE)) -> 2.1 | BL63: 8495 | BM63: 0 | BN63: 0 | BO63: 28495 | BP63: ='2016legmax.xls'!AH60 -> 0 | BQ63: 0 | BR63: 0 | BS63: ='2016legmax.xls'!CJ60 -> 0 | BT63: 0 | BU63: ='2016legmax.xls'!CI60 -> 0 | BV63: 0 | BW63: 0 | BX63: 0 | BY63: 0 | BZ63: 0 | CA63: 0 | CB63: 0 | CC63: 0 | CD63: 0 | CE63: 0 | CF63: 0 | CG63: 0 | CH63: 0 | CI63: 0 | CM63: D0248
A64: 249 | B64: Crawford | C64: Frontenac Public Schools | D64: 5121478 | E64: 10467 | F64: 0 | G64: 0 | H64: 0 | I64: 878.1 | J64: 0 | K64: 0 | L64: ='2016legmax.xls'!BJ61 -> 0 | M64: 5131945 | N64: ='2016legmax.xls'!BB61 -> 1501977 | O64: 807642 | P64: ='2016legmax.xls'!BC61 -> 390590 | Q64: 512111 | R64: ='2016legmax.xls'!BD61 -> 47975 | S64: 7880129 | T64: ='2016legmax.xls'!DD61 -> 0 | U64: 0 | V64: 0 | W64: 0 | X64: 0 | Y64: 0 | Z64: 4215 | AA64: ='2016legmax.xls'!AV61 -> 2 | AB64: ='2016legmax.xls'!AW61 -> A | AC64: ='2016legmax.xls'!AX61 ->  | AD64: 8005865 | AE64: 7884344 | AF64: =IF(Weightings!G61>0,Weightings!G61,'Preliminary SO66'!AB58) -> 8219040 | AG64: 7884344 | AH64: 7884344 | AI64: 6780652 | AJ64: ='2016legmax.xls'!BM61 -> 0.3 | AK64: 2034196 | AL64: 2034196 | AM64: 2034196 | AO64: 5142046 | AP64: 0 | AQ64: 0 | AR64: 0 | AS64: 0 | AT64: 0 | AU64: 0 | AV64: 0 | AW64: 0 | AX64: 0 | AY64: 20568 | AZ64: 0 | BA64: 0 | BB64: 5121478 | BC64: ='2016legmax.xls'!F61 -> 881.5 | BD64: ='2016legmax.xls'!I61 -> 868.5 | BE64: ='2016legmax.xls'!K61 -> 866.4 | BF64: 872.1 | BG64: ='2016legmax.xls'!O61 -> 6 | BH64: 878.1 | BI64: =IF(ISNA(VLOOKUP($CM64,'Audit Values'!$A$2:$AE$252,2,FALSE)),'Preliminary SO66'!T58,VLOOKUP($CM64,'Audit Values'!$A$2:$AE$252,20,FALSE)) -> 2 | BJ64: 10000 | BK64: =IF(ISNA(VLOOKUP($CM64,'Audit Values'!$A$2:$AE$252,2,FALSE)),'Preliminary SO66'!U58,VLOOKUP($CM64,'Audit Values'!$A$2:$AE$252,21,FALSE)) -> 0 | BL64: 0 | BM64: 0.5 | BN64: 467 | BO64: 10467 | BP64: ='2016legmax.xls'!AH61 -> 0 | BQ64: 0 | BR64: 0 | BS64: ='2016legmax.xls'!CJ61 -> 0 | BT64: 0 | BU64: ='2016legmax.xls'!CI61 -> 0 | BV64: 0 | BW64: 0 | BX64: 0 | BY64: 0 | BZ64: 0 | CA64: 0 | CB64: 0 | CC64: 0 | CD64: 0 | CE64: 0 | CF64: 0 | CG64: 0 | CH64: 0 | CI64: 0 | CM64: D0249
A65: 250 | B65: Crawford | C65: Pittsburg | D65: 15796997 | E65: 209973 | F65: 0 | G65: 0 | H65: 0 | I65: 2871 | J65: 0 | K65: 0 | L65: ='2016legmax.xls'!BJ62 -> 0 | M65: 16006970 | N65: ='2016legmax.xls'!BB62 -> 3497289 | O65: 2616641 | P65: ='2016legmax.xls'!BC62 -> 1367557 | Q65: 1783838 | R65: ='2016legmax.xls'!BD62 -> 151140 | S65: 23639597 | T65: ='2016legmax.xls'!DD62 -> 0 | U65: 0 | V65: 0 | W65: 0 | X65: 0 | Y65: 0 | Z65: 0 | AA65: ='2016legmax.xls'!AV62 -> 11 | AB65: ='2016legmax.xls'!AW62 -> A | AC65: ='2016legmax.xls'!AX62 ->  | AD65: 24055878 | AE65: 23639597 | AF65: =IF(Weightings!G62>0,Weightings!G62,'Preliminary SO66'!AB59) -> 25209177 | AG65: 23639597 | AH65: 23639597 | AI65: 21215732 | AJ65: ='2016legmax.xls'!BM62 -> 0.3 | AK65: 6364720 | AL65: 6364720 | AM65: 6364720 | AO65: 15869299 | AP65: 2.3 | AQ65: 8860 | AR65: 0 | AS65: 0 | AT65: 0 | AU65: 0 | AV65: 0 | AW65: 0 | AX65: 0 | AY65: 63442 | AZ65: 0 | BA65: 0 | BB65: 15796997 | BC65: ='2016legmax.xls'!F62 -> 2806.8 | BD65: ='2016legmax.xls'!I62 -> 2851 | BE65: ='2016legmax.xls'!K62 -> 2824.9 | BF65: 2851 | BG65: ='2016legmax.xls'!O62 -> 20 | BH65: 2871 | BI65: =IF(ISNA(VLOOKUP($CM65,'Audit Values'!$A$2:$AE$252,2,FALSE)),'Preliminary SO66'!T59,VLOOKUP($CM65,'Audit Values'!$A$2:$AE$252,20,FALSE)) -> 33 | BJ65: 165000 | BK65: =IF(ISNA(VLOOKUP($CM65,'Audit Values'!$A$2:$AE$252,2,FALSE)),'Preliminary SO66'!U59,VLOOKUP($CM65,'Audit Values'!$A$2:$AE$252,21,FALSE)) -> 1.2 | BL65: 4854 | BM65: 43 | BN65: 40119 | BO65: 209973 | BP65: ='2016legmax.xls'!AH62 -> 0 | BQ65: 0 | BR65: 0 | BS65: ='2016legmax.xls'!CJ62 -> 0 | BT65: 0 | BU65: ='2016legmax.xls'!CI62 -> 0 | BV65: 0 | BW65: 0 | BX65: 0 | BY65: 0 | BZ65: 0 | CA65: 0 | CB65: 0 | CC65: 0 | CD65: 0 | CE65: 0 | CF65: 0 | CG65: 0 | CH65: 0 | CI65: 0 | CM65: D0250
A66: 251 | B66: Lyon | C66: North Lyon County | D66: 3072149 | E66: 0 | F66: 0 | G66: 0 | H66: 0 | I66: 418 | J66: 0 | K66: 0 | L66: ='2016legmax.xls'!BJ63 -> 0 | M66: 3072149 | N66: ='2016legmax.xls'!BB63 -> 0 | O66: 423321 | P66: ='2016legmax.xls'!BC63 -> 239900 | Q66: 312870 | R66: ='2016legmax.xls'!BD63 -> 0 | S66: 3735370 | T66: ='2016legmax.xls'!DD63 -> 0 | U66: 86 | V66: 0 | W66: 0 | X66: 0 | Y66: 0 | Z66: 8986 | AA66: ='2016legmax.xls'!AV63 -> 10 | AB66: ='2016legmax.xls'!AW63 -> A | AC66: ='2016legmax.xls'!AX63 ->  | AD66: 3817412 | AE66: 3744442 | AF66: =IF(Weightings!G63>0,Weightings!G63,'Preliminary SO66'!AB60) -> 3840018 | AG66: 3744442 | AH66: 3744442 | AI66: 4037678 | AJ66: ='2016legmax.xls'!BM63 -> 0.3 | AK66: 1211303 | AL66: 1211303 | AM66: 1211303 | AO66: 3084487 | AP66: 0 | AQ66: 0 | AR66: 0 | AS66: 0 | AT66: 0 | AU66: 0 | AV66: 0 | AW66: 0 | AX66: 0 | AY66: 12338 | AZ66: 0 | BA66: 0 | BB66: 3072149 | BC66: ='2016legmax.xls'!F63 -> 432.8 | BD66: ='2016legmax.xls'!I63 -> 406.1 | BE66: ='2016legmax.xls'!K63 -> 415 | BF66: 418 | BG66: ='2016legmax.xls'!O63 -> 0 | BH66: 418 | BI66: =IF(ISNA(VLOOKUP($CM66,'Audit Values'!$A$2:$AE$252,2,FALSE)),'Preliminary SO66'!T60,VLOOKUP($CM66,'Audit Values'!$A$2:$AE$252,20,FALSE)) -> 0 | BJ66: 0 | BK66: =IF(ISNA(VLOOKUP($CM66,'Audit Values'!$A$2:$AE$252,2,FALSE)),'Preliminary SO66'!U60,VLOOKUP($CM66,'Audit Values'!$A$2:$AE$252,21,FALSE)) -> 0 | BL66: 0 | BM66: 0 | BN66: 0 | BO66: 0 | BP66: ='2016legmax.xls'!AH63 -> 0 | BQ66: 0 | BR66: 0 | BS66: ='2016legmax.xls'!CJ63 -> 0 | BT66: 0 | BU66: ='2016legmax.xls'!CI63 -> 0 | BV66: 0 | BW66: 0 | BX66: 0 | BY66: 0 | BZ66: 0 | CA66: 0 | CB66: 0 | CC66: 0 | CD66: 0 | CE66: 0 | CF66: 0 | CG66: 0 | CH66: 0 | CI66: 0 | CM66: D0251
A67: 252 | B67: Lyon | C67: Southern Lyon County | D67: 3383302 | E67: 0 | F67: 0 | G67: 0 | H67: 0 | I67: 506.8 | J67: 0 | K67: 0 | L67: ='2016legmax.xls'!BJ64 -> 0 | M67: 3383302 | N67: ='2016legmax.xls'!BB64 -> 440225 | O67: 520958 | P67: ='2016legmax.xls'!BC64 -> 262952 | Q67: 339229 | R67: ='2016legmax.xls'!BD64 -> 18207 | S67: 4625644 | T67: ='2016legmax.xls'!DD64 -> 0 | U67: 5713 | V67: 0 | W67: 0 | X67: 0 | Y67: 0 | Z67: 5892 | AA67: ='2016legmax.xls'!AV64 -> 3 | AB67: ='2016legmax.xls'!AW64 -> A | AC67: ='2016legmax.xls'!AX64 ->  | AD67: 4713526 | AE67: 4637249 | AF67: =IF(Weightings!G64>0,Weightings!G64,'Preliminary SO66'!AB61) -> 4848008 | AG67: 4637249 | AH67: 4637249 | AI67: 4500840 | AJ67: ='2016legmax.xls'!BM64 -> 0.3 | AK67: 1350252 | AL67: 1350252 | AM67: 1350252 | AO67: 3396890 | AP67: 0 | AQ67: 0 | AR67: 0 | AS67: 0 | AT67: 0 | AU67: 0 | AV67: 0 | AW67: 0 | AX67: 0 | AY67: 13588 | AZ67: 0 | BA67: 0 | BB67: 3383302 | BC67: ='2016legmax.xls'!F64 -> 514.5 | BD67: ='2016legmax.xls'!I64 -> 498 | BE67: ='2016legmax.xls'!K64 -> 488.5 | BF67: 500.3 | BG67: ='2016legmax.xls'!O64 -> 6.5 | BH67: 506.8 | BI67: =IF(ISNA(VLOOKUP($CM67,'Audit Values'!$A$2:$AE$252,2,FALSE)),'Preliminary SO66'!T61,VLOOKUP($CM67,'Audit Values'!$A$2:$AE$252,20,FALSE)) -> 0 | BJ67: 0 | BK67: =IF(ISNA(VLOOKUP($CM67,'Audit Values'!$A$2:$AE$252,2,FALSE)),'Preliminary SO66'!U61,VLOOKUP($CM67,'Audit Values'!$A$2:$AE$252,21,FALSE)) -> 0 | BL67: 0 | BM67: 0 | BN67: 0 | BO67: 0 | BP67: ='2016legmax.xls'!AH64 -> 0 | BQ67: 0 | BR67: 0 | BS67: ='2016legmax.xls'!CJ64 -> 0 | BT67: 0 | BU67: ='2016legmax.xls'!CI64 -> 0 | BV67: 0 | BW67: 0 | BX67: 0 | BY67: 0 | BZ67: 0 | CA67: 0 | CB67: 0 | CC67: 0 | CD67: 0 | CE67: 0 | CF67: 0 | CG67: 0 | CH67: 0 | CI67: 0 | CM67: D0252
A68: 253 | B68: Lyon | C68: Emporia | D68: 24572120 | E68: 7023 | F68: 0 | G68: 0 | H68: 0 | I68: 4378.2 | J68: 0 | K68: 0 | L68: ='2016legmax.xls'!BJ65 -> 0 | M68: 24579143 | N68: ='2016legmax.xls'!BB65 -> 6122818 | O68: 3163937 | P68: ='2016legmax.xls'!BC65 -> 2889404 | Q68: 3767694 | R68: ='2016legmax.xls'!BD65 -> 254762 | S68: 37010064 | T68: ='2016legmax.xls'!DD65 -> 0 | U68: 0 | V68: 0 | W68: 0 | X68: 0 | Y68: 0 | Z68: 11079 | AA68: ='2016legmax.xls'!AV65 -> 3 | AB68: ='2016legmax.xls'!AW65 -> A | AC68: ='2016legmax.xls'!AX65 ->  | AD68: 37899433 | AE68: 37021143 | AF68: =IF(Weightings!G65>0,Weightings!G65,'Preliminary SO66'!AB62) -> 38399068 | AG68: 37021143 | AH68: 37021143 | AI68: 31860405 | AJ68: ='2016legmax.xls'!BM65 -> 0.3 | AK68: 9558122 | AL68: 9558122 | AM68: 9558122 | AO68: 24691219 | AP68: 5.3 | AQ68: 20416 | AR68: 0 | AS68: 0 | AT68: 0 | AU68: 0 | AV68: 0 | AW68: 0 | AX68: 0 | AY68: 98683 | AZ68: 0 | BA68: 0 | BB68: 24572120 | BC68: ='2016legmax.xls'!F65 -> 4210.1 | BD68: ='2016legmax.xls'!I65 -> 4210.3 | BE68: ='2016legmax.xls'!K65 -> 4317.2 | BF68: 4317.2 | BG68: ='2016legmax.xls'!O65 -> 61 | BH68: 4378.2 | BI68: =IF(ISNA(VLOOKUP($CM68,'Audit Values'!$A$2:$AE$252,2,FALSE)),'Preliminary SO66'!T62,VLOOKUP($CM68,'Audit Values'!$A$2:$AE$252,20,FALSE)) -> 1 | BJ68: 5000 | BK68: =IF(ISNA(VLOOKUP($CM68,'Audit Values'!$A$2:$AE$252,2,FALSE)),'Preliminary SO66'!U62,VLOOKUP($CM68,'Audit Values'!$A$2:$AE$252,21,FALSE)) -> 0.5 | BL68: 2023 | BM68: 0 | BN68: 0 | BO68: 7023 | BP68: ='2016legmax.xls'!AH65 -> 0 | BQ68: 0 | BR68: 0 | BS68: ='2016legmax.xls'!CJ65 -> 0 | BT68: 0 | BU68: ='2016legmax.xls'!CI65 -> 0 | BV68: 0 | BW68: 0 | BX68: 0 | BY68: 0 | BZ68: 0 | CA68: 0 | CB68: 0 | CC68: 0 | CD68: 0 | CE68: 0 | CF68: 0 | CG68: 0 | CH68: 0 | CI68: 0 | CM68: D0253
A69: 254 | B69: Barber | C69: Barber County North | D69: 2814659 | E69: 0 | F69: 0 | G69: 0 | H69: 0 | I69: 445.2 | J69: 0 | K69: 0 | L69: ='2016legmax.xls'!BJ66 -> 0 | M69: 2814659 | N69: ='2016legmax.xls'!BB66 -> 0 | O69: 550614 | P69: ='2016legmax.xls'!BC66 -> 225589 | Q69: 297708 | R69: ='2016legmax.xls'!BD66 -> 0 | S69: 3590862 | T69: ='2016legmax.xls'!DD66 -> 0 | U69: 47413 | V69: 0 | W69: 0 | X69: 0 | Y69: 4561 | Z69: 4500 | AA69: ='2016legmax.xls'!AV66 -> 15 | AB69: ='2016legmax.xls'!AW66 -> A | AC69: ='2016legmax.xls'!AX66 ->  | AD69: 3719455 | AE69: 3647336 | AF69: =IF(Weightings!G66>0,Weightings!G66,'Preliminary SO66'!AB63) -> 3889552 | AG69: 3647336 | AH69: 3647336 | AI69: 4025581 | AJ69: ='2016legmax.xls'!BM66 -> 0.3 | AK69: 1207674 | AL69: 1207674 | AM69: 1207674 | AO69: 2825963 | AP69: 0 | AQ69: 0 | AR69: 0 | AS69: 0 | AT69: 0 | AU69: 0 | AV69: 0 | AW69: 0 | AX69: 0 | AY69: 11304 | AZ69: 0 | BA69: 0 | BB69: 2814659 | BC69: ='2016legmax.xls'!F66 -> 446.5 | BD69: ='2016legmax.xls'!I66 -> 436.5 | BE69: ='2016legmax.xls'!K66 -> 437.5 | BF69: 440.2 | BG69: ='2016legmax.xls'!O66 -> 5 | BH69: 445.2 | BI69: =IF(ISNA(VLOOKUP($CM69,'Audit Values'!$A$2:$AE$252,2,FALSE)),'Preliminary SO66'!T63,VLOOKUP($CM69,'Audit Values'!$A$2:$AE$252,20,FALSE)) -> 0 | BJ69: 0 | BK69: =IF(ISNA(VLOOKUP($CM69,'Audit Values'!$A$2:$AE$252,2,FALSE)),'Preliminary SO66'!U63,VLOOKUP($CM69,'Audit Values'!$A$2:$AE$252,21,FALSE)) -> 0 | BL69: 0 | BM69: 0 | BN69: 0 | BO69: 0 | BP69: ='2016legmax.xls'!AH66 -> 0 | BQ69: 0 | BR69: 0 | BS69: ='2016legmax.xls'!CJ66 -> 0 | BT69: 0 | BU69: ='2016legmax.xls'!CI66 -> 0 | BV69: 0 | BW69: 0 | BX69: 0 | BY69: 0 | BZ69: 0 | CA69: 0 | CB69: 0 | CC69: 0 | CD69: 0 | CE69: 0 | CF69: 0 | CG69: 0 | CH69: 0 | CI69: 0 | CM69: D0254
A70: 255 | B70: Barber | C70: South Barber | D70: 1431826 | E70: 0 | F70: 0 | G70: 0 | H70: 0 | I70: 227.3 | J70: 0 | K70: 0 | L70: ='2016legmax.xls'!BJ67 -> 0 | M70: 1431826 | N70: ='2016legmax.xls'!BB67 -> 0 | O70: 283554 | P70: ='2016legmax.xls'!BC67 -> 126847 | Q70: 168110 | R70: ='2016legmax.xls'!BD67 -> 0 | S70: 1842227 | T70: ='2016legmax.xls'!DD67 -> 0 | U70: 124523 | V70: 0 | W70: 0 | X70: 0 | Y70: 0 | Z70: 0 | AA70: ='2016legmax.xls'!AV67 -> 4 | AB70: ='2016legmax.xls'!AW67 -> A | AC70: ='2016legmax.xls'!AX67 ->  | AD70: 2008013 | AE70: 1966750 | AF70: =IF(Weightings!G67>0,Weightings!G67,'Preliminary SO66'!AB64) -> 2223343 | AG70: 1966750 | AH70: 1966750 | AI70: 2292555 | AJ70: ='2016legmax.xls'!BM67 -> 0.3 | AK70: 687767 | AL70: 687767 | AM70: 687767 | AO70: 1437576 | AP70: 0 | AQ70: 0 | AR70: 0 | AS70: 0 | AT70: 0 | AU70: 0 | AV70: 0 | AW70: 0 | AX70: 0 | AY70: 5750 | AZ70: 0 | BA70: 0 | BB70: 1431826 | BC70: ='2016legmax.xls'!F67 -> 235 | BD70: ='2016legmax.xls'!I67 -> 223.5 | BE70: ='2016legmax.xls'!K67 -> 223.5 | BF70: 227.3 | BG70: ='2016legmax.xls'!O67 -> 0 | BH70: 227.3 | BI70: =IF(ISNA(VLOOKUP($CM70,'Audit Values'!$A$2:$AE$252,2,FALSE)),'Preliminary SO66'!T64,VLOOKUP($CM70,'Audit Values'!$A$2:$AE$252,20,FALSE)) -> 0 | BJ70: 0 | BK70: =IF(ISNA(VLOOKUP($CM70,'Audit Values'!$A$2:$AE$252,2,FALSE)),'Preliminary SO66'!U64,VLOOKUP($CM70,'Audit Values'!$A$2:$AE$252,21,FALSE)) -> 0 | BL70: 0 | BM70: 0 | BN70: 0 | BO70: 0 | BP70: ='2016legmax.xls'!AH67 -> 0 | BQ70: 0 | BR70: 0 | BS70: ='2016legmax.xls'!CJ67 -> 0 | BT70: 0 | BU70: ='2016legmax.xls'!CI67 -> 0 | BV70: 0 | BW70: 0 | BX70: 0 | BY70: 0 | BZ70: 0 | CA70: 0 | CB70: 0 | CC70: 0 | CD70: 0 | CE70: 0 | CF70: 0 | CG70: 0 | CH70: 0 | CI70: 0 | CM70: D0255
A71: 256 | B71: Allen | C71: Marmaton Valley | D71: 2095785 | E71: 0 | F71: 0 | G71: 0 | H71: 0 | I71: 277.3 | J71: 0 | K71: 0 | L71: ='2016legmax.xls'!BJ68 -> 0 | M71: 2095785 | N71: ='2016legmax.xls'!BB68 -> 396596 | O71: 350401 | P71: ='2016legmax.xls'!BC68 -> 143729 | Q71: 186755 | R71: ='2016legmax.xls'!BD68 -> 0 | S71: 2986511 | T71: ='2016legmax.xls'!DD68 -> 0 | U71: 901 | V71: 0 | W71: 0 | X71: 0 | Y71: 0 | Z71: 477 | AA71: ='2016legmax.xls'!AV68 -> 1 | AB71: ='2016legmax.xls'!AW68 -> A | AC71: ='2016legmax.xls'!AX68 ->  | AD71: 3030915 | AE71: 2987889 | AF71: =IF(Weightings!G68>0,Weightings!G68,'Preliminary SO66'!AB65) -> 3193073 | AG71: 2987889 | AH71: 2987889 | AI71: 2897371 | AJ71: ='2016legmax.xls'!BM68 -> 0.2979 | AK71: 863127 | AL71: 848640 | AM71: 848640 | AO71: 2104202 | AP71: 0 | AQ71: 0 | AR71: 0 | AS71: 0 | AT71: 0 | AU71: 0 | AV71: 0 | AW71: 0 | AX71: 0 | AY71: 8417 | AZ71: 0 | BA71: 0 | BB71: 2095785 | BC71: ='2016legmax.xls'!F68 -> 277 | BD71: ='2016legmax.xls'!I68 -> 270.5 | BE71: ='2016legmax.xls'!K68 -> 272.5 | BF71: 273.3 | BG71: ='2016legmax.xls'!O68 -> 4 | BH71: 277.3 | BI71: =IF(ISNA(VLOOKUP($CM71,'Audit Values'!$A$2:$AE$252,2,FALSE)),'Preliminary SO66'!T65,VLOOKUP($CM71,'Audit Values'!$A$2:$AE$252,20,FALSE)) -> 0 | BJ71: 0 | BK71: =IF(ISNA(VLOOKUP($CM71,'Audit Values'!$A$2:$AE$252,2,FALSE)),'Preliminary SO66'!U65,VLOOKUP($CM71,'Audit Values'!$A$2:$AE$252,21,FALSE)) -> 0 | BL71: 0 | BM71: 0 | BN71: 0 | BO71: 0 | BP71: ='2016legmax.xls'!AH68 -> 0 | BQ71: 0 | BR71: 0 | BS71: ='2016legmax.xls'!CJ68 -> 0 | BT71: 0 | BU71: ='2016legmax.xls'!CI68 -> 0 | BV71: 0 | BW71: 0 | BX71: 0 | BY71: 0 | BZ71: 0 | CA71: 0 | CB71: 0 | CC71: 0 | CD71: 0 | CE71: 0 | CF71: 0 | CG71: 0 | CH71: 0 | CI71: 0 | CM71: D0256
A72: 257 | B72: Allen | C72: Iola | D72: 7475159 | E72: 135452 | F72: 0 | G72: 0 | H72: 0 | I72: 1262.8 | J72: 0 | K72: 0 | L72: ='2016legmax.xls'!BJ69 -> 0 | M72: 7610611 | N72: ='2016legmax.xls'!BB69 -> 1998857 | O72: 1512901 | P72: ='2016legmax.xls'!BC69 -> 621078 | Q72: 810802 | R72: ='2016legmax.xls'!BD69 -> 146219 | S72: 11889666 | T72: ='2016legmax.xls'!DD69 -> 0 | U72: 1444 | V72: 0 | W72: 0 | X72: 0 | Y72: 0 | Z72: 0 | AA72: ='2016legmax.xls'!AV69 -> 18 | AB72: ='2016legmax.xls'!AW69 -> A | AC72: ='2016legmax.xls'!AX69 ->  | AD72: 12080834 | AE72: 11891110 | AF72: =IF(Weightings!G69>0,Weightings!G69,'Preliminary SO66'!AB66) -> 12495893 | AG72: 11891110 | AH72: 11891110 | AI72: 10502939 | AJ72: ='2016legmax.xls'!BM69 -> 0.3 | AK72: 3150882 | AL72: 3150882 | AM72: 3150882 | AO72: 7505180 | AP72: 0 | AQ72: 0 | AR72: 0 | AS72: 0 | AT72: 0 | AU72: 0 | AV72: 0 | AW72: 0 | AX72: 0 | AY72: 30021 | AZ72: 0 | BA72: 0 | BB72: 7475159 | BC72: ='2016legmax.xls'!F69 -> 1258.5 | BD72: ='2016legmax.xls'!I69 -> 1251.3 | BE72: ='2016legmax.xls'!K69 -> 1220 | BF72: 1251.3 | BG72: ='2016legmax.xls'!O69 -> 11.5 | BH72: 1262.8 | BI72: =IF(ISNA(VLOOKUP($CM72,'Audit Values'!$A$2:$AE$299,2,FALSE)),'Preliminary SO66'!T66,VLOOKUP($CM72,'Audit Values'!$A$2:$AE$299,20,FALSE)) -> 25 | BJ72: 125000 | BK72: =IF(ISNA(VLOOKUP($CM72,'Audit Values'!$A$2:$AE$299,2,FALSE)),'Preliminary SO66'!U66,VLOOKUP($CM72,'Audit Values'!$A$2:$AE$299,21,FALSE)) -> 1.2 | BL72: 4854 | BM72: 6 | BN72: 5598 | BO72: 135452 | BP72: ='2016legmax.xls'!AH69 -> 0 | BQ72: 0 | BR72: 0 | BS72: ='2016legmax.xls'!CJ69 -> 0 | BT72: =AD72*BS72 -> 0 | BU72: ='2016legmax.xls'!CI69 -> 0 | BV72: 0 | BW72: 0 | BX72: 0 | BY72: 0 | BZ72: 0 | CA72: 0 | CB72: 0 | CC72: 0 | CD72: 0 | CE72: 0 | CF72: 0 | CG72: 0 | CH72: 0 | CI72: 0 | CM72: D0257
A73: 258 | B73: Allen | C73: Humboldt | D73: =BB73 -> 3707928 | E73: =BO73 -> 816816 | F73: =BQ73 -> 0 | G73: 0 | H73: =IF((CF73-CE73)<0,0,CF73-CE73) -> 0 | I73: =BH73 -> 589.5 | J73: =I73*$J$6 -> 0 | K73: 0 | L73: ='2016legmax.xls'!BJ70 -> 0 | M73: =SUM(D73+E73+F73+G73+H73+J73)-K73+L73 -> 4524744 | N73: ='2016legmax.xls'!BB70 -> 992165 | O73: 657958 | P73: ='2016legmax.xls'!BC70 -> 338876 | Q73: 439577 | R73: ='2016legmax.xls'!BD70 -> 89001 | S73: =M73+N73+O73+P73+R73 -> 6602744 | T73: ='2016legmax.xls'!DD70 -> 0 | U73: 511 | V73: 0 | W73: 0 | X73: 0 | Y73: 0 | Z73: 0 | AA73: ='2016legmax.xls'!AV70 -> 10 | AB73: ='2016legmax.xls'!AW70 -> A | AC73: ='2016legmax.xls'!AX70 -> R | AD73: =D73+E73+F73+BZ73+CD73+H73+J73+L73+N73+O73+Q73+R73+T73+U73+V73+W73+Y73+Z73 -> 6703956 | AE73: =AD73+BV73-Q73+P73+X73 -> 6603255 | AF73: =IF(Weightings!G70>0,Weightings!G70,'Preliminary SO66'!AB67) -> 7449606 | AG73: 6603255 | AH73: =MIN(AE73,AF73) -> 6603255 | AI73: 5050365 | AJ73: ='2016legmax.xls'!BM70 -> 0.3 | AK73: =AI73*AJ73 -> 1515110 | AL73: 1515110 | AM73: =MIN(AK73,AL73) -> 1515110 | AO73: 4485130 | AP73: 197.9 | AQ73: =AP73*$AQ$6 -> 762311 | AR73: 0 | AS73: =AR73*$AS$6 -> 0 | AT73: 0 | AU73: =AT73*$AU$6 -> 0 | AV73: 0 | AW73: =AV73*$AW$6 -> 0 | AX73: =AS73+AU73+AW73 -> 0 | AY73: =SUM(AO73-AQ73-AX73)*$AY$6 -> 14891 | AZ73: 0 | BA73: =AZ73*$BA$6 -> 0 | BB73: =AO73-AQ73-AX73-AY73-BA73 -> 3707928 | BC73: ='2016legmax.xls'!F70 -> 586.6 | BD73: ='2016legmax.xls'!I70 -> 569 | BE73: ='2016legmax.xls'!K70 -> 584 | BF73: =MAX(BE73,BD73, AVERAGE(BC73,BD73,BE73)) -> 584 | BG73: ='2016legmax.xls'!O70 -> 5.5 | BH73: =BF73+BG73 -> 589.5 | BI73: =IF(ISNA(VLOOKUP($CM73,'Audit Values'!$A$2:$AE$252,2,FALSE)),'Preliminary SO66'!T67,VLOOKUP($CM73,'Audit Values'!$A$2:$AE$252,20,FALSE)) -> 74 | BJ73: =BI73*$BJ$6 -> 370000 | BK73: =IF(ISNA(VLOOKUP($CM73,'Audit Values'!$A$2:$AE$252,2,FALSE)),'Preliminary SO66'!U67,VLOOKUP($CM73,'Audit Values'!$A$2:$AE$252,21,FALSE)) -> 0.9 | BL73: =BK73*$BL$6 -> 3641 | BM73: 475 | BN73: =BM73*$BN$6 -> 443175 | BO73: =BJ73+BL73+BN73 -> 816816 | BP73: ='2016legmax.xls'!AH70 -> 0 | BQ73: =BP73*$BQ$6 -> 0 | BR73: 0 | BS73: ='2016legmax.xls'!CJ70 -> 0 | BT73: 0 | BU73: ='2016legmax.xls'!CI70 -> 0 | BV73: =MIN(BT73,BU73) -> 0 | BW73: 0 | BX73: 0 | BY73: 0 | BZ73: =IF(BY73>MAX(BW73,BX73), MAX(BW73,BX73),BY73) -> 0 | CA73: 0 | CB73: 0 | CC73: 0 | CD73: =IF(CC73>MAX(CA73,CB73),MAX(CA73,CB73),CC73) -> 0 | CE73: 0 | CF73: 0 | CG73: 0 | CH73: 0 | CI73: 0 | CM73: D0258
A74: 259 | B74: Sedgwick | C74: Wichita | D74: 277750247 | E74: 1222628 | F74: 898672 | G74: 0 | H74: 0 | I74: 47064.1 | J74: 0 | K74: 232529 | L74: ='2016legmax.xls'!BJ71 -> 0 | M74: 279639018 | N74: ='2016legmax.xls'!BB71 -> 54559901 | O74: 44276340 | P74: ='2016legmax.xls'!BC71 -> 28659751 | Q74: 37088065 | R74: ='2016legmax.xls'!BD71 -> 4525512 | S74: 411660522 | T74: ='2016legmax.xls'!DD71 -> 366804 | U74: 386 | V74: 0 | W74: 0 | X74: 3036045 | Y74: 313574 | Z74: 130417 | AA74: ='2016legmax.xls'!AV71 -> 5 | AB74: ='2016legmax.xls'!AW71 -> A | AC74: ='2016legmax.xls'!AX71 ->  | AD74: 421132546 | AE74: 415740277 | AF74: =IF(Weightings!G71>0,Weightings!G71,'Preliminary SO66'!AB68) -> 426884492 | AG74: 415740277 | AH74: 415740277 | AI74: 371231551 | AJ74: ='2016legmax.xls'!BM71 -> 0.3 | AK74: 111369465 | AL74: 111369465 | AM74: 111369465 | AO74: 280523697 | AP74: 199.8 | AQ74: 769630 | AR74: 0 | AS74: 0 | AT74: 0 | AU74: 0 | AV74: 0 | AW74: 0 | AX74: 0 | AY74: 1119016 | AZ74: 229.7 | BA74: 884804 | BB74: 277750247 | BC74: ='2016legmax.xls'!F71 -> 45888.3 | BD74: ='2016legmax.xls'!I71 -> 46108.1 | BE74: ='2016legmax.xls'!K71 -> 46003.7 | BF74: 46108.1 | BG74: ='2016legmax.xls'!O71 -> 956 | BH74: 47064.1 | BI74: =IF(ISNA(VLOOKUP($CM74,'Audit Values'!$A$2:$AE$252,2,FALSE)),'Preliminary SO66'!T68,VLOOKUP($CM74,'Audit Values'!$A$2:$AE$252,20,FALSE)) -> 198 | BJ74: 990000 | BK74: =IF(ISNA(VLOOKUP($CM74,'Audit Values'!$A$2:$AE$252,2,FALSE)),'Preliminary SO66'!U68,VLOOKUP($CM74,'Audit Values'!$A$2:$AE$252,21,FALSE)) -> 15.3 | BL74: 61889 | BM74: 183 | BN74: 170739 | BO74: 1222628 | BP74: ='2016legmax.xls'!AH71 -> 233.3 | BQ74: 898672 | BR74: 0 | BS74: ='2016legmax.xls'!CJ71 -> 0 | BT74: 0 | BU74: ='2016legmax.xls'!CI71 -> 0 | BV74: 0 | BW74: 0 | BX74: 0 | BY74: 0 | BZ74: 0 | CA74: 0 | CB74: 0 | CC74: 0 | CD74: 0 | CE74: 0 | CF74: 0 | CG74: 0 | CH74: 0 | CI74: 0 | CM74: D0259
A75: 260 | B75: Sedgwick | C75: Derby | D75: 31699379 | E75: 41709 | F75: 1243426 | G75: 0 | H75: 0 | I75: 6449.8 | J75: 0 | K75: 0 | L75: ='2016legmax.xls'!BJ72 -> 0 | M75: 32984514 | N75: ='2016legmax.xls'!BB72 -> 5537150 | O75: 5245591 | P75: ='2016legmax.xls'!BC72 -> 3720313 | Q75: 4705814 | R75: ='2016legmax.xls'!BD72 -> 354279 | S75: 47841847 | T75: ='2016legmax.xls'!DD72 -> 0 | U75: 10 | V75: 137777 | W75: 0 | X75: 0 | Y75: 57892 | Z75: 27146 | AA75: ='2016legmax.xls'!AV72 -> 18 | AB75: ='2016legmax.xls'!AW72 -> A | AC75: ='2016legmax.xls'!AX72 ->  | AD75: 49050173 | AE75: 48064672 | AF75: =IF(Weightings!G72>0,Weightings!G72,'Preliminary SO66'!AB69) -> 48657123 | AG75: 48064672 | AH75: 48064672 | AI75: 42558625 | AJ75: ='2016legmax.xls'!BM72 -> 0.3 | AK75: 12767588 | AL75: 12767588 | AM75: 12767588 | AO75: 32081651 | AP75: 18.6 | AQ75: 71647 | AR75: 0 | AS75: 0 | AT75: 0 | AU75: 0 | AV75: 0 | AW75: 0 | AX75: 0 | AY75: 128040 | AZ75: 47.4 | BA75: 182585 | BB75: 31699379 | BC75: ='2016legmax.xls'!F72 -> 6382.1 | BD75: ='2016legmax.xls'!I72 -> 6406.2 | BE75: ='2016legmax.xls'!K72 -> 6424.8 | BF75: 6424.8 | BG75: ='2016legmax.xls'!O72 -> 25 | BH75: 6449.8 | BI75: =IF(ISNA(VLOOKUP($CM75,'Audit Values'!$A$2:$AE$286,2,FALSE)),'Preliminary SO66'!T69,VLOOKUP($CM75,'Audit Values'!$A$2:$AE$286,20,FALSE)) -> 5 | BJ75: 25000 | BK75: =IF(ISNA(VLOOKUP($CM75,'Audit Values'!$A$2:$AE$286,2,FALSE)),'Preliminary SO66'!U69,VLOOKUP($CM75,'Audit Values'!$A$2:$AE$286,21,FALSE)) -> 3.9 | BL75: 15776 | BM75: 1 | BN75: 933 | BO75: 41709 | BP75: ='2016legmax.xls'!AH72 -> 322.8 | BQ75: 1243426 | BR75: 0 | BS75: ='2016legmax.xls'!CJ72 -> 0 | BT75: 0 | BU75: ='2016legmax.xls'!CI72 -> 0 | BV75: 0 | BW75: 0 | BX75: 0 | BY75: 0 | BZ75: 0 | CA75: 0 | CB75: 0 | CC75: 0 | CD75: 0 | CE75: 171500 | CF75: 131347 | CG75: 0 | CH75: 0 | CI75: 0 | CM75: D0260
A76: 261 | B76: Sedgwick | C76: Haysville | D76: 27498882 | E76: 0 | F76: 0 | G76: 0 | H76: 0 | I76: 5237.9 | J76: 0 | K76: 0 | L76: ='2016legmax.xls'!BJ73 -> 0 | M76: 27498882 | N76: ='2016legmax.xls'!BB73 -> 8318036 | O76: 4946890 | P76: ='2016legmax.xls'!BC73 -> 2955416 | Q76: 3878644 | R76: ='2016legmax.xls'!BD73 -> 540595 | S76: 44259819 | T76: ='2016legmax.xls'!DD73 -> 0 | U76: 132 | V76: 0 | W76: 0 | X76: 0 | Y76: 0 | Z76: 3114 | AA76: ='2016legmax.xls'!AV73 -> 16 | AB76: ='2016legmax.xls'!AW73 -> A | AC76: ='2016legmax.xls'!AX73 ->  | AD76: 45186293 | AE76: 44263065 | AF76: =IF(Weightings!G73>0,Weightings!G73,'Preliminary SO66'!AB70) -> 45248827 | AG76: 44263065 | AH76: 44263065 | AI76: 36918566 | AJ76: ='2016legmax.xls'!BM73 -> 0.3 | AK76: 11075570 | AL76: 11069181 | AM76: 11069181 | AO76: 27609319 | AP76: 0 | AQ76: 0 | AR76: 0 | AS76: 0 | AT76: 0 | AU76: 0 | AV76: 0 | AW76: 0 | AX76: 0 | AY76: 110437 | AZ76: 0 | BA76: 0 | BB76: 27498882 | BC76: ='2016legmax.xls'!F73 -> 5013.5 | BD76: ='2016legmax.xls'!I73 -> 5122.4 | BE76: ='2016legmax.xls'!K73 -> 5164.9 | BF76: 5164.9 | BG76: ='2016legmax.xls'!O73 -> 73 | BH76: 5237.9 | BI76: =IF(ISNA(VLOOKUP($CM76,'Audit Values'!$A$2:$AE$252,2,FALSE)),'Preliminary SO66'!T70,VLOOKUP($CM76,'Audit Values'!$A$2:$AE$252,20,FALSE)) -> 0 | BJ76: 0 | BK76: =IF(ISNA(VLOOKUP($CM76,'Audit Values'!$A$2:$AE$252,2,FALSE)),'Preliminary SO66'!U70,VLOOKUP($CM76,'Audit Values'!$A$2:$AE$252,21,FALSE)) -> 0 | BL76: 0 | BM76: 0 | BN76: 0 | BO76: 0 | BP76: ='2016legmax.xls'!AH73 -> 0 | BQ76: 0 | BR76: 0 | BS76: ='2016legmax.xls'!CJ73 -> 0 | BT76: 0 | BU76: ='2016legmax.xls'!CI73 -> 0 | BV76: 0 | BW76: 0 | BX76: 0 | BY76: 0 | BZ76: 0 | CA76: 0 | CB76: 0 | CC76: 0 | CD76: 0 | CE76: 0 | CF76: 0 | CG76: 0 | CH76: 0 | CI76: 0 | CM76: D0261
A77: 262 | B77: Sedgwick | C77: Valley Center Pub Sch | D77: 13038294 | E77: 190703 | F77: 0 | G77: 0 | H77: 0 | I77: 2682.4 | J77: 0 | K77: 0 | L77: ='2016legmax.xls'!BJ74 -> 0 | M77: 13228997 | N77: ='2016legmax.xls'!BB74 -> 3132525 | O77: 2478302 | P77: ='2016legmax.xls'!BC74 -> 1110039 | Q77: 1445860 | R77: ='2016legmax.xls'!BD74 -> 250240 | S77: 20200103 | T77: ='2016legmax.xls'!DD74 -> 0 | U77: 5065 | V77: 0 | W77: 0 | X77: 25000 | Y77: 161 | Z77: 0 | AA77: ='2016legmax.xls'!AV74 -> 2 | AB77: ='2016legmax.xls'!AW74 -> A | AC77: ='2016legmax.xls'!AX74 ->  | AD77: 20541150 | AE77: 20230329 | AF77: =IF(Weightings!G74>0,Weightings!G74,'Preliminary SO66'!AB71) -> 20980421 | AG77: 20230329 | AH77: 20230329 | AI77: 17737805 | AJ77: ='2016legmax.xls'!BM74 -> 0.3 | AK77: 5321342 | AL77: 5297870 | AM77: 5297870 | AO77: 13362223 | AP77: 70.5 | AQ77: 271566 | AR77: 0 | AS77: 0 | AT77: 0 | AU77: 0 | AV77: 0 | AW77: 0 | AX77: 0 | AY77: 52363 | AZ77: 0 | BA77: 0 | BB77: 13038294 | BC77: ='2016legmax.xls'!F74 -> 2584.5 | BD77: ='2016legmax.xls'!I74 -> 2624.4 | BE77: ='2016legmax.xls'!K74 -> 2665.4 | BF77: 2665.4 | BG77: ='2016legmax.xls'!O74 -> 17 | BH77: 2682.4 | BI77: =IF(ISNA(VLOOKUP($CM77,'Audit Values'!$A$2:$AE$252,2,FALSE)),'Preliminary SO66'!T71,VLOOKUP($CM77,'Audit Values'!$A$2:$AE$252,20,FALSE)) -> 23 | BJ77: 115000 | BK77: =IF(ISNA(VLOOKUP($CM77,'Audit Values'!$A$2:$AE$252,2,FALSE)),'Preliminary SO66'!U71,VLOOKUP($CM77,'Audit Values'!$A$2:$AE$252,21,FALSE)) -> 2.8 | BL77: 11326 | BM77: 69 | BN77: 64377 | BO77: 190703 | BP77: ='2016legmax.xls'!AH74 -> 0 | BQ77: 0 | BR77: 0 | BS77: ='2016legmax.xls'!CJ74 -> 0 | BT77: 0 | BU77: ='2016legmax.xls'!CI74 -> 0 | BV77: 0 | BW77: 0 | BX77: 0 | BY77: 0 | BZ77: 0 | CA77: 0 | CB77: 0 | CC77: 0 | CD77: 0 | CE77: 0 | CF77: 0 | CG77: 0 | CH77: 0 | CI77: 0 | CM77: D0262
A78: 263 | B78: Sedgwick | C78: Mulvane | D78: 8373038 | E78: 47583 | F78: 51617 | G78: 0 | H78: 0 | I78: 1747.4 | J78: 0 | K78: 0 | L78: ='2016legmax.xls'!BJ75 -> 0 | M78: 8472238 | N78: ='2016legmax.xls'!BB75 -> 1136888 | O78: 1517930 | P78: ='2016legmax.xls'!BC75 -> 904206 | Q78: 1197467 | R78: ='2016legmax.xls'!BD75 -> 44318 | S78: 12075580 | T78: ='2016legmax.xls'!DD75 -> 0 | U78: 209 | V78: 0 | W78: 0 | X78: 0 | Y78: 0 | Z78: 0 | AA78: ='2016legmax.xls'!AV75 -> 18 | AB78: ='2016legmax.xls'!AW75 -> A | AC78: ='2016legmax.xls'!AX75 ->  | AD78: 12369050 | AE78: 12075789 | AF78: =IF(Weightings!G75>0,Weightings!G75,'Preliminary SO66'!AB72) -> 12447834 | AG78: 12075789 | AH78: 12075789 | AI78: 11371787 | AJ78: ='2016legmax.xls'!BM75 -> 0.3 | AK78: 3411536 | AL78: 3411536 | AM78: 3411536 | AO78: 8494069 | AP78: 0 | AQ78: 0 | AR78: 0 | AS78: 0 | AT78: 0 | AU78: 0 | AV78: 0 | AW78: 0 | AX78: 0 | AY78: 33976 | AZ78: 22.6 | BA78: 87055 | BB78: 8373038 | BC78: ='2016legmax.xls'!F75 -> 1741.6 | BD78: ='2016legmax.xls'!I75 -> 1732.9 | BE78: ='2016legmax.xls'!K75 -> 1679.3 | BF78: 1732.9 | BG78: ='2016legmax.xls'!O75 -> 14.5 | BH78: 1747.4 | BI78: =IF(ISNA(VLOOKUP($CM78,'Audit Values'!$A$2:$AE$252,2,FALSE)),'Preliminary SO66'!T72,VLOOKUP($CM78,'Audit Values'!$A$2:$AE$252,20,FALSE)) -> 0 | BJ78: 0 | BK78: =IF(ISNA(VLOOKUP($CM78,'Audit Values'!$A$2:$AE$252,2,FALSE)),'Preliminary SO66'!U72,VLOOKUP($CM78,'Audit Values'!$A$2:$AE$252,21,FALSE)) -> 0 | BL78: 0 | BM78: 51 | BN78: 47583 | BO78: 47583 | BP78: ='2016legmax.xls'!AH75 -> 13.4 | BQ78: 51617 | BR78: 0 | BS78: ='2016legmax.xls'!CJ75 -> 0 | BT78: 0 | BU78: ='2016legmax.xls'!CI75 -> 0 | BV78: 0 | BW78: 0 | BX78: 0 | BY78: 0 | BZ78: 0 | CA78: 0 | CB78: 0 | CC78: 0 | CD78: 0 | CE78: 0 | CF78: 0 | CG78: 0 | CH78: 0 | CI78: 0 | CM78: D0263
A79: 264 | B79: Sedgwick | C79: Clearwater | D79: 6094208 | E79: 88635 | F79: 0 | G79: 0 | H79: 0 | I79: 1132.8 | J79: 0 | K79: 0 | L79: ='2016legmax.xls'!BJ76 -> 0 | M79: 6182843 | N79: ='2016legmax.xls'!BB76 -> 1319222 | O79: 1087721 | P79: ='2016legmax.xls'!BC76 -> 501770 | Q79: 656568 | R79: ='2016legmax.xls'!BD76 -> 119091 | S79: 9210647 | T79: ='2016legmax.xls'!DD76 -> 0 | U79: 1330 | V79: 0 | W79: 0 | X79: 90000 | Y79: 0 | Z79: 13515 | AA79: ='2016legmax.xls'!AV76 -> 7 | AB79: ='2016legmax.xls'!AW76 -> A | AC79: ='2016legmax.xls'!AX76 ->  | AD79: 9380290 | AE79: 9315492 | AF79: =IF(Weightings!G76>0,Weightings!G76,'Preliminary SO66'!AB73) -> 9685933 | AG79: 9315492 | AH79: 9315492 | AI79: 8239318 | AJ79: ='2016legmax.xls'!BM76 -> 0.3 | AK79: 2471795 | AL79: 2471795 | AM79: 2471795 | AO79: 6118683 | AP79: 0 | AQ79: 0 | AR79: 0 | AS79: 0 | AT79: 0 | AU79: 0 | AV79: 0 | AW79: 0 | AX79: 0 | AY79: 24475 | AZ79: 0 | BA79: 0 | BB79: 6094208 | BC79: ='2016legmax.xls'!F76 -> 1128.6 | BD79: ='2016legmax.xls'!I76 -> 1129.8 | BE79: ='2016legmax.xls'!K76 -> 1079.5 | BF79: 1129.8 | BG79: ='2016legmax.xls'!O76 -> 3 | BH79: 1132.8 | BI79: =IF(ISNA(VLOOKUP($CM79,'Audit Values'!$A$2:$AE$252,2,FALSE)),'Preliminary SO66'!T73,VLOOKUP($CM79,'Audit Values'!$A$2:$AE$252,20,FALSE)) -> 0 | BJ79: 0 | BK79: =IF(ISNA(VLOOKUP($CM79,'Audit Values'!$A$2:$AE$252,2,FALSE)),'Preliminary SO66'!U73,VLOOKUP($CM79,'Audit Values'!$A$2:$AE$252,21,FALSE)) -> 0 | BL79: 0 | BM79: 95 | BN79: 88635 | BO79: 88635 | BP79: ='2016legmax.xls'!AH76 -> 0 | BQ79: 0 | BR79: 0 | BS79: ='2016legmax.xls'!CJ76 -> 0 | BT79: 0 | BU79: ='2016legmax.xls'!CI76 -> 0 | BV79: 0 | BW79: 0 | BX79: 0 | BY79: 0 | BZ79: 0 | CA79: 0 | CB79: 0 | CC79: 0 | CD79: 0 | CE79: 0 | CF79: 0 | CG79: 0 | CH79: 0 | CI79: 0 | CM79: D0264
A80: 265 | B80: Sedgwick | C80: Goddard | D80: 25142969 | E80: 95364 | F80: 0 | G80: 0 | H80: 0 | I80: 5288 | J80: 0 | K80: 0 | L80: ='2016legmax.xls'!BJ77 -> 0 | M80: 25238333 | N80: ='2016legmax.xls'!BB77 -> 5920681 | O80: 4715904 | P80: ='2016legmax.xls'!BC77 -> 2339171 | Q80: 3038686 | R80: ='2016legmax.xls'!BD77 -> 590398 | S80: 38804487 | T80: ='2016legmax.xls'!DD77 -> 25285 | U80: 539 | V80: 0 | W80: 0 | X80: 0 | Y80: 0 | Z80: 7000 | AA80: ='2016legmax.xls'!AV77 -> 7 | AB80: ='2016legmax.xls'!AW77 -> A | AC80: ='2016legmax.xls'!AX77 ->  | AD80: 39536826 | AE80: 38837311 | AF80: =IF(Weightings!G77>0,Weightings!G77,'Preliminary SO66'!AB74) -> 40565000 | AG80: 38837311 | AH80: 38837311 | AI80: 33928336 | AJ80: ='2016legmax.xls'!BM77 -> 0.3 | AK80: 10178501 | AL80: 10178501 | AM80: 10178501 | AO80: 25321755 | AP80: 20.2 | AQ80: 77810 | AR80: 0 | AS80: 0 | AT80: 0 | AU80: 0 | AV80: 0 | AW80: 0 | AX80: 0 | AY80: 100976 | AZ80: 0 | BA80: 0 | BB80: 25142969 | BC80: ='2016legmax.xls'!F77 -> 5086.1 | BD80: ='2016legmax.xls'!I77 -> 5174.9 | BE80: ='2016legmax.xls'!K77 -> 5259 | BF80: 5259 | BG80: ='2016legmax.xls'!O77 -> 29 | BH80: 5288 | BI80: =IF(ISNA(VLOOKUP($CM80,'Audit Values'!$A$2:$AE$252,2,FALSE)),'Preliminary SO66'!T74,VLOOKUP($CM80,'Audit Values'!$A$2:$AE$252,20,FALSE)) -> 13 | BJ80: 65000 | BK80: =IF(ISNA(VLOOKUP($CM80,'Audit Values'!$A$2:$AE$252,2,FALSE)),'Preliminary SO66'!U74,VLOOKUP($CM80,'Audit Values'!$A$2:$AE$252,21,FALSE)) -> 5.2 | BL80: 21034 | BM80: 10 | BN80: 9330 | BO80: 95364 | BP80: ='2016legmax.xls'!AH77 -> 0 | BQ80: 0 | BR80: 0 | BS80: ='2016legmax.xls'!CJ77 -> 0.0029 | BT80: 114657 | BU80: ='2016legmax.xls'!CI77 -> 0 | BV80: 0 | BW80: 0 | BX80: 0 | BY80: 0 | BZ80: 0 | CA80: 0 | CB80: 0 | CC80: 0 | CD80: 0 | CE80: 0 | CF80: 0 | CG80: 0 | CH80: 0 | CI80: 0 | CM80: D0265
A81: 266 | B81: Sedgwick | C81: Maize | D81: 30665965 | E81: 1655766 | F81: 0 | G81: 0 | H81: 0 | I81: 6539.9 | J81: 0 | K81: 0 | L81: ='2016legmax.xls'!BJ78 -> 0 | M81: 32321731 | N81: ='2016legmax.xls'!BB78 -> 6483838 | O81: 5886112 | P81: ='2016legmax.xls'!BC78 -> 2784400 | Q81: 3622985 | R81: ='2016legmax.xls'!BD78 -> 685056 | S81: 48161137 | T81: ='2016legmax.xls'!DD78 -> 0 | U81: 0 | V81: 0 | W81: 0 | X81: 0 | Y81: 20023 | Z81: 0 | AA81: ='2016legmax.xls'!AV78 -> 12 | AB81: ='2016legmax.xls'!AW78 -> A | AC81: ='2016legmax.xls'!AX78 ->  | AD81: 49019745 | AE81: 48181160 | AF81: =IF(Weightings!G78>0,Weightings!G78,'Preliminary SO66'!AB75) -> 49777690 | AG81: 48181160 | AH81: 48181160 | AI81: 41674866 | AJ81: ='2016legmax.xls'!BM78 -> 0.3 | AK81: 12502460 | AL81: 12502460 | AM81: 12502460 | AO81: 32235932 | AP81: 375.6 | AQ81: 1446811 | AR81: 0 | AS81: 0 | AT81: 0 | AU81: 0 | AV81: 0 | AW81: 0 | AX81: 0 | AY81: 123156 | AZ81: 0 | BA81: 0 | BB81: 30665965 | BC81: ='2016legmax.xls'!F78 -> 6420.7 | BD81: ='2016legmax.xls'!I78 -> 6467.4 | BE81: ='2016legmax.xls'!K78 -> 6521.9 | BF81: 6521.9 | BG81: ='2016legmax.xls'!O78 -> 18 | BH81: 6539.9 | BI81: =IF(ISNA(VLOOKUP($CM81,'Audit Values'!$A$2:$AE$252,2,FALSE)),'Preliminary SO66'!T75,VLOOKUP($CM81,'Audit Values'!$A$2:$AE$252,20,FALSE)) -> 303 | BJ81: 1515000 | BK81: =IF(ISNA(VLOOKUP($CM81,'Audit Values'!$A$2:$AE$252,2,FALSE)),'Preliminary SO66'!U75,VLOOKUP($CM81,'Audit Values'!$A$2:$AE$252,21,FALSE)) -> 34.8 | BL81: 140766 | BM81: 0 | BN81: 0 | BO81: 1655766 | BP81: ='2016legmax.xls'!AH78 -> 0 | BQ81: 0 | BR81: 0 | BS81: ='2016legmax.xls'!CJ78 -> 0.0151 | BT81: 740198 | BU81: ='2016legmax.xls'!CI78 -> 0 | BV81: 0 | BW81: 0 | BX81: 0 | BY81: 0 | BZ81: 0 | CA81: 0 | CB81: 0 | CC81: 0 | CD81: 0 | CE81: 0 | CF81: 0 | CG81: 0 | CH81: 0 | CI81: 0 | CM81: D0266
A82: 267 | B82: Sedgwick | C82: Renwick | D82: 8673435 | E82: 0 | F82: 0 | G82: 0 | H82: 0 | I82: 1874 | J82: 0 | K82: 0 | L82: ='2016legmax.xls'!BJ79 -> 0 | M82: 8673435 | N82: ='2016legmax.xls'!BB79 -> 1835111 | O82: 1685674 | P82: ='2016legmax.xls'!BC79 -> 719304 | Q82: 951475 | R82: ='2016legmax.xls'!BD79 -> 166873 | S82: 13080397 | T82: ='2016legmax.xls'!DD79 -> 0 | U82: 224 | V82: 0 | W82: 0 | X82: 0 | Y82: 0 | Z82: 4360 | AA82: ='2016legmax.xls'!AV79 -> 16 | AB82: ='2016legmax.xls'!AW79 -> A | AC82: ='2016legmax.xls'!AX79 ->  | AD82: 13317152 | AE82: 13084981 | AF82: =IF(Weightings!G79>0,Weightings!G79,'Preliminary SO66'!AB76) -> 13705147 | AG82: 13084981 | AH82: 13084981 | AI82: 11819518 | AJ82: ='2016legmax.xls'!BM79 -> 0.33 | AK82: 3900441 | AL82: 3900441 | AM82: 3900441 | AO82: 8708268 | AP82: 0 | AQ82: 0 | AR82: 0 | AS82: 0 | AT82: 0 | AU82: 0 | AV82: 0 | AW82: 0 | AX82: 0 | AY82: 34833 | AZ82: 0 | BA82: 0 | BB82: 8673435 | BC82: ='2016legmax.xls'!F79 -> 1845 | BD82: ='2016legmax.xls'!I79 -> 1874 | BE82: ='2016legmax.xls'!K79 -> 1827 | BF82: 1874 | BG82: ='2016legmax.xls'!O79 -> 0 | BH82: 1874 | BI82: =IF(ISNA(VLOOKUP($CM82,'Audit Values'!$A$2:$AE$252,2,FALSE)),'Preliminary SO66'!T76,VLOOKUP($CM82,'Audit Values'!$A$2:$AE$252,20,FALSE)) -> 0 | BJ82: 0 | BK82: =IF(ISNA(VLOOKUP($CM82,'Audit Values'!$A$2:$AE$252,2,FALSE)),'Preliminary SO66'!U76,VLOOKUP($CM82,'Audit Values'!$A$2:$AE$252,21,FALSE)) -> 0 | BL82: 0 | BM82: 0 | BN82: 0 | BO82: 0 | BP82: ='2016legmax.xls'!AH79 -> 0 | BQ82: 0 | BR82: 0 | BS82: ='2016legmax.xls'!CJ79 -> 0 | BT82: 0 | BU82: ='2016legmax.xls'!CI79 -> 0 | BV82: 0 | BW82: 0 | BX82: 0 | BY82: 0 | BZ82: 0 | CA82: 0 | CB82: 0 | CC82: 0 | CD82: 0 | CE82: 0 | CF82: 0 | CG82: 0 | CH82: 0 | CI82: 0 | CM82: D0267
A83: 268 | B83: Sedgwick | C83: Cheney | D83: 4418011 | E83: 0 | F83: 149072 | G83: 0 | H83: 0 | I83: 760.6 | J83: 0 | K83: 0 | L83: ='2016legmax.xls'!BJ80 -> 0 | M83: 4567083 | N83: ='2016legmax.xls'!BB80 -> 1114794 | O83: 709621 | P83: ='2016legmax.xls'!BC80 -> 380892 | Q83: 499112 | R83: ='2016legmax.xls'!BD80 -> 88176 | S83: 6860566 | T83: ='2016legmax.xls'!DD80 -> 0 | U83: 1567 | V83: 0 | W83: 0 | X83: 0 | Y83: 0 | Z83: 0 | AA83: ='2016legmax.xls'!AV80 -> 7 | AB83: ='2016legmax.xls'!AW80 -> A | AC83: ='2016legmax.xls'!AX80 ->  | AD83: 6980353 | AE83: 6862133 | AF83: =IF(Weightings!G80>0,Weightings!G80,'Preliminary SO66'!AB77) -> 7313897 | AG83: 6862133 | AH83: 6862133 | AI83: 5871122 | AJ83: ='2016legmax.xls'!BM80 -> 0.3 | AK83: 1761337 | AL83: 1761337 | AM83: 1761337 | AO83: 4435754 | AP83: 0 | AQ83: 0 | AR83: 0 | AS83: 0 | AT83: 0 | AU83: 0 | AV83: 0 | AW83: 0 | AX83: 0 | AY83: 17743 | AZ83: 0 | BA83: 0 | BB83: 4418011 | BC83: ='2016legmax.xls'!F80 -> 744.6 | BD83: ='2016legmax.xls'!I80 -> 750.6 | BE83: ='2016legmax.xls'!K80 -> 727.7 | BF83: 750.6 | BG83: ='2016legmax.xls'!O80 -> 10 | BH83: 760.6 | BI83: =IF(ISNA(VLOOKUP($CM83,'Audit Values'!$A$2:$AE$252,2,FALSE)),'Preliminary SO66'!T77,VLOOKUP($CM83,'Audit Values'!$A$2:$AE$252,20,FALSE)) -> 0 | BJ83: 0 | BK83: =IF(ISNA(VLOOKUP($CM83,'Audit Values'!$A$2:$AE$252,2,FALSE)),'Preliminary SO66'!U77,VLOOKUP($CM83,'Audit Values'!$A$2:$AE$252,21,FALSE)) -> 0 | BL83: 0 | BM83: 0 | BN83: 0 | BO83: 0 | BP83: ='2016legmax.xls'!AH80 -> 38.7 | BQ83: 149072 | BR83: 0 | BS83: ='2016legmax.xls'!CJ80 -> 0 | BT83: 0 | BU83: ='2016legmax.xls'!CI80 -> 0 | BV83: 0 | BW83: 0 | BX83: 0 | BY83: 0 | BZ83: 0 | CA83: 0 | CB83: 0 | CC83: 0 | CD83: 0 | CE83: 0 | CF83: 0 | CG83: 0 | CH83: 0 | CI83: 0 | CM83: D0268
A84: 269 | B84: Rooks | C84: Palco | D84: 1063345 | E84: 0 | F84: 0 | G84: 0 | H84: 0 | I84: 110.3 | J84: 0 | K84: 4 | L84: ='2016legmax.xls'!BJ81 -> 0 | M84: 1063341 | N84: ='2016legmax.xls'!BB81 -> 0 | O84: 121060 | P84: ='2016legmax.xls'!BC81 -> 65980 | Q84: 85513 | R84: ='2016legmax.xls'!BD81 -> 0 | S84: 1250381 | T84: ='2016legmax.xls'!DD81 -> 0 | U84: 9484 | V84: 0 | W84: 0 | X84: 0 | Y84: 0 | Z84: 0 | AA84: ='2016legmax.xls'!AV81 -> 3 | AB84: ='2016legmax.xls'!AW81 -> A | AC84: ='2016legmax.xls'!AX81 ->  | AD84: 1279402 | AE84: 1259869 | AF84: =IF(Weightings!G81>0,Weightings!G81,'Preliminary SO66'!AB78) -> 1363315 | AG84: 1259869 | AH84: 1259869 | AI84: 1517118 | AJ84: ='2016legmax.xls'!BM81 -> 0.3 | AK84: 455135 | AL84: 375105 | AM84: 375105 | AO84: 1086105 | AP84: 4.8 | AQ84: 18490 | AR84: 0 | AS84: 0 | AT84: 0 | AU84: 0 | AV84: 0 | AW84: 0 | AX84: 0 | AY84: 4270 | AZ84: 0 | BA84: 0 | BB84: 1063345 | BC84: ='2016legmax.xls'!F81 -> 124.5 | BD84: ='2016legmax.xls'!I81 -> 101 | BE84: ='2016legmax.xls'!K81 -> 104 | BF84: 109.8 | BG84: ='2016legmax.xls'!O81 -> 0.5 | BH84: 110.3 | BI84: =IF(ISNA(VLOOKUP($CM84,'Audit Values'!$A$2:$AE$252,2,FALSE)),'Preliminary SO66'!T78,VLOOKUP($CM84,'Audit Values'!$A$2:$AE$252,20,FALSE)) -> 0 | BJ84: 0 | BK84: =IF(ISNA(VLOOKUP($CM84,'Audit Values'!$A$2:$AE$252,2,FALSE)),'Preliminary SO66'!U78,VLOOKUP($CM84,'Audit Values'!$A$2:$AE$252,21,FALSE)) -> 0 | BL84: 0 | BM84: 0 | BN84: 0 | BO84: 0 | BP84: ='2016legmax.xls'!AH81 -> 0 | BQ84: 0 | BR84: 0 | BS84: ='2016legmax.xls'!CJ81 -> 0 | BT84: 0 | BU84: ='2016legmax.xls'!CI81 -> 0 | BV84: 0 | BW84: 0 | BX84: 0 | BY84: 0 | BZ84: 0 | CA84: 0 | CB84: 0 | CC84: 0 | CD84: 0 | CE84: 0 | CF84: 0 | CG84: 0 | CH84: 0 | CI84: 0 | CM84: D0269
A85: 270 | B85: Rooks | C85: Plainville | D85: 2322474 | E85: 0 | F85: 0 | G85: 0 | H85: 0 | I85: 369.5 | J85: 0 | K85: 6057 | L85: ='2016legmax.xls'!BJ82 -> 0 | M85: 2316417 | N85: ='2016legmax.xls'!BB82 -> 0 | O85: 439218 | P85: ='2016legmax.xls'!BC82 -> 193062 | Q85: 251318 | R85: ='2016legmax.xls'!BD82 -> 0 | S85: 2948697 | T85: ='2016legmax.xls'!DD82 -> 0 | U85: 16326 | V85: 0 | W85: 0 | X85: 0 | Y85: 0 | Z85: 0 | AA85: ='2016legmax.xls'!AV82 -> 8 | AB85: ='2016legmax.xls'!AW82 -> A | AC85: ='2016legmax.xls'!AX82 ->  | AD85: 3029336 | AE85: 2971080 | AF85: =IF(Weightings!G82>0,Weightings!G82,'Preliminary SO66'!AB79) -> 3205813 | AG85: 2971080 | AH85: 2971080 | AI85: 3206748 | AJ85: ='2016legmax.xls'!BM82 -> 0.3 | AK85: 962024 | AL85: 962024 | AM85: 962024 | AO85: 2331801 | AP85: 0 | AQ85: 0 | AR85: 0 | AS85: 0 | AT85: 0 | AU85: 0 | AV85: 0 | AW85: 0 | AX85: 0 | AY85: 9327 | AZ85: 0 | BA85: 0 | BB85: 2322474 | BC85: ='2016legmax.xls'!F82 -> 365.3 | BD85: ='2016legmax.xls'!I82 -> 369.5 | BE85: ='2016legmax.xls'!K82 -> 334.8 | BF85: 369.5 | BG85: ='2016legmax.xls'!O82 -> 0 | BH85: 369.5 | BI85: =IF(ISNA(VLOOKUP($CM85,'Audit Values'!$A$2:$AE$252,2,FALSE)),'Preliminary SO66'!T79,VLOOKUP($CM85,'Audit Values'!$A$2:$AE$252,20,FALSE)) -> 0 | BJ85: 0 | BK85: =IF(ISNA(VLOOKUP($CM85,'Audit Values'!$A$2:$AE$252,2,FALSE)),'Preliminary SO66'!U79,VLOOKUP($CM85,'Audit Values'!$A$2:$AE$252,21,FALSE)) -> 0 | BL85: 0 | BM85: 0 | BN85: 0 | BO85: 0 | BP85: ='2016legmax.xls'!AH82 -> 0 | BQ85: 0 | BR85: 0 | BS85: ='2016legmax.xls'!CJ82 -> 0 | BT85: 0 | BU85: ='2016legmax.xls'!CI82 -> 0 | BV85: 0 | BW85: 0 | BX85: 0 | BY85: 0 | BZ85: 0 | CA85: 0 | CB85: 0 | CC85: 0 | CD85: 0 | CE85: 0 | CF85: 0 | CG85: 0 | CH85: 0 | CI85: 0 | CM85: D0270
A86: 271 | B86: Rooks | C86: Stockton | D86: 2040381 | E86: 0 | F86: 0 | G86: 0 | H86: 0 | I86: 301.5 | J86: 0 | K86: 0 | L86: ='2016legmax.xls'!BJ83 -> 0 | M86: 2040381 | N86: ='2016legmax.xls'!BB83 -> 79914 | O86: 348553 | P86: ='2016legmax.xls'!BC83 -> 141776 | Q86: 185914 | R86: ='2016legmax.xls'!BD83 -> 0 | S86: 2610624 | T86: ='2016legmax.xls'!DD83 -> 0 | U86: 4929 | V86: 0 | W86: 0 | X86: 0 | Y86: 0 | Z86: 0 | AA86: ='2016legmax.xls'!AV83 -> 6 | AB86: ='2016legmax.xls'!AW83 -> A | AC86: ='2016legmax.xls'!AX83 ->  | AD86: 2659691 | AE86: 2615553 | AF86: =IF(Weightings!G83>0,Weightings!G83,'Preliminary SO66'!AB80) -> 2758751 | AG86: 2615553 | AH86: 2615553 | AI86: 2781759 | AJ86: ='2016legmax.xls'!BM83 -> 0.3 | AK86: 834528 | AL86: 834528 | AM86: 834528 | AO86: 2048575 | AP86: 0 | AQ86: 0 | AR86: 0 | AS86: 0 | AT86: 0 | AU86: 0 | AV86: 0 | AW86: 0 | AX86: 0 | AY86: 8194 | AZ86: 0 | BA86: 0 | BB86: 2040381 | BC86: ='2016legmax.xls'!F83 -> 290.1 | BD86: ='2016legmax.xls'!I83 -> 289 | BE86: ='2016legmax.xls'!K83 -> 297.5 | BF86: 297.5 | BG86: ='2016legmax.xls'!O83 -> 4 | BH86: 301.5 | BI86: =IF(ISNA(VLOOKUP($CM86,'Audit Values'!$A$2:$AE$252,2,FALSE)),'Preliminary SO66'!T80,VLOOKUP($CM86,'Audit Values'!$A$2:$AE$252,20,FALSE)) -> 0 | BJ86: 0 | BK86: =IF(ISNA(VLOOKUP($CM86,'Audit Values'!$A$2:$AE$252,2,FALSE)),'Preliminary SO66'!U80,VLOOKUP($CM86,'Audit Values'!$A$2:$AE$252,21,FALSE)) -> 0 | BL86: 0 | BM86: 0 | BN86: 0 | BO86: 0 | BP86: ='2016legmax.xls'!AH83 -> 0 | BQ86: 0 | BR86: 0 | BS86: ='2016legmax.xls'!CJ83 -> 0 | BT86: 0 | BU86: ='2016legmax.xls'!CI83 -> 0 | BV86: 0 | BW86: 0 | BX86: 0 | BY86: 0 | BZ86: 0 | CA86: 0 | CB86: 0 | CC86: 0 | CD86: 0 | CE86: 0 | CF86: 0 | CG86: 0 | CH86: 0 | CI86: 0 | CM86: D0271
A87: 272 | B87: Mitchell | C87: Waconda | D87: 2114066 | E87: 0 | F87: 0 | G87: 0 | H87: 8949 | I87: 299.4 | J87: 0 | K87: 0 | L87: ='2016legmax.xls'!BJ84 -> 0 | M87: 2123015 | N87: ='2016legmax.xls'!BB84 -> 196227 | O87: 333466 | P87: ='2016legmax.xls'!BC84 -> 127486 | Q87: 164211 | R87: ='2016legmax.xls'!BD84 -> 0 | S87: 2780194 | T87: ='2016legmax.xls'!DD84 -> 0 | U87: 0 | V87: 38360 | W87: 0 | X87: 0 | Y87: 0 | Z87: 0 | AA87: ='2016legmax.xls'!AV84 -> 9 | AB87: ='2016legmax.xls'!AW84 -> A | AC87: ='2016legmax.xls'!AX84 ->  | AD87: 2855279 | AE87: 2818554 | AF87: =IF(Weightings!G84>0,Weightings!G84,'Preliminary SO66'!AB81) -> 2939970 | AG87: 2818554 | AH87: 2818554 | AI87: 2896411 | AJ87: ='2016legmax.xls'!BM84 -> 0.3 | AK87: 868923 | AL87: 868923 | AM87: 868923 | AO87: 2122556 | AP87: 0 | AQ87: 0 | AR87: 0 | AS87: 0 | AT87: 0 | AU87: 0 | AV87: 0 | AW87: 0 | AX87: 0 | AY87: 8490 | AZ87: 0 | BA87: 0 | BB87: 2114066 | BC87: ='2016legmax.xls'!F84 -> 302.8 | BD87: ='2016legmax.xls'!I84 -> 294 | BE87: ='2016legmax.xls'!K84 -> 288 | BF87: 294.9 | BG87: ='2016legmax.xls'!O84 -> 4.5 | BH87: 299.4 | BI87: =IF(ISNA(VLOOKUP($CM87,'Audit Values'!$A$2:$AE$252,2,FALSE)),'Preliminary SO66'!T81,VLOOKUP($CM87,'Audit Values'!$A$2:$AE$252,20,FALSE)) -> 0 | BJ87: 0 | BK87: =IF(ISNA(VLOOKUP($CM87,'Audit Values'!$A$2:$AE$252,2,FALSE)),'Preliminary SO66'!U81,VLOOKUP($CM87,'Audit Values'!$A$2:$AE$252,21,FALSE)) -> 0 | BL87: 0 | BM87: 0 | BN87: 0 | BO87: 0 | BP87: ='2016legmax.xls'!AH84 -> 0 | BQ87: 0 | BR87: 0 | BS87: ='2016legmax.xls'!CJ84 -> 0 | BT87: 0 | BU87: ='2016legmax.xls'!CI84 -> 0 | BV87: 0 | BW87: 0 | BX87: 0 | BY87: 0 | BZ87: 0 | CA87: 0 | CB87: 0 | CC87: 0 | CD87: 0 | CE87: 29400 | CF87: =38348+1 -> 38349 | CG87: 0 | CH87: 0 | CI87: 0 | CM87: D0272
A88: 273 | B88: Mitchell | C88: Beloit | D88: 4513444 | E88: 0 | F88: 0 | G88: 0 | H88: 0 | I88: 767.5 | J88: 0 | K88: 401 | L88: ='2016legmax.xls'!BJ85 -> 0 | M88: 4513043 | N88: ='2016legmax.xls'!BB85 -> 627276 | O88: 923542 | P88: ='2016legmax.xls'!BC85 -> 701172 | Q88: 920808 | R88: ='2016legmax.xls'!BD85 -> 29703 | S88: 6794736 | T88: ='2016legmax.xls'!DD85 -> 0 | U88: 0 | V88: 0 | W88: 0 | X88: 0 | Y88: 0 | Z88: 0 | AA88: ='2016legmax.xls'!AV85 -> 2 | AB88: ='2016legmax.xls'!AW85 -> A | AC88: ='2016legmax.xls'!AX85 ->  | AD88: 7014773 | AE88: 6795137 | AF88: =IF(Weightings!G85>0,Weightings!G85,'Preliminary SO66'!AB82) -> 7285334 | AG88: 6795137 | AH88: 6795137 | AI88: 6228386 | AJ88: ='2016legmax.xls'!BM85 -> 0.3 | AK88: 1868516 | AL88: 1868516 | AM88: 1868516 | AO88: 4547748 | AP88: 4.2 | AQ88: 16178 | AR88: 0 | AS88: 0 | AT88: 0 | AU88: 0 | AV88: 0 | AW88: 0 | AX88: 0 | AY88: 18126 | AZ88: 0 | BA88: 0 | BB88: 4513444 | BC88: ='2016legmax.xls'!F85 -> 736.5 | BD88: ='2016legmax.xls'!I85 -> 750 | BE88: ='2016legmax.xls'!K85 -> 754.5 | BF88: 754.5 | BG88: ='2016legmax.xls'!O85 -> 13 | BH88: 767.5 | BI88: =IF(ISNA(VLOOKUP($CM88,'Audit Values'!$A$2:$AE$252,2,FALSE)),'Preliminary SO66'!T82,VLOOKUP($CM88,'Audit Values'!$A$2:$AE$252,20,FALSE)) -> 0 | BJ88: 0 | BK88: =IF(ISNA(VLOOKUP($CM88,'Audit Values'!$A$2:$AE$252,2,FALSE)),'Preliminary SO66'!U82,VLOOKUP($CM88,'Audit Values'!$A$2:$AE$252,21,FALSE)) -> 0 | BL88: 0 | BM88: 0 | BN88: 0 | BO88: 0 | BP88: ='2016legmax.xls'!AH85 -> 0 | BQ88: 0 | BR88: 0 | BS88: ='2016legmax.xls'!CJ85 -> 0 | BT88: 0 | BU88: ='2016legmax.xls'!CI85 -> 0 | BV88: 0 | BW88: 0 | BX88: 0 | BY88: 0 | BZ88: 0 | CA88: 0 | CB88: 0 | CC88: 0 | CD88: 0 | CE88: 0 | CF88: 0 | CG88: 0 | CH88: 0 | CI88: 0 | CM88: D0273
A89: 274 | B89: Logan | C89: Oakley | D89: 2381462 | E89: 0 | F89: 0 | G89: 0 | H89: 0 | I89: 387.8 | J89: 0 | K89: 66 | L89: ='2016legmax.xls'!BJ86 -> 0 | M89: 2381396 | N89: ='2016legmax.xls'!BB86 -> 0 | O89: 349089 | P89: ='2016legmax.xls'!BC86 -> 210284 | Q89: 276312 | R89: ='2016legmax.xls'!BD86 -> 0 | S89: 2940769 | T89: ='2016legmax.xls'!DD86 -> 18262 | U89: 30721 | V89: 0 | W89: 0 | X89: 0 | Y89: 2760 | Z89: 6080 | AA89: ='2016legmax.xls'!AV86 -> 11 | AB89: ='2016legmax.xls'!AW86 -> A | AC89: ='2016legmax.xls'!AX86 ->  | AD89: 3064686 | AE89: 2998658 | AF89: =IF(Weightings!G86>0,Weightings!G86,'Preliminary SO66'!AB83) -> 3170187 | AG89: 2998658 | AH89: 2998658 | AI89: 3406469 | AJ89: ='2016legmax.xls'!BM86 -> 0.3 | AK89: 1021941 | AL89: 1021941 | AM89: 1021941 | AO89: 2391026 | AP89: 0 | AQ89: 0 | AR89: 0 | AS89: 0 | AT89: 0 | AU89: 0 | AV89: 0 | AW89: 0 | AX89: 0 | AY89: 9564 | AZ89: 0 | BA89: 0 | BB89: 2381462 | BC89: ='2016legmax.xls'!F86 -> 375.2 | BD89: ='2016legmax.xls'!I86 -> 366.1 | BE89: ='2016legmax.xls'!K86 -> 387.8 | BF89: 387.8 | BG89: ='2016legmax.xls'!O86 -> 0 | BH89: 387.8 | BI89: =IF(ISNA(VLOOKUP($CM89,'Audit Values'!$A$2:$AE$252,2,FALSE)),'Preliminary SO66'!T83,VLOOKUP($CM89,'Audit Values'!$A$2:$AE$252,20,FALSE)) -> 0 | BJ89: 0 | BK89: =IF(ISNA(VLOOKUP($CM89,'Audit Values'!$A$2:$AE$252,2,FALSE)),'Preliminary SO66'!U83,VLOOKUP($CM89,'Audit Values'!$A$2:$AE$252,21,FALSE)) -> 0 | BL89: 0 | BM89: 0 | BN89: 0 | BO89: 0 | BP89: ='2016legmax.xls'!AH86 -> 0 | BQ89: 0 | BR89: 0 | BS89: ='2016legmax.xls'!CJ86 -> 0 | BT89: 0 | BU89: ='2016legmax.xls'!CI86 -> 0 | BV89: 0 | BW89: 0 | BX89: 0 | BY89: 0 | BZ89: 0 | CA89: 0 | CB89: 0 | CC89: 0 | CD89: 0 | CE89: 0 | CF89: 0 | CG89: 0 | CH89: 0 | CI89: 0 | CM89: D0274
A90: 275 | B90: Logan | C90: Triplains | D90: 644434 | E90: 0 | F90: 0 | G90: 0 | H90: 0 | I90: 72 | J90: 0 | K90: 0 | L90: ='2016legmax.xls'!BJ87 -> 0 | M90: 644434 | N90: ='2016legmax.xls'!BB87 -> 0 | O90: 98567 | P90: ='2016legmax.xls'!BC87 -> 53083 | Q90: 69284 | R90: ='2016legmax.xls'!BD87 -> 0 | S90: 796084 | T90: ='2016legmax.xls'!DD87 -> 0 | U90: 28676 | V90: 0 | W90: 0 | X90: 0 | Y90: 0 | Z90: 499 | AA90: ='2016legmax.xls'!AV87 -> 13 | AB90: ='2016legmax.xls'!AW87 -> A | AC90: ='2016legmax.xls'!AX87 ->  | AD90: 841460 | AE90: 825259 | AF90: =IF(Weightings!G87>0,Weightings!G87,'Preliminary SO66'!AB84) -> 930866 | AG90: 825259 | AH90: 825259 | AI90: 981761 | AJ90: ='2016legmax.xls'!BM87 -> 0.33 | AK90: 323981 | AL90: 323981 | AM90: 323981 | AO90: 647022 | AP90: 0 | AQ90: 0 | AR90: 0 | AS90: 0 | AT90: 0 | AU90: 0 | AV90: 0 | AW90: 0 | AX90: 0 | AY90: 2588 | AZ90: 0 | BA90: 0 | BB90: 644434 | BC90: ='2016legmax.xls'!F87 -> 78.5 | BD90: ='2016legmax.xls'!I87 -> 68 | BE90: ='2016legmax.xls'!K87 -> 69.5 | BF90: 72 | BG90: ='2016legmax.xls'!O87 -> 0 | BH90: 72 | BI90: =IF(ISNA(VLOOKUP($CM90,'Audit Values'!$A$2:$AE$252,2,FALSE)),'Preliminary SO66'!T84,VLOOKUP($CM90,'Audit Values'!$A$2:$AE$252,20,FALSE)) -> 0 | BJ90: 0 | BK90: =IF(ISNA(VLOOKUP($CM90,'Audit Values'!$A$2:$AE$252,2,FALSE)),'Preliminary SO66'!U84,VLOOKUP($CM90,'Audit Values'!$A$2:$AE$252,21,FALSE)) -> 0 | BL90: 0 | BM90: 0 | BN90: 0 | BO90: 0 | BP90: ='2016legmax.xls'!AH87 -> 0 | BQ90: 0 | BR90: 0 | BS90: ='2016legmax.xls'!CJ87 -> 0 | BT90: 0 | BU90: ='2016legmax.xls'!CI87 -> 0 | BV90: 0 | BW90: 0 | BX90: 0 | BY90: 0 | BZ90: 0 | CA90: 0 | CB90: 0 | CC90: 0 | CD90: 0 | CE90: 0 | CF90: 0 | CG90: 0 | CH90: 0 | CI90: 0 | CM90: D0275
A91: 281 | B91: Graham | C91: Graham County | D91: 2438918 | E91: 0 | F91: 0 | G91: 0 | H91: 0 | I91: 366.1 | J91: 0 | K91: 0 | L91: ='2016legmax.xls'!BJ88 -> 0 | M91: 2438918 | N91: ='2016legmax.xls'!BB88 -> 0 | O91: 307298 | P91: ='2016legmax.xls'!BC88 -> 203512 | Q91: 266852 | R91: ='2016legmax.xls'!BD88 -> 0 | S91: 2949728 | T91: ='2016legmax.xls'!DD88 -> 0 | U91: 91 | V91: 0 | W91: 0 | X91: 0 | Y91: 0 | Z91: 0 | AA91: ='2016legmax.xls'!AV88 -> 3 | AB91: ='2016legmax.xls'!AW88 -> A | AC91: ='2016legmax.xls'!AX88 ->  | AD91: 3013159 | AE91: 2949819 | AF91: =IF(Weightings!G88>0,Weightings!G88,'Preliminary SO66'!AB85) -> 3096972 | AG91: 2949819 | AH91: 2949819 | AI91: 3350176 | AJ91: ='2016legmax.xls'!BM88 -> 0.3 | AK91: 1005053 | AL91: 1005053 | AM91: 1005053 | AO91: 2550406 | AP91: 26.4 | AQ91: 101693 | AR91: 0 | AS91: 0 | AT91: 0 | AU91: 0 | AV91: 0 | AW91: 0 | AX91: 0 | AY91: 9795 | AZ91: 0 | BA91: 0 | BB91: 2438918 | BC91: ='2016legmax.xls'!F88 -> 353.9 | BD91: ='2016legmax.xls'!I88 -> 366.1 | BE91: ='2016legmax.xls'!K88 -> 359.8 | BF91: 366.1 | BG91: ='2016legmax.xls'!O88 -> 0 | BH91: 366.1 | BI91: =IF(ISNA(VLOOKUP($CM91,'Audit Values'!$A$2:$AE$252,2,FALSE)),'Preliminary SO66'!T85,VLOOKUP($CM91,'Audit Values'!$A$2:$AE$252,20,FALSE)) -> 0 | BJ91: 0 | BK91: =IF(ISNA(VLOOKUP($CM91,'Audit Values'!$A$2:$AE$252,2,FALSE)),'Preliminary SO66'!U85,VLOOKUP($CM91,'Audit Values'!$A$2:$AE$252,21,FALSE)) -> 0 | BL91: 0 | BM91: 0 | BN91: 0 | BO91: 0 | BP91: ='2016legmax.xls'!AH88 -> 0 | BQ91: 0 | BR91: 0 | BS91: ='2016legmax.xls'!CJ88 -> 0 | BT91: 0 | BU91: ='2016legmax.xls'!CI88 -> 0 | BV91: 0 | BW91: 0 | BX91: 0 | BY91: 0 | BZ91: 0 | CA91: 0 | CB91: 0 | CC91: 0 | CD91: 0 | CE91: 0 | CF91: 0 | CG91: 0 | CH91: 0 | CI91: 0 | CM91: D0281
A92: 282 | B92: Elk | C92: West Elk | D92: 2426377 | E92: 26866 | F92: 0 | G92: 0 | H92: 0 | I92: 330 | J92: 0 | K92: 0 | L92: ='2016legmax.xls'!BJ89 -> 0 | M92: 2453243 | N92: ='2016legmax.xls'!BB89 -> 435950 | O92: 533035 | P92: ='2016legmax.xls'!BC89 -> 318233 | Q92: 413211 | R92: ='2016legmax.xls'!BD89 -> 10256 | S92: 3750717 | T92: ='2016legmax.xls'!DD89 -> 0 | U92: 162 | V92: 0 | W92: 0 | X92: 0 | Y92: 0 | Z92: 2260 | AA92: ='2016legmax.xls'!AV89 -> 15 | AB92: ='2016legmax.xls'!AW89 -> A | AC92: ='2016legmax.xls'!AX89 -> R | AD92: 3848117 | AE92: 3753139 | AF92: =IF(Weightings!G89>0,Weightings!G89,'Preliminary SO66'!AB86) -> 4051631 | AG92: 3753139 | AH92: 3753139 | AI92: 3448000 | AJ92: ='2016legmax.xls'!BM89 -> 0.3 | AK92: 1034400 | AL92: 1034400 | AM92: 1034400 | AO92: 2436121 | AP92: 0 | AQ92: 0 | AR92: 0 | AS92: 0 | AT92: 0 | AU92: 0 | AV92: 0 | AW92: 0 | AX92: 0 | AY92: 9744 | AZ92: 0 | BA92: 0 | BB92: 2426377 | BC92: ='2016legmax.xls'!F89 -> 312.8 | BD92: ='2016legmax.xls'!I89 -> 311.5 | BE92: ='2016legmax.xls'!K89 -> 326.5 | BF92: 326.5 | BG92: ='2016legmax.xls'!O89 -> 3.5 | BH92: 330 | BI92: =IF(ISNA(VLOOKUP($CM92,'Audit Values'!$A$2:$AE$252,2,FALSE)),'Preliminary SO66'!T86,VLOOKUP($CM92,'Audit Values'!$A$2:$AE$252,20,FALSE)) -> 5 | BJ92: 25000 | BK92: =IF(ISNA(VLOOKUP($CM92,'Audit Values'!$A$2:$AE$252,2,FALSE)),'Preliminary SO66'!U86,VLOOKUP($CM92,'Audit Values'!$A$2:$AE$252,21,FALSE)) -> 0 | BL92: 0 | BM92: 2 | BN92: 1866 | BO92: 26866 | BP92: ='2016legmax.xls'!AH89 -> 0 | BQ92: 0 | BR92: 0 | BS92: ='2016legmax.xls'!CJ89 -> 0 | BT92: 0 | BU92: ='2016legmax.xls'!CI89 -> 0 | BV92: 0 | BW92: 0 | BX92: 0 | BY92: 0 | BZ92: 0 | CA92: 0 | CB92: 0 | CC92: 0 | CD92: 0 | CE92: 0 | CF92: 0 | CG92: 0 | CH92: 0 | CI92: 0 | CM92: D0282
A93: 283 | B93: Elk | C93: Elk Valley | D93: 1374057 | E93: 23732 | F93: 0 | G93: 0 | H93: 0 | I93: 138 | J93: 0 | K93: 0 | L93: ='2016legmax.xls'!BJ90 -> 0 | M93: 1397789 | N93: ='2016legmax.xls'!BB90 -> 154794 | O93: 234388 | P93: ='2016legmax.xls'!BC90 -> 63427 | Q93: 82798 | R93: ='2016legmax.xls'!BD90 -> 0 | S93: 1850398 | T93: ='2016legmax.xls'!DD90 -> 0 | U93: 548 | V93: 0 | W93: 0 | X93: 0 | Y93: 0 | Z93: 0 | AA93: ='2016legmax.xls'!AV90 -> 9 | AB93: ='2016legmax.xls'!AW90 -> A | AC93: ='2016legmax.xls'!AX90 ->  | AD93: 1870317 | AE93: 1850946 | AF93: =IF(Weightings!G90>0,Weightings!G90,'Preliminary SO66'!AB87) -> 2040141 | AG93: 1850946 | AH93: 1850946 | AI93: 1909577 | AJ93: ='2016legmax.xls'!BM90 -> 0.2777 | AK93: 530290 | AL93: 530290 | AM93: 530290 | AO93: 1379575 | AP93: 0 | AQ93: 0 | AR93: 0 | AS93: 0 | AT93: 0 | AU93: 0 | AV93: 0 | AW93: 0 | AX93: 0 | AY93: 5518 | AZ93: 0 | BA93: 0 | BB93: 1374057 | BC93: ='2016legmax.xls'!F90 -> 134.5 | BD93: ='2016legmax.xls'!I90 -> 137 | BE93: ='2016legmax.xls'!K90 -> 107.5 | BF93: 137 | BG93: ='2016legmax.xls'!O90 -> 1 | BH93: 138 | BI93: =IF(ISNA(VLOOKUP($CM93,'Audit Values'!$A$2:$AE$252,2,FALSE)),'Preliminary SO66'!T87,VLOOKUP($CM93,'Audit Values'!$A$2:$AE$252,20,FALSE)) -> 4 | BJ93: 20000 | BK93: =IF(ISNA(VLOOKUP($CM93,'Audit Values'!$A$2:$AE$252,2,FALSE)),'Preliminary SO66'!U87,VLOOKUP($CM93,'Audit Values'!$A$2:$AE$252,21,FALSE)) -> 0 | BL93: 0 | BM93: 4 | BN93: 3732 | BO93: 23732 | BP93: ='2016legmax.xls'!AH90 -> 0 | BQ93: 0 | BR93: 0 | BS93: ='2016legmax.xls'!CJ90 -> 0 | BT93: 0 | BU93: ='2016legmax.xls'!CI90 -> 0 | BV93: 0 | BW93: 0 | BX93: 0 | BY93: 0 | BZ93: 0 | CA93: 0 | CB93: 0 | CC93: 0 | CD93: 0 | CE93: 0 | CF93: 0 | CG93: 0 | CH93: 0 | CI93: 0 | CM93: D0283
A94: 284 | B94: Chase | C94: Chase County | D94: 2513109 | E94: 0 | F94: 0 | G94: 0 | H94: 0 | I94: 350.2 | J94: 0 | K94: 0 | L94: ='2016legmax.xls'!BJ91 -> 0 | M94: 2513109 | N94: ='2016legmax.xls'!BB91 -> 4606 | O94: 375511 | P94: ='2016legmax.xls'!BC91 -> 209099 | Q94: 270035 | R94: ='2016legmax.xls'!BD91 -> 0 | S94: 3102325 | T94: ='2016legmax.xls'!DD91 -> 0 | U94: 592 | V94: 0 | W94: 0 | X94: 0 | Y94: 0 | Z94: 0 | AA94: ='2016legmax.xls'!AV91 -> 8 | AB94: ='2016legmax.xls'!AW91 -> A | AC94: ='2016legmax.xls'!AX91 ->  | AD94: 3163853 | AE94: 3102917 | AF94: =IF(Weightings!G91>0,Weightings!G91,'Preliminary SO66'!AB88) -> 3186310 | AG94: 3102917 | AH94: 3102917 | AI94: 3384905 | AJ94: ='2016legmax.xls'!BM91 -> 0.3 | AK94: 1015472 | AL94: 1015472 | AM94: 1015472 | AO94: 2523202 | AP94: 0 | AQ94: 0 | AR94: 0 | AS94: 0 | AT94: 0 | AU94: 0 | AV94: 0 | AW94: 0 | AX94: 0 | AY94: 10093 | AZ94: 0 | BA94: 0 | BB94: 2513109 | BC94: ='2016legmax.xls'!F91 -> 364.5 | BD94: ='2016legmax.xls'!I91 -> 344.5 | BE94: ='2016legmax.xls'!K91 -> 341.5 | BF94: 350.2 | BG94: ='2016legmax.xls'!O91 -> 0 | BH94: 350.2 | BI94: =IF(ISNA(VLOOKUP($CM94,'Audit Values'!$A$2:$AE$252,2,FALSE)),'Preliminary SO66'!T88,VLOOKUP($CM94,'Audit Values'!$A$2:$AE$252,20,FALSE)) -> 0 | BJ94: 0 | BK94: =IF(ISNA(VLOOKUP($CM94,'Audit Values'!$A$2:$AE$252,2,FALSE)),'Preliminary SO66'!U88,VLOOKUP($CM94,'Audit Values'!$A$2:$AE$252,21,FALSE)) -> 0 | BL94: 0 | BM94: 0 | BN94: 0 | BO94: 0 | BP94: ='2016legmax.xls'!AH91 -> 0 | BQ94: 0 | BR94: 0 | BS94: ='2016legmax.xls'!CJ91 -> 0 | BT94: 0 | BU94: ='2016legmax.xls'!CI91 -> 0 | BV94: 0 | BW94: 0 | BX94: 0 | BY94: 0 | BZ94: 0 | CA94: 0 | CB94: 0 | CC94: 0 | CD94: 0 | CE94: 0 | CF94: 0 | CG94: 0 | CH94: 0 | CI94: 0 | CM94: D0284
A95: 285 | B95: Chautauqua | C95: Cedar Vale | D95: 1415122 | E95: 0 | F95: 0 | G95: 0 | H95: 0 | I95: 172 | J95: 0 | K95: 0 | L95: ='2016legmax.xls'!BJ92 -> 0 | M95: 1415122 | N95: ='2016legmax.xls'!BB92-68 -> 182074 | O95: 173341 | P95: ='2016legmax.xls'!BC92 -> 92323 | Q95: 120773 | R95: ='2016legmax.xls'!BD92 -> 0 | S95: 1862860 | T95: ='2016legmax.xls'!DD92 -> 0 | U95: 338 | V95: 0 | W95: 0 | X95: 0 | Y95: 0 | Z95: 1615 | AA95: ='2016legmax.xls'!AV92 -> 1 | AB95: ='2016legmax.xls'!AW92 -> A | AC95: ='2016legmax.xls'!AX92 ->  | AD95: 1893263 | AE95: 1864813 | AF95: =IF(Weightings!G92>0,Weightings!G92,'Preliminary SO66'!AB89) -> 1966446 | AG95: 1864813 | AH95: 1864813 | AI95: 1826528 | AJ95: ='2016legmax.xls'!BM92 -> 0.3 | AK95: 547958 | AL95: 360829 | AM95: 360829 | AO95: 1420805 | AP95: 0 | AQ95: 0 | AR95: 0 | AS95: 0 | AT95: 0 | AU95: 0 | AV95: 0 | AW95: 0 | AX95: 0 | AY95: 5683 | AZ95: 0 | BA95: 0 | BB95: 1415122 | BC95: ='2016legmax.xls'!F92 -> 163.2 | BD95: ='2016legmax.xls'!I92 -> 163.6 | BE95: ='2016legmax.xls'!K92 -> 172 | BF95: 172 | BG95: ='2016legmax.xls'!O92 -> 0 | BH95: 172 | BI95: =IF(ISNA(VLOOKUP($CM95,'Audit Values'!$A$2:$AE$252,2,FALSE)),'Preliminary SO66'!T89,VLOOKUP($CM95,'Audit Values'!$A$2:$AE$252,20,FALSE)) -> 0 | BJ95: 0 | BK95: =IF(ISNA(VLOOKUP($CM95,'Audit Values'!$A$2:$AE$252,2,FALSE)),'Preliminary SO66'!U89,VLOOKUP($CM95,'Audit Values'!$A$2:$AE$252,21,FALSE)) -> 0 | BL95: 0 | BM95: 0 | BN95: 0 | BO95: 0 | BP95: ='2016legmax.xls'!AH92 -> 0 | BQ95: 0 | BR95: 0 | BS95: ='2016legmax.xls'!CJ92 -> 0 | BT95: 0 | BU95: ='2016legmax.xls'!CI92 -> 0 | BV95: 0 | BW95: 0 | BX95: 0 | BY95: 0 | BZ95: 0 | CA95: 0 | CB95: 0 | CC95: 0 | CD95: 0 | CE95: 0 | CF95: 0 | CG95: 0 | CH95: 0 | CI95: 0 | CM95: D0285
A96: 286 | B96: Chautauqua | C96: Chautauqua Co Community | D96: 2619638 | E96: 20000 | F96: 0 | G96: 0 | H96: 0 | I96: 364.4 | J96: 0 | K96: 0 | L96: ='2016legmax.xls'!BJ93 -> 0 | M96: 2639638 | N96: ='2016legmax.xls'!BB93 -> 422681 | O96: 394110 | P96: ='2016legmax.xls'!BC93 -> 189639 | Q96: 244355 | R96: ='2016legmax.xls'!BD93 -> 2534 | S96: 3648602 | T96: ='2016legmax.xls'!DD93 -> 0 | U96: 1685 | V96: 0 | W96: 0 | X96: 0 | Y96: 1558 | Z96: 0 | AA96: ='2016legmax.xls'!AV93 -> 16 | AB96: ='2016legmax.xls'!AW93 -> A | AC96: ='2016legmax.xls'!AX93 ->  | AD96: 3706561 | AE96: 3651845 | AF96: =IF(Weightings!G93>0,Weightings!G93,'Preliminary SO66'!AB90) -> 3782469 | AG96: 3651845 | AH96: 3651845 | AI96: 3574400 | AJ96: ='2016legmax.xls'!BM93 -> 0.3 | AK96: 1072320 | AL96: 873225 | AM96: 873225 | AO96: 2630159 | AP96: 0 | AQ96: 0 | AR96: 0 | AS96: 0 | AT96: 0 | AU96: 0 | AV96: 0 | AW96: 0 | AX96: 0 | AY96: 10521 | AZ96: 0 | BA96: 0 | BB96: 2619638 | BC96: ='2016legmax.xls'!F93 -> 334.2 | BD96: ='2016legmax.xls'!I93 -> 353.2 | BE96: ='2016legmax.xls'!K93 -> 360.9 | BF96: 360.9 | BG96: ='2016legmax.xls'!O93 -> 3.5 | BH96: 364.4 | BI96: =IF(ISNA(VLOOKUP($CM96,'Audit Values'!$A$2:$AE$252,2,FALSE)),'Preliminary SO66'!T90,VLOOKUP($CM96,'Audit Values'!$A$2:$AE$252,20,FALSE)) -> 4 | BJ96: 20000 | BK96: =IF(ISNA(VLOOKUP($CM96,'Audit Values'!$A$2:$AE$252,2,FALSE)),'Preliminary SO66'!U90,VLOOKUP($CM96,'Audit Values'!$A$2:$AE$252,21,FALSE)) -> 0 | BL96: 0 | BM96: 0 | BN96: 0 | BO96: 20000 | BP96: ='2016legmax.xls'!AH93 -> 0 | BQ96: 0 | BR96: 0 | BS96: ='2016legmax.xls'!CJ93 -> 0 | BT96: 0 | BU96: ='2016legmax.xls'!CI93 -> 0 | BV96: 0 | BW96: 0 | BX96: 0 | BY96: 0 | BZ96: 0 | CA96: 0 | CB96: 0 | CC96: 0 | CD96: 0 | CE96: 0 | CF96: 0 | CG96: 0 | CH96: 0 | CI96: 0 | CM96: D0286
A97: 287 | B97: Franklin | C97: West Franklin | D97: 4021901 | E97: 0 | F97: 0 | G97: 0 | H97: 8550 | I97: 567.3 | J97: 0 | K97: 0 | L97: ='2016legmax.xls'!BJ94 -> 0 | M97: 4030451 | N97: ='2016legmax.xls'!BB94 -> 599527 | O97: 737430 | P97: ='2016legmax.xls'!BC94 -> 327355 | Q97: 427651 | R97: ='2016legmax.xls'!BD94 -> 30782 | S97: 5725545 | T97: ='2016legmax.xls'!DD94 -> 0 | U97: 0 | V97: 8547 | W97: 0 | X97: 0 | Y97: 0 | Z97: 0 | AA97: ='2016legmax.xls'!AV94 -> 10 | AB97: ='2016legmax.xls'!AW94 -> A | AC97: ='2016legmax.xls'!AX94 ->  | AD97: 5834388 | AE97: 5734092 | AF97: =IF(Weightings!G94>0,Weightings!G94,'Preliminary SO66'!AB91) -> 6149581 | AG97: 5734092 | AH97: 5734092 | AI97: 5646665 | AJ97: ='2016legmax.xls'!BM94 -> 0.3 | AK97: 1694000 | AL97: 1694000 | AM97: 1694000 | AO97: 4038053 | AP97: 0 | AQ97: 0 | AR97: 0 | AS97: 0 | AT97: 0 | AU97: 0 | AV97: 0 | AW97: 0 | AX97: 0 | AY97: 16152 | AZ97: 0 | BA97: 0 | BB97: 4021901 | BC97: ='2016legmax.xls'!F94 -> 582 | BD97: ='2016legmax.xls'!I94 -> 553.5 | BE97: ='2016legmax.xls'!K94 -> 566.5 | BF97: 567.3 | BG97: ='2016legmax.xls'!O94 -> 0 | BH97: 567.3 | BI97: =IF(ISNA(VLOOKUP($CM97,'Audit Values'!$A$2:$AE$252,2,FALSE)),'Preliminary SO66'!T91,VLOOKUP($CM97,'Audit Values'!$A$2:$AE$252,20,FALSE)) -> 0 | BJ97: 0 | BK97: =IF(ISNA(VLOOKUP($CM97,'Audit Values'!$A$2:$AE$252,2,FALSE)),'Preliminary SO66'!U91,VLOOKUP($CM97,'Audit Values'!$A$2:$AE$252,21,FALSE)) -> 0 | BL97: 0 | BM97: 0 | BN97: 0 | BO97: 0 | BP97: ='2016legmax.xls'!AH94 -> 0 | BQ97: 0 | BR97: 0 | BS97: ='2016legmax.xls'!CJ94 -> 0 | BT97: 0 | BU97: ='2016legmax.xls'!CI94 -> 0 | BV97: 0 | BW97: 0 | BX97: 0 | BY97: 0 | BZ97: 0 | CA97: 0 | CB97: 0 | CC97: 0 | CD97: 0 | CE97: 0 | CF97: 8550 | CG97: 0 | CH97: 0 | CI97: 0 | CM97: D0287
A98: 288 | B98: Franklin | C98: Central Heights | D98: 4098341 | E98: 0 | F98: 21571 | G98: 0 | H98: 0 | I98: 560 | J98: 0 | K98: 0 | L98: ='2016legmax.xls'!BJ95 -> 0 | M98: 4119912 | N98: ='2016legmax.xls'!BB95 -> 950533 | O98: 443541 | P98: ='2016legmax.xls'!BC95 -> 269154 | Q98: 339372 | R98: ='2016legmax.xls'!BD95 -> 0 | S98: 5783140 | T98: ='2016legmax.xls'!DD95 -> 0 | U98: 0 | V98: 0 | W98: 0 | X98: 0 | Y98: 0 | Z98: 0 | AA98: ='2016legmax.xls'!AV95 -> 5 | AB98: ='2016legmax.xls'!AW95 -> A | AC98: ='2016legmax.xls'!AX95 ->  | AD98: 5853358 | AE98: 5783140 | AF98: =IF(Weightings!G95>0,Weightings!G95,'Preliminary SO66'!AB92) -> 6007229 | AG98: 5783140 | AH98: 5783140 | AI98: 5309988 | AJ98: ='2016legmax.xls'!BM95 -> 0.3 | AK98: 1592996 | AL98: 1592996 | AM98: 1592996 | AO98: 4135298 | AP98: 0 | AQ98: 0 | AR98: 0 | AS98: 0 | AT98: 0 | AU98: 0 | AV98: 0 | AW98: 0 | AX98: 0 | AY98: 16541 | AZ98: 5.3 | BA98: 20416 | BB98: 4098341 | BC98: ='2016legmax.xls'!F95 -> 546.5 | BD98: ='2016legmax.xls'!I95 -> 555 | BE98: ='2016legmax.xls'!K95 -> 533 | BF98: 555 | BG98: ='2016legmax.xls'!O95 -> 5 | BH98: 560 | BI98: =IF(ISNA(VLOOKUP($CM98,'Audit Values'!$A$2:$AE$252,2,FALSE)),'Preliminary SO66'!T92,VLOOKUP($CM98,'Audit Values'!$A$2:$AE$252,20,FALSE)) -> 0 | BJ98: 0 | BK98: =IF(ISNA(VLOOKUP($CM98,'Audit Values'!$A$2:$AE$252,2,FALSE)),'Preliminary SO66'!U92,VLOOKUP($CM98,'Audit Values'!$A$2:$AE$252,21,FALSE)) -> 0 | BL98: 0 | BM98: 0 | BN98: 0 | BO98: 0 | BP98: ='2016legmax.xls'!AH95 -> 5.6 | BQ98: 21571 | BR98: 0 | BS98: ='2016legmax.xls'!CJ95 -> 0 | BT98: 0 | BU98: ='2016legmax.xls'!CI95 -> 0 | BV98: 0 | BW98: 0 | BX98: 0 | BY98: 0 | BZ98: 0 | CA98: 0 | CB98: 0 | CC98: 0 | CD98: 0 | CE98: 0 | CF98: 0 | CG98: 0 | CH98: 0 | CI98: 0 | CM98: D0288
A99: 289 | B99: Franklin | C99: Wellsville | D99: 4541851 | E99: 0 | F99: 0 | G99: 0 | H99: 0 | I99: 765 | J99: 0 | K99: 263 | L99: ='2016legmax.xls'!BJ96 -> 0 | M99: 4541588 | N99: ='2016legmax.xls'!BB96-33 -> 804628 | O99: 767635 | P99: ='2016legmax.xls'!BC96 -> 367406 | Q99: 480311 | R99: ='2016legmax.xls'!BD96 -> 57701 | S99: 6538958 | T99: ='2016legmax.xls'!DD96 -> 0 | U99: 0 | V99: 0 | W99: 0 | X99: 0 | Y99: 0 | Z99: 0 | AA99: ='2016legmax.xls'!AV96 -> 1 | AB99: ='2016legmax.xls'!AW96 -> A | AC99: ='2016legmax.xls'!AX96 ->  | AD99: 6652126 | AE99: 6539221 | AF99: =IF(Weightings!G96>0,Weightings!G96,'Preliminary SO66'!AB93) -> 6743680 | AG99: 6539221 | AH99: 6539221 | AI99: 6112028 | AJ99: ='2016legmax.xls'!BM96 -> 0.3 | AK99: 1833608 | AL99: 1833608 | AM99: 1833608 | AO99: 4568180 | AP99: 2.1 | AQ99: 8089 | AR99: 0 | AS99: 0 | AT99: 0 | AU99: 0 | AV99: 0 | AW99: 0 | AX99: 0 | AY99: 18240 | AZ99: 0 | BA99: 0 | BB99: 4541851 | BC99: ='2016legmax.xls'!F96 -> 762.4 | BD99: ='2016legmax.xls'!I96 -> 765 | BE99: ='2016legmax.xls'!K96 -> 753 | BF99: 765 | BG99: ='2016legmax.xls'!O96 -> 0 | BH99: 765 | BI99: =IF(ISNA(VLOOKUP($CM99,'Audit Values'!$A$2:$AE$252,2,FALSE)),'Preliminary SO66'!T93,VLOOKUP($CM99,'Audit Values'!$A$2:$AE$252,20,FALSE)) -> 0 | BJ99: 0 | BK99: =IF(ISNA(VLOOKUP($CM99,'Audit Values'!$A$2:$AE$252,2,FALSE)),'Preliminary SO66'!U93,VLOOKUP($CM99,'Audit Values'!$A$2:$AE$252,21,FALSE)) -> 0 | BL99: 0 | BM99: 0 | BN99: 0 | BO99: 0 | BP99: ='2016legmax.xls'!AH96 -> 0 | BQ99: 0 | BR99: 0 | BS99: ='2016legmax.xls'!CJ96 -> 0 | BT99: 0 | BU99: ='2016legmax.xls'!CI96 -> 0 | BV99: 0 | BW99: 0 | BX99: 0 | BY99: 0 | BZ99: 0 | CA99: 0 | CB99: 0 | CC99: 0 | CD99: 0 | CE99: 0 | CF99: 0 | CG99: 0 | CH99: 0 | CI99: 0 | CM99: D0289
A100: 290 | B100: Franklin | C100: Ottawa | D100: 12679383 | E100: 130573 | F100: 0 | G100: 0 | H100: 0 | I100: 2393.4 | J100: 0 | K100: 0 | L100: ='2016legmax.xls'!BJ97 -> 0 | M100: 12809956 | N100: ='2016legmax.xls'!BB97 -> 2790842 | O100: 2238936 | P100: ='2016legmax.xls'!BC97 -> 1333298 | Q100: 1755899 | R100: ='2016legmax.xls'!BD97 -> 252929 | S100: 19425961 | T100: ='2016legmax.xls'!DD97 -> 0 | U100: 0 | V100: 0 | W100: 0 | X100: 0 | Y100: 0 | Z100: 41359 | AA100: ='2016legmax.xls'!AV97 -> 10 | AB100: ='2016legmax.xls'!AW97 -> A | AC100: ='2016legmax.xls'!AX97 ->  | AD100: 19889921 | AE100: 19467320 | AF100: =IF(Weightings!G97>0,Weightings!G97,'Preliminary SO66'!AB94) -> 20243809 | AG100: 19467320 | AH100: 19467320 | AI100: 16898066 | AJ100: ='2016legmax.xls'!BM97 -> 0.3 | AK100: 5069420 | AL100: 5069420 | AM100: 5069420 | AO100: 12778839 | AP100: 12.6 | AQ100: 48535 | AR100: 0 | AS100: 0 | AT100: 0 | AU100: 0 | AV100: 0 | AW100: 0 | AX100: 0 | AY100: 50921 | AZ100: 0 | BA100: 0 | BB100: 12679383 | BC100: ='2016legmax.xls'!F97 -> 2355.6 | BD100: ='2016legmax.xls'!I97 -> 2375.4 | BE100: ='2016legmax.xls'!K97 -> 2294.3 | BF100: 2375.4 | BG100: ='2016legmax.xls'!O97 -> 18 | BH100: 2393.4 | BI100: =IF(ISNA(VLOOKUP($CM100,'Audit Values'!$A$2:$AE$252,2,FALSE)),'Preliminary SO66'!T94,VLOOKUP($CM100,'Audit Values'!$A$2:$AE$252,20,FALSE)) -> 21 | BJ100: 105000 | BK100: =IF(ISNA(VLOOKUP($CM100,'Audit Values'!$A$2:$AE$252,2,FALSE)),'Preliminary SO66'!U94,VLOOKUP($CM100,'Audit Values'!$A$2:$AE$252,21,FALSE)) -> 3.9 | BL100: 15776 | BM100: 10.5 | BN100: 9797 | BO100: 130573 | BP100: ='2016legmax.xls'!AH97 -> 0 | BQ100: 0 | BR100: 0 | BS100: ='2016legmax.xls'!CJ97 -> 0 | BT100: 0 | BU100: ='2016legmax.xls'!CI97 -> 0 | BV100: 0 | BW100: 0 | BX100: 0 | BY100: 0 | BZ100: 0 | CA100: 0 | CB100: 0 | CC100: 0 | CD100: 0 | CE100: 0 | CF100: 0 | CG100: 0 | CH100: 0 | CI100: 0 | CM100: D0290
A101: 291 | B101: Gove | C101: Grinnell Public Schools | D101: 786273 | E101: 0 | F101: 0 | G101: 0 | H101: 0 | I101: 86 | J101: 0 | K101: 0 | L101: ='2016legmax.xls'!BJ98 -> 0 | M101: 786273 | N101: ='2016legmax.xls'!BB98 -> 0 | O101: 95876 | P101: ='2016legmax.xls'!BC98 -> 55407 | Q101: 73018 | R101: ='2016legmax.xls'!BD98 -> 0 | S101: 937556 | T101: ='2016legmax.xls'!DD98 -> 0 | U101: 4485 | V101: 0 | W101: 0 | X101: 0 | Y101: 0 | Z101: 2259 | AA101: ='2016legmax.xls'!AV98 -> 9 | AB101: ='2016legmax.xls'!AW98 -> A | AC101: ='2016legmax.xls'!AX98 ->  | AD101: 961911 | AE101: 944300 | AF101: =IF(Weightings!G98>0,Weightings!G98,'Preliminary SO66'!AB95) -> 991850 | AG101: 944300 | AH101: 944300 | AI101: 1034902 | AJ101: ='2016legmax.xls'!BM98 -> 0.2126 | AK101: 220020 | AL101: 212672 | AM101: 212672 | AO101: 789431 | AP101: 0 | AQ101: 0 | AR101: 0 | AS101: 0 | AT101: 0 | AU101: 0 | AV101: 0 | AW101: 0 | AX101: 0 | AY101: 3158 | AZ101: 0 | BA101: 0 | BB101: 786273 | BC101: ='2016legmax.xls'!F98 -> 90 | BD101: ='2016legmax.xls'!I98 -> 82.5 | BE101: ='2016legmax.xls'!K98 -> 85.5 | BF101: 86 | BG101: ='2016legmax.xls'!O98 -> 0 | BH101: 86 | BI101: =IF(ISNA(VLOOKUP($CM101,'Audit Values'!$A$2:$AE$252,2,FALSE)),'Preliminary SO66'!T95,VLOOKUP($CM101,'Audit Values'!$A$2:$AE$252,20,FALSE)) -> 0 | BJ101: 0 | BK101: =IF(ISNA(VLOOKUP($CM101,'Audit Values'!$A$2:$AE$252,2,FALSE)),'Preliminary SO66'!U95,VLOOKUP($CM101,'Audit Values'!$A$2:$AE$252,21,FALSE)) -> 0 | BL101: 0 | BM101: 0 | BN101: 0 | BO101: 0 | BP101: ='2016legmax.xls'!AH98 -> 0 | BQ101: 0 | BR101: 0 | BS101: ='2016legmax.xls'!CJ98 -> 0 | BT101: 0 | BU101: ='2016legmax.xls'!CI98 -> 0 | BV101: 0 | BW101: 0 | BX101: 0 | BY101: 0 | BZ101: 0 | CA101: 0 | CB101: 0 | CC101: 0 | CD101: 0 | CE101: 0 | CF101: 0 | CG101: 0 | CH101: 0 | CI101: 0 | CM101: D0291
A102: 292 | B102: Gove | C102: Wheatland | D102: 978470 | E102: 0 | F102: 0 | G102: 0 | H102: 0 | I102: 106.5 | J102: 0 | K102: 0 | L102: ='2016legmax.xls'!BJ99 -> 0 | M102: 978470 | N102: ='2016legmax.xls'!BB99 -> 0 | O102: 149495 | P102: ='2016legmax.xls'!BC99 -> 84871 | Q102: 111756 | R102: ='2016legmax.xls'!BD99 -> 0 | S102: 1212836 | T102: ='2016legmax.xls'!DD99 -> 0 | U102: 3677 | V102: 0 | W102: 0 | X102: 0 | Y102: 0 | Z102: 640 | AA102: ='2016legmax.xls'!AV99 -> 9 | AB102: ='2016legmax.xls'!AW99 -> A | AC102: ='2016legmax.xls'!AX99 ->  | AD102: 1244038 | AE102: 1217153 | AF102: =IF(Weightings!G99>0,Weightings!G99,'Preliminary SO66'!AB96) -> 1261162 | AG102: 1217153 | AH102: 1217153 | AI102: 1352742 | AJ102: ='2016legmax.xls'!BM99 -> 0.3 | AK102: 405823 | AL102: 405823 | AM102: 405823 | AO102: 982400 | AP102: 0 | AQ102: 0 | AR102: 0 | AS102: 0 | AT102: 0 | AU102: 0 | AV102: 0 | AW102: 0 | AX102: 0 | AY102: 3930 | AZ102: 0 | BA102: 0 | BB102: 978470 | BC102: ='2016legmax.xls'!F99 -> 97.5 | BD102: ='2016legmax.xls'!I99 -> 106.5 | BE102: ='2016legmax.xls'!K99 -> 102 | BF102: 106.5 | BG102: ='2016legmax.xls'!O99 -> 0 | BH102: 106.5 | BI102: =IF(ISNA(VLOOKUP($CM102,'Audit Values'!$A$2:$AE$252,2,FALSE)),'Preliminary SO66'!T96,VLOOKUP($CM102,'Audit Values'!$A$2:$AE$252,20,FALSE)) -> 0 | BJ102: 0 | BK102: =IF(ISNA(VLOOKUP($CM102,'Audit Values'!$A$2:$AE$252,2,FALSE)),'Preliminary SO66'!U96,VLOOKUP($CM102,'Audit Values'!$A$2:$AE$252,21,FALSE)) -> 0 | BL102: 0 | BM102: 0 | BN102: 0 | BO102: 0 | BP102: ='2016legmax.xls'!AH99 -> 0 | BQ102: 0 | BR102: 0 | BS102: ='2016legmax.xls'!CJ99 -> 0 | BT102: 0 | BU102: ='2016legmax.xls'!CI99 -> 0 | BV102: 0 | BW102: 0 | BX102: 0 | BY102: 0 | BZ102: 0 | CA102: 0 | CB102: 0 | CC102: 0 | CD102: 0 | CE102: 0 | CF102: 0 | CG102: 0 | CH102: 0 | CI102: 0 | CM102: D0292
A103: 293 | B103: Gove | C103: Quinter Public Schools | D103: 1894671 | E103: 0 | F103: 0 | G103: 0 | H103: 0 | I103: 286.5 | J103: 0 | K103: 0 | L103: ='2016legmax.xls'!BJ100 -> 0 | M103: 1894671 | N103: ='2016legmax.xls'!BB100 -> 204147 | O103: 300590 | P103: ='2016legmax.xls'!BC100 -> 152177 | Q103: 197333 | R103: ='2016legmax.xls'!BD100 -> 0 | S103: 2551585 | T103: ='2016legmax.xls'!DD100 -> 0 | U103: 6910 | V103: 0 | W103: 0 | X103: 0 | Y103: 0 | Z103: 0 | AA103: ='2016legmax.xls'!AV100 -> 9 | AB103: ='2016legmax.xls'!AW100 -> A | AC103: ='2016legmax.xls'!AX100 ->  | AD103: 2603651 | AE103: 2558495 | AF103: =IF(Weightings!G100>0,Weightings!G100,'Preliminary SO66'!AB97) -> 2960322 | AG103: 2558495 | AH103: 2558495 | AI103: 2777304 | AJ103: ='2016legmax.xls'!BM100 -> 0.31 | AK103: 860964 | AL103: 860964 | AM103: 860964 | AO103: 1902280 | AP103: 0 | AQ103: 0 | AR103: 0 | AS103: 0 | AT103: 0 | AU103: 0 | AV103: 0 | AW103: 0 | AX103: 0 | AY103: 7609 | AZ103: 0 | BA103: 0 | BB103: 1894671 | BC103: ='2016legmax.xls'!F100 -> 285.5 | BD103: ='2016legmax.xls'!I100 -> 283.5 | BE103: ='2016legmax.xls'!K100 -> 269 | BF103: 283.5 | BG103: ='2016legmax.xls'!O100 -> 3 | BH103: 286.5 | BI103: =IF(ISNA(VLOOKUP($CM103,'Audit Values'!$A$2:$AE$252,2,FALSE)),'Preliminary SO66'!T97,VLOOKUP($CM103,'Audit Values'!$A$2:$AE$252,20,FALSE)) -> 0 | BJ103: 0 | BK103: =IF(ISNA(VLOOKUP($CM103,'Audit Values'!$A$2:$AE$252,2,FALSE)),'Preliminary SO66'!U97,VLOOKUP($CM103,'Audit Values'!$A$2:$AE$252,21,FALSE)) -> 0 | BL103: 0 | BM103: 0 | BN103: 0 | BO103: 0 | BP103: ='2016legmax.xls'!AH100 -> 0 | BQ103: 0 | BR103: 0 | BS103: ='2016legmax.xls'!CJ100 -> 0 | BT103: 0 | BU103: ='2016legmax.xls'!CI100 -> 0 | BV103: 0 | BW103: 0 | BX103: 0 | BY103: 0 | BZ103: 0 | CA103: 0 | CB103: 0 | CC103: 0 | CD103: 0 | CE103: 0 | CF103: 0 | CG103: 0 | CH103: 0 | CI103: 0 | CM103: D0293
A104: 294 | B104: Decatur | C104: Oberlin | D104: 2277094 | E104: 0 | F104: 0 | G104: 0 | H104: 0 | I104: 332 | J104: 0 | K104: 0 | L104: ='2016legmax.xls'!BJ101 -> 0 | M104: 2277094 | N104: ='2016legmax.xls'!BB101 -> 49483 | O104: 346272 | P104: ='2016legmax.xls'!BC101 -> 215710 | Q104: 278156 | R104: ='2016legmax.xls'!BD101 -> 0 | S104: 2888559 | T104: ='2016legmax.xls'!DD101 -> 0 | U104: 4096 | V104: 0 | W104: 0 | X104: 125588 | Y104: 0 | Z104: 0 | AA104: ='2016legmax.xls'!AV101 -> 16 | AB104: ='2016legmax.xls'!AW101 -> A | AC104: ='2016legmax.xls'!AX101 ->  | AD104: 2955101 | AE104: 3018243 | AF104: =IF(Weightings!G101>0,Weightings!G101,'Preliminary SO66'!AB98) -> 3021016 | AG104: 3018243 | AH104: 3018243 | AI104: 3014309 | AJ104: ='2016legmax.xls'!BM101 -> 0.3 | AK104: 904293 | AL104: 904293 | AM104: 904293 | AO104: 2286239 | AP104: 0 | AQ104: 0 | AR104: 0 | AS104: 0 | AT104: 0 | AU104: 0 | AV104: 0 | AW104: 0 | AX104: 0 | AY104: 9145 | AZ104: 0 | BA104: 0 | BB104: 2277094 | BC104: ='2016legmax.xls'!F101 -> 344.5 | BD104: ='2016legmax.xls'!I101 -> 332 | BE104: ='2016legmax.xls'!K101 -> 310.5 | BF104: 332 | BG104: ='2016legmax.xls'!O101 -> 0 | BH104: 332 | BI104: =IF(ISNA(VLOOKUP($CM104,'Audit Values'!$A$2:$AE$252,2,FALSE)),'Preliminary SO66'!T98,VLOOKUP($CM104,'Audit Values'!$A$2:$AE$252,20,FALSE)) -> 0 | BJ104: 0 | BK104: =IF(ISNA(VLOOKUP($CM104,'Audit Values'!$A$2:$AE$252,2,FALSE)),'Preliminary SO66'!U98,VLOOKUP($CM104,'Audit Values'!$A$2:$AE$252,21,FALSE)) -> 0 | BL104: 0 | BM104: 0 | BN104: 0 | BO104: 0 | BP104: ='2016legmax.xls'!AH101 -> 0 | BQ104: 0 | BR104: 0 | BS104: ='2016legmax.xls'!CJ101 -> 0 | BT104: 0 | BU104: ='2016legmax.xls'!CI101 -> 0 | BV104: 0 | BW104: 0 | BX104: 0 | BY104: 0 | BZ104: 0 | CA104: 0 | CB104: 0 | CC104: 0 | CD104: 0 | CE104: 0 | CF104: 0 | CG104: 0 | CH104: 0 | CI104: 0 | CM104: D0294
A105: 297 | B105: Cheyenne | C105: St Francis Comm Sch | D105: 1919571 | E105: 0 | F105: 0 | G105: 0 | H105: 0 | I105: 277 | J105: 0 | K105: 0 | L105: ='2016legmax.xls'!BJ102 -> 0 | M105: 1919571 | N105: ='2016legmax.xls'!BB102 -> 91206 | O105: 187738 | P105: ='2016legmax.xls'!BC102 -> 149419 | Q105: 197433 | R105: ='2016legmax.xls'!BD102 -> 0 | S105: 2347934 | T105: ='2016legmax.xls'!DD102 -> 0 | U105: 3984 | V105: 0 | W105: 0 | X105: 0 | Y105: 0 | Z105: 0 | AA105: ='2016legmax.xls'!AV102 -> 12 | AB105: ='2016legmax.xls'!AW102 -> A | AC105: ='2016legmax.xls'!AX102 ->  | AD105: 2399932 | AE105: 2351918 | AF105: =IF(Weightings!G102>0,Weightings!G102,'Preliminary SO66'!AB99) -> 2588959 | AG105: 2351918 | AH105: 2351918 | AI105: 2498530 | AJ105: ='2016legmax.xls'!BM102 -> 0.3 | AK105: 749559 | AL105: 749559 | AM105: 749559 | AO105: 1927280 | AP105: 0 | AQ105: 0 | AR105: 0 | AS105: 0 | AT105: 0 | AU105: 0 | AV105: 0 | AW105: 0 | AX105: 0 | AY105: 7709 | AZ105: 0 | BA105: 0 | BB105: 1919571 | BC105: ='2016legmax.xls'!F102 -> 284 | BD105: ='2016legmax.xls'!I102 -> 277 | BE105: ='2016legmax.xls'!K102 -> 270 | BF105: 277 | BG105: ='2016legmax.xls'!O102 -> 0 | BH105: 277 | BI105: =IF(ISNA(VLOOKUP($CM105,'Audit Values'!$A$2:$AE$252,2,FALSE)),'Preliminary SO66'!T99,VLOOKUP($CM105,'Audit Values'!$A$2:$AE$252,20,FALSE)) -> 0 | BJ105: 0 | BK105: =IF(ISNA(VLOOKUP($CM105,'Audit Values'!$A$2:$AE$252,2,FALSE)),'Preliminary SO66'!U99,VLOOKUP($CM105,'Audit Values'!$A$2:$AE$252,21,FALSE)) -> 0 | BL105: 0 | BM105: 0 | BN105: 0 | BO105: 0 | BP105: ='2016legmax.xls'!AH102 -> 0 | BQ105: 0 | BR105: 0 | BS105: ='2016legmax.xls'!CJ102 -> 0 | BT105: 0 | BU105: ='2016legmax.xls'!CI102 -> 0 | BV105: 0 | BW105: 0 | BX105: 0 | BY105: 0 | BZ105: 0 | CA105: 0 | CB105: 0 | CC105: 0 | CD105: 0 | CE105: 0 | CF105: 0 | CG105: 0 | CH105: 0 | CI105: 0 | CM105: D0297
A106: 298 | B106: Lincoln | C106: Lincoln | D106: 2461029 | E106: 0 | F106: 0 | G106: 0 | H106: 0 | I106: 346 | J106: 0 | K106: 0 | L106: ='2016legmax.xls'!BJ103 -> 0 | M106: 2461029 | N106: ='2016legmax.xls'!BB103 -> 334115 | O106: 399342 | P106: ='2016legmax.xls'!BC103 -> 200709 | Q106: 262198 | R106: ='2016legmax.xls'!BD103 -> 13356 | S106: 3408551 | T106: ='2016legmax.xls'!DD103 -> 0 | U106: 0 | V106: 0 | W106: 0 | X106: 0 | Y106: 0 | Z106: 116406 | AA106: ='2016legmax.xls'!AV103 -> 11 | AB106: ='2016legmax.xls'!AW103 -> A | AC106: ='2016legmax.xls'!AX103 ->  | AD106: 3586446 | AE106: 3524957 | AF106: =IF(Weightings!G103>0,Weightings!G103,'Preliminary SO66'!AB100) -> 3723548 | AG106: 3524957 | AH106: 3524957 | AI106: 3320764 | AJ106: ='2016legmax.xls'!BM103 -> 0.3 | AK106: 996229 | AL106: 996229 | AM106: 996229 | AO106: 2470913 | AP106: 0 | AQ106: 0 | AR106: 0 | AS106: 0 | AT106: 0 | AU106: 0 | AV106: 0 | AW106: 0 | AX106: 0 | AY106: 9884 | AZ106: 0 | BA106: 0 | BB106: 2461029 | BC106: ='2016legmax.xls'!F103 -> 340.5 | BD106: ='2016legmax.xls'!I103 -> 326.6 | BE106: ='2016legmax.xls'!K103 -> 339.5 | BF106: 339.5 | BG106: ='2016legmax.xls'!O103 -> 6.5 | BH106: 346 | BI106: =IF(ISNA(VLOOKUP($CM106,'Audit Values'!$A$2:$AE$252,2,FALSE)),'Preliminary SO66'!T100,VLOOKUP($CM106,'Audit Values'!$A$2:$AE$252,20,FALSE)) -> 0 | BJ106: 0 | BK106: =IF(ISNA(VLOOKUP($CM106,'Audit Values'!$A$2:$AE$252,2,FALSE)),'Preliminary SO66'!U100,VLOOKUP($CM106,'Audit Values'!$A$2:$AE$252,21,FALSE)) -> 0 | BL106: 0 | BM106: 0 | BN106: 0 | BO106: 0 | BP106: ='2016legmax.xls'!AH103 -> 0 | BQ106: 0 | BR106: 0 | BS106: ='2016legmax.xls'!CJ103 -> 0 | BT106: 0 | BU106: ='2016legmax.xls'!CI103 -> 0 | BV106: 0 | BW106: 0 | BX106: 0 | BY106: 0 | BZ106: 0 | CA106: 0 | CB106: 0 | CC106: 0 | CD106: 0 | CE106: 0 | CF106: 0 | CG106: 0 | CH106: 0 | CI106: 0 | CM106: D0298
A107: 299 | B107: Lincoln | C107: Sylvan Grove | D107: 1843604 | E107: 0 | F107: 0 | G107: 0 | H107: 0 | I107: 227.9 | J107: 0 | K107: 4125 | L107: ='2016legmax.xls'!BJ104 -> 0 | M107: 1839479 | N107: ='2016legmax.xls'!BB104-5366 -> 66548 | O107: 219584 | P107: ='2016legmax.xls'!BC104 -> 105493 | Q107: 138359 | R107: ='2016legmax.xls'!BD104 -> 0 | S107: 2231104 | T107: ='2016legmax.xls'!DD104 -> 0 | U107: 0 | V107: 0 | W107: 0 | X107: 0 | Y107: 0 | Z107: 0 | AA107: ='2016legmax.xls'!AV104 -> 11 | AB107: ='2016legmax.xls'!AW104 -> A | AC107: ='2016legmax.xls'!AX104 ->  | AD107: 2268095 | AE107: 2235229 | AF107: =IF(Weightings!G104>0,Weightings!G104,'Preliminary SO66'!AB101) -> 2361105 | AG107: 2235229 | AH107: 2235229 | AI107: 2394374 | AJ107: ='2016legmax.xls'!BM104 -> 0.3 | AK107: 718312 | AL107: 553819 | AM107: 553819 | AO107: 1851008 | AP107: 0 | AQ107: 0 | AR107: 0 | AS107: 0 | AT107: 0 | AU107: 0 | AV107: 0 | AW107: 0 | AX107: 0 | AY107: 7404 | AZ107: 0 | BA107: 0 | BB107: 1843604 | BC107: ='2016legmax.xls'!F104 -> 212.7 | BD107: ='2016legmax.xls'!I104 -> 217.8 | BE107: ='2016legmax.xls'!K104 -> 225.4 | BF107: 225.4 | BG107: ='2016legmax.xls'!O104 -> 2.5 | BH107: 227.9 | BI107: =IF(ISNA(VLOOKUP($CM107,'Audit Values'!$A$2:$AE$252,2,FALSE)),'Preliminary SO66'!T101,VLOOKUP($CM107,'Audit Values'!$A$2:$AE$252,20,FALSE)) -> 0 | BJ107: 0 | BK107: =IF(ISNA(VLOOKUP($CM107,'Audit Values'!$A$2:$AE$252,2,FALSE)),'Preliminary SO66'!U101,VLOOKUP($CM107,'Audit Values'!$A$2:$AE$252,21,FALSE)) -> 0 | BL107: 0 | BM107: 0 | BN107: 0 | BO107: 0 | BP107: ='2016legmax.xls'!AH104 -> 0 | BQ107: 0 | BR107: 0 | BS107: ='2016legmax.xls'!CJ104 -> 0 | BT107: 0 | BU107: ='2016legmax.xls'!CI104 -> 0 | BV107: 0 | BW107: 0 | BX107: 0 | BY107: 0 | BZ107: 0 | CA107: 0 | CB107: 0 | CC107: 0 | CD107: 0 | CE107: 0 | CF107: 0 | CG107: 0 | CH107: 0 | CI107: 0 | CM107: D0299
A108: 300 | B108: Comanche | C108: Comanche County | D108: 2166274 | E108: 0 | F108: 0 | G108: 0 | H108: 0 | I108: 316.5 | J108: 0 | K108: 5843 | L108: ='2016legmax.xls'!BJ105 -> 0 | M108: 2160431 | N108: ='2016legmax.xls'!BB105 -> 0 | O108: 406443 | P108: ='2016legmax.xls'!BC105 -> 144039 | Q108: 188459 | R108: ='2016legmax.xls'!BD105 -> 0 | S108: 2710913 | T108: ='2016legmax.xls'!DD105 -> 0 | U108: 40760 | V108: 0 | W108: 0 | X108: 0 | Y108: 33887 | Z108: 5891 | AA108: ='2016legmax.xls'!AV105 -> 16 | AB108: ='2016legmax.xls'!AW105 -> A | AC108: ='2016legmax.xls'!AX105 ->  | AD108: 2841714 | AE108: 2797294 | AF108: =IF(Weightings!G105>0,Weightings!G105,'Preliminary SO66'!AB102) -> 2966733 | AG108: 2797294 | AH108: 2797294 | AI108: 3120944 | AJ108: ='2016legmax.xls'!BM105 -> 0.3 | AK108: 936283 | AL108: 936283 | AM108: 936283 | AO108: 2174974 | AP108: 0 | AQ108: 0 | AR108: 0 | AS108: 0 | AT108: 0 | AU108: 0 | AV108: 0 | AW108: 0 | AX108: 0 | AY108: 8700 | AZ108: 0 | BA108: 0 | BB108: 2166274 | BC108: ='2016legmax.xls'!F105 -> 324.5 | BD108: ='2016legmax.xls'!I105 -> 312 | BE108: ='2016legmax.xls'!K105 -> 313 | BF108: 316.5 | BG108: ='2016legmax.xls'!O105 -> 0 | BH108: 316.5 | BI108: =IF(ISNA(VLOOKUP($CM108,'Audit Values'!$A$2:$AE$252,2,FALSE)),'Preliminary SO66'!T102,VLOOKUP($CM108,'Audit Values'!$A$2:$AE$252,20,FALSE)) -> 0 | BJ108: 0 | BK108: =IF(ISNA(VLOOKUP($CM108,'Audit Values'!$A$2:$AE$252,2,FALSE)),'Preliminary SO66'!U102,VLOOKUP($CM108,'Audit Values'!$A$2:$AE$252,21,FALSE)) -> 0 | BL108: 0 | BM108: 0 | BN108: 0 | BO108: 0 | BP108: ='2016legmax.xls'!AH105 -> 0 | BQ108: 0 | BR108: 0 | BS108: ='2016legmax.xls'!CJ105 -> 0 | BT108: 0 | BU108: ='2016legmax.xls'!CI105 -> 0 | BV108: 0 | BW108: 0 | BX108: 0 | BY108: 0 | BZ108: 0 | CA108: 0 | CB108: 0 | CC108: 0 | CD108: 0 | CE108: 0 | CF108: 0 | CG108: 0 | CH108: 0 | CI108: 0 | CM108: D0300
A109: 303 | B109: Ness | C109: Ness City | D109: 1908230 | E109: 0 | F109: 0 | G109: 0 | H109: 0 | I109: 293.9 | J109: 0 | K109: 1 | L109: ='2016legmax.xls'!BJ106 -> 0 | M109: 1908229 | N109: ='2016legmax.xls'!BB106 -> 0 | O109: 212506 | P109: ='2016legmax.xls'!BC106 -> 150130 | Q109: 196736 | R109: ='2016legmax.xls'!BD106 -> 0 | S109: 2270865 | T109: ='2016legmax.xls'!DD106 -> 0 | U109: 29884 | V109: 0 | W109: 0 | X109: 10000 | Y109: 0 | Z109: 0 | AA109: ='2016legmax.xls'!AV106 -> 15 | AB109: ='2016legmax.xls'!AW106 -> A | AC109: ='2016legmax.xls'!AX106 ->  | AD109: 2347356 | AE109: 2310750 | AF109: =IF(Weightings!G106>0,Weightings!G106,'Preliminary SO66'!AB103) -> 2466440 | AG109: 2310750 | AH109: 2310750 | AI109: 2572623 | AJ109: ='2016legmax.xls'!BM106 -> 0.3 | AK109: 771787 | AL109: 771787 | AM109: 771787 | AO109: 1915894 | AP109: 0 | AQ109: 0 | AR109: 0 | AS109: 0 | AT109: 0 | AU109: 0 | AV109: 0 | AW109: 0 | AX109: 0 | AY109: 7664 | AZ109: 0 | BA109: 0 | BB109: 1908230 | BC109: ='2016legmax.xls'!F106 -> 298.8 | BD109: ='2016legmax.xls'!I106 -> 293.9 | BE109: ='2016legmax.xls'!K106 -> 281.1 | BF109: 293.9 | BG109: ='2016legmax.xls'!O106 -> 0 | BH109: 293.9 | BI109: =IF(ISNA(VLOOKUP($CM109,'Audit Values'!$A$2:$AE$252,2,FALSE)),'Preliminary SO66'!T103,VLOOKUP($CM109,'Audit Values'!$A$2:$AE$252,20,FALSE)) -> 0 | BJ109: 0 | BK109: =IF(ISNA(VLOOKUP($CM109,'Audit Values'!$A$2:$AE$252,2,FALSE)),'Preliminary SO66'!U103,VLOOKUP($CM109,'Audit Values'!$A$2:$AE$252,21,FALSE)) -> 0 | BL109: 0 | BM109: 0 | BN109: 0 | BO109: 0 | BP109: ='2016legmax.xls'!AH106 -> 0 | BQ109: 0 | BR109: 0 | BS109: ='2016legmax.xls'!CJ106 -> 0 | BT109: 0 | BU109: ='2016legmax.xls'!CI106 -> 0 | BV109: 0 | BW109: 0 | BX109: 0 | BY109: 0 | BZ109: 0 | CA109: 0 | CB109: 0 | CC109: 0 | CD109: 0 | CE109: 0 | CF109: 0 | CG109: 0 | CH109: 0 | CI109: 0 | CM109: D0303
A110: 305 | B110: Saline | C110: Salina | D110: 36776011 | E110: 120582 | F110: 0 | G110: 0 | H110: 0 | I110: 6950.7 | J110: 0 | K110: 0 | L110: ='2016legmax.xls'!BJ107 -> 0 | M110: 36896593 | N110: ='2016legmax.xls'!BB107 -> 6442128 | O110: 6513844 | P110: ='2016legmax.xls'!BC107 -> 5178172 | Q110: 6792159 | R110: ='2016legmax.xls'!BD107 -> 365490 | S110: 55396227 | T110: ='2016legmax.xls'!DD107 -> 0 | U110: 69 | V110: 0 | W110: 0 | X110: 0 | Y110: 215000 | Z110: 78500 | AA110: ='2016legmax.xls'!AV107 -> 6 | AB110: ='2016legmax.xls'!AW107 -> A | AC110: ='2016legmax.xls'!AX107 ->  | AD110: 57303783 | AE110: 55689796 | AF110: =IF(Weightings!G107>0,Weightings!G107,'Preliminary SO66'!AB104) -> 58875408 | AG110: 55689796 | AH110: 55689796 | AI110: 50008299 | AJ110: ='2016legmax.xls'!BM107 -> 0.3 | AK110: 15002490 | AL110: 15002490 | AM110: 15002490 | AO110: 37140574 | AP110: 56.3 | AQ110: 216868 | AR110: 0 | AS110: 0 | AT110: 0 | AU110: 0 | AV110: 0 | AW110: 0 | AX110: 0 | AY110: 147695 | AZ110: 0 | BA110: 0 | BB110: 36776011 | BC110: ='2016legmax.xls'!F107 -> 6894.1 | BD110: ='2016legmax.xls'!I107 -> 6920.7 | BE110: ='2016legmax.xls'!K107 -> 6883 | BF110: 6920.7 | BG110: ='2016legmax.xls'!O107 -> 30 | BH110: 6950.7 | BI110: =IF(ISNA(VLOOKUP($CM110,'Audit Values'!$A$2:$AE$252,2,FALSE)),'Preliminary SO66'!T104,VLOOKUP($CM110,'Audit Values'!$A$2:$AE$252,20,FALSE)) -> 0 | BJ110: 0 | BK110: =IF(ISNA(VLOOKUP($CM110,'Audit Values'!$A$2:$AE$252,2,FALSE)),'Preliminary SO66'!U104,VLOOKUP($CM110,'Audit Values'!$A$2:$AE$252,21,FALSE)) -> 3.4 | BL110: 13753 | BM110: 114.5 | BN110: 106829 | BO110: 120582 | BP110: ='2016legmax.xls'!AH107 -> 0 | BQ110: 0 | BR110: 0 | BS110: ='2016legmax.xls'!CJ107 -> 0 | BT110: 0 | BU110: ='2016legmax.xls'!CI107 -> 0 | BV110: 0 | BW110: 0 | BX110: 0 | BY110: 0 | BZ110: 0 | CA110: 0 | CB110: 0 | CC110: 0 | CD110: 0 | CE110: 0 | CF110: 0 | CG110: 0 | CH110: 0 | CI110: 0 | CM110: D0305
A111: 306 | B111: Saline | C111: Southeast Of Saline | D111: 4341336 | E111: 0 | F111: 0 | G111: =BV111+BZ111+CD111 -> 0 | H111: 0 | I111: 694.5 | J111: 0 | K111: 79 | L111: ='2016legmax.xls'!BJ108 -> 0 | M111: 4341257 | N111: ='2016legmax.xls'!BB108 -> 253149 | O111: 632109 | P111: ='2016legmax.xls'!BC108 -> 367255 | Q111: 478755 | R111: ='2016legmax.xls'!BD108 -> 0 | S111: 5593770 | T111: ='2016legmax.xls'!DD108 -> 0 | U111: 152 | V111: 0 | W111: 0 | X111: 0 | Y111: 0 | Z111: 8500 | AA111: ='2016legmax.xls'!AV108 -> 13 | AB111: ='2016legmax.xls'!AW108 -> A | AC111: ='2016legmax.xls'!AX108 ->  | AD111: 5714001 | AE111: 5602501 | AF111: =IF(Weightings!G108>0,Weightings!G108,'Preliminary SO66'!AB105) -> 5841561 | AG111: 5602501 | AH111: 5602501 | AI111: 5725372 | AJ111: ='2016legmax.xls'!BM108 -> 0.3 | AK111: 1717612 | AL111: 1717612 | AM111: 1717612 | AO111: 4379572 | AP111: 5.4 | AQ111: 20801 | AR111: 0 | AS111: 0 | AT111: 0 | AU111: 0 | AV111: 0 | AW111: 0 | AX111: 0 | AY111: 17435 | AZ111: 0 | BA111: 0 | BB111: 4341336 | BC111: ='2016legmax.xls'!F108 -> 720.2 | BD111: ='2016legmax.xls'!I108 -> 692.8 | BE111: ='2016legmax.xls'!K108 -> 670.5 | BF111: 694.5 | BG111: ='2016legmax.xls'!O108 -> 0 | BH111: 694.5 | BI111: =IF(ISNA(VLOOKUP($CM111,'Audit Values'!$A$2:$AE$252,2,FALSE)),'Preliminary SO66'!T105,VLOOKUP($CM111,'Audit Values'!$A$2:$AE$252,20,FALSE)) -> 0 | BJ111: 0 | BK111: =IF(ISNA(VLOOKUP($CM111,'Audit Values'!$A$2:$AE$252,2,FALSE)),'Preliminary SO66'!U105,VLOOKUP($CM111,'Audit Values'!$A$2:$AE$252,21,FALSE)) -> 0 | BL111: 0 | BM111: 0 | BN111: 0 | BO111: 0 | BP111: ='2016legmax.xls'!AH108 -> 0 | BQ111: 0 | BR111: 0 | BS111: ='2016legmax.xls'!CJ108 -> 0 | BT111: 0 | BU111: ='2016legmax.xls'!CI108 -> 0 | BV111: 0 | BW111: 0 | BX111: 0 | BY111: 0 | BZ111: 0 | CA111: 0 | CB111: 0 | CC111: 0 | CD111: 0 | CE111: 0 | CF111: 0 | CG111: 0 | CH111: 0 | CI111: 0 | CM111: D0306
A112: 307 | B112: Saline | C112: Ell-Saline | D112: 3113944 | E112: 15000 | F112: 0 | G112: 0 | H112: 0 | I112: 468.5 | J112: 0 | K112: 0 | L112: ='2016legmax.xls'!BJ109 -> 0 | M112: 3128944 | N112: ='2016legmax.xls'!BB109 -> 763981 | O112: 406752 | P112: ='2016legmax.xls'!BC109 -> 212874 | Q112: 278718 | R112: ='2016legmax.xls'!BD109 -> 29311 | S112: 4541862 | T112: ='2016legmax.xls'!DD109 -> 0 | U112: 0 | V112: 20833 | W112: 0 | X112: 0 | Y112: 0 | Z112: 0 | AA112: ='2016legmax.xls'!AV109 -> 13 | AB112: ='2016legmax.xls'!AW109 -> A | AC112: ='2016legmax.xls'!AX109 ->  | AD112: 4628539 | AE112: 4562695 | AF112: =IF(Weightings!G109>0,Weightings!G109,'Preliminary SO66'!AB106) -> 4908825 | AG112: 4562695 | AH112: 4562695 | AI112: 4111125 | AJ112: ='2016legmax.xls'!BM109 -> 0.3 | AK112: 1233338 | AL112: 1233338 | AM112: 1233338 | AO112: 3157266 | AP112: 8 | AQ112: 30816 | AR112: 0 | AS112: 0 | AT112: 0 | AU112: 0 | AV112: 0 | AW112: 0 | AX112: 0 | AY112: 12506 | AZ112: 0 | BA112: 0 | BB112: 3113944 | BC112: ='2016legmax.xls'!F109 -> 489.2 | BD112: ='2016legmax.xls'!I109 -> 468.5 | BE112: ='2016legmax.xls'!K109 -> 445.5 | BF112: 468.5 | BG112: ='2016legmax.xls'!O109 -> 0 | BH112: 468.5 | BI112: =IF(ISNA(VLOOKUP($CM112,'Audit Values'!$A$2:$AE$252,2,FALSE)),'Preliminary SO66'!T106,VLOOKUP($CM112,'Audit Values'!$A$2:$AE$252,20,FALSE)) -> 3 | BJ112: 15000 | BK112: =IF(ISNA(VLOOKUP($CM112,'Audit Values'!$A$2:$AE$252,2,FALSE)),'Preliminary SO66'!U106,VLOOKUP($CM112,'Audit Values'!$A$2:$AE$252,21,FALSE)) -> 0 | BL112: 0 | BM112: 0 | BN112: 0 | BO112: 15000 | BP112: ='2016legmax.xls'!AH109 -> 0 | BQ112: 0 | BR112: 0 | BS112: ='2016legmax.xls'!CJ109 -> 0 | BT112: 0 | BU112: ='2016legmax.xls'!CI109 -> 0 | BV112: 0 | BW112: 0 | BX112: 0 | BY112: 0 | BZ112: 0 | CA112: 0 | CB112: 0 | CC112: 0 | CD112: 0 | CE112: 21000 | CF112: 20883 | CG112: 0 | CH112: 0 | CI112: 0 | CM112: D0307
A113: 308 | B113: Reno | C113: Hutchinson Public Schools | D113: 25947982 | E113: 9330 | F113: 0 | G113: 0 | H113: 0 | I113: 4818.1 | J113: 0 | K113: 11437 | L113: ='2016legmax.xls'!BJ110 -> 0 | M113: 25945875 | N113: ='2016legmax.xls'!BB110 -> 6262320 | O113: 4173582 | P113: ='2016legmax.xls'!BC110 -> 2541983 | Q113: 3345895 | R113: ='2016legmax.xls'!BD110 -> 287216 | S113: 39210976 | T113: ='2016legmax.xls'!DD110 -> 0 | U113: 0 | V113: 0 | W113: 0 | X113: 380211 | Y113: 0 | Z113: 26917 | AA113: ='2016legmax.xls'!AV110 -> 12 | AB113: ='2016legmax.xls'!AW110 -> A | AC113: ='2016legmax.xls'!AX110 ->  | AD113: 40053242 | AE113: 39629541 | AF113: =IF(Weightings!G110>0,Weightings!G110,'Preliminary SO66'!AB107) -> 41629123 | AG113: 39629541 | AH113: 39629541 | AI113: 34553318 | AJ113: ='2016legmax.xls'!BM110 -> 0.3 | AK113: 10365995 | AL113: 10287770 | AM113: 10287770 | AO113: 26117290 | AP113: 16.9 | AQ113: 65099 | AR113: 0 | AS113: 0 | AT113: 0 | AU113: 0 | AV113: 0 | AW113: 0 | AX113: 0 | AY113: 104209 | AZ113: 0 | BA113: 0 | BB113: 25947982 | BC113: ='2016legmax.xls'!F110 -> 4852.5 | BD113: ='2016legmax.xls'!I110 -> 4792.6 | BE113: ='2016legmax.xls'!K110 -> 4677.7 | BF113: 4792.6 | BG113: ='2016legmax.xls'!O110 -> 25.5 | BH113: 4818.1 | BI113: =IF(ISNA(VLOOKUP($CM113,'Audit Values'!$A$2:$AE$252,2,FALSE)),'Preliminary SO66'!T107,VLOOKUP($CM113,'Audit Values'!$A$2:$AE$252,20,FALSE)) -> 0 | BJ113: 0 | BK113: =IF(ISNA(VLOOKUP($CM113,'Audit Values'!$A$2:$AE$252,2,FALSE)),'Preliminary SO66'!U107,VLOOKUP($CM113,'Audit Values'!$A$2:$AE$252,21,FALSE)) -> 0 | BL113: 0 | BM113: 10 | BN113: 9330 | BO113: 9330 | BP113: ='2016legmax.xls'!AH110 -> 0 | BQ113: 0 | BR113: 0 | BS113: ='2016legmax.xls'!CJ110 -> 0 | BT113: 0 | BU113: ='2016legmax.xls'!CI110 -> 0 | BV113: 0 | BW113: 0 | BX113: 0 | BY113: 0 | BZ113: 0 | CA113: 0 | CB113: 0 | CC113: 0 | CD113: 0 | CE113: 0 | CF113: 0 | CG113: 0 | CH113: 0 | CI113: 0 | CM113: D0308
A114: 309 | B114: Reno | C114: Nickerson | D114: 6792407 | E114: 17424 | F114: 0 | G114: 0 | H114: 0 | I114: 1112 | J114: 0 | K114: 0 | L114: ='2016legmax.xls'!BJ111 -> 0 | M114: 6809831 | N114: ='2016legmax.xls'!BB111 -> 1203647 | O114: 1158729 | P114: ='2016legmax.xls'!BC111 -> 553600 | Q114: 728075 | R114: ='2016legmax.xls'!BD111 -> 40722 | S114: 9766529 | T114: ='2016legmax.xls'!DD111 -> 0 | U114: 614 | V114: 0 | W114: 0 | X114: 0 | Y114: 0 | Z114: 0 | AA114: ='2016legmax.xls'!AV111 -> 14 | AB114: ='2016legmax.xls'!AW111 -> A | AC114: ='2016legmax.xls'!AX111 ->  | AD114: 9941618 | AE114: 9767143 | AF114: =IF(Weightings!G111>0,Weightings!G111,'Preliminary SO66'!AB108) -> 10204711 | AG114: =MIN(AE114,AF114) -> 9767143 | AH114: 9767143 | AI114: 9232439 | AJ114: ='2016legmax.xls'!BM111 -> 0.3 | AK114: 2769732 | AL114: 2769732 | AM114: 2769732 | AO114: 6819686 | AP114: 0 | AQ114: 0 | AR114: 0 | AS114: 0 | AT114: 0 | AU114: 0 | AV114: 0 | AW114: 0 | AX114: 0 | AY114: 27279 | AZ114: 0 | BA114: 0 | BB114: 6792407 | BC114: ='2016legmax.xls'!F111 -> 1098.3 | BD114: ='2016legmax.xls'!I111 -> 1106 | BE114: ='2016legmax.xls'!K111 -> 1064 | BF114: 1106 | BG114: ='2016legmax.xls'!O111 -> 6 | BH114: 1112 | BI114: =IF(ISNA(VLOOKUP($CM114,'Audit Values'!$A$2:$AE$252,2,FALSE)),'Preliminary SO66'!T108,VLOOKUP($CM114,'Audit Values'!$A$2:$AE$252,20,FALSE)) -> 0 | BJ114: 0 | BK114: =IF(ISNA(VLOOKUP($CM114,'Audit Values'!$A$2:$AE$252,2,FALSE)),'Preliminary SO66'!U108,VLOOKUP($CM114,'Audit Values'!$A$2:$AE$252,21,FALSE)) -> 3.5 | BL114: 14158 | BM114: 3.5 | BN114: 3266 | BO114: 17424 | BP114: ='2016legmax.xls'!AH111 -> 0 | BQ114: 0 | BR114: 0 | BS114: ='2016legmax.xls'!CJ111 -> 0 | BT114: 0 | BU114: ='2016legmax.xls'!CI111 -> 0 | BV114: 0 | BW114: 0 | BX114: 0 | BY114: 0 | BZ114: 0 | CA114: 0 | CB114: 0 | CC114: 0 | CD114: 0 | CE114: 0 | CF114: 0 | CG114: 0 | CH114: 0 | CI114: 0 | CM114: D0309
A115: 310 | B115: Reno | C115: Fairfield | D115: 2297937 | E115: 0 | F115: 0 | G115: 0 | H115: 0 | I115: 287 | J115: 0 | K115: 14214 | L115: ='2016legmax.xls'!BJ112 -> 0 | M115: 2283723 | N115: ='2016legmax.xls'!BB112 -> 0 | O115: 300583 | P115: ='2016legmax.xls'!BC112 -> 197886 | Q115: 258506 | R115: ='2016legmax.xls'!BD112 -> 0 | S115: 2782192 | T115: ='2016legmax.xls'!DD112 -> 0 | U115: 3532 | V115: 0 | W115: 0 | X115: 0 | Y115: 0 | Z115: 0 | AA115: ='2016legmax.xls'!AV112 -> 4 | AB115: ='2016legmax.xls'!AW112 -> A | AC115: ='2016legmax.xls'!AX112 ->  | AD115: 2860558 | AE115: 2799938 | AF115: =IF(Weightings!G112>0,Weightings!G112,'Preliminary SO66'!AB109) -> 2993646 | AG115: 2799938 | AH115: 2799938 | AI115: 3102360 | AJ115: ='2016legmax.xls'!BM112 -> 0.3 | AK115: 930708 | AL115: 930708 | AM115: 930708 | AO115: 2307166 | AP115: 0 | AQ115: 0 | AR115: 0 | AS115: 0 | AT115: 0 | AU115: 0 | AV115: 0 | AW115: 0 | AX115: 0 | AY115: 9229 | AZ115: 0 | BA115: 0 | BB115: 2297937 | BC115: ='2016legmax.xls'!F112 -> 272 | BD115: ='2016legmax.xls'!I112 -> 274.5 | BE115: ='2016legmax.xls'!K112 -> 287 | BF115: 287 | BG115: ='2016legmax.xls'!O112 -> 0 | BH115: 287 | BI115: =IF(ISNA(VLOOKUP($CM115,'Audit Values'!$A$2:$AE$252,2,FALSE)),'Preliminary SO66'!T109,VLOOKUP($CM115,'Audit Values'!$A$2:$AE$252,20,FALSE)) -> 0 | BJ115: 0 | BK115: =IF(ISNA(VLOOKUP($CM115,'Audit Values'!$A$2:$AE$252,2,FALSE)),'Preliminary SO66'!U109,VLOOKUP($CM115,'Audit Values'!$A$2:$AE$252,21,FALSE)) -> 0 | BL115: 0 | BM115: 0 | BN115: 0 | BO115: 0 | BP115: ='2016legmax.xls'!AH112 -> 0 | BQ115: 0 | BR115: 0 | BS115: ='2016legmax.xls'!CJ112 -> 0 | BT115: 0 | BU115: ='2016legmax.xls'!CI112 -> 0 | BV115: 0 | BW115: 0 | BX115: 0 | BY115: 0 | BZ115: 0 | CA115: 0 | CB115: 0 | CC115: 0 | CD115: 0 | CE115: 0 | CF115: 0 | CG115: 0 | CH115: 0 | CI115: 0 | CM115: D0310
A116: 311 | B116: Reno | C116: Pretty Prairie | D116: 1942304 | E116: 0 | F116: 0 | G116: 0 | H116: 0 | I116: 272.4 | J116: 0 | K116: 0 | L116: ='2016legmax.xls'!BJ113 -> 0 | M116: 1942304 | N116: ='2016legmax.xls'!BB113 -> 344760 | O116: 260066 | P116: ='2016legmax.xls'!BC113 -> 136224 | Q116: 176323 | R116: ='2016legmax.xls'!BD113 -> 22851 | S116: 2706205 | T116: ='2016legmax.xls'!DD113 -> 0 | U116: 804 | V116: 0 | W116: 0 | X116: 0 | Y116: 3102 | Z116: 0 | AA116: ='2016legmax.xls'!AV113 -> 10 | AB116: ='2016legmax.xls'!AW113 -> A | AC116: ='2016legmax.xls'!AX113 ->  | AD116: 2750210 | AE116: 2710111 | AF116: =IF(Weightings!G113>0,Weightings!G113,'Preliminary SO66'!AB110) -> 2868653 | AG116: 2710111 | AH116: 2710111 | AI116: 2550806 | AJ116: ='2016legmax.xls'!BM113 -> 0.3 | AK116: 765242 | AL116: 765242 | AM116: 765242 | AO116: 1950104 | AP116: 0 | AQ116: 0 | AR116: 0 | AS116: 0 | AT116: 0 | AU116: 0 | AV116: 0 | AW116: 0 | AX116: 0 | AY116: 7800 | AZ116: 0 | BA116: 0 | BB116: 1942304 | BC116: ='2016legmax.xls'!F113 -> 275.3 | BD116: ='2016legmax.xls'!I113 -> 272.4 | BE116: ='2016legmax.xls'!K113 -> 251.5 | BF116: 272.4 | BG116: ='2016legmax.xls'!O113 -> 0 | BH116: 272.4 | BI116: =IF(ISNA(VLOOKUP($CM116,'Audit Values'!$A$2:$AE$252,2,FALSE)),'Preliminary SO66'!T110,VLOOKUP($CM116,'Audit Values'!$A$2:$AE$252,20,FALSE)) -> 0 | BJ116: 0 | BK116: =IF(ISNA(VLOOKUP($CM116,'Audit Values'!$A$2:$AE$252,2,FALSE)),'Preliminary SO66'!U110,VLOOKUP($CM116,'Audit Values'!$A$2:$AE$252,21,FALSE)) -> 0 | BL116: 0 | BM116: 0 | BN116: 0 | BO116: 0 | BP116: ='2016legmax.xls'!AH113 -> 0 | BQ116: 0 | BR116: 0 | BS116: ='2016legmax.xls'!CJ113 -> 0 | BT116: 0 | BU116: ='2016legmax.xls'!CI113 -> 0 | BV116: 0 | BW116: 0 | BX116: 0 | BY116: 0 | BZ116: 0 | CA116: 0 | CB116: 0 | CC116: 0 | CD116: 0 | CE116: 0 | CF116: 0 | CG116: 0 | CH116: 0 | CI116: 0 | CM116: D0311
A117: 312 | B117: Reno | C117: Haven Public Schools | D117: 5301828 | E117: 355626 | F117: 0 | G117: 0 | H117: 0 | I117: 855 | J117: 0 | K117: 0 | L117: ='2016legmax.xls'!BJ114 -> 0 | M117: 5657454 | N117: ='2016legmax.xls'!BB114 -> 781538 | O117: 901109 | P117: ='2016legmax.xls'!BC114 -> 462074 | Q117: 602088 | R117: ='2016legmax.xls'!BD114 -> 32227 | S117: 7834402 | T117: ='2016legmax.xls'!DD114 -> 0 | U117: 13806 | V117: 0 | W117: 0 | X117: 3867 | Y117: 0 | Z117: 452 | AA117: ='2016legmax.xls'!AV114 -> 18 | AB117: ='2016legmax.xls'!AW114 -> A | AC117: ='2016legmax.xls'!AX114 ->  | AD117: 7988674 | AE117: 7852527 | AF117: =IF(Weightings!G114>0,Weightings!G114,'Preliminary SO66'!AB111) -> 8051039 | AG117: 7852527 | AH117: 7852527 | AI117: 7254127 | AJ117: ='2016legmax.xls'!BM114 -> 0.31 | AK117: 2248779 | AL117: 2248779 | AM117: 2248779 | AO117: 5539217 | AP117: 56.1 | AQ117: 216097 | AR117: 0 | AS117: 0 | AT117: 0 | AU117: 0 | AV117: 0 | AW117: 0 | AX117: 0 | AY117: 21292 | AZ117: 0 | BA117: 0 | BB117: 5301828 | BC117: ='2016legmax.xls'!F114 -> 855.5 | BD117: ='2016legmax.xls'!I114 -> 850.5 | BE117: ='2016legmax.xls'!K114 -> 783.5 | BF117: 850.5 | BG117: ='2016legmax.xls'!O114 -> 4.5 | BH117: 855 | BI117: =IF(ISNA(VLOOKUP($CM117,'Audit Values'!$A$2:$AE$299,2,FALSE)),'Preliminary SO66'!T111,VLOOKUP($CM117,'Audit Values'!$A$2:$AE$299,20,FALSE)) -> 62 | BJ117: 310000 | BK117: =IF(ISNA(VLOOKUP($CM117,'Audit Values'!$A$2:$AE$299,2,FALSE)),'Preliminary SO66'!U111,VLOOKUP($CM117,'Audit Values'!$A$2:$AE$299,21,FALSE)) -> 0.9 | BL117: 3641 | BM117: 45 | BN117: 41985 | BO117: 355626 | BP117: ='2016legmax.xls'!AH114 -> 0 | BQ117: 0 | BR117: 0 | BS117: ='2016legmax.xls'!CJ114 -> 0 | BT117: 0 | BU117: ='2016legmax.xls'!CI114 -> 0 | BV117: 0 | BW117: 0 | BX117: 0 | BY117: 0 | BZ117: 0 | CA117: 0 | CB117: 0 | CC117: 0 | CD117: 0 | CE117: 0 | CF117: 0 | CG117: 0 | CH117: 0 | CI117: 0 | CM117: D0312
A118: 313 | B118: Reno | C118: Buhler | D118: 10377709 | E118: 0 | F118: 640973 | G118: 0 | H118: 0 | I118: 2182.3 | J118: 0 | K118: 0 | L118: ='2016legmax.xls'!BJ115 -> 0 | M118: 11018682 | N118: ='2016legmax.xls'!BB115 -> 1564516 | O118: 2073552 | P118: ='2016legmax.xls'!BC115 -> 935350 | Q118: 1233330 | R118: ='2016legmax.xls'!BD115 -> 97426 | S118: 15689526 | T118: ='2016legmax.xls'!DD115 -> 60801 | U118: 4711 | V118: 0 | W118: 0 | X118: 202393 | Y118: 0 | Z118: 0 | AA118: ='2016legmax.xls'!AV115 -> 13 | AB118: ='2016legmax.xls'!AW115 -> A | AC118: ='2016legmax.xls'!AX115 ->  | AD118: 16053018 | AE118: 15957431 | AF118: =IF(Weightings!G115>0,Weightings!G115,'Preliminary SO66'!AB112) -> 16646505 | AG118: 15957431 | AH118: 15957431 | AI118: 15391633 | AJ118: ='2016legmax.xls'!BM115 -> 0.3 | AK118: 4617490 | AL118: 4617490 | AM118: 4617490 | AO118: 11061387 | AP118: 0 | AQ118: 0 | AR118: 0 | AS118: 0 | AT118: 0 | AU118: 0 | AV118: 0 | AW118: 0 | AX118: 0 | AY118: 44246 | AZ118: 166 | BA118: 639432 | BB118: 10377709 | BC118: ='2016legmax.xls'!F115 -> 2091.7 | BD118: ='2016legmax.xls'!I115 -> 2101.5 | BE118: ='2016legmax.xls'!K115 -> 2160.3 | BF118: 2160.3 | BG118: ='2016legmax.xls'!O115 -> 22 | BH118: 2182.3 | BI118: =IF(ISNA(VLOOKUP($CM118,'Audit Values'!$A$2:$AE$252,2,FALSE)),'Preliminary SO66'!T112,VLOOKUP($CM118,'Audit Values'!$A$2:$AE$252,20,FALSE)) -> 0 | BJ118: 0 | BK118: =IF(ISNA(VLOOKUP($CM118,'Audit Values'!$A$2:$AE$252,2,FALSE)),'Preliminary SO66'!U112,VLOOKUP($CM118,'Audit Values'!$A$2:$AE$252,21,FALSE)) -> 0 | BL118: 0 | BM118: 0 | BN118: 0 | BO118: 0 | BP118: ='2016legmax.xls'!AH115 -> 166.4 | BQ118: 640973 | BR118: 0 | BS118: ='2016legmax.xls'!CJ115 -> 0 | BT118: 0 | BU118: ='2016legmax.xls'!CI115 -> 0 | BV118: 0 | BW118: 0 | BX118: 0 | BY118: 0 | BZ118: 0 | CA118: 0 | CB118: 0 | CC118: 0 | CD118: 0 | CE118: 0 | CF118: 0 | CG118: 0 | CH118: 0 | CI118: 0 | CM118: D0313
A119: 314 | B119: Thomas | C119: Brewster | D119: 977030 | E119: 0 | F119: 0 | G119: 0 | H119: 0 | I119: 125.5 | J119: 0 | K119: 0 | L119: ='2016legmax.xls'!BJ116 -> 0 | M119: 977030 | N119: ='2016legmax.xls'!BB116 -> 0 | O119: 137777 | P119: ='2016legmax.xls'!BC116 -> 65651 | Q119: 85235 | R119: ='2016legmax.xls'!BD116 -> 0 | S119: 1180458 | T119: ='2016legmax.xls'!DD116 -> 92148 | U119: 306 | V119: 0 | W119: 0 | X119: 0 | Y119: 0 | Z119: 0 | AA119: 7 | AB119: ='2016legmax.xls'!AW116 -> A | AC119: ='2016legmax.xls'!AX116 -> R | AD119: 1292496 | AE119: 1272912 | AF119: =IF(Weightings!G116>0,Weightings!G116,'Preliminary SO66'!AB113) -> 1310085 | AG119: 1272912 | AH119: 1272912 | AI119: 1276090 | AJ119: ='2016legmax.xls'!BM116 -> 0.3 | AK119: 382827 | AL119: 344544 | AM119: 344544 | AO119: 980954 | AP119: 0 | AQ119: 0 | AR119: 0 | AS119: 0 | AT119: 0 | AU119: 0 | AV119: 0 | AW119: 0 | AX119: 0 | AY119: 3924 | AZ119: 0 | BA119: 0 | BB119: 977030 | BC119: ='2016legmax.xls'!F116 -> 98.9 | BD119: ='2016legmax.xls'!I116 -> 111 | BE119: ='2016legmax.xls'!K116 -> 125.5 | BF119: 125.5 | BG119: ='2016legmax.xls'!O116 -> 0 | BH119: 125.5 | BI119: =IF(ISNA(VLOOKUP($CM119,'Audit Values'!$A$2:$AE$252,2,FALSE)),'Preliminary SO66'!T113,VLOOKUP($CM119,'Audit Values'!$A$2:$AE$252,20,FALSE)) -> 0 | BJ119: 0 | BK119: =IF(ISNA(VLOOKUP($CM119,'Audit Values'!$A$2:$AE$252,2,FALSE)),'Preliminary SO66'!U113,VLOOKUP($CM119,'Audit Values'!$A$2:$AE$252,21,FALSE)) -> 0 | BL119: 0 | BM119: 0 | BN119: 0 | BO119: 0 | BP119: ='2016legmax.xls'!AH116 -> 0 | BQ119: 0 | BR119: 0 | BS119: ='2016legmax.xls'!CJ116 -> 0 | BT119: 0 | BU119: ='2016legmax.xls'!CI116 -> 0 | BV119: 0 | BW119: 0 | BX119: 0 | BY119: 0 | BZ119: 0 | CA119: 0 | CB119: 0 | CC119: 0 | CD119: 0 | CE119: 0 | CF119: 0 | CG119: 0 | CH119: 0 | CI119: 0 | CM119: D0314
A120: 315 | B120: Thomas | C120: Colby Public Schools | D120: 5299466 | E120: 6866 | F120: 0 | G120: 0 | H120: 0 | I120: 895.7 | J120: 0 | K120: 0 | L120: ='2016legmax.xls'!BJ117 -> 0 | M120: 5306332 | N120: ='2016legmax.xls'!BB117 -> 604811 | O120: 669304 | P120: ='2016legmax.xls'!BC117 -> 371369 | Q120: 483542 | R120: ='2016legmax.xls'!BD117 -> 0 | S120: 6951816 | T120: ='2016legmax.xls'!DD117 -> 0 | U120: 434 | V120: 0 | W120: 0 | X120: 0 | Y120: 0 | Z120: 1489 | AA120: ='2016legmax.xls'!AV117 -> 8 | AB120: ='2016legmax.xls'!AW117 -> A | AC120: ='2016legmax.xls'!AX117 ->  | AD120: 7065912 | AE120: 6953739 | AF120: =IF(Weightings!G117>0,Weightings!G117,'Preliminary SO66'!AB114) -> 7451949 | AG120: 6953739 | AH120: 6953739 | AI120: 7254585 | AJ120: ='2016legmax.xls'!BM117 -> 0.3 | AK120: 2176376 | AL120: 2176376 | AM120: 2176376 | AO120: 5349254 | AP120: 7.4 | AQ120: 28505 | AR120: 0 | AS120: 0 | AT120: 0 | AU120: 0 | AV120: 0 | AW120: 0 | AX120: 0 | AY120: 21283 | AZ120: 0 | BA120: 0 | BB120: 5299466 | BC120: ='2016legmax.xls'!F117 -> 914.5 | BD120: ='2016legmax.xls'!I117 -> 895.7 | BE120: ='2016legmax.xls'!K117 -> 868.9 | BF120: 895.7 | BG120: ='2016legmax.xls'!O117 -> 0 | BH120: 895.7 | BI120: =IF(ISNA(VLOOKUP($CM120,'Audit Values'!$A$2:$AE$252,2,FALSE)),'Preliminary SO66'!T114,VLOOKUP($CM120,'Audit Values'!$A$2:$AE$252,20,FALSE)) -> 1 | BJ120: 5000 | BK120: =IF(ISNA(VLOOKUP($CM120,'Audit Values'!$A$2:$AE$252,2,FALSE)),'Preliminary SO66'!U114,VLOOKUP($CM120,'Audit Values'!$A$2:$AE$252,21,FALSE)) -> 0 | BL120: 0 | BM120: 2 | BN120: 1866 | BO120: 6866 | BP120: ='2016legmax.xls'!AH117 -> 0 | BQ120: 0 | BR120: 0 | BS120: ='2016legmax.xls'!CJ117 -> 0 | BT120: 0 | BU120: ='2016legmax.xls'!CI117 -> 0 | BV120: 0 | BW120: 0 | BX120: 0 | BY120: 0 | BZ120: 0 | CA120: 0 | CB120: 0 | CC120: 0 | CD120: 0 | CE120: 0 | CF120: 0 | CG120: 0 | CH120: 0 | CI120: 0 | CM120: D0315
A121: 316 | B121: Thomas | C121: Golden Plains | D121: 1556899 | E121: 0 | F121: 0 | G121: 0 | H121: 0 | I121: 183.3 | J121: 0 | K121: 209 | L121: ='2016legmax.xls'!BJ118 -> 0 | M121: 1556690 | N121: ='2016legmax.xls'!BB118 -> 265781 | O121: 252469 | P121: ='2016legmax.xls'!BC118 -> 116235 | Q121: 155238 | R121: ='2016legmax.xls'!BD118 -> 0 | S121: 2191175 | T121: ='2016legmax.xls'!DD118 -> 0 | U121: 4446 | V121: 0 | W121: 0 | X121: 0 | Y121: 0 | Z121: 0 | AA121: ='2016legmax.xls'!AV118 -> 17 | AB121: ='2016legmax.xls'!AW118 -> A | AC121: ='2016legmax.xls'!AX118 ->  | AD121: 2234833 | AE121: 2195830 | AF121: =IF(Weightings!G118>0,Weightings!G118,'Preliminary SO66'!AB115) -> 2273112 | AG121: 2195830 | AH121: 2195830 | AI121: 2204762 | AJ121: ='2016legmax.xls'!BM118 -> 0.3 | AK121: 661429 | AL121: 661429 | AM121: 661429 | AO121: 1563152 | AP121: 0 | AQ121: 0 | AR121: 0 | AS121: 0 | AT121: 0 | AU121: 0 | AV121: 0 | AW121: 0 | AX121: 0 | AY121: 6253 | AZ121: 0 | BA121: 0 | BB121: 1556899 | BC121: ='2016legmax.xls'!F118 -> 187.4 | BD121: ='2016legmax.xls'!I118 -> 178.9 | BE121: ='2016legmax.xls'!K118 -> 177.6 | BF121: 181.3 | BG121: ='2016legmax.xls'!O118 -> 2 | BH121: 183.3 | BI121: =IF(ISNA(VLOOKUP($CM121,'Audit Values'!$A$2:$AE$252,2,FALSE)),'Preliminary SO66'!T115,VLOOKUP($CM121,'Audit Values'!$A$2:$AE$252,20,FALSE)) -> 0 | BJ121: 0 | BK121: =IF(ISNA(VLOOKUP($CM121,'Audit Values'!$A$2:$AE$252,2,FALSE)),'Preliminary SO66'!U115,VLOOKUP($CM121,'Audit Values'!$A$2:$AE$252,21,FALSE)) -> 0 | BL121: 0 | BM121: 0 | BN121: 0 | BO121: 0 | BP121: ='2016legmax.xls'!AH118 -> 0 | BQ121: 0 | BR121: 0 | BS121: ='2016legmax.xls'!CJ118 -> 0 | BT121: 0 | BU121: ='2016legmax.xls'!CI118 -> 0 | BV121: 0 | BW121: 0 | BX121: 0 | BY121: 0 | BZ121: 0 | CA121: 0 | CB121: 0 | CC121: 0 | CD121: 0 | CE121: 0 | CF121: 0 | CG121: 0 | CH121: 0 | CI121: 0 | CM121: D0316
A122: 320 | B122: Pottawatomie | C122: Wamego | D122: 7210394 | E122: 0 | F122: 0 | G122: 0 | H122: 0 | I122: 1494.8 | J122: 0 | K122: 3719 | L122: ='2016legmax.xls'!BJ119 -> 0 | M122: 7206675 | N122: ='2016legmax.xls'!BB119 -> 1604363 | O122: 1472051 | P122: ='2016legmax.xls'!BC119 -> 968817 | Q122: 1273753 | R122: ='2016legmax.xls'!BD119 -> 77056 | S122: 11328962 | T122: ='2016legmax.xls'!DD119 -> 0 | U122: 0 | V122: 0 | W122: 0 | X122: 0 | Y122: 4175 | Z122: 0 | AA122: ='2016legmax.xls'!AV119 -> 15 | AB122: ='2016legmax.xls'!AW119 -> A | AC122: ='2016legmax.xls'!AX119 ->  | AD122: 11641792 | AE122: 11336856 | AF122: =IF(Weightings!G119>0,Weightings!G119,'Preliminary SO66'!AB116) -> 11805967 | AG122: 11336856 | AH122: 11336856 | AI122: 10009502 | AJ122: ='2016legmax.xls'!BM119 -> 0.3 | AK122: 3002851 | AL122: 3002851 | AM122: 3002851 | AO122: 7239351 | AP122: 0 | AQ122: 0 | AR122: 0 | AS122: 0 | AT122: 0 | AU122: 0 | AV122: 0 | AW122: 0 | AX122: 0 | AY122: 28957 | AZ122: 0 | BA122: 0 | BB122: 7210394 | BC122: ='2016legmax.xls'!F119 -> 1464.6 | BD122: ='2016legmax.xls'!I119 -> 1494.8 | BE122: ='2016legmax.xls'!K119 -> 1470.1 | BF122: 1494.8 | BG122: ='2016legmax.xls'!O119 -> 0 | BH122: 1494.8 | BI122: =IF(ISNA(VLOOKUP($CM122,'Audit Values'!$A$2:$AE$252,2,FALSE)),'Preliminary SO66'!T116,VLOOKUP($CM122,'Audit Values'!$A$2:$AE$252,20,FALSE)) -> 0 | BJ122: 0 | BK122: =IF(ISNA(VLOOKUP($CM122,'Audit Values'!$A$2:$AE$252,2,FALSE)),'Preliminary SO66'!U116,VLOOKUP($CM122,'Audit Values'!$A$2:$AE$252,21,FALSE)) -> 0 | BL122: 0 | BM122: 0 | BN122: 0 | BO122: 0 | BP122: ='2016legmax.xls'!AH119 -> 0 | BQ122: 0 | BR122: 0 | BS122: ='2016legmax.xls'!CJ119 -> 0 | BT122: 0 | BU122: ='2016legmax.xls'!CI119 -> 0 | BV122: 0 | BW122: 0 | BX122: 0 | BY122: 0 | BZ122: 0 | CA122: 0 | CB122: 0 | CC122: 0 | CD122: 0 | CE122: 0 | CF122: 0 | CG122: 0 | CH122: 0 | CI122: 0 | CM122: D0320
A123: 321 | B123: Pottawatomie | C123: Kaw Valley | D123: 6307052 | E123: 0 | F123: 0 | G123: 0 | H123: 0 | I123: 1121.4 | J123: 0 | K123: 0 | L123: ='2016legmax.xls'!BJ120 -> 0 | M123: 6307052 | N123: ='2016legmax.xls'!BB120 -> 0 | O123: 1291330 | P123: ='2016legmax.xls'!BC120 -> 702904 | Q123: 922588 | R123: ='2016legmax.xls'!BD120 -> 0 | S123: 8301286 | T123: ='2016legmax.xls'!DD120 -> 0 | U123: 0 | V123: 0 | W123: 0 | X123: 0 | Y123: 0 | Z123: 0 | AA123: ='2016legmax.xls'!AV120 -> 12 | AB123: ='2016legmax.xls'!AW120 -> A | AC123: ='2016legmax.xls'!AX120 ->  | AD123: 8520970 | AE123: 8301286 | AF123: =IF(Weightings!G120>0,Weightings!G120,'Preliminary SO66'!AB117) -> 8837520 | AG123: 8301286 | AH123: 8301286 | AI123: 8782775 | AJ123: ='2016legmax.xls'!BM120 -> 0.3 | AK123: 2634833 | AL123: 2634833 | AM123: 2634833 | AO123: 6332382 | AP123: 0 | AQ123: 0 | AR123: 0 | AS123: 0 | AT123: 0 | AU123: 0 | AV123: 0 | AW123: 0 | AX123: 0 | AY123: 25330 | AZ123: 0 | BA123: 0 | BB123: 6307052 | BC123: ='2016legmax.xls'!F120 -> 1118.5 | BD123: ='2016legmax.xls'!I120 -> 1112.9 | BE123: ='2016legmax.xls'!K120 -> 1097 | BF123: 1112.9 | BG123: ='2016legmax.xls'!O120 -> 8.5 | BH123: 1121.4 | BI123: =IF(ISNA(VLOOKUP($CM123,'Audit Values'!$A$2:$AE$252,2,FALSE)),'Preliminary SO66'!T117,VLOOKUP($CM123,'Audit Values'!$A$2:$AE$252,20,FALSE)) -> 0 | BJ123: 0 | BK123: =IF(ISNA(VLOOKUP($CM123,'Audit Values'!$A$2:$AE$252,2,FALSE)),'Preliminary SO66'!U117,VLOOKUP($CM123,'Audit Values'!$A$2:$AE$252,21,FALSE)) -> 0 | BL123: 0 | BM123: 0 | BN123: 0 | BO123: 0 | BP123: ='2016legmax.xls'!AH120 -> 0 | BQ123: 0 | BR123: 0 | BS123: ='2016legmax.xls'!CJ120 -> 0 | BT123: 0 | BU123: ='2016legmax.xls'!CI120 -> 0 | BV123: 0 | BW123: 0 | BX123: 0 | BY123: 0 | BZ123: 0 | CA123: 0 | CB123: 0 | CC123: 0 | CD123: 0 | CE123: 0 | CF123: 0 | CG123: 0 | CH123: 0 | CI123: 0 | CM123: D0321
A124: 322 | B124: Pottawatomie | C124: Onaga-Havensville-Wheaton | D124: 2152153 | E124: 0 | F124: 0 | G124: 0 | H124: 0 | I124: 304.5 | J124: 0 | K124: 0 | L124: ='2016legmax.xls'!BJ121 -> 0 | M124: 2152153 | N124: ='2016legmax.xls'!BB121 -> 343817 | O124: 312851 | P124: ='2016legmax.xls'!BC121 -> 162941 | Q124: 210602 | R124: ='2016legmax.xls'!BD121 -> 9750 | S124: 2981512 | T124: ='2016legmax.xls'!DD121 -> 0 | U124: 14 | V124: 0 | W124: 0 | X124: 0 | Y124: 0 | Z124: 390 | AA124: ='2016legmax.xls'!AV121 -> 2 | AB124: ='2016legmax.xls'!AW121 -> A | AC124: ='2016legmax.xls'!AX121 ->  | AD124: 3029577 | AE124: 2981916 | AF124: =IF(Weightings!G121>0,Weightings!G121,'Preliminary SO66'!AB118) -> 3046517 | AG124: 2981916 | AH124: 2981916 | AI124: 2801799 | AJ124: ='2016legmax.xls'!BM121 -> 0.3 | AK124: 840540 | AL124: 840540 | AM124: 840540 | AO124: 2160796 | AP124: 0 | AQ124: 0 | AR124: 0 | AS124: 0 | AT124: 0 | AU124: 0 | AV124: 0 | AW124: 0 | AX124: 0 | AY124: 8643 | AZ124: 0 | BA124: 0 | BB124: 2152153 | BC124: ='2016legmax.xls'!F121 -> 304 | BD124: ='2016legmax.xls'!I121 -> 304.5 | BE124: ='2016legmax.xls'!K121 -> 289.5 | BF124: 304.5 | BG124: ='2016legmax.xls'!O121 -> 0 | BH124: 304.5 | BI124: =IF(ISNA(VLOOKUP($CM124,'Audit Values'!$A$2:$AE$252,2,FALSE)),'Preliminary SO66'!T118,VLOOKUP($CM124,'Audit Values'!$A$2:$AE$252,20,FALSE)) -> 0 | BJ124: 0 | BK124: =IF(ISNA(VLOOKUP($CM124,'Audit Values'!$A$2:$AE$252,2,FALSE)),'Preliminary SO66'!U118,VLOOKUP($CM124,'Audit Values'!$A$2:$AE$252,21,FALSE)) -> 0 | BL124: 0 | BM124: 0 | BN124: 0 | BO124: 0 | BP124: ='2016legmax.xls'!AH121 -> 0 | BQ124: 0 | BR124: 0 | BS124: ='2016legmax.xls'!CJ121 -> 0 | BT124: 0 | BU124: ='2016legmax.xls'!CI121 -> 0 | BV124: 0 | BW124: 0 | BX124: 0 | BY124: 0 | BZ124: 0 | CA124: 0 | CB124: 0 | CC124: 0 | CD124: 0 | CE124: 0 | CF124: 0 | CG124: 0 | CH124: 0 | CI124: 0 | CM124: D0322
A125: 323 | B125: Pottawatomie | C125: Rock Creek | D125: 5365487 | E125: 0 | F125: 197222 | G125: 0 | H125: 0 | I125: 942.1 | J125: 0 | K125: 0 | L125: ='2016legmax.xls'!BJ122 -> 0 | M125: 5562709 | N125: ='2016legmax.xls'!BB122 -> 1054938 | O125: 824006 | P125: ='2016legmax.xls'!BC122 -> 398905 | Q125: 520765 | R125: ='2016legmax.xls'!BD122 -> 0 | S125: 7840558 | T125: ='2016legmax.xls'!DD122 -> 116778 | U125: 0 | V125: 0 | W125: 0 | X125: 0 | Y125: 0 | Z125: 3595 | AA125: ='2016legmax.xls'!AV122 -> 17 | AB125: ='2016legmax.xls'!AW122 -> A | AC125: ='2016legmax.xls'!AX122 ->  | AD125: 8082791 | AE125: 7960931 | AF125: =IF(Weightings!G122>0,Weightings!G122,'Preliminary SO66'!AB119) -> 8116720 | AG125: 7960931 | AH125: 7960931 | AI125: 7377148 | AJ125: ='2016legmax.xls'!BM122 -> 0.3 | AK125: 2213144 | AL125: 1999750 | AM125: 1999750 | AO125: 5564552 | AP125: 0 | AQ125: 0 | AR125: 0 | AS125: 0 | AT125: 0 | AU125: 0 | AV125: 0 | AW125: 0 | AX125: 0 | AY125: 22258 | AZ125: 45.9 | BA125: 176807 | BB125: 5365487 | BC125: ='2016legmax.xls'!F122 -> 854.9 | BD125: ='2016legmax.xls'!I122 -> 902.1 | BE125: ='2016legmax.xls'!K122 -> 942.1 | BF125: 942.1 | BG125: ='2016legmax.xls'!O122 -> 0 | BH125: 942.1 | BI125: =IF(ISNA(VLOOKUP($CM125,'Audit Values'!$A$2:$AE$252,2,FALSE)),'Preliminary SO66'!T119,VLOOKUP($CM125,'Audit Values'!$A$2:$AE$252,20,FALSE)) -> 0 | BJ125: 0 | BK125: =IF(ISNA(VLOOKUP($CM125,'Audit Values'!$A$2:$AE$252,2,FALSE)),'Preliminary SO66'!U119,VLOOKUP($CM125,'Audit Values'!$A$2:$AE$252,21,FALSE)) -> 0 | BL125: 0 | BM125: 0 | BN125: 0 | BO125: 0 | BP125: ='2016legmax.xls'!AH122 -> 51.2 | BQ125: 197222 | BR125: 0 | BS125: ='2016legmax.xls'!CJ122 -> 0 | BT125: 0 | BU125: ='2016legmax.xls'!CI122 -> 0 | BV125: 0 | BW125: 0 | BX125: 0 | BY125: 0 | BZ125: 0 | CA125: 0 | CB125: 0 | CC125: 0 | CD125: 0 | CE125: 0 | CF125: 0 | CG125: 0 | CH125: 0 | CI125: 0 | CM125: D0323
A126: 325 | B126: Phillips | C126: Phillipsburg | D126: 3698144 | E126: 0 | F126: 0 | G126: 0 | H126: 0 | I126: 607.5 | J126: 0 | K126: 0 | L126: ='2016legmax.xls'!BJ123 -> 0 | M126: 3698144 | N126: ='2016legmax.xls'!BB123 -> 847787 | O126: 710971 | P126: ='2016legmax.xls'!BC123 -> 268992 | Q126: 350969 | R126: ='2016legmax.xls'!BD123 -> 40218 | S126: 5566112 | T126: ='2016legmax.xls'!DD123 -> 0 | U126: 796 | V126: 0 | W126: 0 | X126: 0 | Y126: 0 | Z126: 10460 | AA126: ='2016legmax.xls'!AV123 -> 8 | AB126: ='2016legmax.xls'!AW123 -> A | AC126: ='2016legmax.xls'!AX123 ->  | AD126: 5659345 | AE126: 5577368 | AF126: =IF(Weightings!G123>0,Weightings!G123,'Preliminary SO66'!AB120) -> 5808259 | AG126: 5577368 | AH126: 5577368 | AI126: 5086297 | AJ126: ='2016legmax.xls'!BM123 -> 0.3 | AK126: 1525889 | AL126: 1525889 | AM126: 1525889 | AO126: 3712996 | AP126: 0 | AQ126: 0 | AR126: 0 | AS126: 0 | AT126: 0 | AU126: 0 | AV126: 0 | AW126: 0 | AX126: 0 | AY126: 14852 | AZ126: 0 | BA126: 0 | BB126: 3698144 | BC126: ='2016legmax.xls'!F123 -> 587 | BD126: ='2016legmax.xls'!I123 -> 591 | BE126: ='2016legmax.xls'!K123 -> 607.5 | BF126: 607.5 | BG126: ='2016legmax.xls'!O123 -> 0 | BH126: 607.5 | BI126: =IF(ISNA(VLOOKUP($CM126,'Audit Values'!$A$2:$AE$252,2,FALSE)),'Preliminary SO66'!T120,VLOOKUP($CM126,'Audit Values'!$A$2:$AE$252,20,FALSE)) -> 0 | BJ126: 0 | BK126: =IF(ISNA(VLOOKUP($CM126,'Audit Values'!$A$2:$AE$252,2,FALSE)),'Preliminary SO66'!U120,VLOOKUP($CM126,'Audit Values'!$A$2:$AE$252,21,FALSE)) -> 0 | BL126: 0 | BM126: 0 | BN126: 0 | BO126: 0 | BP126: ='2016legmax.xls'!AH123 -> 0 | BQ126: 0 | BR126: 0 | BS126: ='2016legmax.xls'!CJ123 -> 0 | BT126: 0 | BU126: ='2016legmax.xls'!CI123 -> 0 | BV126: 0 | BW126: 0 | BX126: 0 | BY126: 0 | BZ126: 0 | CA126: 0 | CB126: 0 | CC126: 0 | CD126: 0 | CE126: 0 | CF126: 0 | CG126: 0 | CH126: 0 | CI126: 0 | CM126: D0325
A127: 326 | B127: Phillips | C127: Logan | D127: 1417944 | E127: 0 | F127: 0 | G127: 0 | H127: 0 | I127: 154.5 | J127: 0 | K127: 0 | L127: ='2016legmax.xls'!BJ124 -> 0 | M127: 1417944 | N127: ='2016legmax.xls'!BB124 -> 46428 | O127: 178978 | P127: ='2016legmax.xls'!BC124 -> 103330 | Q127: 133938 | R127: ='2016legmax.xls'!BD124 -> 0 | S127: 1746680 | T127: ='2016legmax.xls'!DD124 -> 0 | U127: 3023 | V127: 0 | W127: 0 | X127: 0 | Y127: 0 | Z127: 1727 | AA127: ='2016legmax.xls'!AV124 -> 9 | AB127: ='2016legmax.xls'!AW124 -> A | AC127: ='2016legmax.xls'!AX124 ->  | AD127: 1782038 | AE127: 1751430 | AF127: =IF(Weightings!G124>0,Weightings!G124,'Preliminary SO66'!AB121) -> 1827716 | AG127: 1751430 | AH127: 1751430 | AI127: 1885458 | AJ127: ='2016legmax.xls'!BM124 -> 0.3 | AK127: 565637 | AL127: 565637 | AM127: 565637 | AO127: 1423639 | AP127: 0 | AQ127: 0 | AR127: 0 | AS127: 0 | AT127: 0 | AU127: 0 | AV127: 0 | AW127: 0 | AX127: 0 | AY127: 5695 | AZ127: 0 | BA127: 0 | BB127: 1417944 | BC127: ='2016legmax.xls'!F124 -> 168 | BD127: ='2016legmax.xls'!I124 -> 149.5 | BE127: ='2016legmax.xls'!K124 -> 144.5 | BF127: 154 | BG127: ='2016legmax.xls'!O124 -> 0.5 | BH127: 154.5 | BI127: =IF(ISNA(VLOOKUP($CM127,'Audit Values'!$A$2:$AE$252,2,FALSE)),'Preliminary SO66'!T121,VLOOKUP($CM127,'Audit Values'!$A$2:$AE$252,20,FALSE)) -> 0 | BJ127: 0 | BK127: =IF(ISNA(VLOOKUP($CM127,'Audit Values'!$A$2:$AE$252,2,FALSE)),'Preliminary SO66'!U121,VLOOKUP($CM127,'Audit Values'!$A$2:$AE$252,21,FALSE)) -> 0 | BL127: 0 | BM127: 0 | BN127: 0 | BO127: 0 | BP127: ='2016legmax.xls'!AH124 -> 0 | BQ127: 0 | BR127: 0 | BS127: ='2016legmax.xls'!CJ124 -> 0 | BT127: 0 | BU127: ='2016legmax.xls'!CI124 -> 0 | BV127: 0 | BW127: 0 | BX127: 0 | BY127: 0 | BZ127: 0 | CA127: 0 | CB127: 0 | CC127: 0 | CD127: 0 | CE127: 0 | CF127: 0 | CG127: 0 | CH127: 0 | CI127: 0 | CM127: D0326
A128: 327 | B128: Ellsworth | C128: Ellsworth | D128: 3773132 | E128: 0 | F128: 0 | G128: 0 | H128: 0 | I128: 602.6 | J128: 0 | K128: 0 | L128: ='2016legmax.xls'!BJ125 -> 0 | M128: 3773132 | N128: ='2016legmax.xls'!BB125 -> 523301 | O128: 522919 | P128: ='2016legmax.xls'!BC125 -> 298996 | Q128: 388734 | R128: ='2016legmax.xls'!BD125 -> 20329 | S128: 5138677 | T128: ='2016legmax.xls'!DD125 -> 0 | U128: 431 | V128: 0 | W128: 0 | X128: 0 | Y128: 0 | Z128: 4714 | AA128: ='2016legmax.xls'!AV125 -> 2 | AB128: ='2016legmax.xls'!AW125 -> A | AC128: ='2016legmax.xls'!AX125 ->  | AD128: 5233560 | AE128: 5143822 | AF128: =IF(Weightings!G125>0,Weightings!G125,'Preliminary SO66'!AB122) -> 5383834 | AG128: 5143822 | AH128: 5143822 | AI128: 4939030 | AJ128: ='2016legmax.xls'!BM125 -> 0.2999 | AK128: 1481215 | AL128: 1481000 | AM128: 1481000 | AO128: 3788285 | AP128: 0 | AQ128: 0 | AR128: 0 | AS128: 0 | AT128: 0 | AU128: 0 | AV128: 0 | AW128: 0 | AX128: 0 | AY128: 15153 | AZ128: 0 | BA128: 0 | BB128: 3773132 | BC128: ='2016legmax.xls'!F125 -> 581.5 | BD128: ='2016legmax.xls'!I125 -> 592 | BE128: ='2016legmax.xls'!K125 -> 602.6 | BF128: 602.6 | BG128: ='2016legmax.xls'!O125 -> 0 | BH128: 602.6 | BI128: =IF(ISNA(VLOOKUP($CM128,'Audit Values'!$A$2:$AE$252,2,FALSE)),'Preliminary SO66'!T122,VLOOKUP($CM128,'Audit Values'!$A$2:$AE$252,20,FALSE)) -> 0 | BJ128: 0 | BK128: =IF(ISNA(VLOOKUP($CM128,'Audit Values'!$A$2:$AE$252,2,FALSE)),'Preliminary SO66'!U122,VLOOKUP($CM128,'Audit Values'!$A$2:$AE$252,21,FALSE)) -> 0 | BL128: 0 | BM128: 0 | BN128: 0 | BO128: 0 | BP128: ='2016legmax.xls'!AH125 -> 0 | BQ128: 0 | BR128: 0 | BS128: ='2016legmax.xls'!CJ125 -> 0 | BT128: 0 | BU128: ='2016legmax.xls'!CI125 -> 0 | BV128: 0 | BW128: 0 | BX128: 0 | BY128: 0 | BZ128: 0 | CA128: 0 | CB128: 0 | CC128: 0 | CD128: 0 | CE128: 0 | CF128: 0 | CG128: 0 | CH128: 0 | CI128: 0 | CM128: D0327
A129: 329 | B129: Wabaunsee | C129: Mill Creek Valley | D129: 3158047 | E129: 0 | F129: 0 | G129: 0 | H129: 0 | I129: 453.5 | J129: 0 | K129: 0 | L129: ='2016legmax.xls'!BJ126 -> 0 | M129: 3158047 | N129: ='2016legmax.xls'!BB126 -> 338435 | O129: 450033 | P129: ='2016legmax.xls'!BC126 -> 270120 | Q129: 352834 | R129: ='2016legmax.xls'!BD126 -> 0 | S129: 4216635 | T129: ='2016legmax.xls'!DD126 -> 0 | U129: 368 | V129: 0 | W129: 0 | X129: 10000 | Y129: 0 | Z129: 0 | AA129: ='2016legmax.xls'!AV126 -> 10 | AB129: ='2016legmax.xls'!AW126 -> A | AC129: ='2016legmax.xls'!AX126 ->  | AD129: 4299717 | AE129: 4227003 | AF129: =IF(Weightings!G126>0,Weightings!G126,'Preliminary SO66'!AB123) -> 4373691 | AG129: 4227003 | AH129: 4227003 | AI129: 4231783 | AJ129: ='2016legmax.xls'!BM126 -> 0.3 | AK129: 1269535 | AL129: 1269535 | AM129: 1269535 | AO129: 3170730 | AP129: 0 | AQ129: 0 | AR129: 0 | AS129: 0 | AT129: 0 | AU129: 0 | AV129: 0 | AW129: 0 | AX129: 0 | AY129: 12683 | AZ129: 0 | BA129: 0 | BB129: 3158047 | BC129: ='2016legmax.xls'!F126 -> 471.5 | BD129: ='2016legmax.xls'!I126 -> 453.5 | BE129: ='2016legmax.xls'!K126 -> 422.4 | BF129: 453.5 | BG129: ='2016legmax.xls'!O126 -> 0 | BH129: 453.5 | BI129: =IF(ISNA(VLOOKUP($CM129,'Audit Values'!$A$2:$AE$252,2,FALSE)),'Preliminary SO66'!T123,VLOOKUP($CM129,'Audit Values'!$A$2:$AE$252,20,FALSE)) -> 0 | BJ129: 0 | BK129: =IF(ISNA(VLOOKUP($CM129,'Audit Values'!$A$2:$AE$252,2,FALSE)),'Preliminary SO66'!U123,VLOOKUP($CM129,'Audit Values'!$A$2:$AE$252,21,FALSE)) -> 0 | BL129: 0 | BM129: 0 | BN129: 0 | BO129: 0 | BP129: ='2016legmax.xls'!AH126 -> 0 | BQ129: 0 | BR129: 0 | BS129: ='2016legmax.xls'!CJ126 -> 0 | BT129: 0 | BU129: ='2016legmax.xls'!CI126 -> 0 | BV129: 0 | BW129: 0 | BX129: 0 | BY129: 0 | BZ129: 0 | CA129: 0 | CB129: 0 | CC129: 0 | CD129: 0 | CE129: 0 | CF129: 0 | CG129: 0 | CH129: 0 | CI129: 0 | CM129: D0329
A130: 330 | B130: Wabaunsee | C130: Mission Valley | D130: 3275912 | E130: 0 | F130: 0 | G130: 0 | H130: 0 | I130: 463.4 | J130: 0 | K130: 0 | L130: ='2016legmax.xls'!BJ127 -> 0 | M130: 3275912 | N130: ='2016legmax.xls'!BB127 -> 406169 | O130: 750808 | P130: ='2016legmax.xls'!BC127 -> 314609 | Q130: 409311 | R130: ='2016legmax.xls'!BD127 -> 5524 | S130: 4753022 | T130: ='2016legmax.xls'!DD127 -> 0 | U130: 86 | V130: 0 | W130: 0 | X130: 0 | Y130: 0 | Z130: 0 | AA130: ='2016legmax.xls'!AV127 -> 13 | AB130: ='2016legmax.xls'!AW127 -> A | AC130: ='2016legmax.xls'!AX127 -> R | AD130: 4847810 | AE130: 4753108 | AF130: =IF(Weightings!G127>0,Weightings!G127,'Preliminary SO66'!AB124) -> 4903056 | AG130: 4753108 | AH130: 4753108 | AI130: 4548470 | AJ130: ='2016legmax.xls'!BM127 -> 0.3 | AK130: 1364541 | AL130: 1364541 | AM130: 1364541 | AO130: 3289068 | AP130: 0 | AQ130: 0 | AR130: 0 | AS130: 0 | AT130: 0 | AU130: 0 | AV130: 0 | AW130: 0 | AX130: 0 | AY130: 13156 | AZ130: 0 | BA130: 0 | BB130: 3275912 | BC130: ='2016legmax.xls'!F127 -> 474.1 | BD130: ='2016legmax.xls'!I127 -> 454 | BE130: ='2016legmax.xls'!K127 -> 462.2 | BF130: 463.4 | BG130: ='2016legmax.xls'!O127 -> 0 | BH130: 463.4 | BI130: =IF(ISNA(VLOOKUP($CM130,'Audit Values'!$A$2:$AE$252,2,FALSE)),'Preliminary SO66'!T124,VLOOKUP($CM130,'Audit Values'!$A$2:$AE$252,20,FALSE)) -> 0 | BJ130: 0 | BK130: =IF(ISNA(VLOOKUP($CM130,'Audit Values'!$A$2:$AE$252,2,FALSE)),'Preliminary SO66'!U124,VLOOKUP($CM130,'Audit Values'!$A$2:$AE$252,21,FALSE)) -> 0 | BL130: 0 | BM130: 0 | BN130: 0 | BO130: 0 | BP130: ='2016legmax.xls'!AH127 -> 0 | BQ130: 0 | BR130: 0 | BS130: ='2016legmax.xls'!CJ127 -> 0 | BT130: 0 | BU130: ='2016legmax.xls'!CI127 -> 0 | BV130: 0 | BW130: 0 | BX130: 0 | BY130: 0 | BZ130: 0 | CA130: 0 | CB130: 0 | CC130: 0 | CD130: 0 | CE130: 0 | CF130: 0 | CG130: 0 | CH130: 0 | CI130: 0 | CM130: D0330
A131: 331 | B131: Kingman | C131: Kingman - Norwich | D131: 5641894 | E131: 150310 | F131: 0 | G131: 0 | H131: 0 | I131: 929.8 | J131: 0 | K131: 0 | L131: ='2016legmax.xls'!BJ128 -> 0 | M131: 5792204 | N131: ='2016legmax.xls'!BB128 -> 734292 | O131: 1180795 | P131: ='2016legmax.xls'!BC128 -> 440830 | Q131: 577366 | R131: ='2016legmax.xls'!BD128 -> 18896 | S131: 8167017 | T131: ='2016legmax.xls'!DD128 -> 0 | U131: 9711 | V131: 0 | W131: 0 | X131: 0 | Y131: 0 | Z131: 0 | AA131: ='2016legmax.xls'!AV128 -> 6 | AB131: ='2016legmax.xls'!AW128 -> A | AC131: ='2016legmax.xls'!AX128 ->  | AD131: 8313264 | AE131: 8176728 | AF131: =IF(Weightings!G128>0,Weightings!G128,'Preliminary SO66'!AB125) -> 8502000 | AG131: 8176728 | AH131: 8176728 | AI131: 7832394 | AJ131: ='2016legmax.xls'!BM128 -> 0.3 | AK131: 2349718 | AL131: 2349718 | AM131: 2349718 | AO131: 5696524 | AP131: 8.3 | AQ131: 31972 | AR131: 0 | AS131: 0 | AT131: 0 | AU131: 0 | AV131: 0 | AW131: 0 | AX131: 0 | AY131: 22658 | AZ131: 0 | BA131: 0 | BB131: 5641894 | BC131: ='2016legmax.xls'!F128 -> 923.1 | BD131: ='2016legmax.xls'!I128 -> 929.8 | BE131: ='2016legmax.xls'!K128 -> 891.5 | BF131: 929.8 | BG131: ='2016legmax.xls'!O128 -> 0 | BH131: 929.8 | BI131: =IF(ISNA(VLOOKUP($CM131,'Audit Values'!$A$2:$AE$252,2,FALSE)),'Preliminary SO66'!T125,VLOOKUP($CM131,'Audit Values'!$A$2:$AE$252,20,FALSE)) -> 17 | BJ131: 85000 | BK131: =IF(ISNA(VLOOKUP($CM131,'Audit Values'!$A$2:$AE$252,2,FALSE)),'Preliminary SO66'!U125,VLOOKUP($CM131,'Audit Values'!$A$2:$AE$252,21,FALSE)) -> 0 | BL131: 0 | BM131: 70 | BN131: 65310 | BO131: 150310 | BP131: ='2016legmax.xls'!AH128 -> 0 | BQ131: 0 | BR131: 0 | BS131: ='2016legmax.xls'!CJ128 -> 0 | BT131: 0 | BU131: ='2016legmax.xls'!CI128 -> 0 | BV131: 0 | BW131: 0 | BX131: 0 | BY131: 0 | BZ131: 0 | CA131: 0 | CB131: 0 | CC131: 0 | CD131: 0 | CE131: 0 | CF131: 0 | CG131: 0 | CH131: 0 | CI131: 0 | CM131: D0331
A132: 332 | B132: Kingman | C132: Cunningham | D132: 1282793 | E132: 0 | F132: 0 | G132: 0 | H132: 0 | I132: 157.8 | J132: 0 | K132: 0 | L132: ='2016legmax.xls'!BJ129 -> 0 | M132: 1282793 | N132: ='2016legmax.xls'!BB129 -> 0 | O132: 239973 | P132: ='2016legmax.xls'!BC129 -> 119159 | Q132: 156828 | R132: ='2016legmax.xls'!BD129 -> 0 | S132: 1641925 | T132: ='2016legmax.xls'!DD129 -> 0 | U132: 11640 | V132: 0 | W132: 0 | X132: 0 | Y132: 0 | Z132: 3000 | AA132: ='2016legmax.xls'!AV129 -> 2 | AB132: ='2016legmax.xls'!AW129 -> A | AC132: ='2016legmax.xls'!AX129 ->  | AD132: 1694234 | AE132: 1656565 | AF132: =IF(Weightings!G129>0,Weightings!G129,'Preliminary SO66'!AB126) -> 1759839 | AG132: 1656565 | AH132: 1656565 | AI132: 1790519 | AJ132: ='2016legmax.xls'!BM129 -> 0.3 | AK132: 537156 | AL132: 537156 | AM132: 537156 | AO132: 1287945 | AP132: 0 | AQ132: 0 | AR132: 0 | AS132: 0 | AT132: 0 | AU132: 0 | AV132: 0 | AW132: 0 | AX132: 0 | AY132: 5152 | AZ132: 0 | BA132: 0 | BB132: 1282793 | BC132: ='2016legmax.xls'!F129 -> 155.1 | BD132: ='2016legmax.xls'!I129 -> 157.8 | BE132: ='2016legmax.xls'!K129 -> 145.5 | BF132: 157.8 | BG132: ='2016legmax.xls'!O129 -> 0 | BH132: 157.8 | BI132: =IF(ISNA(VLOOKUP($CM132,'Audit Values'!$A$2:$AE$252,2,FALSE)),'Preliminary SO66'!T126,VLOOKUP($CM132,'Audit Values'!$A$2:$AE$252,20,FALSE)) -> 0 | BJ132: 0 | BK132: =IF(ISNA(VLOOKUP($CM132,'Audit Values'!$A$2:$AE$252,2,FALSE)),'Preliminary SO66'!U126,VLOOKUP($CM132,'Audit Values'!$A$2:$AE$252,21,FALSE)) -> 0 | BL132: 0 | BM132: 0 | BN132: 0 | BO132: 0 | BP132: ='2016legmax.xls'!AH129 -> 0 | BQ132: 0 | BR132: 0 | BS132: ='2016legmax.xls'!CJ129 -> 0 | BT132: 0 | BU132: ='2016legmax.xls'!CI129 -> 0 | BV132: 0 | BW132: 0 | BX132: 0 | BY132: 0 | BZ132: 0 | CA132: 0 | CB132: 0 | CC132: 0 | CD132: 0 | CE132: 0 | CF132: 0 | CG132: 0 | CH132: 0 | CI132: 0 | CM132: D0332
A133: 333 | B133: Cloud | C133: Concordia | D133: 5811928 | E133: 0 | F133: 65484 | G133: 0 | H133: 0 | I133: 1015 | J133: 0 | K133: 0 | L133: ='2016legmax.xls'!BJ130 -> 0 | M133: 5877412 | N133: ='2016legmax.xls'!BB130 -> 1327413 | O133: 880270 | P133: ='2016legmax.xls'!BC130 -> 647301 | Q133: 844763 | R133: ='2016legmax.xls'!BD130 -> 109682 | S133: 8842078 | T133: ='2016legmax.xls'!DD130 -> 0 | U133: 0 | V133: 0 | W133: 0 | X133: 0 | Y133: 0 | Z133: 0 | AA133: ='2016legmax.xls'!AV130 -> 10 | AB133: ='2016legmax.xls'!AW130 -> A | AC133: ='2016legmax.xls'!AX130 ->  | AD133: 9039540 | AE133: 8842078 | AF133: =IF(Weightings!G130>0,Weightings!G130,'Preliminary SO66'!AB127) -> 9305234 | AG133: 8842078 | AH133: 8842078 | AI133: 7976691 | AJ133: ='2016legmax.xls'!BM130 -> 0.3 | AK133: 2393007 | AL133: 2393007 | AM133: 2393007 | AO133: 5855685 | AP133: 5.3 | AQ133: 20416 | AR133: 0 | AS133: 0 | AT133: 0 | AU133: 0 | AV133: 0 | AW133: 0 | AX133: 0 | AY133: 23341 | AZ133: 0 | BA133: 0 | BB133: 5811928 | BC133: ='2016legmax.xls'!F130 -> 996.5 | BD133: ='2016legmax.xls'!I130 -> 1001.5 | BE133: ='2016legmax.xls'!K130 -> 994.2 | BF133: 1001.5 | BG133: ='2016legmax.xls'!O130 -> 13.5 | BH133: 1015 | BI133: =IF(ISNA(VLOOKUP($CM133,'Audit Values'!$A$2:$AE$252,2,FALSE)),'Preliminary SO66'!T127,VLOOKUP($CM133,'Audit Values'!$A$2:$AE$252,20,FALSE)) -> 0 | BJ133: 0 | BK133: =IF(ISNA(VLOOKUP($CM133,'Audit Values'!$A$2:$AE$252,2,FALSE)),'Preliminary SO66'!U127,VLOOKUP($CM133,'Audit Values'!$A$2:$AE$252,21,FALSE)) -> 0 | BL133: 0 | BM133: 0 | BN133: 0 | BO133: 0 | BP133: ='2016legmax.xls'!AH130 -> 17 | BQ133: 65484 | BR133: 0 | BS133: ='2016legmax.xls'!CJ130 -> 0 | BT133: 0 | BU133: ='2016legmax.xls'!CI130 -> 0 | BV133: 0 | BW133: 0 | BX133: 0 | BY133: 0 | BZ133: 0 | CA133: 0 | CB133: 0 | CC133: 0 | CD133: 0 | CE133: 0 | CF133: 0 | CG133: 0 | CH133: 0 | CI133: 0 | CM133: D0333
A134: 334 | B134: Cloud | C134: Southern Cloud | D134: 1751582 | E134: 34258 | F134: 0 | G134: 0 | H134: 0 | I134: 203.5 | J134: 0 | K134: 1 | L134: ='2016legmax.xls'!BJ131 -> -857 | M134: 1784982 | N134: ='2016legmax.xls'!BB131 -> 118621 | O134: 312207 | P134: ='2016legmax.xls'!BC131 -> 161452 | Q134: 208505 | R134: ='2016legmax.xls'!BD131 -> 0 | S134: 2377262 | T134: ='2016legmax.xls'!DD131 -> 0 | U134: 0 | V134: 0 | W134: 0 | X134: 0 | Y134: 0 | Z134: 0 | AA134: 7 | AB134: ='2016legmax.xls'!AW131 -> A | AC134: ='2016legmax.xls'!AX131 ->  | AD134: 2424316 | AE134: 2377263 | AF134: =IF(Weightings!G131>0,Weightings!G131,'Preliminary SO66'!AB128) -> 2511683 | AG134: 2377263 | AH134: 2377263 | AI134: 2377374 | AJ134: ='2016legmax.xls'!BM131 -> 0.3 | AK134: 713212 | AL134: 713212 | AM134: 713212 | AO134: 1892280 | AP134: 34.7 | AQ134: 133664 | AR134: 0 | AS134: 0 | AT134: 0 | AU134: 0 | AV134: 0 | AW134: 0 | AX134: 0 | AY134: 7034 | AZ134: 0 | BA134: 0 | BB134: 1751582 | BC134: ='2016legmax.xls'!F131 -> 229.6 | BD134: ='2016legmax.xls'!I131 -> 199 | BE134: ='2016legmax.xls'!K131 -> 182 | BF134: 203.5 | BG134: ='2016legmax.xls'!O131 -> 0 | BH134: 203.5 | BI134: =IF(ISNA(VLOOKUP($CM134,'Audit Values'!$A$2:$AE$252,2,FALSE)),'Preliminary SO66'!T128,VLOOKUP($CM134,'Audit Values'!$A$2:$AE$252,20,FALSE)) -> 2 | BJ134: 10000 | BK134: =IF(ISNA(VLOOKUP($CM134,'Audit Values'!$A$2:$AE$252,2,FALSE)),'Preliminary SO66'!U128,VLOOKUP($CM134,'Audit Values'!$A$2:$AE$252,21,FALSE)) -> 0 | BL134: 0 | BM134: 26 | BN134: 24258 | BO134: 34258 | BP134: ='2016legmax.xls'!AH131 -> 0 | BQ134: 0 | BR134: 0 | BS134: ='2016legmax.xls'!CJ131 -> 0 | BT134: 0 | BU134: ='2016legmax.xls'!CI131 -> 0 | BV134: 0 | BW134: 0 | BX134: 0 | BY134: 0 | BZ134: 0 | CA134: 0 | CB134: 0 | CC134: 0 | CD134: 0 | CE134: 0 | CF134: 0 | CG134: 0 | CH134: 0 | CI134: 0 | CM134: D0334
A135: 335 | B135: Jackson | C135: North Jackson | D135: 2683019 | E135: 0 | F135: 0 | G135: 0 | H135: 0 | I135: 376 | J135: 0 | K135: 0 | L135: ='2016legmax.xls'!BJ132 -> 0 | M135: 2683019 | N135: ='2016legmax.xls'!BB132 -> 610936 | O135: 315874 | P135: ='2016legmax.xls'!BC132 -> 179758 | Q135: 235708 | R135: ='2016legmax.xls'!BD132 -> 38853 | S135: 3828440 | T135: ='2016legmax.xls'!DD132 -> 0 | U135: 0 | V135: 0 | W135: 0 | X135: 0 | Y135: 68 | Z135: 17418 | AA135: ='2016legmax.xls'!AV132 -> 3 | AB135: ='2016legmax.xls'!AW132 -> A | AC135: ='2016legmax.xls'!AX132 ->  | AD135: 3901876 | AE135: 3845926 | AF135: =IF(Weightings!G132>0,Weightings!G132,'Preliminary SO66'!AB129) -> 3958707 | AG135: 3845926 | AH135: 3845926 | AI135: 3451351 | AJ135: ='2016legmax.xls'!BM132 -> 0.3 | AK135: 1035405 | AL135: 1035405 | AM135: 1035405 | AO135: 2693794 | AP135: 0 | AQ135: 0 | AR135: 0 | AS135: 0 | AT135: 0 | AU135: 0 | AV135: 0 | AW135: 0 | AX135: 0 | AY135: 10775 | AZ135: 0 | BA135: 0 | BB135: 2683019 | BC135: ='2016legmax.xls'!F132 -> 388 | BD135: ='2016legmax.xls'!I132 -> 376 | BE135: ='2016legmax.xls'!K132 -> 361.5 | BF135: 376 | BG135: ='2016legmax.xls'!O132 -> 0 | BH135: 376 | BI135: =IF(ISNA(VLOOKUP($CM135,'Audit Values'!$A$2:$AE$252,2,FALSE)),'Preliminary SO66'!T129,VLOOKUP($CM135,'Audit Values'!$A$2:$AE$252,20,FALSE)) -> 0 | BJ135: 0 | BK135: =IF(ISNA(VLOOKUP($CM135,'Audit Values'!$A$2:$AE$252,2,FALSE)),'Preliminary SO66'!U129,VLOOKUP($CM135,'Audit Values'!$A$2:$AE$252,21,FALSE)) -> 0 | BL135: 0 | BM135: 0 | BN135: 0 | BO135: 0 | BP135: ='2016legmax.xls'!AH132 -> 0 | BQ135: 0 | BR135: 0 | BS135: ='2016legmax.xls'!CJ132 -> 0 | BT135: 0 | BU135: ='2016legmax.xls'!CI132 -> 0 | BV135: 0 | BW135: 0 | BX135: 0 | BY135: 0 | BZ135: 0 | CA135: 0 | CB135: 0 | CC135: 0 | CD135: 0 | CE135: 0 | CF135: 0 | CG135: 0 | CH135: 0 | CI135: 0 | CM135: D0335
A136: 336 | B136: Jackson | C136: Holton | D136: 6426128 | E136: 234662 | F136: 0 | G136: 0 | H136: 0 | I136: 1118.5 | J136: 0 | K136: 0 | L136: ='2016legmax.xls'!BJ133 -> 0 | M136: 6660790 | N136: ='2016legmax.xls'!BB133 -> 1705511 | O136: 885719 | P136: ='2016legmax.xls'!BC133 -> 920648 | Q136: 1201967 | R136: ='2016legmax.xls'!BD133 -> 135130 | S136: 10307798 | T136: ='2016legmax.xls'!DD133 -> 0 | U136: 0 | V136: 0 | W136: 0 | X136: 0 | Y136: 0 | Z136: 0 | AA136: ='2016legmax.xls'!AV133 -> 3 | AB136: ='2016legmax.xls'!AW133 -> A | AC136: ='2016legmax.xls'!AX133 ->  | AD136: 10589117 | AE136: 10307798 | AF136: =IF(Weightings!G133>0,Weightings!G133,'Preliminary SO66'!AB130) -> 11181761 | AG136: 10307798 | AH136: 10307798 | AI136: 8513744 | AJ136: ='2016legmax.xls'!BM133 -> 0.3 | AK136: 2554123 | AL136: 2554123 | AM136: 2554123 | AO136: 6451936 | AP136: 0 | AQ136: 0 | AR136: 0 | AS136: 0 | AT136: 0 | AU136: 0 | AV136: 0 | AW136: 0 | AX136: 0 | AY136: 25808 | AZ136: 0 | BA136: 0 | BB136: 6426128 | BC136: ='2016legmax.xls'!F133 -> 1151.4 | BD136: ='2016legmax.xls'!I133 -> 1118.5 | BE136: ='2016legmax.xls'!K133 -> 1026.5 | BF136: 1118.5 | BG136: ='2016legmax.xls'!O133 -> 0 | BH136: 1118.5 | BI136: =IF(ISNA(VLOOKUP($CM136,'Audit Values'!$A$2:$AE$252,2,FALSE)),'Preliminary SO66'!T130,VLOOKUP($CM136,'Audit Values'!$A$2:$AE$252,20,FALSE)) -> 7 | BJ136: 35000 | BK136: =IF(ISNA(VLOOKUP($CM136,'Audit Values'!$A$2:$AE$252,2,FALSE)),'Preliminary SO66'!U130,VLOOKUP($CM136,'Audit Values'!$A$2:$AE$252,21,FALSE)) -> 0 | BL136: 0 | BM136: 214 | BN136: 199662 | BO136: 234662 | BP136: ='2016legmax.xls'!AH133 -> 0 | BQ136: 0 | BR136: 0 | BS136: ='2016legmax.xls'!CJ133 -> 0 | BT136: =AD136*BS136 -> 0 | BU136: ='2016legmax.xls'!CI133 -> 0 | BV136: 0 | BW136: 0 | BX136: 0 | BY136: 0 | BZ136: 0 | CA136: 0 | CB136: 0 | CC136: 0 | CD136: 0 | CE136: 0 | CF136: 0 | CG136: 0 | CH136: 0 | CI136: 0 | CM136: D0336
A137: 337 | B137: Jackson | C137: Royal Valley | D137: =BB137 -> 5470433 | E137: =BO137 -> 0 | F137: =BQ137 -> 0 | G137: 0 | H137: =IF((CF137-CE137)<0,0,CF137-CE137) -> 0 | I137: =BH137 -> 871.5 | J137: =I137*$J$6 -> 0 | K137: 0 | L137: ='2016legmax.xls'!BJ134 -> 0 | M137: =SUM(D137+E137+F137+G137+H137+J137)-K137+L137 -> 5470433 | N137: ='2016legmax.xls'!BB134 -> 1626881 | O137: 860972 | P137: ='2016legmax.xls'!BC134 -> 490136 | Q137: 638682 | R137: ='2016legmax.xls'!BD134 -> 104157 | S137: =M137+N137+O137+P137+R137 -> 8552579 | T137: ='2016legmax.xls'!DD134 -> 0 | U137: 0 | V137: 238025 | W137: 0 | X137: 0 | Y137: 0 | Z137: 5994 | AA137: ='2016legmax.xls'!AV134 -> 3 | AB137: ='2016legmax.xls'!AW134 -> A | AC137: ='2016legmax.xls'!AX134 ->  | AD137: =D137+E137+F137+BZ137+CD137+H137+J137+L137+N137+O137+Q137+R137+T137+U137+V137+W137+Y137+Z137 -> 8945144 | AE137: =AD137+BV137-Q137+P137+X137 -> 8796598 | AF137: =IF(Weightings!G134>0,Weightings!G134,'Preliminary SO66'!AB131) -> 9185775 | AG137: 8796598 | AH137: =MIN(AE137,AF137) -> 8796598 | AI137: 7625007 | AJ137: ='2016legmax.xls'!BM134 -> 0.3 | AK137: =AI137*AJ137 -> 2287502 | AL137: 2287502 | AM137: =MIN(AK137,AL137) -> 2287502 | AO137: 5492403 | AP137: 0 | AQ137: =AP137*$AQ$6 -> 0 | AR137: 0 | AS137: =AR137*$AS$6 -> 0 | AT137: 0 | AU137: =AT137*$AU$6 -> 0 | AV137: 0 | AW137: =AV137*$AW$6 -> 0 | AX137: =AS137+AU137+AW137 -> 0 | AY137: =SUM(AO137-AQ137-AX137)*$AY$6 -> 21970 | AZ137: 0 | BA137: =AZ137*$BA$6 -> 0 | BB137: =AO137-AQ137-AX137-AY137-BA137 -> 5470433 | BC137: ='2016legmax.xls'!F134 -> 917.4 | BD137: ='2016legmax.xls'!I134 -> 871.5 | BE137: ='2016legmax.xls'!K134 -> 810.1 | BF137: =MAX(BE137,BD137, AVERAGE(BC137,BD137,BE137)) -> 871.5 | BG137: ='2016legmax.xls'!O134 -> 0 | BH137: =BF137+BG137 -> 871.5 | BI137: =IF(ISNA(VLOOKUP($CM137,'Audit Values'!$A$2:$AE$252,2,FALSE)),'Preliminary SO66'!T131,VLOOKUP($CM137,'Audit Values'!$A$2:$AE$252,20,FALSE)) -> 0 | BJ137: =BI137*$BJ$6 -> 0 | BK137: =IF(ISNA(VLOOKUP($CM137,'Audit Values'!$A$2:$AE$252,2,FALSE)),'Preliminary SO66'!U131,VLOOKUP($CM137,'Audit Values'!$A$2:$AE$252,21,FALSE)) -> 0 | BL137: =BK137*$BL$6 -> 0 | BM137: 0 | BN137: =BM137*$BN$6 -> 0 | BO137: =BJ137+BL137+BN137 -> 0 | BP137: ='2016legmax.xls'!AH134 -> 0 | BQ137: =BP137*$BQ$6 -> 0 | BR137: 0 | BS137: ='2016legmax.xls'!CJ134 -> 0 | BT137: 0 | BU137: ='2016legmax.xls'!CI134 -> 0 | BV137: =MIN(BT137,BU137) -> 0 | BW137: 0 | BX137: 0 | BY137: 0 | BZ137: =IF(BY137>MAX(BW137,BX137), MAX(BW137,BX137),BY137) -> 0 | CA137: 0 | CB137: 0 | CC137: 0 | CD137: =IF(CC137>MAX(CA137,CB137),MAX(CA137,CB137),CC137) -> 0 | CE137: 280000 | CF137: 242567 | CG137: 0 | CH137: 0 | CI137: 0 | CM137: D0337
A138: 338 | B138: Jefferson | C138: Valley Falls | D138: 2603388 | E138: 0 | F138: 0 | G138: 0 | H138: 0 | I138: 384.5 | J138: 0 | K138: 0 | L138: ='2016legmax.xls'!BJ135 -> 0 | M138: 2603388 | N138: ='2016legmax.xls'!BB135 -> 674388 | O138: 496987 | P138: ='2016legmax.xls'!BC135 -> 195053 | Q138: 254258 | R138: ='2016legmax.xls'!BD135 -> 46261 | S138: 4016077 | T138: ='2016legmax.xls'!DD135 -> 0 | U138: 0 | V138: 0 | W138: 0 | X138: 0 | Y138: 0 | Z138: 1032 | AA138: ='2016legmax.xls'!AV135 -> 2 | AB138: ='2016legmax.xls'!AW135 -> A | AC138: ='2016legmax.xls'!AX135 ->  | AD138: 4076314 | AE138: 4017109 | AF138: =IF(Weightings!G135>0,Weightings!G135,'Preliminary SO66'!AB132) -> 4161829 | AG138: 4017109 | AH138: 4017109 | AI138: 3521475 | AJ138: ='2016legmax.xls'!BM135 -> 0.3 | AK138: 1056443 | AL138: 1056443 | AM138: 1056443 | AO138: 2613843 | AP138: 0 | AQ138: 0 | AR138: 0 | AS138: 0 | AT138: 0 | AU138: 0 | AV138: 0 | AW138: 0 | AX138: 0 | AY138: 10455 | AZ138: 0 | BA138: 0 | BB138: 2603388 | BC138: ='2016legmax.xls'!F135 -> 388.5 | BD138: ='2016legmax.xls'!I135 -> 380 | BE138: ='2016legmax.xls'!K135 -> 358.5 | BF138: 380 | BG138: ='2016legmax.xls'!O135 -> 4.5 | BH138: 384.5 | BI138: =IF(ISNA(VLOOKUP($CM138,'Audit Values'!$A$2:$AE$252,2,FALSE)),'Preliminary SO66'!T132,VLOOKUP($CM138,'Audit Values'!$A$2:$AE$252,20,FALSE)) -> 0 | BJ138: 0 | BK138: =IF(ISNA(VLOOKUP($CM138,'Audit Values'!$A$2:$AE$252,2,FALSE)),'Preliminary SO66'!U132,VLOOKUP($CM138,'Audit Values'!$A$2:$AE$252,21,FALSE)) -> 0 | BL138: 0 | BM138: 0 | BN138: 0 | BO138: 0 | BP138: ='2016legmax.xls'!AH135 -> 0 | BQ138: 0 | BR138: 0 | BS138: ='2016legmax.xls'!CJ135 -> 0 | BT138: 0 | BU138: ='2016legmax.xls'!CI135 -> 0 | BV138: 0 | BW138: 0 | BX138: 0 | BY138: 0 | BZ138: 0 | CA138: 0 | CB138: 0 | CC138: 0 | CD138: 0 | CE138: 0 | CF138: 0 | CG138: 0 | CH138: 0 | CI138: 0 | CM138: D0338
A139: 339 | B139: Jefferson | C139: Jefferson County North | D139: 2819231 | E139: 0 | F139: 8089 | G139: 0 | H139: 0 | I139: 427 | J139: 0 | K139: 0 | L139: ='2016legmax.xls'!BJ136 -> 0 | M139: 2827320 | N139: ='2016legmax.xls'!BB136 -> 753497 | O139: 634050 | P139: ='2016legmax.xls'!BC136 -> 217530 | Q139: 281741 | R139: ='2016legmax.xls'!BD136 -> 38026 | S139: 4470423 | T139: ='2016legmax.xls'!DD136 -> 0 | U139: 14 | V139: 0 | W139: 0 | X139: 0 | Y139: 0 | Z139: 0 | AA139: ='2016legmax.xls'!AV136 -> 3 | AB139: ='2016legmax.xls'!AW136 -> A | AC139: ='2016legmax.xls'!AX136 ->  | AD139: 4534648 | AE139: 4470437 | AF139: =IF(Weightings!G136>0,Weightings!G136,'Preliminary SO66'!AB133) -> 4563529 | AG139: 4470437 | AH139: 4470437 | AI139: 3904895 | AJ139: ='2016legmax.xls'!BM136 -> 0.3 | AK139: 1171469 | AL139: 1171469 | AM139: 1171469 | AO139: 2836741 | AP139: 0 | AQ139: 0 | AR139: 0 | AS139: 0 | AT139: 0 | AU139: 0 | AV139: 0 | AW139: 0 | AX139: 0 | AY139: 11347 | AZ139: 1.6 | BA139: 6163 | BB139: 2819231 | BC139: ='2016legmax.xls'!F136 -> 431 | BD139: ='2016legmax.xls'!I136 -> 415 | BE139: ='2016legmax.xls'!K136 -> 420 | BF139: 422 | BG139: ='2016legmax.xls'!O136 -> 5 | BH139: 427 | BI139: =IF(ISNA(VLOOKUP($CM139,'Audit Values'!$A$2:$AE$252,2,FALSE)),'Preliminary SO66'!T133,VLOOKUP($CM139,'Audit Values'!$A$2:$AE$252,20,FALSE)) -> 0 | BJ139: 0 | BK139: =IF(ISNA(VLOOKUP($CM139,'Audit Values'!$A$2:$AE$252,2,FALSE)),'Preliminary SO66'!U133,VLOOKUP($CM139,'Audit Values'!$A$2:$AE$252,21,FALSE)) -> 0 | BL139: 0 | BM139: 0 | BN139: 0 | BO139: 0 | BP139: ='2016legmax.xls'!AH136 -> 2.1 | BQ139: 8089 | BR139: 0 | BS139: ='2016legmax.xls'!CJ136 -> 0 | BT139: 0 | BU139: ='2016legmax.xls'!CI136 -> 0 | BV139: 0 | BW139: 0 | BX139: 0 | BY139: 0 | BZ139: 0 | CA139: 0 | CB139: 0 | CC139: 0 | CD139: 0 | CE139: 0 | CF139: 0 | CG139: 0 | CH139: 0 | CI139: 0 | CM139: D0339
A140: 340 | B140: Jefferson | C140: Jefferson West | D140: 4963894 | E140: 0 | F140: 0 | G140: 0 | H140: 0 | I140: 837.3 | J140: 0 | K140: 0 | L140: ='2016legmax.xls'!BJ137 -> 0 | M140: 4963894 | N140: ='2016legmax.xls'!BB137 -> 1193449 | O140: 1013198 | P140: ='2016legmax.xls'!BC137 -> 374531 | Q140: 491051 | R140: ='2016legmax.xls'!BD137 -> 95223 | S140: 7640295 | T140: ='2016legmax.xls'!DD137 -> 0 | U140: 0 | V140: 26368 | W140: 0 | X140: 0 | Y140: 0 | Z140: 6002 | AA140: ='2016legmax.xls'!AV137 -> 3 | AB140: ='2016legmax.xls'!AW137 -> A | AC140: ='2016legmax.xls'!AX137 ->  | AD140: 7789185 | AE140: 7672665 | AF140: =IF(Weightings!G137>0,Weightings!G137,'Preliminary SO66'!AB134) -> 7884862 | AG140: 7672665 | AH140: 7672665 | AI140: 6784735 | AJ140: ='2016legmax.xls'!BM137 -> 0.3 | AK140: 2035421 | AL140: 2035421 | AM140: 2035421 | AO140: 4983829 | AP140: 0 | AQ140: 0 | AR140: 0 | AS140: 0 | AT140: 0 | AU140: 0 | AV140: 0 | AW140: 0 | AX140: 0 | AY140: 19935 | AZ140: 0 | BA140: 0 | BB140: 4963894 | BC140: ='2016legmax.xls'!F137 -> 854.8 | BD140: ='2016legmax.xls'!I137 -> 822 | BE140: ='2016legmax.xls'!K137 -> 835 | BF140: 837.3 | BG140: ='2016legmax.xls'!O137 -> 0 | BH140: 837.3 | BI140: =IF(ISNA(VLOOKUP($CM140,'Audit Values'!$A$2:$AE$252,2,FALSE)),'Preliminary SO66'!T134,VLOOKUP($CM140,'Audit Values'!$A$2:$AE$252,20,FALSE)) -> 0 | BJ140: 0 | BK140: =IF(ISNA(VLOOKUP($CM140,'Audit Values'!$A$2:$AE$252,2,FALSE)),'Preliminary SO66'!U134,VLOOKUP($CM140,'Audit Values'!$A$2:$AE$252,21,FALSE)) -> 0 | BL140: 0 | BM140: 0 | BN140: 0 | BO140: 0 | BP140: ='2016legmax.xls'!AH137 -> 0 | BQ140: 0 | BR140: 0 | BS140: ='2016legmax.xls'!CJ137 -> 0 | BT140: 0 | BU140: ='2016legmax.xls'!CI137 -> 0 | BV140: 0 | BW140: 0 | BX140: 0 | BY140: 0 | BZ140: 0 | CA140: 0 | CB140: 0 | CC140: 0 | CD140: 0 | CE140: 26600 | CF140: 26368 | CG140: 0 | CH140: 0 | CI140: 0 | CM140: D0340
A141: 341 | B141: Jefferson | C141: Oskaloosa Public Schools | D141: 3756027 | E141: 0 | F141: 0 | G141: 0 | H141: 0 | I141: 543.8 | J141: 0 | K141: 0 | L141: ='2016legmax.xls'!BJ138 -> 0 | M141: 3756027 | N141: ='2016legmax.xls'!BB138 -> 886512 | O141: 955372 | P141: ='2016legmax.xls'!BC138 -> 286075 | Q141: 379605 | R141: ='2016legmax.xls'!BD138 -> 43180 | S141: 5927166 | T141: ='2016legmax.xls'!DD138 -> 0 | U141: 0 | V141: 40417 | W141: 0 | X141: 0 | Y141: 0 | Z141: 0 | AA141: ='2016legmax.xls'!AV138 -> 2 | AB141: ='2016legmax.xls'!AW138 -> A | AC141: ='2016legmax.xls'!AX138 ->  | AD141: 6061113 | AE141: 5967583 | AF141: =IF(Weightings!G138>0,Weightings!G138,'Preliminary SO66'!AB135) -> 6110334 | AG141: 5967583 | AH141: 5967583 | AI141: 5305419 | AJ141: ='2016legmax.xls'!BM138 -> 0.3 | AK141: 1591626 | AL141: 1565231 | AM141: 1565231 | AO141: 3771111 | AP141: 0 | AQ141: 0 | AR141: 0 | AS141: 0 | AT141: 0 | AU141: 0 | AV141: 0 | AW141: 0 | AX141: 0 | AY141: 15084 | AZ141: 0 | BA141: 0 | BB141: 3756027 | BC141: ='2016legmax.xls'!F138 -> 517.5 | BD141: ='2016legmax.xls'!I138 -> 519.5 | BE141: ='2016legmax.xls'!K138 -> 528.8 | BF141: 528.8 | BG141: ='2016legmax.xls'!O138 -> 15 | BH141: 543.8 | BI141: =IF(ISNA(VLOOKUP($CM141,'Audit Values'!$A$2:$AE$252,2,FALSE)),'Preliminary SO66'!T135,VLOOKUP($CM141,'Audit Values'!$A$2:$AE$252,20,FALSE)) -> 0 | BJ141: 0 | BK141: =IF(ISNA(VLOOKUP($CM141,'Audit Values'!$A$2:$AE$252,2,FALSE)),'Preliminary SO66'!U135,VLOOKUP($CM141,'Audit Values'!$A$2:$AE$252,21,FALSE)) -> 0 | BL141: 0 | BM141: 0 | BN141: 0 | BO141: 0 | BP141: ='2016legmax.xls'!AH138 -> 0 | BQ141: 0 | BR141: 0 | BS141: ='2016legmax.xls'!CJ138 -> 0 | BT141: 0 | BU141: ='2016legmax.xls'!CI138 -> 0 | BV141: 0 | BW141: 0 | BX141: 0 | BY141: 0 | BZ141: 0 | CA141: 0 | CB141: 0 | CC141: 0 | CD141: 0 | CE141: 39900 | CF141: 39893 | CG141: 0 | CH141: 0 | CI141: 0 | CM141: D0341
A142: 342 | B142: Jefferson | C142: McLouth | D142: 3258647 | E142: 0 | F142: 0 | G142: 0 | H142: 0 | I142: 488.1 | J142: 0 | K142: 0 | L142: ='2016legmax.xls'!BJ139 -> 0 | M142: 3258647 | N142: ='2016legmax.xls'!BB139 -> 604218 | O142: 689520 | P142: ='2016legmax.xls'!BC139 -> 227379 | Q142: 298398 | R142: ='2016legmax.xls'!BD139 -> 24919 | S142: 4804683 | T142: ='2016legmax.xls'!DD139 -> 0 | U142: 325 | V142: 0 | W142: 0 | X142: 0 | Y142: 0 | Z142: 4441 | AA142: ='2016legmax.xls'!AV139 -> 1 | AB142: ='2016legmax.xls'!AW139 -> A | AC142: ='2016legmax.xls'!AX139 ->  | AD142: 4880468 | AE142: 4809449 | AF142: =IF(Weightings!G139>0,Weightings!G139,'Preliminary SO66'!AB136) -> 4940931 | AG142: 4809449 | AH142: 4809449 | AI142: 4466834 | AJ142: ='2016legmax.xls'!BM139 -> 0.3 | AK142: 1340050 | AL142: 1340050 | AM142: 1340050 | AO142: 3271734 | AP142: 0 | AQ142: 0 | AR142: 0 | AS142: 0 | AT142: 0 | AU142: 0 | AV142: 0 | AW142: 0 | AX142: 0 | AY142: 13087 | AZ142: 0 | BA142: 0 | BB142: 3258647 | BC142: ='2016legmax.xls'!F139 -> 493.7 | BD142: ='2016legmax.xls'!I139 -> 484.1 | BE142: ='2016legmax.xls'!K139 -> 451 | BF142: 484.1 | BG142: ='2016legmax.xls'!O139 -> 4 | BH142: 488.1 | BI142: =IF(ISNA(VLOOKUP($CM142,'Audit Values'!$A$2:$AE$252,2,FALSE)),'Preliminary SO66'!T136,VLOOKUP($CM142,'Audit Values'!$A$2:$AE$252,20,FALSE)) -> 0 | BJ142: 0 | BK142: =IF(ISNA(VLOOKUP($CM142,'Audit Values'!$A$2:$AE$252,2,FALSE)),'Preliminary SO66'!U136,VLOOKUP($CM142,'Audit Values'!$A$2:$AE$252,21,FALSE)) -> 0 | BL142: 0 | BM142: 0 | BN142: 0 | BO142: 0 | BP142: ='2016legmax.xls'!AH139 -> 0 | BQ142: 0 | BR142: 0 | BS142: ='2016legmax.xls'!CJ139 -> 0 | BT142: 0 | BU142: ='2016legmax.xls'!CI139 -> 0 | BV142: 0 | BW142: 0 | BX142: 0 | BY142: 0 | BZ142: 0 | CA142: 0 | CB142: 0 | CC142: 0 | CD142: 0 | CE142: 0 | CF142: 0 | CG142: 0 | CH142: 0 | CI142: 0 | CM142: D0342
A143: 343 | B143: Jefferson | C143: Perry Public Schools | D143: 4928562 | E143: 0 | F143: 0 | G143: 0 | H143: 0 | I143: 771 | J143: 0 | K143: 0 | L143: ='2016legmax.xls'!BJ140 -> 0 | M143: 4928562 | N143: ='2016legmax.xls'!BB140 -> 627612 | O143: 1023023 | P143: ='2016legmax.xls'!BC140 -> 379778 | Q143: 490017 | R143: ='2016legmax.xls'!BD140 -> 17097 | S143: 6976072 | T143: ='2016legmax.xls'!DD140 -> 0 | U143: 0 | V143: 0 | W143: 0 | X143: 0 | Y143: 0 | Z143: 0 | AA143: ='2016legmax.xls'!AV140 -> 9 | AB143: ='2016legmax.xls'!AW140 -> A | AC143: ='2016legmax.xls'!AX140 ->  | AD143: 7086311 | AE143: 6976072 | AF143: =IF(Weightings!G140>0,Weightings!G140,'Preliminary SO66'!AB137) -> 7275402 | AG143: 6976072 | AH143: 6976072 | AI143: 6747606 | AJ143: ='2016legmax.xls'!BM140 -> 0.3 | AK143: 2024282 | AL143: 2024282 | AM143: 2024282 | AO143: 4948355 | AP143: 0 | AQ143: 0 | AR143: 0 | AS143: 0 | AT143: 0 | AU143: 0 | AV143: 0 | AW143: 0 | AX143: 0 | AY143: 19793 | AZ143: 0 | BA143: 0 | BB143: 4928562 | BC143: ='2016legmax.xls'!F140 -> 804 | BD143: ='2016legmax.xls'!I140 -> 753.6 | BE143: ='2016legmax.xls'!K140 -> 736 | BF143: 764.5 | BG143: ='2016legmax.xls'!O140 -> 6.5 | BH143: 771 | BI143: =IF(ISNA(VLOOKUP($CM143,'Audit Values'!$A$2:$AE$252,2,FALSE)),'Preliminary SO66'!T137,VLOOKUP($CM143,'Audit Values'!$A$2:$AE$252,20,FALSE)) -> 0 | BJ143: 0 | BK143: =IF(ISNA(VLOOKUP($CM143,'Audit Values'!$A$2:$AE$252,2,FALSE)),'Preliminary SO66'!U137,VLOOKUP($CM143,'Audit Values'!$A$2:$AE$252,21,FALSE)) -> 0 | BL143: 0 | BM143: 0 | BN143: 0 | BO143: 0 | BP143: ='2016legmax.xls'!AH140 -> 0 | BQ143: 0 | BR143: 0 | BS143: ='2016legmax.xls'!CJ140 -> 0 | BT143: 0 | BU143: ='2016legmax.xls'!CI140 -> 0 | BV143: 0 | BW143: 0 | BX143: 0 | BY143: 0 | BZ143: 0 | CA143: 0 | CB143: 0 | CC143: 0 | CD143: 0 | CE143: 0 | CF143: 0 | CG143: 0 | CH143: 0 | CI143: 0 | CM143: D0343
A144: 344 | B144: Linn | C144: Pleasanton | D144: 2622655 | E144: 933 | F144: 0 | G144: 0 | H144: 0 | I144: 358.5 | J144: 0 | K144: 0 | L144: ='2016legmax.xls'!BJ141 -> -8962 | M144: 2614626 | N144: ='2016legmax.xls'!BB141 -> 670853 | O144: 285187 | P144: ='2016legmax.xls'!BC141 -> 207681 | Q144: 270513 | R144: ='2016legmax.xls'!BD141 -> 21711 | S144: 3800058 | T144: ='2016legmax.xls'!DD141 -> 0 | U144: 0 | V144: 0 | W144: 0 | X144: 0 | Y144: 0 | Z144: 0 | AA144: 7 | AB144: ='2016legmax.xls'!AW141 -> A | AC144: ='2016legmax.xls'!AX141 ->  | AD144: 3862890 | AE144: 3800058 | AF144: =IF(Weightings!G141>0,Weightings!G141,'Preliminary SO66'!AB138) -> 3983313 | AG144: 3800058 | AH144: 3800058 | AI144: 3292396 | AJ144: ='2016legmax.xls'!BM141 -> 0.3 | AK144: 987719 | AL144: 987719 | AM144: 987719 | AO144: 2633188 | AP144: 0 | AQ144: 0 | AR144: 0 | AS144: 0 | AT144: 0 | AU144: 0 | AV144: 0 | AW144: 0 | AX144: 0 | AY144: 10533 | AZ144: 0 | BA144: 0 | BB144: 2622655 | BC144: ='2016legmax.xls'!F141 -> 365.2 | BD144: ='2016legmax.xls'!I141 -> 353 | BE144: ='2016legmax.xls'!K141 -> 327.5 | BF144: 353 | BG144: ='2016legmax.xls'!O141 -> 5.5 | BH144: 358.5 | BI144: =IF(ISNA(VLOOKUP($CM144,'Audit Values'!$A$2:$AE$252,2,FALSE)),'Preliminary SO66'!T138,VLOOKUP($CM144,'Audit Values'!$A$2:$AE$252,20,FALSE)) -> 0 | BJ144: 0 | BK144: =IF(ISNA(VLOOKUP($CM144,'Audit Values'!$A$2:$AE$252,2,FALSE)),'Preliminary SO66'!U138,VLOOKUP($CM144,'Audit Values'!$A$2:$AE$252,21,FALSE)) -> 0 | BL144: 0 | BM144: 1 | BN144: 933 | BO144: 933 | BP144: ='2016legmax.xls'!AH141 -> 0 | BQ144: 0 | BR144: 0 | BS144: ='2016legmax.xls'!CJ141 -> 0 | BT144: 0 | BU144: ='2016legmax.xls'!CI141 -> 0 | BV144: 0 | BW144: 0 | BX144: 0 | BY144: 0 | BZ144: 0 | CA144: 0 | CB144: 0 | CC144: 0 | CD144: 0 | CE144: 0 | CF144: 0 | CG144: 0 | CH144: 0 | CI144: 0 | CM144: D0344
A145: 345 | B145: Shawnee | C145: Seaman | D145: 18140572 | E145: 32192 | F145: 520020 | G145: 0 | H145: 0 | I145: 3743.2 | J145: 0 | K145: 0 | L145: ='2016legmax.xls'!BJ142 -> 0 | M145: =SUM(D145+E145+F145+G145+H145+J145)-K145+L145 -> 18692784 | N145: ='2016legmax.xls'!BB142 -> 3301150 | O145: 3797324 | P145: ='2016legmax.xls'!BC142 -> 2042214 | Q145: 2679419 | R145: ='2016legmax.xls'!BD142 -> 286818 | S145: =M145+N145+O145+P145+R145 -> 28120290 | T145: ='2016legmax.xls'!DD142 -> 0 | U145: 0 | V145: 0 | W145: 0 | X145: 0 | Y145: 0 | Z145: 0 | AA145: ='2016legmax.xls'!AV142 -> 4 | AB145: ='2016legmax.xls'!AW142 -> A | AC145: ='2016legmax.xls'!AX142 ->  | AD145: 28757495 | AE145: 28120290 | AF145: =IF(Weightings!G142>0,Weightings!G142,'Preliminary SO66'!AB139) -> 29207434 | AG145: 28120290 | AH145: 28120290 | AI145: 24919631 | AJ145: ='2016legmax.xls'!BM142 -> 0.3 | AK145: 7475889 | AL145: 7475889 | AM145: 7475889 | AO145: 18288540 | AP145: 19.5 | AQ145: 75114 | AR145: 0 | AS145: 0 | AT145: 0 | AU145: 0 | AV145: 0 | AW145: 0 | AX145: 0 | AY145: 72854 | AZ145: 0 | BA145: 0 | BB145: 18140572 | BC145: ='2016legmax.xls'!F142 -> 3686.5 | BD145: ='2016legmax.xls'!I142 -> 3728.2 | BE145: ='2016legmax.xls'!K142 -> 3619 | BF145: 3728.2 | BG145: ='2016legmax.xls'!O142 -> 15 | BH145: 3743.2 | BI145: =IF(ISNA(VLOOKUP($CM145,'Audit Values'!$A$2:$AE$252,2,FALSE)),'Preliminary SO66'!T139,VLOOKUP($CM145,'Audit Values'!$A$2:$AE$252,20,FALSE)) -> 0 | BJ145: 0 | BK145: =IF(ISNA(VLOOKUP($CM145,'Audit Values'!$A$2:$AE$252,2,FALSE)),'Preliminary SO66'!U139,VLOOKUP($CM145,'Audit Values'!$A$2:$AE$252,21,FALSE)) -> 1.5 | BL145: 6068 | BM145: 28 | BN145: 26124 | BO145: 32192 | BP145: ='2016legmax.xls'!AH142 -> 135 | BQ145: 520020 | BR145: 0 | BS145: ='2016legmax.xls'!CJ142 -> 0 | BT145: 0 | BU145: ='2016legmax.xls'!CI142 -> 0 | BV145: 0 | BW145: 0 | BX145: 0 | BY145: 0 | BZ145: 0 | CA145: 0 | CB145: 0 | CC145: 0 | CD145: 0 | CE145: 0 | CF145: 0 | CG145: 0 | CH145: 0 | CI145: 0 | CM145: D0345
A146: 346 | B146: Linn | C146: Jayhawk | D146: 3728307 | E146: 13641 | F146: 271181 | G146: 0 | H146: 0 | I146: 539 | J146: 0 | K146: 0 | L146: ='2016legmax.xls'!BJ143 -> 0 | M146: 4013129 | N146: ='2016legmax.xls'!BB143 -> 654947 | O146: 467876 | P146: ='2016legmax.xls'!BC143 -> 268895 | Q146: 349867 | R146: ='2016legmax.xls'!BD143 -> 27030 | S146: 5431877 | T146: ='2016legmax.xls'!DD143 -> 0 | U146: 111 | V146: 0 | W146: 0 | X146: 0 | Y146: 0 | Z146: 13262 | AA146: ='2016legmax.xls'!AV143 -> 5 | AB146: ='2016legmax.xls'!AW143 -> A | AC146: ='2016legmax.xls'!AX143 ->  | AD146: 5526222 | AE146: 5445250 | AF146: =IF(Weightings!G143>0,Weightings!G143,'Preliminary SO66'!AB140) -> 5570089 | AG146: 5445250 | AH146: 5445250 | AI146: 5115321 | AJ146: ='2016legmax.xls'!BM143 -> 0.3 | AK146: 1534596 | AL146: 1534596 | AM146: 1534596 | AO146: 3974151 | AP146: 1.1 | AQ146: 4237 | AR146: 0 | AS146: 0 | AT146: 0 | AU146: 0 | AV146: 0 | AW146: 0 | AX146: 0 | AY146: 15880 | AZ146: 58.6 | BA146: 225727 | BB146: 3728307 | BC146: ='2016legmax.xls'!F143 -> 504.4 | BD146: ='2016legmax.xls'!I143 -> 503.5 | BE146: ='2016legmax.xls'!K143 -> 530.5 | BF146: 530.5 | BG146: ='2016legmax.xls'!O143 -> 8.5 | BH146: 539 | BI146: =IF(ISNA(VLOOKUP($CM146,'Audit Values'!$A$2:$AE$252,2,FALSE)),'Preliminary SO66'!T140,VLOOKUP($CM146,'Audit Values'!$A$2:$AE$252,20,FALSE)) -> 2 | BJ146: 10000 | BK146: =IF(ISNA(VLOOKUP($CM146,'Audit Values'!$A$2:$AE$252,2,FALSE)),'Preliminary SO66'!U140,VLOOKUP($CM146,'Audit Values'!$A$2:$AE$252,21,FALSE)) -> 0.9 | BL146: 3641 | BM146: 0 | BN146: 0 | BO146: 13641 | BP146: ='2016legmax.xls'!AH143 -> 70.4 | BQ146: 271181 | BR146: 0 | BS146: ='2016legmax.xls'!CJ143 -> 0 | BT146: 0 | BU146: ='2016legmax.xls'!CI143 -> 0 | BV146: 0 | BW146: 0 | BX146: 0 | BY146: 0 | BZ146: 0 | CA146: 0 | CB146: 0 | CC146: 0 | CD146: 0 | CE146: 0 | CF146: 0 | CG146: 0 | CH146: 0 | CI146: 0 | CM146: D0346
A147: 347 | B147: Edwards | C147: Kinsley-Offerle | D147: 2588180 | E147: 0 | F147: 81662 | G147: 0 | H147: 0 | I147: 338.7 | J147: 0 | K147: 0 | L147: ='2016legmax.xls'!BJ144 -> 0 | M147: 2669842 | N147: ='2016legmax.xls'!BB144 -> 294692 | O147: 366226 | P147: ='2016legmax.xls'!BC144 -> 190296 | Q147: 250700 | R147: ='2016legmax.xls'!BD144 -> 0 | S147: 3521056 | T147: ='2016legmax.xls'!DD144 -> 0 | U147: 6095 | V147: 0 | W147: 0 | X147: 0 | Y147: 21352 | Z147: 2700 | AA147: ='2016legmax.xls'!AV144 -> 10 | AB147: ='2016legmax.xls'!AW144 -> A | AC147: ='2016legmax.xls'!AX144 ->  | AD147: 3611607 | AE147: 3551203 | AF147: =IF(Weightings!G144>0,Weightings!G144,'Preliminary SO66'!AB141) -> 3778560 | AG147: 3551203 | AH147: 3551203 | AI147: 3443326 | AJ147: ='2016legmax.xls'!BM144 -> 0.3 | AK147: 1032998 | AL147: 1032998 | AM147: 1032998 | AO147: 2598574 | AP147: 0 | AQ147: 0 | AR147: 0 | AS147: 0 | AT147: 0 | AU147: 0 | AV147: 0 | AW147: 0 | AX147: 0 | AY147: 10394 | AZ147: 0 | BA147: 0 | BB147: 2588180 | BC147: ='2016legmax.xls'!F144 -> 351.5 | BD147: ='2016legmax.xls'!I144 -> 329 | BE147: ='2016legmax.xls'!K144 -> 319 | BF147: 333.2 | BG147: ='2016legmax.xls'!O144 -> 5.5 | BH147: 338.7 | BI147: =IF(ISNA(VLOOKUP($CM147,'Audit Values'!$A$2:$AE$252,2,FALSE)),'Preliminary SO66'!T141,VLOOKUP($CM147,'Audit Values'!$A$2:$AE$252,20,FALSE)) -> 0 | BJ147: 0 | BK147: =IF(ISNA(VLOOKUP($CM147,'Audit Values'!$A$2:$AE$252,2,FALSE)),'Preliminary SO66'!U141,VLOOKUP($CM147,'Audit Values'!$A$2:$AE$252,21,FALSE)) -> 0 | BL147: 0 | BM147: 0 | BN147: 0 | BO147: 0 | BP147: ='2016legmax.xls'!AH144 -> 21.2 | BQ147: 81662 | BR147: 0 | BS147: ='2016legmax.xls'!CJ144 -> 0 | BT147: 0 | BU147: ='2016legmax.xls'!CI144 -> 0 | BV147: 0 | BW147: 0 | BX147: 0 | BY147: 0 | BZ147: 0 | CA147: 0 | CB147: 0 | CC147: 0 | CD147: 0 | CE147: 0 | CF147: 0 | CG147: 0 | CH147: 0 | CI147: 0 | CM147: D0347
A148: 348 | B148: Douglas | C148: Baldwin City | D148: 6910324 | E148: 0 | F148: 0 | G148: 0 | H148: 0 | I148: 1331.7 | J148: 0 | K148: 0 | L148: ='2016legmax.xls'!BJ145 -> 0 | M148: 6910324 | N148: ='2016legmax.xls'!BB145 -> 1347814 | O148: 1359646 | P148: ='2016legmax.xls'!BC145 -> 558392 | Q148: 730474 | R148: ='2016legmax.xls'!BD145 -> 121985 | S148: 10298161 | T148: ='2016legmax.xls'!DD145 -> 0 | U148: 4 | V148: 0 | W148: 0 | X148: 0 | Y148: 0 | Z148: 6252 | AA148: ='2016legmax.xls'!AV145 -> 6 | AB148: ='2016legmax.xls'!AW145 -> A | AC148: ='2016legmax.xls'!AX145 ->  | AD148: 10476499 | AE148: 10304417 | AF148: =IF(Weightings!G145>0,Weightings!G145,'Preliminary SO66'!AB142) -> 10697302 | AG148: 10304417 | AH148: 10304417 | AI148: 9416475 | AJ148: ='2016legmax.xls'!BM145 -> 0.3 | AK148: 2824943 | AL148: 2824943 | AM148: 2824943 | AO148: 6946165 | AP148: 2.1 | AQ148: 8089 | AR148: 0 | AS148: 0 | AT148: 0 | AU148: 0 | AV148: 0 | AW148: 0 | AX148: 0 | AY148: 27752 | AZ148: 0 | BA148: 0 | BB148: 6910324 | BC148: ='2016legmax.xls'!F145 -> 1326 | BD148: ='2016legmax.xls'!I145 -> 1316.7 | BE148: ='2016legmax.xls'!K145 -> 1298.2 | BF148: 1316.7 | BG148: ='2016legmax.xls'!O145 -> 15 | BH148: 1331.7 | BI148: =IF(ISNA(VLOOKUP($CM148,'Audit Values'!$A$2:$AE$252,2,FALSE)),'Preliminary SO66'!T142,VLOOKUP($CM148,'Audit Values'!$A$2:$AE$252,20,FALSE)) -> 0 | BJ148: 0 | BK148: =IF(ISNA(VLOOKUP($CM148,'Audit Values'!$A$2:$AE$252,2,FALSE)),'Preliminary SO66'!U142,VLOOKUP($CM148,'Audit Values'!$A$2:$AE$252,21,FALSE)) -> 0 | BL148: 0 | BM148: 0 | BN148: 0 | BO148: 0 | BP148: ='2016legmax.xls'!AH145 -> 0 | BQ148: 0 | BR148: 0 | BS148: ='2016legmax.xls'!CJ145 -> 0.0108 | BT148: 113146 | BU148: ='2016legmax.xls'!CI145 -> 0 | BV148: 0 | BW148: 0 | BX148: 0 | BY148: 0 | BZ148: 0 | CA148: 0 | CB148: 0 | CC148: 0 | CD148: 0 | CE148: 0 | CF148: 0 | CG148: 0 | CH148: 0 | CI148: 0 | CM148: D0348
A149: 349 | B149: Stafford | C149: Stafford | D149: 1859260 | E149: 0 | F149: 0 | G149: 0 | H149: 0 | I149: 262.9 | J149: 0 | K149: 5000 | L149: ='2016legmax.xls'!BJ146 -> 0 | M149: 1854260 | N149: ='2016legmax.xls'!BB146 -> 232290 | O149: 305855 | P149: ='2016legmax.xls'!BC146 -> 140850 | Q149: 185052 | R149: ='2016legmax.xls'!BD146 -> 3406 | S149: 2536661 | T149: ='2016legmax.xls'!DD146 -> 0 | U149: 4140 | V149: 0 | W149: 0 | X149: 72925 | Y149: 0 | Z149: 0 | AA149: ='2016legmax.xls'!AV146 -> 2 | AB149: ='2016legmax.xls'!AW146 -> A | AC149: ='2016legmax.xls'!AX146 ->  | AD149: 2590003 | AE149: 2618726 | AF149: =IF(Weightings!G146>0,Weightings!G146,'Preliminary SO66'!AB143) -> 2633817 | AG149: 2618726 | AH149: 2618726 | AI149: 2469966 | AJ149: ='2016legmax.xls'!BM146 -> 0.3 | AK149: 740990 | AL149: 740990 | AM149: 740990 | AO149: 1866727 | AP149: 0 | AQ149: 0 | AR149: 0 | AS149: 0 | AT149: 0 | AU149: 0 | AV149: 0 | AW149: 0 | AX149: 0 | AY149: 7467 | AZ149: 0 | BA149: 0 | BB149: 1859260 | BC149: ='2016legmax.xls'!F146 -> 269.5 | BD149: ='2016legmax.xls'!I146 -> 262.9 | BE149: ='2016legmax.xls'!K146 -> 243.4 | BF149: 262.9 | BG149: ='2016legmax.xls'!O146 -> 0 | BH149: 262.9 | BI149: =IF(ISNA(VLOOKUP($CM149,'Audit Values'!$A$2:$AE$252,2,FALSE)),'Preliminary SO66'!T143,VLOOKUP($CM149,'Audit Values'!$A$2:$AE$252,20,FALSE)) -> 0 | BJ149: 0 | BK149: =IF(ISNA(VLOOKUP($CM149,'Audit Values'!$A$2:$AE$252,2,FALSE)),'Preliminary SO66'!U143,VLOOKUP($CM149,'Audit Values'!$A$2:$AE$252,21,FALSE)) -> 0 | BL149: 0 | BM149: 0 | BN149: 0 | BO149: 0 | BP149: ='2016legmax.xls'!AH146 -> 0 | BQ149: 0 | BR149: 0 | BS149: ='2016legmax.xls'!CJ146 -> 0 | BT149: 0 | BU149: ='2016legmax.xls'!CI146 -> 0 | BV149: 0 | BW149: 0 | BX149: 0 | BY149: 0 | BZ149: 0 | CA149: 0 | CB149: 0 | CC149: 0 | CD149: 0 | CE149: 0 | CF149: 0 | CG149: 0 | CH149: 0 | CI149: 0 | CM149: D0349
A150: 350 | B150: Stafford | C150: St John-Hudson | D150: 2330085 | E150: 0 | F150: 0 | G150: 0 | H150: 0 | I150: 345 | J150: 0 | K150: 0 | L150: ='2016legmax.xls'!BJ147 -> 0 | M150: 2330085 | N150: ='2016legmax.xls'!BB147 -> 0 | O150: 419592 | P150: ='2016legmax.xls'!BC147 -> 181268 | Q150: 236620 | R150: ='2016legmax.xls'!BD147 -> 0 | S150: 2930945 | T150: ='2016legmax.xls'!DD147 -> 0 | U150: 16588 | V150: 0 | W150: 0 | X150: 0 | Y150: 0 | Z150: 0 | AA150: ='2016legmax.xls'!AV147 -> 14 | AB150: ='2016legmax.xls'!AW147 -> A | AC150: ='2016legmax.xls'!AX147 ->  | AD150: 3002885 | AE150: 2947533 | AF150: =IF(Weightings!G147>0,Weightings!G147,'Preliminary SO66'!AB144) -> 3052926 | AG150: 2947533 | AH150: 2947533 | AI150: 3167014 | AJ150: ='2016legmax.xls'!BM147 -> 0.31 | AK150: 981774 | AL150: 981774 | AM150: 981774 | AO150: 2339443 | AP150: 0 | AQ150: 0 | AR150: 0 | AS150: 0 | AT150: 0 | AU150: 0 | AV150: 0 | AW150: 0 | AX150: 0 | AY150: 9358 | AZ150: 0 | BA150: 0 | BB150: 2330085 | BC150: ='2016legmax.xls'!F147 -> 331 | BD150: ='2016legmax.xls'!I147 -> 345 | BE150: ='2016legmax.xls'!K147 -> 327.4 | BF150: 345 | BG150: ='2016legmax.xls'!O147 -> 0 | BH150: 345 | BI150: =IF(ISNA(VLOOKUP($CM150,'Audit Values'!$A$2:$AE$252,2,FALSE)),'Preliminary SO66'!T144,VLOOKUP($CM150,'Audit Values'!$A$2:$AE$252,20,FALSE)) -> 0 | BJ150: 0 | BK150: =IF(ISNA(VLOOKUP($CM150,'Audit Values'!$A$2:$AE$252,2,FALSE)),'Preliminary SO66'!U144,VLOOKUP($CM150,'Audit Values'!$A$2:$AE$252,21,FALSE)) -> 0 | BL150: 0 | BM150: 0 | BN150: 0 | BO150: 0 | BP150: ='2016legmax.xls'!AH147 -> 0 | BQ150: 0 | BR150: 0 | BS150: ='2016legmax.xls'!CJ147 -> 0 | BT150: 0 | BU150: ='2016legmax.xls'!CI147 -> 0 | BV150: 0 | BW150: 0 | BX150: 0 | BY150: 0 | BZ150: 0 | CA150: 0 | CB150: 0 | CC150: 0 | CD150: 0 | CE150: 0 | CF150: 0 | CG150: 0 | CH150: 0 | CI150: 0 | CM150: D0350
A151: 351 | B151: Stafford | C151: Macksville | D151: 2001125 | E151: 0 | F151: 0 | G151: 0 | H151: 0 | I151: 239 | J151: 0 | K151: 677 | L151: ='2016legmax.xls'!BJ148 -> 0 | M151: 2000448 | N151: ='2016legmax.xls'!BB148 -> 0 | O151: 306375 | P151: ='2016legmax.xls'!BC148 -> 164823 | Q151: 216042 | R151: ='2016legmax.xls'!BD148 -> 0 | S151: 2471646 | T151: ='2016legmax.xls'!DD148 -> 0 | U151: 9295 | V151: 0 | W151: 0 | X151: 0 | Y151: 0 | Z151: 6500 | AA151: ='2016legmax.xls'!AV148 -> 15 | AB151: ='2016legmax.xls'!AW148 -> A | AC151: ='2016legmax.xls'!AX148 ->  | AD151: 2539337 | AE151: 2488118 | AF151: =IF(Weightings!G148>0,Weightings!G148,'Preliminary SO66'!AB145) -> 2610945 | AG151: 2488118 | AH151: 2488118 | AI151: 2678157 | AJ151: ='2016legmax.xls'!BM148 -> 0.3 | AK151: 803447 | AL151: 803447 | AM151: 803447 | AO151: 2009162 | AP151: 0 | AQ151: 0 | AR151: 0 | AS151: 0 | AT151: 0 | AU151: 0 | AV151: 0 | AW151: 0 | AX151: 0 | AY151: 8037 | AZ151: 0 | BA151: 0 | BB151: 2001125 | BC151: ='2016legmax.xls'!F148 -> 261.2 | BD151: ='2016legmax.xls'!I148 -> 235.9 | BE151: ='2016legmax.xls'!K148 -> 212.5 | BF151: 236.5 | BG151: ='2016legmax.xls'!O148 -> 2.5 | BH151: 239 | BI151: =IF(ISNA(VLOOKUP($CM151,'Audit Values'!$A$2:$AE$252,2,FALSE)),'Preliminary SO66'!T145,VLOOKUP($CM151,'Audit Values'!$A$2:$AE$252,20,FALSE)) -> 0 | BJ151: 0 | BK151: =IF(ISNA(VLOOKUP($CM151,'Audit Values'!$A$2:$AE$252,2,FALSE)),'Preliminary SO66'!U145,VLOOKUP($CM151,'Audit Values'!$A$2:$AE$252,21,FALSE)) -> 0 | BL151: 0 | BM151: 0 | BN151: 0 | BO151: 0 | BP151: ='2016legmax.xls'!AH148 -> 0 | BQ151: 0 | BR151: 0 | BS151: ='2016legmax.xls'!CJ148 -> 0 | BT151: 0 | BU151: ='2016legmax.xls'!CI148 -> 0 | BV151: 0 | BW151: 0 | BX151: 0 | BY151: 0 | BZ151: 0 | CA151: 0 | CB151: 0 | CC151: 0 | CD151: 0 | CE151: 0 | CF151: 0 | CG151: 0 | CH151: 0 | CI151: 0 | CM151: D0351
A152: 352 | B152: Sherman | C152: Goodland | D152: 5992865 | E152: 53714 | F152: 94759 | G152: 0 | H152: 0 | I152: 1041.5 | J152: 0 | K152: 0 | L152: ='2016legmax.xls'!BJ149 -> 0 | M152: 6141338 | N152: ='2016legmax.xls'!BB149 -> 849982 | O152: 936407 | P152: ='2016legmax.xls'!BC149 -> 485686 | Q152: 634419 | R152: ='2016legmax.xls'!BD149 -> 34887 | S152: 8448300 | T152: ='2016legmax.xls'!DD149 -> 0 | U152: 802 | V152: 0 | W152: 0 | X152: 0 | Y152: 0 | Z152: 2410 | AA152: ='2016legmax.xls'!AV149 -> 14 | AB152: ='2016legmax.xls'!AW149 -> A | AC152: ='2016legmax.xls'!AX149 ->  | AD152: 8600245 | AE152: 8451512 | AF152: =IF(Weightings!G149>0,Weightings!G149,'Preliminary SO66'!AB146) -> 8783752 | AG152: 8451512 | AH152: 8451512 | AI152: 8026827 | AJ152: ='2016legmax.xls'!BM149 -> 0.3 | AK152: 2408048 | AL152: 2408048 | AM152: 2408048 | AO152: 6156467 | AP152: 5.3 | AQ152: 20416 | AR152: 0 | AS152: 0 | AT152: 0 | AU152: 0 | AV152: 0 | AW152: 0 | AX152: 0 | AY152: 24544 | AZ152: 30.8 | BA152: 118642 | BB152: 5992865 | BC152: ='2016legmax.xls'!F149 -> 1032.3 | BD152: ='2016legmax.xls'!I149 -> 1041.5 | BE152: ='2016legmax.xls'!K149 -> 879.7 | BF152: 1041.5 | BG152: ='2016legmax.xls'!O149 -> 0 | BH152: 1041.5 | BI152: =IF(ISNA(VLOOKUP($CM152,'Audit Values'!$A$2:$AE$252,2,FALSE)),'Preliminary SO66'!T146,VLOOKUP($CM152,'Audit Values'!$A$2:$AE$252,20,FALSE)) -> 5 | BJ152: 25000 | BK152: =IF(ISNA(VLOOKUP($CM152,'Audit Values'!$A$2:$AE$252,2,FALSE)),'Preliminary SO66'!U146,VLOOKUP($CM152,'Audit Values'!$A$2:$AE$252,21,FALSE)) -> 4.1 | BL152: 16585 | BM152: 13 | BN152: 12129 | BO152: 53714 | BP152: ='2016legmax.xls'!AH149 -> 24.6 | BQ152: 94759 | BR152: 0 | BS152: ='2016legmax.xls'!CJ149 -> 0 | BT152: 0 | BU152: ='2016legmax.xls'!CI149 -> 0 | BV152: 0 | BW152: 0 | BX152: 0 | BY152: 0 | BZ152: 0 | CA152: 0 | CB152: 0 | CC152: 0 | CD152: 0 | CE152: 0 | CF152: 0 | CG152: 0 | CH152: 0 | CI152: 0 | CM152: D0352
A153: 353 | B153: Sumner | C153: Wellington | D153: 8163733 | E153: 0 | F153: 0 | G153: 0 | H153: 0 | I153: 1555 | J153: 0 | K153: 0 | L153: ='2016legmax.xls'!BJ150 -> 0 | M153: 8163733 | N153: ='2016legmax.xls'!BB150 -> 2238469 | O153: 2104469 | P153: ='2016legmax.xls'!BC150 -> 795028 | Q153: 1047199 | R153: ='2016legmax.xls'!BD150 -> 122041 | S153: 13423740 | T153: ='2016legmax.xls'!DD150 -> 0 | U153: 4413 | V153: 0 | W153: 0 | X153: 0 | Y153: 0 | Z153: 30464 | AA153: ='2016legmax.xls'!AV150 -> 2 | AB153: ='2016legmax.xls'!AW150 -> A | AC153: ='2016legmax.xls'!AX150 ->  | AD153: 13710788 | AE153: 13458617 | AF153: =IF(Weightings!G150>0,Weightings!G150,'Preliminary SO66'!AB147) -> 13870620 | AG153: 13458617 | AH153: 13458617 | AI153: 11572640 | AJ153: ='2016legmax.xls'!BM150 -> 0.3 | AK153: 3471792 | AL153: 3471792 | AM153: 3471792 | AO153: 8196519 | AP153: 0 | AQ153: 0 | AR153: 0 | AS153: 0 | AT153: 0 | AU153: 0 | AV153: 0 | AW153: 0 | AX153: 0 | AY153: 32786 | AZ153: 0 | BA153: 0 | BB153: 8163733 | BC153: ='2016legmax.xls'!F150 -> 1515.5 | BD153: ='2016legmax.xls'!I150 -> 1551.5 | BE153: ='2016legmax.xls'!K150 -> 1534.5 | BF153: 1551.5 | BG153: ='2016legmax.xls'!O150 -> 3.5 | BH153: 1555 | BI153: =IF(ISNA(VLOOKUP($CM153,'Audit Values'!$A$2:$AE$252,2,FALSE)),'Preliminary SO66'!T147,VLOOKUP($CM153,'Audit Values'!$A$2:$AE$252,20,FALSE)) -> 0 | BJ153: 0 | BK153: =IF(ISNA(VLOOKUP($CM153,'Audit Values'!$A$2:$AE$252,2,FALSE)),'Preliminary SO66'!U147,VLOOKUP($CM153,'Audit Values'!$A$2:$AE$252,21,FALSE)) -> 0 | BL153: 0 | BM153: 0 | BN153: 0 | BO153: 0 | BP153: ='2016legmax.xls'!AH150 -> 0 | BQ153: 0 | BR153: 0 | BS153: ='2016legmax.xls'!CJ150 -> 0 | BT153: 0 | BU153: ='2016legmax.xls'!CI150 -> 0 | BV153: 0 | BW153: 0 | BX153: 0 | BY153: 0 | BZ153: 0 | CA153: 0 | CB153: 0 | CC153: 0 | CD153: 0 | CE153: 0 | CF153: 0 | CG153: 0 | CH153: 0 | CI153: 0 | CM153: D0353
A154: 355 | B154: Barton | C154: Ellinwood Public Schools | D154: 2713588 | E154: 0 | F154: 0 | G154: 0 | H154: 0 | I154: 424.3 | J154: 0 | K154: 0 | L154: ='2016legmax.xls'!BJ151 -> 0 | M154: 2713588 | N154: ='2016legmax.xls'!BB151 -> 70631 | O154: 474174 | P154: ='2016legmax.xls'!BC151 -> 246029 | Q154: 321687 | R154: ='2016legmax.xls'!BD151 -> 0 | S154: 3504422 | T154: ='2016legmax.xls'!DD151 -> 0 | U154: 13167 | V154: 0 | W154: 0 | X154: 0 | Y154: 0 | Z154: 0 | AA154: ='2016legmax.xls'!AV151 -> 10 | AB154: ='2016legmax.xls'!AW151 -> A | AC154: ='2016legmax.xls'!AX151 ->  | AD154: 3593247 | AE154: 3517589 | AF154: =IF(Weightings!G151>0,Weightings!G151,'Preliminary SO66'!AB148) -> 3798668 | AG154: 3517589 | AH154: 3517589 | AI154: 3637310 | AJ154: ='2016legmax.xls'!BM151 -> 0.3 | AK154: 1091193 | AL154: 1091193 | AM154: 1091193 | AO154: 2724486 | AP154: 0 | AQ154: 0 | AR154: 0 | AS154: 0 | AT154: 0 | AU154: 0 | AV154: 0 | AW154: 0 | AX154: 0 | AY154: 10898 | AZ154: 0 | BA154: 0 | BB154: 2713588 | BC154: ='2016legmax.xls'!F151 -> 409.2 | BD154: ='2016legmax.xls'!I151 -> 414.2 | BE154: ='2016legmax.xls'!K151 -> 424.3 | BF154: 424.3 | BG154: ='2016legmax.xls'!O151 -> 0 | BH154: 424.3 | BI154: =IF(ISNA(VLOOKUP($CM154,'Audit Values'!$A$2:$AE$252,2,FALSE)),'Preliminary SO66'!T148,VLOOKUP($CM154,'Audit Values'!$A$2:$AE$252,20,FALSE)) -> 0 | BJ154: 0 | BK154: =IF(ISNA(VLOOKUP($CM154,'Audit Values'!$A$2:$AE$252,2,FALSE)),'Preliminary SO66'!U148,VLOOKUP($CM154,'Audit Values'!$A$2:$AE$252,21,FALSE)) -> 0 | BL154: 0 | BM154: 0 | BN154: 0 | BO154: 0 | BP154: ='2016legmax.xls'!AH151 -> 0 | BQ154: 0 | BR154: 0 | BS154: ='2016legmax.xls'!CJ151 -> 0 | BT154: 0 | BU154: ='2016legmax.xls'!CI151 -> 0 | BV154: 0 | BW154: 0 | BX154: 0 | BY154: 0 | BZ154: 0 | CA154: 0 | CB154: 0 | CC154: 0 | CD154: 0 | CE154: 0 | CF154: 0 | CG154: 0 | CH154: 0 | CI154: 0 | CM154: D0355
A155: 356 | B155: Sumner | C155: Conway Springs | D155: 3114498 | E155: 0 | F155: 0 | G155: 0 | H155: 0 | I155: 481 | J155: 0 | K155: 0 | L155: ='2016legmax.xls'!BJ152 -> 0 | M155: 3114498 | N155: ='2016legmax.xls'!BB152 -> 789805 | O155: 465879 | P155: ='2016legmax.xls'!BC152 -> 256421 | Q155: 335527 | R155: ='2016legmax.xls'!BD152 -> 37436 | S155: 4664039 | T155: ='2016legmax.xls'!DD152 -> 0 | U155: 1073 | V155: 0 | W155: 0 | X155: 0 | Y155: 0 | Z155: 6383 | AA155: ='2016legmax.xls'!AV152 -> 5 | AB155: ='2016legmax.xls'!AW152 -> A | AC155: ='2016legmax.xls'!AX152 ->  | AD155: 4750601 | AE155: 4671495 | AF155: =IF(Weightings!G152>0,Weightings!G152,'Preliminary SO66'!AB149) -> 4878536 | AG155: 4671495 | AH155: 4671495 | AI155: 4162101 | AJ155: ='2016legmax.xls'!BM152 -> 0.3 | AK155: 1248630 | AL155: 1248630 | AM155: 1248630 | AO155: 3127006 | AP155: 0 | AQ155: 0 | AR155: 0 | AS155: 0 | AT155: 0 | AU155: 0 | AV155: 0 | AW155: 0 | AX155: 0 | AY155: 12508 | AZ155: 0 | BA155: 0 | BB155: 3114498 | BC155: ='2016legmax.xls'!F152 -> 492.3 | BD155: ='2016legmax.xls'!I152 -> 480.5 | BE155: ='2016legmax.xls'!K152 -> 470.3 | BF155: 481 | BG155: ='2016legmax.xls'!O152 -> 0 | BH155: 481 | BI155: =IF(ISNA(VLOOKUP($CM155,'Audit Values'!$A$2:$AE$252,2,FALSE)),'Preliminary SO66'!T149,VLOOKUP($CM155,'Audit Values'!$A$2:$AE$252,20,FALSE)) -> 0 | BJ155: 0 | BK155: =IF(ISNA(VLOOKUP($CM155,'Audit Values'!$A$2:$AE$252,2,FALSE)),'Preliminary SO66'!U149,VLOOKUP($CM155,'Audit Values'!$A$2:$AE$252,21,FALSE)) -> 0 | BL155: 0 | BM155: 0 | BN155: 0 | BO155: 0 | BP155: ='2016legmax.xls'!AH152 -> 0 | BQ155: 0 | BR155: 0 | BS155: ='2016legmax.xls'!CJ152 -> 0 | BT155: 0 | BU155: ='2016legmax.xls'!CI152 -> 0 | BV155: 0 | BW155: 0 | BX155: 0 | BY155: 0 | BZ155: 0 | CA155: 0 | CB155: 0 | CC155: 0 | CD155: 0 | CE155: 0 | CF155: 0 | CG155: 0 | CH155: 0 | CI155: 0 | CM155: D0356
A156: 357 | B156: Sumner | C156: Belle Plaine | D156: 3716421 | E156: 89437 | F156: 0 | G156: 0 | H156: 0 | I156: 599.8 | J156: 0 | K156: 0 | L156: ='2016legmax.xls'!BJ153 -> 0 | M156: 3805858 | N156: ='2016legmax.xls'!BB153 -> 1077565 | O156: 752622 | P156: ='2016legmax.xls'!BC153 -> 317659 | Q156: 416676 | R156: ='2016legmax.xls'!BD153 -> 71308 | S156: 6025012 | T156: ='2016legmax.xls'!DD153 -> 0 | U156: 558 | V156: 0 | W156: 0 | X156: 0 | Y156: 0 | Z156: 1539 | AA156: ='2016legmax.xls'!AV153 -> 18 | AB156: ='2016legmax.xls'!AW153 -> A | AC156: ='2016legmax.xls'!AX153 ->  | AD156: 6126126 | AE156: 6027109 | AF156: =IF(Weightings!G153>0,Weightings!G153,'Preliminary SO66'!AB150) -> 6337020 | AG156: 6027109 | AH156: 6027109 | AI156: 5296014 | AJ156: ='2016legmax.xls'!BM153 -> 0.3 | AK156: 1588804 | AL156: 1588804 | AM156: 1588804 | AO156: 3731346 | AP156: 0 | AQ156: 0 | AR156: 0 | AS156: 0 | AT156: 0 | AU156: 0 | AV156: 0 | AW156: 0 | AX156: 0 | AY156: 14925 | AZ156: 0 | BA156: 0 | BB156: 3716421 | BC156: ='2016legmax.xls'!F153 -> 582.5 | BD156: ='2016legmax.xls'!I153 -> 592.3 | BE156: ='2016legmax.xls'!K153 -> 574.5 | BF156: 592.3 | BG156: ='2016legmax.xls'!O153 -> 7.5 | BH156: 599.8 | BI156: =IF(ISNA(VLOOKUP($CM156,'Audit Values'!$A$2:$AE$252,2,FALSE)),'Preliminary SO66'!T150,VLOOKUP($CM156,'Audit Values'!$A$2:$AE$252,20,FALSE)) -> 1 | BJ156: 5000 | BK156: =IF(ISNA(VLOOKUP($CM156,'Audit Values'!$A$2:$AE$252,2,FALSE)),'Preliminary SO66'!U150,VLOOKUP($CM156,'Audit Values'!$A$2:$AE$252,21,FALSE)) -> 0 | BL156: 0 | BM156: 90.5 | BN156: 84437 | BO156: 89437 | BP156: ='2016legmax.xls'!AH153 -> 0 | BQ156: 0 | BR156: 0 | BS156: ='2016legmax.xls'!CJ153 -> 0 | BT156: 0 | BU156: ='2016legmax.xls'!CI153 -> 0 | BV156: 0 | BW156: 0 | BX156: 0 | BY156: 0 | BZ156: 0 | CA156: 0 | CB156: 0 | CC156: 0 | CD156: 0 | CE156: 0 | CF156: 0 | CG156: 0 | CH156: 0 | CI156: 0 | CM156: D0357
A157: 358 | B157: Sumner | C157: Oxford | D157: 2199874 | E157: 390209 | F157: 0 | G157: 0 | H157: 0 | I157: 318.1 | J157: 0 | K157: 0 | L157: ='2016legmax.xls'!BJ154 -> 0 | M157: 2590083 | N157: ='2016legmax.xls'!BB154 -> 483501 | O157: 426352 | P157: ='2016legmax.xls'!BC154 -> 179609 | Q157: 235344 | R157: ='2016legmax.xls'!BD154 -> 32924 | S157: 3712469 | T157: ='2016legmax.xls'!DD154 -> 0 | U157: 3360 | V157: 0 | W157: 0 | X157: 0 | Y157: 0 | Z157: 0 | AA157: ='2016legmax.xls'!AV154 -> 12 | AB157: ='2016legmax.xls'!AW154 -> A | AC157: ='2016legmax.xls'!AX154 ->  | AD157: 3771564 | AE157: 3715829 | AF157: =IF(Weightings!G154>0,Weightings!G154,'Preliminary SO66'!AB151) -> 3998962 | AG157: 3715829 | AH157: 3715829 | AI157: 3085096 | AJ157: ='2016legmax.xls'!BM154 -> 0.3 | AK157: 925529 | AL157: 925000 | AM157: 925000 | AO157: 2352003 | AP157: 37.2 | AQ157: 143294 | AR157: 0 | AS157: 0 | AT157: 0 | AU157: 0 | AV157: 0 | AW157: 0 | AX157: 0 | AY157: 8835 | AZ157: 0 | BA157: 0 | BB157: 2199874 | BC157: ='2016legmax.xls'!F154 -> 315.2 | BD157: ='2016legmax.xls'!I154 -> 315.6 | BE157: ='2016legmax.xls'!K154 -> 287 | BF157: 315.6 | BG157: ='2016legmax.xls'!O154 -> 2.5 | BH157: 318.1 | BI157: =IF(ISNA(VLOOKUP($CM157,'Audit Values'!$A$2:$AE$252,2,FALSE)),'Preliminary SO66'!T151,VLOOKUP($CM157,'Audit Values'!$A$2:$AE$252,20,FALSE)) -> 38 | BJ157: 190000 | BK157: =IF(ISNA(VLOOKUP($CM157,'Audit Values'!$A$2:$AE$252,2,FALSE)),'Preliminary SO66'!U151,VLOOKUP($CM157,'Audit Values'!$A$2:$AE$252,21,FALSE)) -> 8.9 | BL157: 36001 | BM157: 176 | BN157: 164208 | BO157: 390209 | BP157: ='2016legmax.xls'!AH154 -> 0 | BQ157: 0 | BR157: 0 | BS157: ='2016legmax.xls'!CJ154 -> 0 | BT157: 0 | BU157: ='2016legmax.xls'!CI154 -> 0 | BV157: 0 | BW157: 0 | BX157: 0 | BY157: 0 | BZ157: 0 | CA157: 0 | CB157: 0 | CC157: 0 | CD157: 0 | CE157: 0 | CF157: 0 | CG157: 0 | CH157: 0 | CI157: 0 | CM157: D0358
A158: 359 | B158: Sumner | C158: Argonia Public Schools | D158: 1340395 | E158: 0 | F158: 0 | G158: 0 | H158: 0 | I158: 165.9 | J158: 0 | K158: 0 | L158: ='2016legmax.xls'!BJ155 -> 0 | M158: 1340395 | N158: ='2016legmax.xls'!BB155 -> 93494 | O158: 215139 | P158: ='2016legmax.xls'!BC155 -> 105986 | Q158: 139785 | R158: ='2016legmax.xls'!BD155 -> 0 | S158: 1755014 | T158: ='2016legmax.xls'!DD155 -> 0 | U158: 2242 | V158: 0 | W158: 0 | X158: 0 | Y158: 0 | Z158: 0 | AA158: ='2016legmax.xls'!AV155 -> 16 | AB158: ='2016legmax.xls'!AW155 -> A | AC158: ='2016legmax.xls'!AX155 ->  | AD158: 1791055 | AE158: 1757256 | AF158: =IF(Weightings!G155>0,Weightings!G155,'Preliminary SO66'!AB152) -> 1846737 | AG158: 1757256 | AH158: 1757256 | AI158: 1821451 | AJ158: ='2016legmax.xls'!BM155 -> 0.3 | AK158: 546435 | AL158: 510140 | AM158: 510140 | AO158: 1345778 | AP158: 0 | AQ158: 0 | AR158: 0 | AS158: 0 | AT158: 0 | AU158: 0 | AV158: 0 | AW158: 0 | AX158: 0 | AY158: 5383 | AZ158: 0 | BA158: 0 | BB158: 1340395 | BC158: ='2016legmax.xls'!F155 -> 160 | BD158: ='2016legmax.xls'!I155 -> 163.9 | BE158: ='2016legmax.xls'!K155 -> 155 | BF158: 163.9 | BG158: ='2016legmax.xls'!O155 -> 2 | BH158: 165.9 | BI158: =IF(ISNA(VLOOKUP($CM158,'Audit Values'!$A$2:$AE$252,2,FALSE)),'Preliminary SO66'!T152,VLOOKUP($CM158,'Audit Values'!$A$2:$AE$252,20,FALSE)) -> 0 | BJ158: 0 | BK158: =IF(ISNA(VLOOKUP($CM158,'Audit Values'!$A$2:$AE$252,2,FALSE)),'Preliminary SO66'!U152,VLOOKUP($CM158,'Audit Values'!$A$2:$AE$252,21,FALSE)) -> 0 | BL158: 0 | BM158: 0 | BN158: 0 | BO158: 0 | BP158: ='2016legmax.xls'!AH155 -> 0 | BQ158: 0 | BR158: 0 | BS158: ='2016legmax.xls'!CJ155 -> 0 | BT158: 0 | BU158: ='2016legmax.xls'!CI155 -> 0 | BV158: 0 | BW158: 0 | BX158: 0 | BY158: 0 | BZ158: 0 | CA158: 0 | CB158: 0 | CC158: 0 | CD158: 0 | CE158: 0 | CF158: 0 | CG158: 0 | CH158: 0 | CI158: 0 | CM158: D0359
A159: 360 | B159: Sumner | C159: Caldwell | D159: 1808343 | E159: 11866 | F159: 0 | G159: 0 | H159: 0 | I159: 247.5 | J159: 0 | K159: 0 | L159: ='2016legmax.xls'!BJ156 -> 0 | M159: 1820209 | N159: ='2016legmax.xls'!BB156 -> 318536 | O159: 296405 | P159: ='2016legmax.xls'!BC156 -> 136987 | Q159: 179248 | R159: ='2016legmax.xls'!BD156 -> 21437 | S159: 2593574 | T159: ='2016legmax.xls'!DD156 -> 0 | U159: 3560 | V159: 0 | W159: 0 | X159: 0 | Y159: 0 | Z159: 3727 | AA159: ='2016legmax.xls'!AV156 -> 9 | AB159: ='2016legmax.xls'!AW156 -> A | AC159: ='2016legmax.xls'!AX156 ->  | AD159: 2643122 | AE159: 2600861 | AF159: =IF(Weightings!G156>0,Weightings!G156,'Preliminary SO66'!AB153) -> 2705457 | AG159: 2600861 | AH159: 2600861 | AI159: 2443091 | AJ159: ='2016legmax.xls'!BM156 -> 0.33 | AK159: 806220 | AL159: 772000 | AM159: 772000 | AO159: 1815605 | AP159: 0 | AQ159: 0 | AR159: 0 | AS159: 0 | AT159: 0 | AU159: 0 | AV159: 0 | AW159: 0 | AX159: 0 | AY159: 7262 | AZ159: 0 | BA159: 0 | BB159: 1808343 | BC159: ='2016legmax.xls'!F156 -> 240.5 | BD159: ='2016legmax.xls'!I156 -> 243.5 | BE159: ='2016legmax.xls'!K156 -> 222 | BF159: 243.5 | BG159: ='2016legmax.xls'!O156 -> 4 | BH159: 247.5 | BI159: =IF(ISNA(VLOOKUP($CM159,'Audit Values'!$A$2:$AE$252,2,FALSE)),'Preliminary SO66'!T153,VLOOKUP($CM159,'Audit Values'!$A$2:$AE$252,20,FALSE)) -> 2 | BJ159: 10000 | BK159: =IF(ISNA(VLOOKUP($CM159,'Audit Values'!$A$2:$AE$252,2,FALSE)),'Preliminary SO66'!U153,VLOOKUP($CM159,'Audit Values'!$A$2:$AE$252,21,FALSE)) -> 0 | BL159: 0 | BM159: 2 | BN159: 1866 | BO159: 11866 | BP159: ='2016legmax.xls'!AH156 -> 0 | BQ159: 0 | BR159: 0 | BS159: ='2016legmax.xls'!CJ156 -> 0 | BT159: 0 | BU159: ='2016legmax.xls'!CI156 -> 0 | BV159: 0 | BW159: 0 | BX159: 0 | BY159: 0 | BZ159: 0 | CA159: 0 | CB159: 0 | CC159: 0 | CD159: 0 | CE159: 0 | CF159: 0 | CG159: 0 | CH159: 0 | CI159: 0 | CM159: D0360
A160: 361 | B160: Harper | C160: Chaparral Schools | D160: 5148810 | E160: 39653 | F160: 0 | G160: 0 | H160: 0 | I160: 848.8 | J160: 0 | K160: 19780 | L160: ='2016legmax.xls'!BJ157 -> 0 | M160: 5168683 | N160: ='2016legmax.xls'!BB157 -> 79661 | O160: 1099340 | P160: ='2016legmax.xls'!BC157 -> 431012 | Q160: 567226 | R160: ='2016legmax.xls'!BD157 -> 0 | S160: 6778696 | T160: ='2016legmax.xls'!DD157 -> 0 | U160: 228551 | V160: 0 | W160: 0 | X160: 0 | Y160: 0 | Z160: 0 | AA160: ='2016legmax.xls'!AV157 -> 17 | AB160: ='2016legmax.xls'!AW157 -> A | AC160: ='2016legmax.xls'!AX157 ->  | AD160: 7163241 | AE160: 7027027 | AF160: =IF(Weightings!G157>0,Weightings!G157,'Preliminary SO66'!AB154) -> 6978382 | AG160: 6978382 | AH160: 6978382 | AI160: 7720712 | AJ160: ='2016legmax.xls'!BM157 -> 0.2937 | AK160: 2267573 | AL160: 2254448 | AM160: 2254448 | AO160: 5169488 | AP160: 0 | AQ160: 0 | AR160: 0 | AS160: 0 | AT160: 0 | AU160: 0 | AV160: 0 | AW160: 0 | AX160: 0 | AY160: 20678 | AZ160: 0 | BA160: 0 | BB160: 5148810 | BC160: ='2016legmax.xls'!F157 -> 828.7 | BD160: ='2016legmax.xls'!I157 -> 839.8 | BE160: ='2016legmax.xls'!K157 -> 788.5 | BF160: 839.8 | BG160: ='2016legmax.xls'!O157 -> 9 | BH160: 848.8 | BI160: =IF(ISNA(VLOOKUP($CM160,'Audit Values'!$A$2:$AE$252,2,FALSE)),'Preliminary SO66'!T154,VLOOKUP($CM160,'Audit Values'!$A$2:$AE$252,20,FALSE)) -> 0 | BJ160: 0 | BK160: =IF(ISNA(VLOOKUP($CM160,'Audit Values'!$A$2:$AE$252,2,FALSE)),'Preliminary SO66'!U154,VLOOKUP($CM160,'Audit Values'!$A$2:$AE$252,21,FALSE)) -> 0 | BL160: 0 | BM160: 42.5 | BN160: 39653 | BO160: 39653 | BP160: ='2016legmax.xls'!AH157 -> 0 | BQ160: 0 | BR160: 0 | BS160: ='2016legmax.xls'!CJ157 -> 0 | BT160: 0 | BU160: ='2016legmax.xls'!CI157 -> 0 | BV160: 0 | BW160: 0 | BX160: 0 | BY160: 0 | BZ160: 0 | CA160: 0 | CB160: 0 | CC160: 0 | CD160: 0 | CE160: 0 | CF160: 0 | CG160: 0 | CH160: 0 | CI160: 0 | CM160: D0361
A161: 362 | B161: Linn | C161: Prairie View | D161: 5738890 | E161: 0 | F161: 90522 | G161: 0 | H161: 0 | I161: 875.3 | J161: 0 | K161: 282 | L161: ='2016legmax.xls'!BJ158 -> 0 | M161: 5829130 | N161: ='2016legmax.xls'!BB158 -> 0 | O161: 1221718 | P161: ='2016legmax.xls'!BC158 -> 547584 | Q161: 716112 | R161: ='2016legmax.xls'!BD158 -> 0 | S161: 7598432 | T161: ='2016legmax.xls'!DD158 -> 0 | U161: 0 | V161: 0 | W161: 0 | X161: 0 | Y161: 0 | Z161: 31544 | AA161: ='2016legmax.xls'!AV158 -> 6 | AB161: ='2016legmax.xls'!AW158 -> A | AC161: ='2016legmax.xls'!AX158 ->  | AD161: 7798786 | AE161: 7630258 | AF161: =IF(Weightings!G158>0,Weightings!G158,'Preliminary SO66'!AB155) -> 8195719 | AG161: 7630258 | AH161: 7630258 | AI161: 8198831 | AJ161: ='2016legmax.xls'!BM158 -> 0.3 | AK161: 2459649 | AL161: 2459649 | AM161: 2459649 | AO161: 5834975 | AP161: 3.7 | AQ161: 14252 | AR161: 0 | AS161: 0 | AT161: 0 | AU161: 0 | AV161: 0 | AW161: 0 | AX161: 0 | AY161: 23283 | AZ161: 15.2 | BA161: 58550 | BB161: 5738890 | BC161: ='2016legmax.xls'!F158 -> 909.3 | BD161: ='2016legmax.xls'!I158 -> 864.6 | BE161: ='2016legmax.xls'!K158 -> 852.1 | BF161: 875.3 | BG161: ='2016legmax.xls'!O158 -> 0 | BH161: 875.3 | BI161: =IF(ISNA(VLOOKUP($CM161,'Audit Values'!$A$2:$AE$252,2,FALSE)),'Preliminary SO66'!T155,VLOOKUP($CM161,'Audit Values'!$A$2:$AE$252,20,FALSE)) -> 0 | BJ161: 0 | BK161: =IF(ISNA(VLOOKUP($CM161,'Audit Values'!$A$2:$AE$252,2,FALSE)),'Preliminary SO66'!U155,VLOOKUP($CM161,'Audit Values'!$A$2:$AE$252,21,FALSE)) -> 0 | BL161: 0 | BM161: 0 | BN161: 0 | BO161: 0 | BP161: ='2016legmax.xls'!AH158 -> 23.5 | BQ161: 90522 | BR161: 0 | BS161: ='2016legmax.xls'!CJ158 -> 0 | BT161: 0 | BU161: ='2016legmax.xls'!CI158 -> 0 | BV161: 0 | BW161: 0 | BX161: 0 | BY161: 0 | BZ161: 0 | CA161: 0 | CB161: 0 | CC161: 0 | CD161: 0 | CE161: 0 | CF161: 0 | CG161: 0 | CH161: 0 | CI161: 0 | CM161: D0362
A162: 363 | B162: Finney | C162: Holcomb | D162: 5639316 | E162: 10080 | F162: 0 | G162: 0 | H162: 0 | I162: 958.5 | J162: 0 | K162: 0 | L162: ='2016legmax.xls'!BJ159 -> 0 | M162: 5649396 | N162: ='2016legmax.xls'!BB159 -> 0 | O162: 497963 | P162: ='2016legmax.xls'!BC159 -> 478548 | Q162: 620840 | R162: ='2016legmax.xls'!BD159 -> 0 | S162: 6625907 | T162: ='2016legmax.xls'!DD159 -> 0 | U162: 68670 | V162: 0 | W162: 0 | X162: 0 | Y162: 0 | Z162: 4005 | AA162: ='2016legmax.xls'!AV159 -> 17 | AB162: ='2016legmax.xls'!AW159 -> A | AC162: ='2016legmax.xls'!AX159 ->  | AD162: 6840874 | AE162: 6698582 | AF162: =IF(Weightings!G159>0,Weightings!G159,'Preliminary SO66'!AB156) -> 7160331 | AG162: 6698582 | AH162: 6698582 | AI162: 7377175 | AJ162: ='2016legmax.xls'!BM159 -> 0.3 | AK162: 2213153 | AL162: 2150000 | AM162: 2150000 | AO162: 5677372 | AP162: 4 | AQ162: 15408 | AR162: 0 | AS162: 0 | AT162: 0 | AU162: 0 | AV162: 0 | AW162: 0 | AX162: 0 | AY162: 22648 | AZ162: 0 | BA162: 0 | BB162: 5639316 | BC162: ='2016legmax.xls'!F159 -> 913.4 | BD162: ='2016legmax.xls'!I159 -> 937.3 | BE162: ='2016legmax.xls'!K159 -> 946.5 | BF162: 946.5 | BG162: ='2016legmax.xls'!O159 -> 12 | BH162: 958.5 | BI162: =IF(ISNA(VLOOKUP($CM162,'Audit Values'!$A$2:$AE$269,2,FALSE)),'Preliminary SO66'!T156,VLOOKUP($CM162,'Audit Values'!$A$2:$AE$269,20,FALSE)) -> 0 | BJ162: 0 | BK162: =IF(ISNA(VLOOKUP($CM162,'Audit Values'!$A$2:$AE$269,2,FALSE)),'Preliminary SO66'!U156,VLOOKUP($CM162,'Audit Values'!$A$2:$AE$269,21,FALSE)) -> 1.8 | BL162: 7281 | BM162: 3 | BN162: 2799 | BO162: 10080 | BP162: ='2016legmax.xls'!AH159 -> 0 | BQ162: 0 | BR162: 0 | BS162: ='2016legmax.xls'!CJ159 -> 0 | BT162: 0 | BU162: ='2016legmax.xls'!CI159 -> 0 | BV162: 0 | BW162: 0 | BX162: 0 | BY162: 0 | BZ162: 0 | CA162: 0 | CB162: 0 | CC162: 0 | CD162: 0 | CE162: 0 | CF162: 0 | CG162: 0 | CH162: 0 | CI162: 0 | CM162: D0363
A163: 364 | B163: Marshall | C163: Marysville | D163: 4399630 | E163: 0 | F163: 0 | G163: 0 | H163: 0 | I163: 705.8 | J163: 0 | K163: 0 | L163: ='2016legmax.xls'!BJ160 -> 0 | M163: 4399630 | N163: ='2016legmax.xls'!BB160 -> 172213 | O163: 594924 | P163: ='2016legmax.xls'!BC160 -> 468882 | Q163: 625721 | R163: ='2016legmax.xls'!BD160 -> 0 | S163: 5635649 | T163: ='2016legmax.xls'!DD160 -> 0 | U163: 0 | V163: 0 | W163: 0 | X163: 10000 | Y163: 53622 | Z163: 9068 | AA163: ='2016legmax.xls'!AV160 -> 2 | AB163: ='2016legmax.xls'!AW160 -> A | AC163: ='2016legmax.xls'!AX160 ->  | AD163: 5855178 | AE163: 5708339 | AF163: =IF(Weightings!G160>0,Weightings!G160,'Preliminary SO66'!AB157) -> 5947721 | AG163: 5708339 | AH163: 5708339 | AI163: 6012683 | AJ163: ='2016legmax.xls'!BM160 -> 0.3 | AK163: 1803805 | AL163: 1803805 | AM163: 1803805 | AO163: 4417299 | AP163: 0 | AQ163: 0 | AR163: 0 | AS163: 0 | AT163: 0 | AU163: 0 | AV163: 0 | AW163: 0 | AX163: 0 | AY163: 17669 | AZ163: 0 | BA163: 0 | BB163: 4399630 | BC163: ='2016legmax.xls'!F160 -> 683.7 | BD163: ='2016legmax.xls'!I160 -> 701.8 | BE163: ='2016legmax.xls'!K160 -> 689.5 | BF163: 701.8 | BG163: ='2016legmax.xls'!O160 -> 4 | BH163: 705.8 | BI163: =IF(ISNA(VLOOKUP($CM163,'Audit Values'!$A$2:$AE$252,2,FALSE)),'Preliminary SO66'!T157,VLOOKUP($CM163,'Audit Values'!$A$2:$AE$252,20,FALSE)) -> 0 | BJ163: 0 | BK163: =IF(ISNA(VLOOKUP($CM163,'Audit Values'!$A$2:$AE$252,2,FALSE)),'Preliminary SO66'!U157,VLOOKUP($CM163,'Audit Values'!$A$2:$AE$252,21,FALSE)) -> 0 | BL163: 0 | BM163: 0 | BN163: 0 | BO163: 0 | BP163: ='2016legmax.xls'!AH160 -> 0 | BQ163: 0 | BR163: 0 | BS163: ='2016legmax.xls'!CJ160 -> 0 | BT163: 0 | BU163: ='2016legmax.xls'!CI160 -> 0 | BV163: 0 | BW163: 0 | BX163: 0 | BY163: 0 | BZ163: 0 | CA163: 0 | CB163: 0 | CC163: 0 | CD163: 0 | CE163: 0 | CF163: 0 | CG163: 0 | CH163: 0 | CI163: 0 | CM163: D0364
A164: 365 | B164: Anderson | C164: Garnett | D164: 6233209 | E164: 0 | F164: 0 | G164: 0 | H164: 0 | I164: 1026.9 | J164: 0 | K164: 0 | L164: ='2016legmax.xls'!BJ161 -> 0 | M164: 6233209 | N164: ='2016legmax.xls'!BB161 -> 1090944 | O164: 912331 | P164: ='2016legmax.xls'!BC161 -> 516389 | Q164: 679143 | R164: ='2016legmax.xls'!BD161 -> 69526 | S164: 8822399 | T164: ='2016legmax.xls'!DD161 -> 0 | U164: 0 | V164: 0 | W164: 0 | X164: 0 | Y164: 0 | Z164: 7187 | AA164: ='2016legmax.xls'!AV161 -> 3 | AB164: ='2016legmax.xls'!AW161 -> A | AC164: ='2016legmax.xls'!AX161 ->  | AD164: 8992340 | AE164: 8829586 | AF164: =IF(Weightings!G161>0,Weightings!G161,'Preliminary SO66'!AB158) -> 9062160 | AG164: 8829586 | AH164: 8829586 | AI164: 8281363 | AJ164: ='2016legmax.xls'!BM161 -> 0.3 | AK164: 2484409 | AL164: 2484409 | AM164: 2484409 | AO164: 6258242 | AP164: 0 | AQ164: 0 | AR164: 0 | AS164: 0 | AT164: 0 | AU164: 0 | AV164: 0 | AW164: 0 | AX164: 0 | AY164: 25033 | AZ164: 0 | BA164: 0 | BB164: 6233209 | BC164: ='2016legmax.xls'!F161 -> 1070.6 | BD164: ='2016legmax.xls'!I161 -> 1022 | BE164: ='2016legmax.xls'!K161 -> 988 | BF164: 1026.9 | BG164: ='2016legmax.xls'!O161 -> 0 | BH164: 1026.9 | BI164: =IF(ISNA(VLOOKUP($CM164,'Audit Values'!$A$2:$AE$252,2,FALSE)),'Preliminary SO66'!T158,VLOOKUP($CM164,'Audit Values'!$A$2:$AE$252,20,FALSE)) -> 0 | BJ164: 0 | BK164: =IF(ISNA(VLOOKUP($CM164,'Audit Values'!$A$2:$AE$252,2,FALSE)),'Preliminary SO66'!U158,VLOOKUP($CM164,'Audit Values'!$A$2:$AE$252,21,FALSE)) -> 0 | BL164: 0 | BM164: 0 | BN164: 0 | BO164: 0 | BP164: ='2016legmax.xls'!AH161 -> 0 | BQ164: 0 | BR164: 0 | BS164: ='2016legmax.xls'!CJ161 -> 0 | BT164: 0 | BU164: ='2016legmax.xls'!CI161 -> 0 | BV164: 0 | BW164: 0 | BX164: 0 | BY164: 0 | BZ164: 0 | CA164: 0 | CB164: 0 | CC164: 0 | CD164: 0 | CE164: 0 | CF164: 0 | CG164: 0 | CH164: 0 | CI164: 0 | CM164: D0365
A165: 366 | B165: Woodson | C165: Woodson | D165: 3106922 | E165: 0 | F165: 0 | G165: 0 | H165: 0 | I165: 436.2 | J165: 0 | K165: 1549 | L165: ='2016legmax.xls'!BJ162 -> 0 | M165: 3105373 | N165: ='2016legmax.xls'!BB162 -> 420995 | O165: 516729 | P165: ='2016legmax.xls'!BC162 -> 239857 | Q165: 315666 | R165: ='2016legmax.xls'!BD162 -> 15344 | S165: 4298298 | T165: ='2016legmax.xls'!DD162 -> 0 | U165: 655 | V165: 0 | W165: 0 | X165: 0 | Y165: 0 | Z165: 0 | AA165: ='2016legmax.xls'!AV162 -> 17 | AB165: ='2016legmax.xls'!AW162 -> A | AC165: ='2016legmax.xls'!AX162 ->  | AD165: 4376311 | AE165: 4300502 | AF165: =IF(Weightings!G162>0,Weightings!G162,'Preliminary SO66'!AB159) -> 4491284 | AG165: 4300502 | AH165: 4300502 | AI165: 4203789 | AJ165: ='2016legmax.xls'!BM162 -> 0.3 | AK165: 1261137 | AL165: 1261137 | AM165: 1261137 | AO165: 3119400 | AP165: 0 | AQ165: 0 | AR165: 0 | AS165: 0 | AT165: 0 | AU165: 0 | AV165: 0 | AW165: 0 | AX165: 0 | AY165: 12478 | AZ165: 0 | BA165: 0 | BB165: 3106922 | BC165: ='2016legmax.xls'!F162 -> 437.5 | BD165: ='2016legmax.xls'!I162 -> 425.6 | BE165: ='2016legmax.xls'!K162 -> 421.5 | BF165: 428.2 | BG165: ='2016legmax.xls'!O162 -> 8 | BH165: 436.2 | BI165: =IF(ISNA(VLOOKUP($CM165,'Audit Values'!$A$2:$AE$252,2,FALSE)),'Preliminary SO66'!T159,VLOOKUP($CM165,'Audit Values'!$A$2:$AE$252,20,FALSE)) -> 0 | BJ165: 0 | BK165: =IF(ISNA(VLOOKUP($CM165,'Audit Values'!$A$2:$AE$252,2,FALSE)),'Preliminary SO66'!U159,VLOOKUP($CM165,'Audit Values'!$A$2:$AE$252,21,FALSE)) -> 0 | BL165: 0 | BM165: 0 | BN165: 0 | BO165: 0 | BP165: ='2016legmax.xls'!AH162 -> 0 | BQ165: 0 | BR165: 0 | BS165: ='2016legmax.xls'!CJ162 -> 0 | BT165: 0 | BU165: ='2016legmax.xls'!CI162 -> 0 | BV165: 0 | BW165: 0 | BX165: 0 | BY165: 0 | BZ165: 0 | CA165: 0 | CB165: 0 | CC165: 0 | CD165: 0 | CE165: 0 | CF165: 0 | CG165: 0 | CH165: 0 | CI165: 0 | CM165: D0366
A166: 367 | B166: Miami | C166: Osawatomie | D166: 7146514 | E166: 0 | F166: 36594 | G166: 0 | H166: 0 | I166: 1166 | J166: 0 | K166: 0 | L166: ='2016legmax.xls'!BJ163 -> 0 | M166: 7183108 | N166: ='2016legmax.xls'!BB163 -> 1961727 | O166: 1805011 | P166: ='2016legmax.xls'!BC163 -> 584504 | Q166: 766496 | R166: ='2016legmax.xls'!BD163 -> 133156 | S166: 11667506 | T166: ='2016legmax.xls'!DD163 -> 0 | U166: 0 | V166: 0 | W166: 0 | X166: 0 | Y166: 0 | Z166: 0 | AA166: ='2016legmax.xls'!AV163 -> 3 | AB166: ='2016legmax.xls'!AW163 -> A | AC166: ='2016legmax.xls'!AX163 ->  | AD166: 11849498 | AE166: 11667506 | AF166: =IF(Weightings!G163>0,Weightings!G163,'Preliminary SO66'!AB160) -> 11982484 | AG166: 11667506 | AH166: 11667506 | AI166: 10093058 | AJ166: ='2016legmax.xls'!BM163 -> 0.3 | AK166: 3027917 | AL166: 3027917 | AM166: 3027917 | AO166: 7213116 | AP166: 0 | AQ166: 0 | AR166: 0 | AS166: 0 | AT166: 0 | AU166: 0 | AV166: 0 | AW166: 0 | AX166: 0 | AY166: 28852 | AZ166: 9.8 | BA166: 37750 | BB166: 7146514 | BC166: ='2016legmax.xls'!F163 -> 1131 | BD166: ='2016legmax.xls'!I163 -> 1159.5 | BE166: ='2016legmax.xls'!K163 -> 1119 | BF166: 1159.5 | BG166: ='2016legmax.xls'!O163 -> 6.5 | BH166: 1166 | BI166: =IF(ISNA(VLOOKUP($CM166,'Audit Values'!$A$2:$AE$252,2,FALSE)),'Preliminary SO66'!T160,VLOOKUP($CM166,'Audit Values'!$A$2:$AE$252,20,FALSE)) -> 0 | BJ166: 0 | BK166: =IF(ISNA(VLOOKUP($CM166,'Audit Values'!$A$2:$AE$252,2,FALSE)),'Preliminary SO66'!U160,VLOOKUP($CM166,'Audit Values'!$A$2:$AE$252,21,FALSE)) -> 0 | BL166: 0 | BM166: 0 | BN166: 0 | BO166: 0 | BP166: ='2016legmax.xls'!AH163 -> 9.5 | BQ166: 36594 | BR166: 0 | BS166: ='2016legmax.xls'!CJ163 -> 0 | BT166: 0 | BU166: ='2016legmax.xls'!CI163 -> 0 | BV166: 0 | BW166: 0 | BX166: 0 | BY166: 0 | BZ166: 0 | CA166: 0 | CB166: 0 | CC166: 0 | CD166: 0 | CE166: 0 | CF166: 0 | CG166: 0 | CH166: 0 | CI166: 0 | CM166: D0367
